Workbook

Sheet Configuration
D1: Configuration Tool for 650W/1200W Configurable Power - NMP series
B4: Output Configuration
B5: Output No. | C5: Output Voltage | D5: Output Current | E5: Output Power | F5: Module Code | G5: Module Rated Current | H5: Module Rated Power | I5: No. of Slot Used | J5: Parallel Connection | K5: 1 | L5: 2 | M5: 3 | N5: 4 | O5: 5 | P5: 6 | Q5: Front-End Auxiliary Power | R5: Available No. of Slot | S5: Min. Output Voltage | T5: Max. Output Voltage | U5: Output Current Range | V5: Output Power Range | Z5: 30 | AA5: 5 | AB5: 240 | AC5: NMD | AE5: 1 | AF5: 2 | AG5: 3 | AH5: 4 | AI5: 5 | AJ5: 6 | AK5: 7 | AL5: 8 | AM5: 9 | AN5: 10 | AO5: 11
A6: =IF(Table3[[#This Row],[Output No.]]="",0,1) -> 0 | B6: =IF(OR(Table3[[#This Row],[Output Voltage]]="Blank Slot",Table3[[#This Row],[Output Voltage]]=""),"",ROW(A1)) ->  | E6: =IFERROR(IF(C6*D6=0,"",C6*D6),"") ->  | F6: =IFERROR(IF(AC6=1,"D",INDEX(Table2[[Short Name]:[Max current per output]],MATCH(Configuration!$C6,Table2[Output Voltage],FALSE),MATCH(Configuration!$F$5,Table2[[#Headers],[Short Name]:[Max current per output]],FALSE))),"") ->  | G6: =IFERROR(IF(F6="D",5,VLOOKUP(C6,Table2[],3,FALSE)),"") ->  | H6: =IFERROR(INDEX(Table2[[Short Name]:[Module Code]],MATCH(Configuration!$C6,Table2[Output Voltage],FALSE),MATCH(Configuration!$H$5,Table2[[#Headers],[Short Name]:[Module Code]],FALSE)),"") ->  | I6: =IFERROR(IF(Configuration!$C6="Blank Slot",1,IF(ROUNDUP(Configuration!$D6/G6,0)=0,"",ROUNDUP(Configuration!$D6/G6,0))),"") ->  | J6: =IF(Configuration!$D6>G6,1,"") ->  | K6: =IF(Configuration!$I6="",0,IF(Configuration!$I6>Configuration!$K$5-1,1,0)) -> 0 | L6: =IF(Configuration!$I6="",0,IF(Configuration!$I6>Configuration!$L$5-1,1,0)) -> 0 | M6: =IF(Configuration!$I6="",0,IF(Configuration!$I6>Configuration!$M$5-1,1,0)) -> 0 | N6: =IF(Configuration!$I6="",0,IF(Configuration!$I6>Configuration!$N$5-1,1,0)) -> 0 | O6: =IF(Configuration!$I6="",0,IF(Configuration!$I6>Configuration!$O$5-1,1,0)) -> 0 | P6: =IF(Configuration!$I6="",0,IF(Configuration!$I6>Configuration!$P$5-1,1,0)) -> 0 | Q6: =IF($F$20="650",Database!L2,IF($F$20="","",Database!L3)) ->  | R6: =IF(Configuration!$C6="",6,IF(Configuration!$D6="",INDEX(Table2[[Short Name]:[Max current per output]],MATCH(Configuration!$C6,Table2[Output Voltage],FALSE),MATCH(Configuration!$R$5,Table2[[#Headers],[Short Name]:[Max current per output]],FALSE)),IF(INDEX(Table2[[Short Name]:[Max current per output]],MATCH(Configuration!$C6,Table2[Output Voltage],FALSE),MATCH(Configuration!$R$5,Table2[[#Headers],[Short Name]:[Max current per output]],FALSE))>6-SUM(I7:I17),6-SUM(I7:I17),INDEX(Table2[[Short Name]:[Max current per output]],MATCH(Configuration!$C6,Table2[Output Voltage],FALSE),MATCH(Configuration!$R$5,Table2[[#Headers],[Short Name]:[Max current per output]],FALSE))))) -> 6 | S6: =IF(Configuration!$R6>0,3,0) -> 3 | T6: =IF(Configuration!$R6>0,IF(F6="D",30,55),0) -> 55 | U6: =IFERROR(IF(OR(Configuration!$C6="",C6="Blank Slot"),0,Configuration!$V6/Configuration!$C6),"") -> 0 | V6: =IFERROR(Configuration!$H6*Configuration!$R6,"") ->  | Y6: =SUM(Z6:AA6) -> 0 | Z6: =IFERROR(IF(C6="","",IF(C6<=$Z$5,1,0)),"") ->  | AA6: =IFERROR(IF(D6="","",IF(D6<=$AA$5,1,0)),"") ->  | AB6: =IFERROR(IF(E6+E7<=$AB$5,1,0),"") ->  | AC6: =IF(SUM(Z6:AB6,Z7:AA7)=5,1,0) -> 0 | AD6: 1
A7: =IF(Table3[[#This Row],[Output No.]]="",0,1) -> 0 | B7: =IF(OR(Table3[[#This Row],[Output Voltage]]="Blank Slot",Table3[[#This Row],[Output Voltage]]=""),"",SUM($A$6:A6)+1) ->  | E7: =IFERROR(IF(C7*D7=0,"",C7*D7),"") ->  | F7: =IFERROR(IF(AC6=1,"D",IF(AC7=1,"D",INDEX(Table2[[Short Name]:[Max current per output]],MATCH(Configuration!$C7,Table2[Output Voltage],FALSE),MATCH(Configuration!$F$5,Table2[[#Headers],[Short Name]:[Max current per output]],FALSE)))),"") ->  | G7: =IFERROR(IF(F7="D",5,VLOOKUP(C7,Table2[],3,FALSE)),"") ->  | H7: =IFERROR(INDEX(Table2[[Short Name]:[Module Code]],MATCH(Configuration!$C7,Table2[Output Voltage],FALSE),MATCH(Configuration!$H$5,Table2[[#Headers],[Short Name]:[Module Code]],FALSE)),"") ->  | I7: =IFERROR(IF(AND(F6="D",F7="D"),0,IF(Configuration!$C7="Blank Slot",1,IF(ROUNDUP(Configuration!$D7/G7,0)=0,"",ROUNDUP(Configuration!$D7/G7,0)))),"") ->  | J7: =IF(Configuration!$D7>G7,1,"") ->  | K7: =IF(I7=0,1,0) -> 0 | L7: =IF(K7=1,0,IF(Configuration!$I7="",0,IF($L6=1,0,1))) -> 0 | M7: =IF(Configuration!$I7="",0,IF($M6=1,0,IF(SUM(Configuration!$K7:$L7)<Configuration!$I7,1,0))) -> 0 | N7: =IF(Configuration!$I7="",0,IF($N6=1,0,IF(SUM(Configuration!$K7:$M7)<Configuration!$I7,1,0))) -> 0 | O7: =IF(Configuration!$I7="",0,IF($O6=1,0,IF(SUM(Configuration!$K7:$N7)<Configuration!$I7,1,0))) -> 0 | P7: =IF(Configuration!$I7="",0,IF($P6=1,0,IF(SUM(Configuration!$K7:$O7)<Configuration!$I7,1,0))) -> 0 | R7: =IFERROR(IF(F7="D",1,IF(C6="",0,IF(SUM(I8:I17)=0,6-I6,6-SUM(I6,I8:I17)))),0) -> 0 | S7: =IF(Configuration!$R7>0,3,0) -> 0 | T7: =IF(Configuration!$R7>0,IF(F7="D",30,55),0) -> 0 | U7: =IFERROR(IF(F7="D",5,IF(Configuration!$C7="",0,Configuration!$V7/Configuration!$C7)),0) -> 0 | V7: =IFERROR(Configuration!$H7*Configuration!$R7,"") ->  | Y7: =SUM(Z7:AA7) -> 0 | AC7: =IF(AC6=1,0,IF(SUM(Z7:AB7,Z8:AA8)=5,1,0)) -> 0 | AD7: 2 | AE7: =IFERROR(IF($E$6+E7<=$AB$5,1,0),"") -> 
A8: =IF(Table3[[#This Row],[Output No.]]="",0,1) -> 0 | B8: =IF(OR(Table3[[#This Row],[Output Voltage]]="Blank Slot",Table3[[#This Row],[Output Voltage]]=""),"",SUM($A$6:A7)+1) ->  | F8: =IFERROR(IF(AND(C8<>"",I6=5,Y7=2),"D",IF(AC7=1,"D",IF(AC8=1,"D",INDEX(Table2[[Short Name]:[Max current per output]],MATCH(Configuration!$C8,Table2[Output Voltage],FALSE),MATCH(Configuration!$F$5,Table2[[#Headers],[Short Name]:[Max current per output]],FALSE))))),"") ->  | G8: =IFERROR(IF(F8="D",5,VLOOKUP(C8,Table2[],3,FALSE)),"") ->  | H8: =IFERROR(INDEX(Table2[[Short Name]:[Module Code]],MATCH(Configuration!$C8,Table2[Output Voltage],FALSE),MATCH(Configuration!$H$5,Table2[[#Headers],[Short Name]:[Module Code]],FALSE)),"") ->  | I8: =IFERROR(IF(AND(I7>0,F7="D",F8="D"),0,IF(Configuration!$C8="Blank Slot",1,IF(ROUNDUP(Configuration!$D8/G8,0)=0,"",ROUNDUP(Configuration!$D8/G8,0)))),"") ->  | J8: =IF(Configuration!$D8>G8,1,"") ->  | K8: 0 | L8: =IF(Configuration!$I8="",0,IF(SUM($L6:$L7)=1,IF(AND(I8=0,L6=0),1,0),IF(Configuration!$K8<Configuration!$I8,1,0))) -> 0 | M8: =IF(Configuration!$I8="",0,IF(SUM($M6:$M7)=1,IF(AND(I8=0,M6=0),1,0),IF(SUM(Configuration!$K8:$L8)<Configuration!$I8,1,0))) -> 0 | N8: =IF(Configuration!$I8="",0,IF(SUM($N6:$N7)=1,IF(AND(I8=0,N6=0),1,0),IF(SUM(Configuration!$K8:$M8)<Configuration!$I8,1,0))) -> 0 | O8: =IF(Configuration!$I8="",0,IF(SUM($O6:$O7)=1,IF(AND(I8=0,O6=0),1,0),IF(SUM(Configuration!$K8:$N8)<Configuration!$I8,1,0))) -> 0 | P8: =IF(Configuration!$I8="",0,IF(SUM($P6:$P7)=1,IF(AND(I8=0,P6=0),1,0),IF(SUM(Configuration!$K8:$O8)<Configuration!$I8,1,0))) -> 0 | R8: =IF(AND(I6=5,Y7=2),1,IF(F8="D",1,IF(C7="",0,IF(SUM(I9:I17)=0,6-SUM(I6:I7),6-SUM(I6:I7,I9:I17))))) -> 0 | S8: =IF(Configuration!$R8>0,3,0) -> 0 | T8: =IF(Configuration!$R8>0,IF(F8="D",30,55),0) -> 0 | U8: =IFERROR(IF(AND(I6=5,F7<>"D",F8="D"),IF((V8-E7)/C8<=5,(V8-E7)/C8,5),IF(Configuration!$C8="",0,Configuration!$V8/Configuration!$C8)),0) -> 0 | V8: =IFERROR(Configuration!$H8*Configuration!$R8,"") ->  | Y8: 0 | AC8: =IF(AC7=1,0,IF(SUM(Z8:AB8,Z9:AA9)=5,1,0)) -> 0 | AD8: 3 | AF8: =IFERROR(IF($E$7+E8<=$AB$5,1,0),"") -> 
A9: =IF(Table3[[#This Row],[Output No.]]="",0,1) -> 0 | B9: =IF(OR(Table3[[#This Row],[Output Voltage]]="Blank Slot",Table3[[#This Row],[Output Voltage]]=""),"",SUM($A$6:A8)+1) ->  | F9: =IFERROR(IF(AND(C9<>"",SUM(I6:I7)=5,Y8=2,I8=1),"D",IF(AC8=1,"D",IF(AC9=1,"D",INDEX(Table2[[Short Name]:[Max current per output]],MATCH(Configuration!$C9,Table2[Output Voltage],FALSE),MATCH(Configuration!$F$5,Table2[[#Headers],[Short Name]:[Max current per output]],FALSE))))),"") ->  | G9: =IFERROR(IF(F9="D",5,VLOOKUP(C9,Table2[],3,FALSE)),"") ->  | H9: =IFERROR(INDEX(Table2[[Short Name]:[Module Code]],MATCH(Configuration!$C9,Table2[Output Voltage],FALSE),MATCH(Configuration!$H$5,Table2[[#Headers],[Short Name]:[Module Code]],FALSE)),"") ->  | I9: =IFERROR(IF(AND(I8>0,F8="D",F9="D"),0,IF(Configuration!$C9="Blank Slot",1,IF(ROUNDUP(Configuration!$D9/G9,0)=0,"",ROUNDUP(Configuration!$D9/G9,0)))),"") ->  | J9: =IF(Configuration!$D9>G9,1,"") ->  | K9: 0 | L9: =IF(Configuration!$I9="",0,IF(SUM($L6:$L8)>=1,IF(AND($I9=0,SUM(L6:L7)=0),1,0),IF(Configuration!$K9<Configuration!$I9,1,0))) -> 0 | M9: =IF(Configuration!$I9="",0,IF(SUM($M6:$M8)>=1,IF(AND($I9=0,SUM(M6:M7)=0),1,0),IF(SUM(Configuration!$K9:$L9)<Configuration!$I9,1,0))) -> 0 | N9: =IF(Configuration!$I9="",0,IF(SUM($N6:$N8)>=1,IF(AND($I9=0,SUM(N6:N7)=0),1,0),IF(SUM(Configuration!$K9:$M9)<Configuration!$I9,1,0))) -> 0 | O9: =IF(Configuration!$I9="",0,IF(SUM($O6:$O8)>=1,IF(AND($I9=0,SUM(O6:O7)=0),1,0),IF(SUM(Configuration!$K9:$N9)<Configuration!$I9,1,0))) -> 0 | P9: =IF(Configuration!$I9="",0,IF(SUM($P6:$P8)>=1,IF(AND($I9=0,SUM(P6:P7)=0),1,0),IF(SUM(Configuration!$K9:$O9)<Configuration!$I9,1,0))) -> 0 | R9: =IF(F9="D",1,IF(C8="",0,IF(SUM(I10:I17)=0,6-SUM(I6:I8),6-SUM(I6:I8,I10:I17)))) -> 0 | S9: =IF(Configuration!$R9>0,3,0) -> 0 | T9: =IF(Configuration!$R9>0,IF(F9="D",30,55),0) -> 0 | U9: =IFERROR(IF(AND(SUM(I6:I7)=5,F8<>"D",F9="D"),IF((V9-E8)/C9<=5,(V9-E8)/C9,5),IF(Configuration!$C9="",0,Configuration!$V9/Configuration!$C9)),0) -> 0 | V9: =IFERROR(Configuration!$H9*Configuration!$R9,"") ->  | Y9: 0 | AC9: 0 | AD9: 4 | AG9: =IFERROR(IF($E$8+E9<=$AB$5,1,0),"") -> 
A10: =IF(Table3[[#This Row],[Output No.]]="",0,1) -> 0 | B10: =IF(OR(Table3[[#This Row],[Output Voltage]]="Blank Slot",Table3[[#This Row],[Output Voltage]]=""),"",SUM($A$6:A9)+1) ->  | F10: =IFERROR(IF(AND(C10<>"",SUM(I6:I8)=5,Y9=2,I9=1),"D",IF(AC9=1,"D",IF(AC10=1,"D",INDEX(Table2[[Short Name]:[Max current per output]],MATCH(Configuration!$C10,Table2[Output Voltage],FALSE),MATCH(Configuration!$F$5,Table2[[#Headers],[Short Name]:[Max current per output]],FALSE))))),"") ->  | G10: =IFERROR(IF(F10="D",5,VLOOKUP(C10,Table2[],3,FALSE)),"") ->  | H10: =IFERROR(INDEX(Table2[[Short Name]:[Module Code]],MATCH(Configuration!$C10,Table2[Output Voltage],FALSE),MATCH(Configuration!$H$5,Table2[[#Headers],[Short Name]:[Module Code]],FALSE)),"") ->  | I10: =IFERROR(IF(AND(I9>0,F9="D",F10="D"),0,IF(Configuration!$C10="Blank Slot",1,IF(ROUNDUP(Configuration!$D10/G10,0)=0,"",ROUNDUP(Configuration!$D10/G10,0)))),"") ->  | J10: =IF(Configuration!$D10>G10,1,"") ->  | K10: 0 | L10: 0 | M10: =IF(Configuration!$I10="",0,IF(SUM($M6:$M9)>=1,IF(AND($I10=0,SUM(M6:M8)=0),1,0),IF(SUM(Configuration!$K10:$L10)<Configuration!$I10,1,0))) -> 0 | N10: =IF(Configuration!$I10="",0,IF(SUM($N6:$N9)>=1,IF(AND($I10=0,SUM(N6:N8)=0),1,0),IF(SUM(Configuration!$K10:$M10)<Configuration!$I10,1,0))) -> 0 | O10: =IF(Configuration!$I10="",0,IF(SUM($O6:$O9)>=1,IF(AND($I10=0,SUM(O6:O8)=0),1,0),IF(SUM(Configuration!$K10:$N10)<Configuration!$I10,1,0))) -> 0 | P10: =IF(Configuration!$I10="",0,IF(SUM($P6:$P9)>=1,IF(AND($I10=0,SUM(P6:P8)=0),1,0),IF(SUM(Configuration!$K10:$O10)<Configuration!$I10,1,0))) -> 0 | R10: =IF(F10="D",1,IF(C9="",0,IF(SUM(I11:I17)=0,6-SUM(I6:I9),6-SUM(I11:I17,I6:I9)))) -> 0 | S10: =IF(Configuration!$R10>0,3,0) -> 0 | T10: =IF(Configuration!$R10>0,IF(F10="D",30,55),0) -> 0 | U10: =IFERROR(IF(AND(SUM(I6:I8)=5,F9<>"D",F10="D"),IF((V10-E9)/C10<=5,(V10-E9)/C10,5),IF(Configuration!$C10="",0,Configuration!$V10/Configuration!$C10)),0) -> 0 | V10: =IFERROR(Configuration!$H10*Configuration!$R10,"") ->  | Y10: 0 | AC10: 0 | AD10: 5 | AH10: =IFERROR(IF($E$9+E10<=$AB$5,1,0),"") -> 
A11: =IF(Table3[[#This Row],[Output No.]]="",0,1) -> 0 | B11: =IF(OR(Table3[[#This Row],[Output Voltage]]="Blank Slot",Table3[[#This Row],[Output Voltage]]=""),"",SUM($A$6:A10)+1) ->  | F11: =IFERROR(IF(AND(C11<>"",SUM(I6:I9)=5,Y10=2,I10=1),"D",IF(AC10=1,"D",IF(AC11=1,"D",INDEX(Table2[[Short Name]:[Max current per output]],MATCH(Configuration!$C11,Table2[Output Voltage],FALSE),MATCH(Configuration!$F$5,Table2[[#Headers],[Short Name]:[Max current per output]],FALSE))))),"") ->  | G11: =IFERROR(IF(F11="D",5,VLOOKUP(C11,Table2[],3,FALSE)),"") ->  | H11: =IFERROR(INDEX(Table2[[Short Name]:[Module Code]],MATCH(Configuration!$C11,Table2[Output Voltage],FALSE),MATCH(Configuration!$H$5,Table2[[#Headers],[Short Name]:[Module Code]],FALSE)),"") ->  | I11: =IFERROR(IF(AND(I10>0,F10="D",F11="D"),0,IF(Configuration!$C11="Blank Slot",1,IF(ROUNDUP(Configuration!$D11/G11,0)=0,"",ROUNDUP(Configuration!$D11/G11,0)))),"") ->  | J11: =IF(Configuration!$D11>G11,1,"") ->  | K11: 0 | L11: 0 | M11: =IF(Configuration!$I11="",0,IF(SUM($M6:$M10)>=1,IF(AND($I11=0,SUM(M6:M9)=0),1,0),IF(SUM(Configuration!$K11:$L11)<Configuration!$I11,1,0))) -> 0 | N11: =IF(Configuration!$I11="",0,IF(SUM($N6:$N10)>=1,IF(AND($I11=0,SUM(N6:N9)=0),1,0),IF(SUM(Configuration!$K11:$M11)<Configuration!$I11,1,0))) -> 0 | O11: =IF(Configuration!$I11="",0,IF(SUM($O6:$O10)>=1,IF(AND($I11=0,SUM(O6:O9)=0),1,0),IF(SUM(Configuration!$K11:$N11)<Configuration!$I11,1,0))) -> 0 | P11: =IF(Configuration!$I11="",0,IF(SUM($P6:$P10)>=1,IF(AND($I11=0,SUM(P6:P9)=0),1,0),IF(SUM(Configuration!$K11:$O11)<Configuration!$I11,1,0))) -> 0 | R11: =IF(F11="D",1,IF(C10="",0,IF(SUM(I12:I17)=0,6-SUM(I6:I10),6-SUM(I12:I17,I6:I10)))) -> 0 | S11: =IF(Configuration!$R11>0,3,0) -> 0 | T11: =IF(Configuration!$R11>0,IF(F11="D",30,55),0) -> 0 | U11: =IFERROR(IF(AND(SUM(I6:I9)=5,F10<>"D",F11="D"),IF((V11-E10)/C11<=5,(V11-E10)/C11,5),IF(Configuration!$C11="",0,Configuration!$V11/Configuration!$C11)),0) -> 0 | V11: =IFERROR(Configuration!$H11*Configuration!$R11,"") ->  | Y11: 0 | AC11: 0 | AD11: 6 | AI11: =IFERROR(IF($E$10+E11<=$AB$5,1,0),"") -> 
A12: =IF(Table3[[#This Row],[Output No.]]="",0,1) -> 0 | B12: =IF(OR(Table3[[#This Row],[Output Voltage]]="Blank Slot",Table3[[#This Row],[Output Voltage]]=""),"",SUM($A$6:A11)+1) ->  | E12: =IFERROR(IF(C12*D12=0,"",C12*D12),"") ->  | F12: =IFERROR(IF(AND(C12<>"",SUM(I6:I10)=5,Y11=2,I11=1),"D",IF(AC11=1,"D",IF(AC12=1,"D",INDEX(Table2[[Short Name]:[Max current per output]],MATCH(Configuration!$C12,Table2[Output Voltage],FALSE),MATCH(Configuration!$F$5,Table2[[#Headers],[Short Name]:[Max current per output]],FALSE))))),"") ->  | G12: =IFERROR(IF(F12="D",5,VLOOKUP(C12,Table2[],3,FALSE)),"") ->  | H12: =IFERROR(INDEX(Table2[[Short Name]:[Module Code]],MATCH(Configuration!$C12,Table2[Output Voltage],FALSE),MATCH(Configuration!$H$5,Table2[[#Headers],[Short Name]:[Module Code]],FALSE)),"") ->  | I12: =IFERROR(IF(AND(I11>0,F11="D",F12="D"),0,IF(Configuration!$C12="Blank Slot",1,IF(ROUNDUP(Configuration!$D12/G12,0)=0,"",ROUNDUP(Configuration!$D12/G12,0)))),"") ->  | J12: =IF(Configuration!$D12>G12,1,"") ->  | K12: 0 | L12: 0 | M12: =IF(Configuration!$I12="",0,IF(SUM(M6:M11)>=1,IF(AND($I12=0,SUM(M6:M10)=0),1,0),IF(SUM(Configuration!$K12:L12)<Configuration!$I12,1,0))) -> 0 | N12: =IF(Configuration!$I12="",0,IF(SUM(N6:N11)>=1,IF(AND($I12=0,SUM(N6:N10)=0),1,0),IF(SUM(Configuration!$K12:M12)<Configuration!$I12,1,0))) -> 0 | O12: =IF(Configuration!$I12="",0,IF(SUM(O6:O11)>=1,IF(AND($I12=0,SUM(O6:O10)=0),1,0),IF(SUM(Configuration!$K12:N12)<Configuration!$I12,1,0))) -> 0 | P12: =IF(Configuration!$I12="",0,IF(SUM(P6:P11)>=1,IF(AND($I12=0,SUM(P6:P10)=0),1,0),IF(SUM(Configuration!$K12:O12)<Configuration!$I12,1,0))) -> 0 | R12: =IF(F12="D",1,IF(C11="",0,IF(SUM(I13:I17)=0,6-SUM(I6:I11),6-SUM(I13:I17,I6:I11)))) -> 0 | S12: =IF(Configuration!$R12>0,3,0) -> 0 | T12: =IF(Configuration!$R12>0,IF(F12="D",30,55),0) -> 0 | U12: =IFERROR(IF(AND(SUM(I6:I10)=5,F11<>"D",F12="D"),IF((V12-E11)/C12<=5,(V12-E11)/C12,5),IF(Configuration!$C12="",0,Configuration!$V12/Configuration!$C12)),0) -> 0 | V12: =IFERROR(Configuration!$H12*Configuration!$R12,"") ->  | Y12: 0 | AC12: 0 | AD12: 7 | AJ12: =IFERROR(IF($E$11+E12<=$AB$5,1,0),"") -> 
A13: =IF(Table3[[#This Row],[Output No.]]="",0,1) -> 0 | B13: =IF(OR(Table3[[#This Row],[Output Voltage]]="Blank Slot",Table3[[#This Row],[Output Voltage]]=""),"",SUM($A$6:A12)+1) ->  | F13: =IFERROR(IF(AND(C13<>"",SUM(I6:I11)=5,Y12=2,I12=1),"D",IF(AC12=1,"D",IF(AC13=1,"D",INDEX(Table2[[Short Name]:[Max current per output]],MATCH(Configuration!$C13,Table2[Output Voltage],FALSE),MATCH(Configuration!$F$5,Table2[[#Headers],[Short Name]:[Max current per output]],FALSE))))),"") ->  | G13: =IFERROR(IF(F13="D",5,VLOOKUP(C13,Table2[],3,FALSE)),"") ->  | H13: =IFERROR(INDEX(Table2[[Short Name]:[Module Code]],MATCH(Configuration!$C13,Table2[Output Voltage],FALSE),MATCH(Configuration!$H$5,Table2[[#Headers],[Short Name]:[Module Code]],FALSE)),"") ->  | I13: =IFERROR(IF(AND(I12>0,F12="D",F13="D"),0,IF(Configuration!$C13="Blank Slot",1,IF(ROUNDUP(Configuration!$D13/G13,0)=0,"",ROUNDUP(Configuration!$D13/G13,0)))),"") ->  | J13: =IF(Configuration!$D13>G13,1,"") ->  | K13: 0 | L13: 0 | M13: 0 | N13: =IF(Configuration!$I13="",0,IF(SUM(N6:N12)>=1,IF(AND($I13=0,SUM(N6:N11)=0),1,0),IF(SUM(Configuration!$K13:M13)<Configuration!$I13,1,0))) -> 0 | O13: =IF(Configuration!$I13="",0,IF(SUM(O6:O12)>=1,IF(AND($I13=0,SUM(O6:O11)=0),1,0),IF(SUM(Configuration!$K13:N13)<Configuration!$I13,1,0))) -> 0 | P13: =IF(Configuration!$I13="",0,IF(SUM(P6:P12)>=1,IF(AND($I13=0,SUM(P6:P11)=0),1,0),IF(SUM(Configuration!$K13:O13)<Configuration!$I13,1,0))) -> 0 | R13: =IF(F13="D",1,IF(C12="",0,IF(SUM(I14:I17)=0,6-SUM(I6:I12),6-SUM(I14:I17,I6:I12)))) -> 0 | S13: =IF(Configuration!$R13>0,3,0) -> 0 | T13: =IF(Configuration!$R13>0,IF(F13="D",30,55),0) -> 0 | U13: =IFERROR(IF(AND(SUM(I6:I11)=5,F12<>"D",F13="D"),IF((V13-E12)/C13<=5,(V13-E12)/C13,5),IF(Configuration!$C13="",0,Configuration!$V13/Configuration!$C13)),0) -> 0 | V13: =IFERROR(Configuration!$H13*Configuration!$R13,"") ->  | Y13: 0 | AC13: 0 | AD13: 8 | AK13: =IFERROR(IF($E$12+E13<=$AB$5,1,0),"") -> 
A14: =IF(Table3[[#This Row],[Output No.]]="",0,1) -> 0 | B14: =IF(OR(Table3[[#This Row],[Output Voltage]]="Blank Slot",Table3[[#This Row],[Output Voltage]]=""),"",SUM($A$6:A13)+1) ->  | F14: =IFERROR(IF(AND(C14<>"",SUM(I6:I12)=5,Y13=2,I13=1),"D",IF(AC13=1,"D",IF(AC14=1,"D",INDEX(Table2[[Short Name]:[Max current per output]],MATCH(Configuration!$C14,Table2[Output Voltage],FALSE),MATCH(Configuration!$F$5,Table2[[#Headers],[Short Name]:[Max current per output]],FALSE))))),"") ->  | G14: =IFERROR(IF(F14="D",5,VLOOKUP(C14,Table2[],3,FALSE)),"") ->  | H14: =IFERROR(INDEX(Table2[[Short Name]:[Module Code]],MATCH(Configuration!$C14,Table2[Output Voltage],FALSE),MATCH(Configuration!$H$5,Table2[[#Headers],[Short Name]:[Module Code]],FALSE)),"") ->  | I14: =IFERROR(IF(AND(I13>0,F13="D",F14="D"),0,IF(Configuration!$C14="Blank Slot",1,IF(ROUNDUP(Configuration!$D14/G14,0)=0,"",ROUNDUP(Configuration!$D14/G14,0)))),"") ->  | J14: =IF(Configuration!$D14>G14,1,"") ->  | K14: 0 | L14: 0 | M14: 0 | N14: =IF(Configuration!$I14="",0,IF(SUM(N6:N13)>=1,IF(AND($I14=0,SUM(N6:N12)=0),1,0),IF(SUM(Configuration!$K14:M14)<Configuration!$I14,1,0))) -> 0 | O14: =IF(Configuration!$I14="",0,IF(SUM(O6:O13)>=1,IF(AND($I14=0,SUM(O6:O12)=0),1,0),IF(SUM(Configuration!$K14:N14)<Configuration!$I14,1,0))) -> 0 | P14: =IF(Configuration!$I14="",0,IF(SUM(P6:P13)>=1,IF(AND($I14=0,SUM(P6:P12)=0),1,0),IF(SUM(Configuration!$K14:O14)<Configuration!$I14,1,0))) -> 0 | R14: =IF(F14="D",1,IF(C13="",0,IF(SUM(I15:I17)=0,6-SUM(I6:I13),6-SUM(I15:I17,I6:I13)))) -> 0 | S14: =IF(Configuration!$R14>0,3,0) -> 0 | T14: =IF(Configuration!$R14>0,IF(F14="D",30,55),0) -> 0 | U14: =IFERROR(IF(AND(SUM(I6:I12)=5,F13<>"D",F14="D"),IF((V14-E13)/C14<=5,(V14-E13)/C14,5),IF(Configuration!$C14="",0,Configuration!$V14/Configuration!$C14)),0) -> 0 | V14: =IFERROR(Configuration!$H14*Configuration!$R14,"") ->  | Y14: 0 | AC14: 0 | AD14: 9 | AK14: =IFERROR(IF($E$12+E14<=$AB$5,1,0),"") ->  | AL14: =IFERROR(IF($E$13+E14<=$AB$5,1,0),"") -> 
A15: =IF(Table3[[#This Row],[Output No.]]="",0,1) -> 0 | B15: =IF(OR(Table3[[#This Row],[Output Voltage]]="Blank Slot",Table3[[#This Row],[Output Voltage]]=""),"",SUM($A$6:A14)+1) ->  | F15: =IFERROR(IF(AND(C15<>"",SUM(I6:I13)=5,Y14=2,I14=1),"D",IF(AC14=1,"D",IF(AC15=1,"D",INDEX(Table2[[Short Name]:[Max current per output]],MATCH(Configuration!$C15,Table2[Output Voltage],FALSE),MATCH(Configuration!$F$5,Table2[[#Headers],[Short Name]:[Max current per output]],FALSE))))),"") ->  | G15: =IFERROR(IF(F15="D",5,VLOOKUP(C15,Table2[],3,FALSE)),"") ->  | H15: =IFERROR(INDEX(Table2[[Short Name]:[Module Code]],MATCH(Configuration!$C15,Table2[Output Voltage],FALSE),MATCH(Configuration!$H$5,Table2[[#Headers],[Short Name]:[Module Code]],FALSE)),"") ->  | I15: =IFERROR(IF(AND(I14>0,F14="D",F15="D"),0,IF(Configuration!$C15="Blank Slot",1,IF(ROUNDUP(Configuration!$D15/G15,0)=0,"",ROUNDUP(Configuration!$D15/G15,0)))),"") ->  | J15: =IF(Configuration!$D15>G15,1,"") ->  | K15: 0 | L15: 0 | M15: 0 | N15: =IF(Configuration!$I15="",0,IF(SUM(N9:N14)>=1,IF(AND($I15=0,SUM(N9:N13)=0),1,0),IF(SUM(Configuration!$K15:M15)<Configuration!$I15,1,0))) -> 0 | O15: =IF(Configuration!$I15="",0,IF(SUM(O6:O14)>=1,IF(AND($I15=0,SUM(O6:O13)=0),1,0),IF(SUM(Configuration!$K15:N15)<Configuration!$I15,1,0))) -> 0 | P15: =IF(Configuration!$I15="",0,IF(SUM(P6:P14)>=1,IF(AND($I15=0,SUM(P6:P13)=0),1,0),IF(SUM(Configuration!$K15:O15)<Configuration!$I15,1,0))) -> 0 | R15: =IF(F15="D",1,IF(C14="",0,IF(SUM(I16:I17)=0,6-SUM(I6:I14),6-SUM(I16:I17,I6:I14)))) -> 0 | S15: =IF(Configuration!$R15>0,3,0) -> 0 | T15: =IF(Configuration!$R15>0,IF(F15="D",30,55),0) -> 0 | U15: =IFERROR(IF(AND(SUM(I6:I13)=5,F14<>"D",F15="D"),IF((V15-E14)/C15<=5,(V15-E14)/C15,5),IF(Configuration!$C15="",0,Configuration!$V15/Configuration!$C15)),0) -> 0 | V15: =IFERROR(Configuration!$H15*Configuration!$R15,"") ->  | Y15: 0 | AC15: =IF(AC14=1,0,IF(SUM(Z15:AB15,Z16:AA16)=5,1,0)) -> 0 | AD15: 10 | AK15: =IFERROR(IF($E$12+E15<=$AB$5,1,0),"") ->  | AL15: =IFERROR(IF($E$13+E15<=$AB$5,1,0),"") ->  | AM15: =IFERROR(IF($E$14+E15<=$AB$5,1,0),"") -> 
A16: =IF(Table3[[#This Row],[Output No.]]="",0,1) -> 0 | B16: =IF(OR(Table3[[#This Row],[Output Voltage]]="Blank Slot",Table3[[#This Row],[Output Voltage]]=""),"",SUM($A$6:A15)+1) ->  | F16: =IFERROR(IF(AND(C16<>"",SUM(I6:I14)=5,Y15=2,I15=1),"D",IF(AC15=1,"D",IF(AC16=1,"D",INDEX(Table2[[Short Name]:[Max current per output]],MATCH(Configuration!$C16,Table2[Output Voltage],FALSE),MATCH(Configuration!$F$5,Table2[[#Headers],[Short Name]:[Max current per output]],FALSE))))),"") ->  | G16: =IFERROR(IF(F16="D",5,VLOOKUP(C16,Table2[],3,FALSE)),"") ->  | H16: =IFERROR(INDEX(Table2[[Short Name]:[Module Code]],MATCH(Configuration!$C16,Table2[Output Voltage],FALSE),MATCH(Configuration!$H$5,Table2[[#Headers],[Short Name]:[Module Code]],FALSE)),"") ->  | I16: =IFERROR(IF(AND(I15>0,F15="D",F16="D"),0,IF(Configuration!$C16="Blank Slot",1,IF(ROUNDUP(Configuration!$D16/G16,0)=0,"",ROUNDUP(Configuration!$D16/G16,0)))),"") ->  | J16: =IF(Configuration!$D16>G16,1,"") ->  | K16: 0 | L16: 0 | M16: 0 | N16: =IF(Configuration!$I16="",0,IF(SUM(N10:N15)>=1,IF(AND($I16=0,SUM(N10:N14)=0),1,0),IF(SUM(Configuration!$K16:M16)<Configuration!$I16,1,0))) -> 0 | O16: =IF(Configuration!$I16="",0,IF(SUM(O10:O15)>=1,IF(AND($I16=0,SUM(O10:O14)=0),1,0),IF(SUM(Configuration!$K16:N16)<Configuration!$I16,1,0))) -> 0 | P16: =IF(Configuration!$I16="",0,IF(SUM(P6:P15)>=1,IF(AND($I16=0,SUM(P6:P14)=0),1,0),IF(SUM(Configuration!$K16:O16)<Configuration!$I16,1,0))) -> 0 | R16: =IF(F16="D",1,IF(C15="",0,IF(SUM(I17)=0,6-SUM(I6:I15),6-SUM(I17,I6:I15)))) -> 0 | S16: =IF(Configuration!$R16>0,3,0) -> 0 | T16: =IF(Configuration!$R16>0,IF(F16="D",30,55),0) -> 0 | U16: =IFERROR(IF(AND(SUM(I6:I14)=5,F15<>"D",F16="D"),IF((V16-E15)/C16<=5,(V16-E15)/C16,5),IF(Configuration!$C16="",0,Configuration!$V16/Configuration!$C16)),0) -> 0 | V16: =IFERROR(Configuration!$H16*Configuration!$R16,"") ->  | Y16: 0 | AC16: =IF(AC15=1,0,IF(SUM(Z16:AB16,Z17:AA17)=5,1,0)) -> 0 | AD16: 11 | AK16: =IFERROR(IF($E$12+E16<=$AB$5,1,0),"") ->  | AL16: =IFERROR(IF($E$13+E16<=$AB$5,1,0),"") ->  | AM16: =IFERROR(IF($E$14+E16<=$AB$5,1,0),"") ->  | AN16: =IFERROR(IF($E$15+E16<=$AB$5,1,0),"") -> 
A17: =IF(Table3[[#This Row],[Output No.]]="",0,1) -> 0 | B17: =IF(OR(Table3[[#This Row],[Output Voltage]]="Blank Slot",Table3[[#This Row],[Output Voltage]]=""),"",SUM($A$6:A16)+1) ->  | F17: =IFERROR(IF(AND(C17<>"",SUM(I6:I15)=5,Y16=2,I16=1),"D",IF(AC16=1,"D",IF(AC17=1,"D",INDEX(Table2[[Short Name]:[Max current per output]],MATCH(Configuration!$C17,Table2[Output Voltage],FALSE),MATCH(Configuration!$F$5,Table2[[#Headers],[Short Name]:[Max current per output]],FALSE))))),"") ->  | G17: =IFERROR(IF(F17="D",5,VLOOKUP(C17,Table2[],3,FALSE)),"") ->  | H17: =IFERROR(INDEX(Table2[[Short Name]:[Module Code]],MATCH(Configuration!$C17,Table2[Output Voltage],FALSE),MATCH(Configuration!$H$5,Table2[[#Headers],[Short Name]:[Module Code]],FALSE)),"") ->  | I17: =IFERROR(IF(AND(I16>0,F16="D",F17="D"),0,IF(Configuration!$C17="Blank Slot",1,IF(ROUNDUP(Configuration!$D17/G17,0)=0,"",ROUNDUP(Configuration!$D17/G17,0)))),"") ->  | J17: =IF(Configuration!$D17>G17,1,"") ->  | K17: 0 | L17: 0 | M17: 0 | N17: =IF(Configuration!$I17="",0,IF(SUM(N11:N16)>=1,IF(AND($I17=0,SUM(N11:N15)=0),1,0),IF(SUM(Configuration!$K17:M17)<Configuration!$I17,1,0))) -> 0 | O17: =IF(Configuration!$I17="",0,IF(SUM(O11:O16)>=1,IF(AND($I17=0,SUM(O11:O15)=0),1,0),IF(SUM(Configuration!$K17:N17)<Configuration!$I17,1,0))) -> 0 | P17: =IF(Configuration!$I17="",0,IF(SUM(P6:P16)>=1,IF(AND($I17=0,SUM(P6:P15)=0),1,0),IF(SUM(Configuration!$K17:O17)<Configuration!$I17,1,0))) -> 0 | R17: =IF(F17="D",1,IF(C16="",0,6-SUM(I6:I16))) -> 0 | S17: =IF(Configuration!$R17>0,3,0) -> 0 | T17: =IF(Configuration!$R17>0,IF(F17="D",30,55),0) -> 0 | U17: =IFERROR(IF(AND(SUM(I6:I15)=5,F16<>"D",F17="D"),IF((V17-E16)/C17<=5,(V17-E16)/C17,5),IF(Configuration!$C17="",0,Configuration!$V17/Configuration!$C17)),0) -> 0 | V17: =IFERROR(Configuration!$H17*Configuration!$R17,"") ->  | Y17: 0 | AD17: 12 | AK17: =IFERROR(IF($E$12+E17<=$AB$5,1,0),"") ->  | AL17: =IFERROR(IF($E$13+E17<=$AB$5,1,0),"") ->  | AM17: =IFERROR(IF($E$14+E17<=$AB$5,1,0),"") ->  | AN17: =IFERROR(IF($E$15+E17<=$AB$5,1,0),"") ->  | AO17: =IFERROR(IF($E$16+E17<=$AB$5,1,0),"") -> 
B19: Product Summary | K19: Fast Delivery
B20: Model Name | E20: NMP | F20: =IF(OR(SUM(Configuration!$E$6:$E$17)>650,SUM(Configuration!$I$6:$I$17)>4),"1K2",IF(E24=0,"","650")) ->  | G20: =IF(F20="","",U82) ->  | H20: =IF(F20="","",IF(I20<10,0,"")) ->  | I20: =IF(F20="","",VLOOKUP(U97,B69:C100,2,FALSE)) -> 
B21: Product No.: | E21: =IF(F20="","",E20&F20&"-"&G20&"-"&H20&I20) ->  | K21: Delivery (after PO received) | N21: NMP Series Quantity (Standard Product)
B22: Rated Output Power (W): | E22: =IF(F20="","",IF(F20="650",650,1200)) -> 
B23: No. of Output: | E23: =IF(F20="","",IF(12-COUNTIF(E6:E17,"")=0,"",12-COUNTIF(E6:E17,""))) ->  | K23: 48 hours | N23: 1 ~ 5pcs
B24: Total Output Power (W): | E24: =SUM(Configuration!$E$6:$E$11) -> 0 | F24: =IF(E24>E22,"【Warning】 Total output power is over Rated Output Power (1200W), please do NOT use all outputs at the same time at full load. ","") ->  | K24: 7 days | N24: 6 ~ 50pcs
B25: Warranty: | E25: 5 | K25: 14 days | N25: 51 ~ 100pcs
B26: Unit Weight: | E26: =IF(F20="","",IF(F20="650",Database!N2+SUM(M83:R83),Database!N3+SUM(M83:R83))) -> 
B27: Dimension (L*W*H): | E27: =IF(F20="","",IF(F20="650",Database!M2,Database!M3)) -> 
B29: Configuration Details
B30: Front-End: | C30: =IF(F20="","",IF(F20="650","NMP650","NMP1K2")) -> 
B31: Slot # | C31: Module Model | F31: Output # | G31: Voltage/Current | I31: Signal Wire | K31: Parallel Connection Accessories | T31: v | U31: I | V31: No Slot
B32: =IF(C32="","",1) ->  | C32: =IF(V70="#","BLANK-NMS240",IFERROR(INDEX(Database!$A$2:$I$6,MATCH(Configuration!$V70,Database!$G$2:$G$6,FALSE),MATCH("Short Name",Table1[#Headers],FALSE)),"")) ->  | F32: =IF(ROW(A1)<=SUM($A$6:$A$17),ROW(A1),"") ->  | G32: =IF(F32="","",T32&"V@"&U32&"A") ->  | I32: =IFERROR(INDEX(Table6[[Signal Wire]:[Parallel Connection Accessories]],MATCH($V32,Table6['# of Slot per output],FALSE),MATCH(Configuration!$I$31,Table6[[#Headers],[Signal Wire]:[Parallel Connection Accessories]],FALSE)),"") ->  | K32: =IFERROR(INDEX(Table6[[Signal Wire]:[Parallel Connection Accessories]],MATCH($V32,Table6['# of Slot per output],FALSE),MATCH(Configuration!$K$31,Table6[[#Headers],[Signal Wire]:[Parallel Connection Accessories]],FALSE)),"") ->  | T32: =VLOOKUP(F32,Table3[[Output No.]:[Output Current]],2,FALSE) -> 0 | U32: =VLOOKUP(F32,Table3[[Output No.]:[Output Current]],3,FALSE) -> 0 | V32: =VLOOKUP(F32,Table3[[Output No.]:[No. of Slot Used]],8,FALSE) -> 
B33: =IF(C33="","",2) ->  | C33: =IF(V71="#","BLANK-NMS240",IFERROR(INDEX(Database!$A$2:$I$6,MATCH(Configuration!$V71,Database!$G$2:$G$6,FALSE),MATCH("Short Name",Table1[#Headers],FALSE)),"")) ->  | F33: =IF(ROW(A2)<=SUM($A$6:$A$17),ROW(A2),"") ->  | I33: =IFERROR(INDEX(Table6[[Signal Wire]:[Parallel Connection Accessories]],MATCH($V33,Table6['# of Slot per output],FALSE),MATCH(Configuration!$I$31,Table6[[#Headers],[Signal Wire]:[Parallel Connection Accessories]],FALSE)),"") ->  | K33: =IFERROR(INDEX(Table6[[Signal Wire]:[Parallel Connection Accessories]],MATCH($V33,Table6['# of Slot per output],FALSE),MATCH(Configuration!$K$31,Table6[[#Headers],[Signal Wire]:[Parallel Connection Accessories]],FALSE)),"") ->  | T33: =VLOOKUP(F33,Table3[[Output No.]:[Output Current]],2,FALSE) -> 0 | U33: =VLOOKUP(F33,Table3[[Output No.]:[Output Current]],3,FALSE) -> 0 | V33: =VLOOKUP(F33,Table3[[Output No.]:[No. of Slot Used]],8,FALSE) -> 
B34: =IF(C34="","",3) ->  | C34: =IF(V72="#","BLANK-NMS240",IFERROR(INDEX(Database!$A$2:$I$6,MATCH(Configuration!$V72,Database!$G$2:$G$6,FALSE),MATCH("Short Name",Table1[#Headers],FALSE)),"")) ->  | I34: =IFERROR(INDEX(Table6[[Signal Wire]:[Parallel Connection Accessories]],MATCH($V34,Table6['# of Slot per output],FALSE),MATCH(Configuration!$I$31,Table6[[#Headers],[Signal Wire]:[Parallel Connection Accessories]],FALSE)),"") ->  | K34: =IFERROR(INDEX(Table6[[Signal Wire]:[Parallel Connection Accessories]],MATCH($V34,Table6['# of Slot per output],FALSE),MATCH(Configuration!$K$31,Table6[[#Headers],[Signal Wire]:[Parallel Connection Accessories]],FALSE)),"") ->  | T34: =VLOOKUP(F34,Table3[[Output No.]:[Output Current]],2,FALSE) -> 0 | U34: =VLOOKUP(F34,Table3[[Output No.]:[Output Current]],3,FALSE) -> 0 | V34: =VLOOKUP(F34,Table3[[Output No.]:[No. of Slot Used]],8,FALSE) -> 
B35: =IF(C35="","",4) ->  | C35: =IF(V73="#","BLANK-NMS240",IFERROR(INDEX(Database!$A$2:$I$6,MATCH(Configuration!$V73,Database!$G$2:$G$6,FALSE),MATCH("Short Name",Table1[#Headers],FALSE)),"")) ->  | I35: =IFERROR(INDEX(Table6[[Signal Wire]:[Parallel Connection Accessories]],MATCH($V35,Table6['# of Slot per output],FALSE),MATCH(Configuration!$I$31,Table6[[#Headers],[Signal Wire]:[Parallel Connection Accessories]],FALSE)),"") ->  | K35: =IFERROR(INDEX(Table6[[Signal Wire]:[Parallel Connection Accessories]],MATCH($V35,Table6['# of Slot per output],FALSE),MATCH(Configuration!$K$31,Table6[[#Headers],[Signal Wire]:[Parallel Connection Accessories]],FALSE)),"") ->  | T35: =VLOOKUP(F35,Table3[[Output No.]:[Output Current]],2,FALSE) -> 0 | U35: =VLOOKUP(F35,Table3[[Output No.]:[Output Current]],3,FALSE) -> 0 | V35: =VLOOKUP(F35,Table3[[Output No.]:[No. of Slot Used]],8,FALSE) -> 
B36: =IF(C36="","",5) ->  | C36: =IF(V74="#","BLANK-NMS240",IFERROR(INDEX(Database!$A$2:$I$6,MATCH(Configuration!$V74,Database!$G$2:$G$6,FALSE),MATCH("Short Name",Table1[#Headers],FALSE)),"")) ->  | I36: =IFERROR(INDEX(Table6[[Signal Wire]:[Parallel Connection Accessories]],MATCH($V36,Table6['# of Slot per output],FALSE),MATCH(Configuration!$I$31,Table6[[#Headers],[Signal Wire]:[Parallel Connection Accessories]],FALSE)),"") ->  | K36: =IFERROR(INDEX(Table6[[Signal Wire]:[Parallel Connection Accessories]],MATCH($V36,Table6['# of Slot per output],FALSE),MATCH(Configuration!$K$31,Table6[[#Headers],[Signal Wire]:[Parallel Connection Accessories]],FALSE)),"") ->  | T36: =VLOOKUP(F36,Table3[[Output No.]:[Output Current]],2,FALSE) -> 0 | U36: =VLOOKUP(F36,Table3[[Output No.]:[Output Current]],3,FALSE) -> 0 | V36: =VLOOKUP(F36,Table3[[Output No.]:[No. of Slot Used]],8,FALSE) -> 
B37: =IF(C37="","",6) ->  | C37: =IF(V75="#","BLANK-NMS240",IFERROR(INDEX(Database!$A$2:$I$6,MATCH(Configuration!$V75,Database!$G$2:$G$6,FALSE),MATCH("Short Name",Table1[#Headers],FALSE)),"")) ->  | I37: =IFERROR(INDEX(Table6[[Signal Wire]:[Parallel Connection Accessories]],MATCH($V37,Table6['# of Slot per output],FALSE),MATCH(Configuration!$I$31,Table6[[#Headers],[Signal Wire]:[Parallel Connection Accessories]],FALSE)),"") ->  | K37: =IFERROR(INDEX(Table6[[Signal Wire]:[Parallel Connection Accessories]],MATCH($V37,Table6['# of Slot per output],FALSE),MATCH(Configuration!$K$31,Table6[[#Headers],[Signal Wire]:[Parallel Connection Accessories]],FALSE)),"") ->  | T37: =VLOOKUP(F37,Table3[[Output No.]:[Output Current]],2,FALSE) -> 0 | U37: =VLOOKUP(F37,Table3[[Output No.]:[Output Current]],3,FALSE) -> 0 | V37: =VLOOKUP(F37,Table3[[Output No.]:[No. of Slot Used]],8,FALSE) -> 
I38: =IFERROR(INDEX(Table6[[Signal Wire]:[Parallel Connection Accessories]],MATCH($V38,Table6['# of Slot per output],FALSE),MATCH(Configuration!$I$31,Table6[[#Headers],[Signal Wire]:[Parallel Connection Accessories]],FALSE)),"") ->  | K38: =IFERROR(INDEX(Table6[[Signal Wire]:[Parallel Connection Accessories]],MATCH($V38,Table6['# of Slot per output],FALSE),MATCH(Configuration!$K$31,Table6[[#Headers],[Signal Wire]:[Parallel Connection Accessories]],FALSE)),"") ->  | T38: =VLOOKUP(F38,Table3[[Output No.]:[Output Current]],2,FALSE) -> 0 | U38: =VLOOKUP(F38,Table3[[Output No.]:[Output Current]],3,FALSE) -> 0 | V38: =VLOOKUP(F38,Table3[[Output No.]:[No. of Slot Used]],8,FALSE) -> 
I39: =IFERROR(INDEX(Table6[[Signal Wire]:[Parallel Connection Accessories]],MATCH($V39,Table6['# of Slot per output],FALSE),MATCH(Configuration!$I$31,Table6[[#Headers],[Signal Wire]:[Parallel Connection Accessories]],FALSE)),"") ->  | K39: =IFERROR(INDEX(Table6[[Signal Wire]:[Parallel Connection Accessories]],MATCH($V39,Table6['# of Slot per output],FALSE),MATCH(Configuration!$K$31,Table6[[#Headers],[Signal Wire]:[Parallel Connection Accessories]],FALSE)),"") ->  | T39: =VLOOKUP(F39,Table3[[Output No.]:[Output Current]],2,FALSE) -> 0 | U39: =VLOOKUP(F39,Table3[[Output No.]:[Output Current]],3,FALSE) -> 0 | V39: =VLOOKUP(F39,Table3[[Output No.]:[No. of Slot Used]],8,FALSE) -> 
I40: =IFERROR(INDEX(Table6[[Signal Wire]:[Parallel Connection Accessories]],MATCH($V40,Table6['# of Slot per output],FALSE),MATCH(Configuration!$I$31,Table6[[#Headers],[Signal Wire]:[Parallel Connection Accessories]],FALSE)),"") ->  | K40: =IFERROR(INDEX(Table6[[Signal Wire]:[Parallel Connection Accessories]],MATCH($V40,Table6['# of Slot per output],FALSE),MATCH(Configuration!$K$31,Table6[[#Headers],[Signal Wire]:[Parallel Connection Accessories]],FALSE)),"") ->  | T40: =VLOOKUP(F40,Table3[[Output No.]:[Output Current]],2,FALSE) -> 0 | U40: =VLOOKUP(F40,Table3[[Output No.]:[Output Current]],3,FALSE) -> 0 | V40: =VLOOKUP(F40,Table3[[Output No.]:[No. of Slot Used]],8,FALSE) -> 
I41: =IFERROR(INDEX(Table6[[Signal Wire]:[Parallel Connection Accessories]],MATCH($V41,Table6['# of Slot per output],FALSE),MATCH(Configuration!$I$31,Table6[[#Headers],[Signal Wire]:[Parallel Connection Accessories]],FALSE)),"") ->  | K41: =IFERROR(INDEX(Table6[[Signal Wire]:[Parallel Connection Accessories]],MATCH($V41,Table6['# of Slot per output],FALSE),MATCH(Configuration!$K$31,Table6[[#Headers],[Signal Wire]:[Parallel Connection Accessories]],FALSE)),"") ->  | T41: =VLOOKUP(F41,Table3[[Output No.]:[Output Current]],2,FALSE) -> 0 | U41: =VLOOKUP(F41,Table3[[Output No.]:[Output Current]],3,FALSE) -> 0 | V41: =VLOOKUP(F41,Table3[[Output No.]:[No. of Slot Used]],8,FALSE) -> 
I42: =IFERROR(INDEX(Table6[[Signal Wire]:[Parallel Connection Accessories]],MATCH($V42,Table6['# of Slot per output],FALSE),MATCH(Configuration!$I$31,Table6[[#Headers],[Signal Wire]:[Parallel Connection Accessories]],FALSE)),"") ->  | K42: =IFERROR(INDEX(Table6[[Signal Wire]:[Parallel Connection Accessories]],MATCH($V42,Table6['# of Slot per output],FALSE),MATCH(Configuration!$K$31,Table6[[#Headers],[Signal Wire]:[Parallel Connection Accessories]],FALSE)),"") ->  | T42: =VLOOKUP(F42,Table3[[Output No.]:[Output Current]],2,FALSE) -> 0 | U42: =VLOOKUP(F42,Table3[[Output No.]:[Output Current]],3,FALSE) -> 0 | V42: =VLOOKUP(F42,Table3[[Output No.]:[No. of Slot Used]],8,FALSE) -> 
I43: =IFERROR(INDEX(Table6[[Signal Wire]:[Parallel Connection Accessories]],MATCH($V43,Table6['# of Slot per output],FALSE),MATCH(Configuration!$I$31,Table6[[#Headers],[Signal Wire]:[Parallel Connection Accessories]],FALSE)),"") ->  | K43: =IFERROR(INDEX(Table6[[Signal Wire]:[Parallel Connection Accessories]],MATCH($V43,Table6['# of Slot per output],FALSE),MATCH(Configuration!$K$31,Table6[[#Headers],[Signal Wire]:[Parallel Connection Accessories]],FALSE)),"") ->  | T43: =VLOOKUP(F43,Table3[[Output No.]:[Output Current]],2,FALSE) -> 0 | U43: =VLOOKUP(F43,Table3[[Output No.]:[Output Current]],3,FALSE) -> 0 | V43: =VLOOKUP(F43,Table3[[Output No.]:[No. of Slot Used]],8,FALSE) -> 
B45: Send Inquiry
B46: Name | I46: MEAN WELL Sales | K46: MEAN WELL ENTERPRISES CO., LTD. (Headquarters)
B47: Company | I47: Email | K47: Elyse@meanwell.com
B48: Country
B49: Telephone | I49: Contact | K49: Ms. Elyse Li
B50: Email | I50: Tel | K50: +886-2-2299-6100 ext. 612
B51: Application
B52: Annual use volume
B53: Comments
D64: Notes:
D65: You will be asked to save this inquiry in PDF in your computer first, then a new Outlook email will be generated with PDF attached.
J66: Copyright © 2020 MEAN WELL, All rights reserved.
B68: Parallel | C68: Code | D68: Slot 1 | E68: Slot 2 | F68: Slot 3 | G68: Slot 4 | H68: Slot 5 | I68: Slot 6 | J68: FAP-009 | K68: FAP-010
B69: =Table4[[#This Row],[Slot 1]]&Table4[[#This Row],[Slot 2]]&Table4[[#This Row],[Slot 3]]&Table4[[#This Row],[Slot 4]]&Table4[[#This Row],[Slot 5]]&Table4[[#This Row],[Slot 6]] -> 000000 | C69: 0 | D69: 0 | E69: 0 | F69: 0 | G69: 0 | H69: 0 | I69: 0 | J69: 0 | K69: 0 | M69: 1 | N69: 2 | O69: 3 | P69: 4 | Q69: 5 | R69: 6
B70: =Table4[[#This Row],[Slot 1]]&Table4[[#This Row],[Slot 2]]&Table4[[#This Row],[Slot 3]]&Table4[[#This Row],[Slot 4]]&Table4[[#This Row],[Slot 5]]&Table4[[#This Row],[Slot 6]] -> 110000 | C70: 1 | D70: 1 | E70: 1 | F70: 0 | G70: 0 | H70: 0 | I70: 0 | J70: FAP-009*2 | K70: 0 | L70: 1 | M70: =IF(K6=1,$F6,"") ->  | S70: =SUM(M70:R70)+COUNTIF(M70:R70,M82) -> 0 | T70: =IF(S70>0,1,0) -> 0 | V70: =IF($S$82=0,"",M82) -> 
B71: =Table4[[#This Row],[Slot 1]]&Table4[[#This Row],[Slot 2]]&Table4[[#This Row],[Slot 3]]&Table4[[#This Row],[Slot 4]]&Table4[[#This Row],[Slot 5]]&Table4[[#This Row],[Slot 6]] -> 011000 | C71: 2 | D71: 0 | E71: 1 | F71: 1 | G71: 0 | H71: 0 | I71: 0 | J71: FAP-009*2 | K71: 0 | L71: 2 | M71: =IF(M70="D","",IF(K7=1,$F7,"")) ->  | N71: =IF(L7=1,$F7,"") ->  | O71: =IF(M7=1,$F7,"") ->  | P71: =IF(N7=1,$F7,"") ->  | Q71: =IF(O7=1,$F7,"") ->  | R71: =IF(P7=1,$F7,"") ->  | S71: =SUM(M71:R71)+COUNTIF(M71:R71,N82) -> 0 | T71: =IF(S71>0,T70+1,T70) -> 0 | V71: =IF($S$82=0,"",N82) -> 
B72: =Table4[[#This Row],[Slot 1]]&Table4[[#This Row],[Slot 2]]&Table4[[#This Row],[Slot 3]]&Table4[[#This Row],[Slot 4]]&Table4[[#This Row],[Slot 5]]&Table4[[#This Row],[Slot 6]] -> 001100 | C72: 3 | D72: 0 | E72: 0 | F72: 1 | G72: 1 | H72: 0 | I72: 0 | J72: FAP-009*2 | K72: 0 | L72: 3 | M72: =IF(K8=1,$F8,"") ->  | N72: =IF(N71="D","",IF(L8=1,$F8,"")) ->  | O72: =IF(O71="D","",IF(M8=1,$F8,"")) ->  | P72: =IF(P71="D","",IF(N8=1,$F8,"")) ->  | Q72: =IF(Q71="D","",IF(O8=1,$F8,"")) ->  | R72: =IF(R71="D","",IF(P8=1,$F8,"")) ->  | S72: =SUM(M72:R72)+COUNTIF(M72:R72,O82) -> 0 | T72: =IF(S72>0,T71+1,T71) -> 0 | V72: =IF($S$82=0,"",O82) -> 
B73: =Table4[[#This Row],[Slot 1]]&Table4[[#This Row],[Slot 2]]&Table4[[#This Row],[Slot 3]]&Table4[[#This Row],[Slot 4]]&Table4[[#This Row],[Slot 5]]&Table4[[#This Row],[Slot 6]] -> 000110 | C73: 4 | D73: 0 | E73: 0 | F73: 0 | G73: 1 | H73: 1 | I73: 0 | J73: FAP-009*2 | K73: 0 | L73: 4 | S73: =SUM(M73:R73)+COUNTIF(M73:R73,P82) -> 0 | T73: 0 | V73: =IF($S$82=0,"",P82) -> 
B74: =Table4[[#This Row],[Slot 1]]&Table4[[#This Row],[Slot 2]]&Table4[[#This Row],[Slot 3]]&Table4[[#This Row],[Slot 4]]&Table4[[#This Row],[Slot 5]]&Table4[[#This Row],[Slot 6]] -> 000011 | C74: 5 | D74: 0 | E74: 0 | F74: 0 | G74: 0 | H74: 1 | I74: 1 | J74: FAP-009*2 | K74: 0 | L74: 5 | S74: =IF(Q82="",0,SUM(M74:R74)+COUNTIF(M74:R74,Q82)) -> 0 | T74: 0 | V74: =IF($F$20="650","",IF($S$82=0,"",Q82)) -> 
B75: =Table4[[#This Row],[Slot 1]]&Table4[[#This Row],[Slot 2]]&Table4[[#This Row],[Slot 3]]&Table4[[#This Row],[Slot 4]]&Table4[[#This Row],[Slot 5]]&Table4[[#This Row],[Slot 6]] -> 111000 | C75: 6 | D75: 1 | E75: 1 | F75: 1 | G75: 0 | H75: 0 | I75: 0 | J75: 0 | K75: FAP-010*1 | L75: 6 | S75: =IF(R82="",0,SUM(M75:R75)+COUNTIF(M75:R75,R82)) -> 0 | T75: 0 | V75: =IF($F$20="650","",IF($S$82=0,"",R82)) -> 
B76: =Table4[[#This Row],[Slot 1]]&Table4[[#This Row],[Slot 2]]&Table4[[#This Row],[Slot 3]]&Table4[[#This Row],[Slot 4]]&Table4[[#This Row],[Slot 5]]&Table4[[#This Row],[Slot 6]] -> 011100 | C76: 7 | D76: 0 | E76: 1 | F76: 1 | G76: 1 | H76: 0 | I76: 0 | J76: 0 | K76: FAP-010*1 | L76: 7 | S76: =IF(R83="",0,SUM(M76:R76)+COUNTIF(M76:R76,R83)) -> 0 | T76: =IF(S76>0,T75+1,T75) -> 0
B77: =Table4[[#This Row],[Slot 1]]&Table4[[#This Row],[Slot 2]]&Table4[[#This Row],[Slot 3]]&Table4[[#This Row],[Slot 4]]&Table4[[#This Row],[Slot 5]]&Table4[[#This Row],[Slot 6]] -> 001110 | C77: 8 | D77: 0 | E77: 0 | F77: 1 | G77: 1 | H77: 1 | I77: 0 | J77: 0 | K77: FAP-010*1 | L77: 8 | S77: =IF(R84="",0,SUM(M77:R77)+COUNTIF(M77:R77,R84)) -> 0 | T77: =IF(S77>0,T76+1,T76) -> 0
B78: =Table4[[#This Row],[Slot 1]]&Table4[[#This Row],[Slot 2]]&Table4[[#This Row],[Slot 3]]&Table4[[#This Row],[Slot 4]]&Table4[[#This Row],[Slot 5]]&Table4[[#This Row],[Slot 6]] -> 000111 | C78: 9 | D78: 0 | E78: 0 | F78: 0 | G78: 1 | H78: 1 | I78: 1 | J78: 0 | K78: FAP-010*1 | L78: 9 | S78: 0 | T78: 0
B79: =Table4[[#This Row],[Slot 1]]&Table4[[#This Row],[Slot 2]]&Table4[[#This Row],[Slot 3]]&Table4[[#This Row],[Slot 4]]&Table4[[#This Row],[Slot 5]]&Table4[[#This Row],[Slot 6]] -> 111100 | C79: 10 | D79: 1 | E79: 1 | F79: 1 | G79: 1 | H79: 0 | I79: 0 | J79: FAP-009*6 | K79: 0 | L79: 10 | S79: 0 | T79: 0
B80: =Table4[[#This Row],[Slot 1]]&Table4[[#This Row],[Slot 2]]&Table4[[#This Row],[Slot 3]]&Table4[[#This Row],[Slot 4]]&Table4[[#This Row],[Slot 5]]&Table4[[#This Row],[Slot 6]] -> 011110 | C80: 11 | D80: 0 | E80: 1 | F80: 1 | G80: 1 | H80: 1 | I80: 0 | J80: FAP-009*6 | K80: 0 | L80: 11 | S80: 0 | T80: 0
B81: =Table4[[#This Row],[Slot 1]]&Table4[[#This Row],[Slot 2]]&Table4[[#This Row],[Slot 3]]&Table4[[#This Row],[Slot 4]]&Table4[[#This Row],[Slot 5]]&Table4[[#This Row],[Slot 6]] -> 001111 | C81: 12 | D81: 0 | E81: 0 | F81: 1 | G81: 1 | H81: 1 | I81: 1 | J81: FAP-009*6 | K81: 0 | L81: 12 | S81: 0 | T81: 0
B82: =Table4[[#This Row],[Slot 1]]&Table4[[#This Row],[Slot 2]]&Table4[[#This Row],[Slot 3]]&Table4[[#This Row],[Slot 4]]&Table4[[#This Row],[Slot 5]]&Table4[[#This Row],[Slot 6]] -> 111110 | C82: 13 | D82: 1 | E82: 1 | F82: 1 | G82: 1 | H82: 1 | I82: 0 | J82: FAP-009*4 | K82: FAP-010*2 | M82: =IF(CONCATENATE(M70,M71,M72,M73,M74,M75,M76,M77,M78,M79,M80,M81)="","#",CONCATENATE(M70,M71,M72,M73,M74,M75,M76,M77,M78,M79,M80,M81)) -> # | N82: =IF(CONCATENATE(N70,N71,N72,N73,N74,N75,N76,N77,N78,N79,N80,N81)="","#",CONCATENATE(N70,N71,N72,N73,N74,N75,N76,N77,N78,N79,N80,N81)) -> # | O82: # | P82: # | Q82: =IF($F$20="650","",IF(CONCATENATE(Q70,Q71,Q72,Q73,Q74,Q75,Q76,Q77,Q78,Q79,Q80,Q81)="","#",CONCATENATE(Q70,Q71,Q72,Q73,Q74,Q75,Q76,Q77,Q78,Q79,Q80,Q81))) -> # | R82: =IF($F$20="650","",IF(CONCATENATE(R70,R71,R72,R73,R74,R75,R76,R77,R78,R79,R80,R81)="","#",CONCATENATE(R70,R71,R72,R73,R74,R75,R76,R77,R78,R79,R80,R81))) -> # | S82: =SUM(S70:S75) -> 0 | U82: =M82&N82&O82&P82&Q82&R82 -> ######
B83: =Table4[[#This Row],[Slot 1]]&Table4[[#This Row],[Slot 2]]&Table4[[#This Row],[Slot 3]]&Table4[[#This Row],[Slot 4]]&Table4[[#This Row],[Slot 5]]&Table4[[#This Row],[Slot 6]] -> 011111 | C83: 14 | D83: 0 | E83: 1 | F83: 1 | G83: 1 | H83: 1 | I83: 1 | J83: FAP-009*4 | K83: FAP-010*2 | M83: =IF(M82="",0,IF(M82="#",Database!$N$6,Database!$N$4)) -> 0.0264 | N83: =IF(N82="",0,IF(N82="#",Database!$N$6,Database!$N$4)) -> 0.0264 | O83: =IF(O82="",0,IF(O82="#",Database!$N$6,Database!$N$4)) -> 0.0264 | P83: =IF(P82="",0,IF(P82="#",Database!$N$6,Database!$N$4)) -> 0.0264 | Q83: =IF(Q82="",0,IF(Q82="#",Database!$N$6,Database!$N$4)) -> 0.0264 | R83: =IF(R82="",0,IF(R82="#",Database!$N$6,Database!$N$4)) -> 0.0264
B84: =Table4[[#This Row],[Slot 1]]&Table4[[#This Row],[Slot 2]]&Table4[[#This Row],[Slot 3]]&Table4[[#This Row],[Slot 4]]&Table4[[#This Row],[Slot 5]]&Table4[[#This Row],[Slot 6]] -> 111111 | C84: 15 | D84: 1 | E84: 1 | F84: 1 | G84: 1 | H84: 1 | I84: 1 | J84: FAP-009*2 | K84: FAP-010*4
B85: =Table4[[#This Row],[Slot 1]]&Table4[[#This Row],[Slot 2]]&Table4[[#This Row],[Slot 3]]&Table4[[#This Row],[Slot 4]]&Table4[[#This Row],[Slot 5]]&Table4[[#This Row],[Slot 6]] -> 112200 | C85: 16 | D85: 1 | E85: 1 | F85: 2 | G85: 2 | H85: 0 | I85: 0 | J85: FAP-009*4 | K85: 0 | L85: 1 | M85: =IF($J6="",0,IF(K6=1,1,0)) -> 0 | N85: 0 | O85: 0 | P85: 0 | Q85: 0 | R85: 0 | S85: =SUM(M85:R85) -> 0 | T85: =IF(S85>0,1,0) -> 0
B86: =Table4[[#This Row],[Slot 1]]&Table4[[#This Row],[Slot 2]]&Table4[[#This Row],[Slot 3]]&Table4[[#This Row],[Slot 4]]&Table4[[#This Row],[Slot 5]]&Table4[[#This Row],[Slot 6]] -> 011220 | C86: 17 | D86: 0 | E86: 1 | F86: 1 | G86: 2 | H86: 2 | I86: 0 | J86: FAP-009*4 | K86: 0 | L86: 2 | M86: =IF($J7="",0,IF(K7=1,$T85+1,0)) -> 0 | N86: =IF($J7="",0,IF(L7=1,$T85+1,0)) -> 0 | O86: =IF($J7="",0,IF(M7=1,$T85+1,0)) -> 0 | P86: =IF($J7="",0,IF(N7=1,$T85+1,0)) -> 0 | Q86: =IF($J7="",0,IF(O7=1,$T85+1,0)) -> 0 | R86: =IF($J7="",0,IF(P7=1,$T85+1,0)) -> 0 | S86: 0 | T86: =IF(S86>0,T85+1,T85) -> 0
B87: =Table4[[#This Row],[Slot 1]]&Table4[[#This Row],[Slot 2]]&Table4[[#This Row],[Slot 3]]&Table4[[#This Row],[Slot 4]]&Table4[[#This Row],[Slot 5]]&Table4[[#This Row],[Slot 6]] -> 001122 | C87: 18 | D87: 0 | E87: 0 | F87: 1 | G87: 1 | H87: 2 | I87: 2 | J87: FAP-009*4 | K87: 0 | L87: 3 | M87: 0 | N87: 0 | O87: 0 | P87: 0 | Q87: 0 | R87: 0 | S87: 0 | T87: =IF(S87>0,T86+1,T86) -> 0
B88: =Table4[[#This Row],[Slot 1]]&Table4[[#This Row],[Slot 2]]&Table4[[#This Row],[Slot 3]]&Table4[[#This Row],[Slot 4]]&Table4[[#This Row],[Slot 5]]&Table4[[#This Row],[Slot 6]] -> 110220 | C88: 19 | D88: 1 | E88: 1 | F88: 0 | G88: 2 | H88: 2 | I88: 0 | J88: FAP-009*4 | K88: 0 | L88: 4 | M88: 0 | N88: 0 | O88: 0 | P88: 0 | Q88: 0 | R88: 0 | S88: 0 | T88: 0
B89: =Table4[[#This Row],[Slot 1]]&Table4[[#This Row],[Slot 2]]&Table4[[#This Row],[Slot 3]]&Table4[[#This Row],[Slot 4]]&Table4[[#This Row],[Slot 5]]&Table4[[#This Row],[Slot 6]] -> 110022 | C89: 20 | D89: 1 | E89: 1 | F89: 0 | G89: 0 | H89: 2 | I89: 2 | J89: FAP-009*4 | K89: 0 | L89: 5 | M89: 0 | N89: 0 | O89: 0 | P89: 0 | Q89: 0 | R89: 0 | S89: 0 | T89: 0
B90: =Table4[[#This Row],[Slot 1]]&Table4[[#This Row],[Slot 2]]&Table4[[#This Row],[Slot 3]]&Table4[[#This Row],[Slot 4]]&Table4[[#This Row],[Slot 5]]&Table4[[#This Row],[Slot 6]] -> 011022 | C90: 21 | D90: 0 | E90: 1 | F90: 1 | G90: 0 | H90: 2 | I90: 2 | J90: FAP-009*4 | K90: 0 | L90: 6 | M90: 0 | N90: 0 | O90: 0 | P90: 0 | Q90: 0 | R90: 0 | S90: 0 | T90: 0
B91: =Table4[[#This Row],[Slot 1]]&Table4[[#This Row],[Slot 2]]&Table4[[#This Row],[Slot 3]]&Table4[[#This Row],[Slot 4]]&Table4[[#This Row],[Slot 5]]&Table4[[#This Row],[Slot 6]] -> 112233 | C91: 22 | D91: 1 | E91: 1 | F91: 2 | G91: 2 | H91: 3 | I91: 3 | J91: FAP-009*6 | K91: 0 | L91: 7 | M91: 0 | N91: 0 | O91: 0 | P91: 0 | Q91: 0 | R91: 0 | S91: =SUM(M91:R91) -> 0 | T91: =IF(S91>0,T90+1,T90) -> 0
B92: =Table4[[#This Row],[Slot 1]]&Table4[[#This Row],[Slot 2]]&Table4[[#This Row],[Slot 3]]&Table4[[#This Row],[Slot 4]]&Table4[[#This Row],[Slot 5]]&Table4[[#This Row],[Slot 6]] -> 112220 | C92: 23 | D92: 1 | E92: 1 | F92: 2 | G92: 2 | H92: 2 | I92: 0 | J92: FAP-009*2 | K92: FAP-010*2 | L92: 8 | M92: 0 | N92: 0 | O92: 0 | P92: 0 | Q92: 0 | R92: 0 | S92: 0 | T92: 0
B93: =Table4[[#This Row],[Slot 1]]&Table4[[#This Row],[Slot 2]]&Table4[[#This Row],[Slot 3]]&Table4[[#This Row],[Slot 4]]&Table4[[#This Row],[Slot 5]]&Table4[[#This Row],[Slot 6]] -> 110222 | C93: 24 | D93: 1 | E93: 1 | F93: 0 | G93: 2 | H93: 2 | I93: 2 | J93: FAP-009*2 | K93: FAP-010*2 | L93: 9 | M93: 0 | N93: 0 | O93: 0 | P93: 0 | Q93: 0 | R93: 0 | S93: 0 | T93: 0
B94: =Table4[[#This Row],[Slot 1]]&Table4[[#This Row],[Slot 2]]&Table4[[#This Row],[Slot 3]]&Table4[[#This Row],[Slot 4]]&Table4[[#This Row],[Slot 5]]&Table4[[#This Row],[Slot 6]] -> 011222 | C94: 25 | D94: 0 | E94: 1 | F94: 1 | G94: 2 | H94: 2 | I94: 2 | J94: FAP-009*2 | K94: FAP-010*2 | L94: 10 | M94: 0 | N94: 0 | O94: 0 | P94: 0 | Q94: 0 | R94: 0 | S94: 0 | T94: 0
B95: =Table4[[#This Row],[Slot 1]]&Table4[[#This Row],[Slot 2]]&Table4[[#This Row],[Slot 3]]&Table4[[#This Row],[Slot 4]]&Table4[[#This Row],[Slot 5]]&Table4[[#This Row],[Slot 6]] -> 111220 | C95: 26 | D95: 1 | E95: 1 | F95: 1 | G95: 2 | H95: 2 | I95: 0 | J95: FAP-009*2 | K95: FAP-010*2 | L95: 11 | M95: 0 | N95: 0 | O95: 0 | P95: 0 | Q95: 0 | R95: 0 | S95: 0 | T95: 0
B96: =Table4[[#This Row],[Slot 1]]&Table4[[#This Row],[Slot 2]]&Table4[[#This Row],[Slot 3]]&Table4[[#This Row],[Slot 4]]&Table4[[#This Row],[Slot 5]]&Table4[[#This Row],[Slot 6]] -> 111022 | C96: 27 | D96: 1 | E96: 1 | F96: 1 | G96: 0 | H96: 2 | I96: 2 | J96: FAP-009*2 | K96: FAP-010*2 | L96: 12 | M96: 0 | N96: 0 | O96: 0 | P96: 0 | Q96: 0 | R96: 0 | S96: 0 | T96: 0
B97: =Table4[[#This Row],[Slot 1]]&Table4[[#This Row],[Slot 2]]&Table4[[#This Row],[Slot 3]]&Table4[[#This Row],[Slot 4]]&Table4[[#This Row],[Slot 5]]&Table4[[#This Row],[Slot 6]] -> 011122 | C97: 28 | D97: 0 | E97: 1 | F97: 1 | G97: 1 | H97: 2 | I97: 2 | J97: FAP-009*2 | K97: FAP-010*2 | M97: =SUM(M85:M90) -> 0 | N97: 0 | O97: 0 | P97: 0 | Q97: 0 | R97: 0 | S97: 0 | U97: =M97&N97&O97&P97&Q97&R97 -> 000000
B98: =Table4[[#This Row],[Slot 1]]&Table4[[#This Row],[Slot 2]]&Table4[[#This Row],[Slot 3]]&Table4[[#This Row],[Slot 4]]&Table4[[#This Row],[Slot 5]]&Table4[[#This Row],[Slot 6]] -> 111222 | C98: 29 | D98: 1 | E98: 1 | F98: 1 | G98: 2 | H98: 2 | I98: 2 | J98: 0 | K98: FAP-010*4
B99: =Table4[[#This Row],[Slot 1]]&Table4[[#This Row],[Slot 2]]&Table4[[#This Row],[Slot 3]]&Table4[[#This Row],[Slot 4]]&Table4[[#This Row],[Slot 5]]&Table4[[#This Row],[Slot 6]] -> 112222 | C99: 30 | D99: 1 | E99: 1 | F99: 2 | G99: 2 | H99: 2 | I99: 2 | J99: FAP-009*8 | K99: 0
B100: =Table4[[#This Row],[Slot 1]]&Table4[[#This Row],[Slot 2]]&Table4[[#This Row],[Slot 3]]&Table4[[#This Row],[Slot 4]]&Table4[[#This Row],[Slot 5]]&Table4[[#This Row],[Slot 6]] -> 111122 | C100: 31 | D100: 1 | E100: 1 | F100: 1 | G100: 1 | H100: 2 | I100: 2 | J100: FAP-009*8 | K100: 0

Sheet Database (hidden)
A1: Product No. | B1: Short Name | C1: Specification | D1: Series | E1: Type | F1: Price | G1: Code | H1: Vmin | I1: Vmax | J1: Wmax | K1: AUXILIARY POWER(AUX) | M1: Dimension | N1: Weight | S1: =Configuration!$R7 -> 0 | T1: =Configuration!$R8 -> 0 | U1: =Configuration!$R9 -> 0 | V1: =Configuration!$R10 -> 0 | W1: =Configuration!$R11 -> 0 | X1: =Configuration!$R12 -> 0 | Y1: =Configuration!$R13 -> 0 | Z1: =Configuration!$R14 -> 0 | AA1: =Configuration!$R15 -> 0 | AB1: =Configuration!$R16 -> 0 | AC1: =Configuration!$R17 -> 0
A2: AB-NMS-240-005 | B2: NMS-240-5 | C2: O/P +5V36A | D2: NMS-240 | E2: Standard | G2: C | H2: 3 | I2: 6 | J2: 180 | K2: NMP650 | L2: 5V@1.5A | M2: 250*89*41mm | N2: 1.45 | P2: Country/Region | R2: Vo | S2: Vo | T2: Vo | U2: Vo | V2: Vo | W2: Vo | X2: Vo | Y2: Vo | Z2: Vo | AA2: Vo | AB2: Vo | AC2: Vo
A3: AB-NMS-240-012 | B3: NMS-240-12 | C3: O/P +12V20A | D3: NMS-240 | E3: Standard | G3: E | H3: 6.01 | I3: 15 | J3: 240 | K3: NMP1K2 | L3: 5V@2A | M3: 250*127*41mm | N3: 2 | P3: Afghanistan | R3: Blank Slot | S3: =IF(S$1=0,0,IF(Configuration!$F$7="D",$R4,Table7[[#This Row],[Vo]])) -> 0 | T3: =IF(T$1=0,0,IF(Configuration!$F$8="D",$R4,Table7[[#This Row],[Vo]])) -> 0 | U3: =IF(U$1=0,0,IF(Configuration!$F$9="D",$R4,Table7[[#This Row],[Vo]])) -> 0 | V3: =IF(V$1=0,0,IF(Configuration!$F$10="D",$R4,Table7[[#This Row],[Vo]])) -> 0 | W3: =IF(W$1=0,0,IF(Configuration!$F$11="D",$R4,Table7[[#This Row],[Vo]])) -> 0 | X3: =IF(X$1=0,0,IF(Configuration!$F$12="D",$R4,Table7[[#This Row],[Vo]])) -> 0 | Y3: =IF(Y$1=0,0,IF(Configuration!$F$13="D",$R4,Table7[[#This Row],[Vo]])) -> 0 | Z3: =IF(Z$1=0,0,IF(Configuration!$F$14="D",$R4,Table7[[#This Row],[Vo]])) -> 0 | AA3: =IF(AA$1=0,0,IF(Configuration!$F$15="D",$R4,Table7[[#This Row],[Vo]])) -> 0 | AB3: =IF(AB$1=0,0,IF(Configuration!$F$16="D",$R4,Table7[[#This Row],[Vo]])) -> 0 | AC3: =IF(AC$1=0,0,IF(Configuration!$F$17="D",$R4,Table7[[#This Row],[Vo]])) -> 0
A4: AB-NMS-240-024 | B4: NMS-240-24 | C4: O/P +24V10A | D4: NMS-240 | E4: Standard | G4: H | H4: 15.01 | I4: 30 | J4: 240 | K4: NMS-240 | L4: 5V@10mA | M4: 118.5*37.9*18mm | N4: 0.142 | P4: Andorra | R4: 3 | S4: =IF(S$1=0,0,IF(Configuration!$F$7="D",$R5,Table7[[#This Row],[Vo]])) -> 0 | T4: =IF(T$1=0,0,IF(Configuration!$F$8="D",$R5,Table7[[#This Row],[Vo]])) -> 0 | U4: =IF(U$1=0,0,IF(Configuration!$F$9="D",$R5,Table7[[#This Row],[Vo]])) -> 0 | V4: =IF(V$1=0,0,IF(Configuration!$F$10="D",$R5,Table7[[#This Row],[Vo]])) -> 0 | W4: =IF(W$1=0,0,IF(Configuration!$F$11="D",$R5,Table7[[#This Row],[Vo]])) -> 0 | X4: =IF(X$1=0,0,IF(Configuration!$F$12="D",$R5,Table7[[#This Row],[Vo]])) -> 0 | Y4: =IF(Y$1=0,0,IF(Configuration!$F$13="D",$R5,Table7[[#This Row],[Vo]])) -> 0 | Z4: =IF(Z$1=0,0,IF(Configuration!$F$14="D",$R5,Table7[[#This Row],[Vo]])) -> 0 | AA4: =IF(AA$1=0,0,IF(Configuration!$F$15="D",$R5,Table7[[#This Row],[Vo]])) -> 0 | AB4: =IF(AB$1=0,0,IF(Configuration!$F$16="D",$R5,Table7[[#This Row],[Vo]])) -> 0 | AC4: =IF(AC$1=0,0,IF(Configuration!$F$17="D",$R5,Table7[[#This Row],[Vo]])) -> 0
A5: AB-NMS-240-048 | B5: NMS-240-48 | C5: O/P +48V5A | D5: NMS-240 | E5: Standard | G5: K | H5: 30.01 | I5: 55 | J5: 240 | K5: NMD-240 | M5: 118.5*37.9*18mm | N5: 0.142 | P5: Angola | R5: =ROUNDUP(R4+0.1,1) -> 3.1 | S5: =IF(S$1=0,0,IF(Configuration!$F$7="D",$R6,Table7[[#This Row],[Vo]])) -> 0 | T5: =IF(T$1=0,0,IF(Configuration!$F$8="D",$R6,Table7[[#This Row],[Vo]])) -> 0 | U5: =IF(U$1=0,0,IF(Configuration!$F$9="D",$R6,Table7[[#This Row],[Vo]])) -> 0 | V5: =IF(V$1=0,0,IF(Configuration!$F$10="D",$R6,Table7[[#This Row],[Vo]])) -> 0 | W5: =IF(W$1=0,0,IF(Configuration!$F$11="D",$R6,Table7[[#This Row],[Vo]])) -> 0 | X5: =IF(X$1=0,0,IF(Configuration!$F$12="D",$R6,Table7[[#This Row],[Vo]])) -> 0 | Y5: =IF(Y$1=0,0,IF(Configuration!$F$13="D",$R6,Table7[[#This Row],[Vo]])) -> 0 | Z5: =IF(Z$1=0,0,IF(Configuration!$F$14="D",$R6,Table7[[#This Row],[Vo]])) -> 0 | AA5: =IF(AA$1=0,0,IF(Configuration!$F$15="D",$R6,Table7[[#This Row],[Vo]])) -> 0 | AB5: =IF(AB$1=0,0,IF(Configuration!$F$16="D",$R6,Table7[[#This Row],[Vo]])) -> 0 | AC5: =IF(AC$1=0,0,IF(Configuration!$F$17="D",$R6,Table7[[#This Row],[Vo]])) -> 0
A6: AB-NMD-240 | B6: NMD-240 | D6: NMD-240 | E6: Standard | G6: D | H6: 3 | I6: 30 | J6: 240 | K6: BLANK-NMS240 | N6: =13.2/500 -> 0.0264 | P6: Anguilla | R6: =ROUNDUP(R5+0.1,1) -> 3.2 | S6: =IF(S$1=0,0,IF(Configuration!$F$7="D",$R7,Table7[[#This Row],[Vo]])) -> 0 | T6: =IF(T$1=0,0,IF(Configuration!$F$8="D",$R7,Table7[[#This Row],[Vo]])) -> 0 | U6: =IF(U$1=0,0,IF(Configuration!$F$9="D",$R7,Table7[[#This Row],[Vo]])) -> 0 | V6: =IF(V$1=0,0,IF(Configuration!$F$10="D",$R7,Table7[[#This Row],[Vo]])) -> 0 | W6: =IF(W$1=0,0,IF(Configuration!$F$11="D",$R7,Table7[[#This Row],[Vo]])) -> 0 | X6: =IF(X$1=0,0,IF(Configuration!$F$12="D",$R7,Table7[[#This Row],[Vo]])) -> 0 | Y6: =IF(Y$1=0,0,IF(Configuration!$F$13="D",$R7,Table7[[#This Row],[Vo]])) -> 0 | Z6: =IF(Z$1=0,0,IF(Configuration!$F$14="D",$R7,Table7[[#This Row],[Vo]])) -> 0 | AA6: =IF(AA$1=0,0,IF(Configuration!$F$15="D",$R7,Table7[[#This Row],[Vo]])) -> 0 | AB6: =IF(AB$1=0,0,IF(Configuration!$F$16="D",$R7,Table7[[#This Row],[Vo]])) -> 0 | AC6: =IF(AC$1=0,0,IF(Configuration!$F$17="D",$R7,Table7[[#This Row],[Vo]])) -> 0
A7: D**1BLANK-NMS240 | B7: BLANK-NMS240 | C7: Empty Slot Baffle | D7: BLANK-NMS240 | E7: Accessory | P7: Antigua and Barbuda | R7: 3.3 | S7: =IF(S$1=0,0,IF(Configuration!$F$7="D",$R8,Table7[[#This Row],[Vo]])) -> 0 | T7: =IF(T$1=0,0,IF(Configuration!$F$8="D",$R8,Table7[[#This Row],[Vo]])) -> 0 | U7: =IF(U$1=0,0,IF(Configuration!$F$9="D",$R8,Table7[[#This Row],[Vo]])) -> 0 | V7: =IF(V$1=0,0,IF(Configuration!$F$10="D",$R8,Table7[[#This Row],[Vo]])) -> 0 | W7: =IF(W$1=0,0,IF(Configuration!$F$11="D",$R8,Table7[[#This Row],[Vo]])) -> 0 | X7: =IF(X$1=0,0,IF(Configuration!$F$12="D",$R8,Table7[[#This Row],[Vo]])) -> 0 | Y7: =IF(Y$1=0,0,IF(Configuration!$F$13="D",$R8,Table7[[#This Row],[Vo]])) -> 0 | Z7: =IF(Z$1=0,0,IF(Configuration!$F$14="D",$R8,Table7[[#This Row],[Vo]])) -> 0 | AA7: =IF(AA$1=0,0,IF(Configuration!$F$15="D",$R8,Table7[[#This Row],[Vo]])) -> 0 | AB7: =IF(AB$1=0,0,IF(Configuration!$F$16="D",$R8,Table7[[#This Row],[Vo]])) -> 0 | AC7: =IF(AC$1=0,0,IF(Configuration!$F$17="D",$R8,Table7[[#This Row],[Vo]])) -> 0
A8: DFF5NMS-240-CN81 | B8: NMS-240-CN81 | C8: Signal Wire For NMS-240 CN81 | D8: NMS-240-CN81 | E8: Accessory | K8: # of Slot per output | L8: Signal Wire | M8: Parallel Connection Accessories | P8: Armenia | R8: 3.4 | S8: =IF(S$1=0,0,IF(Configuration!$F$7="D",$R9,Table7[[#This Row],[Vo]])) -> 0 | T8: =IF(T$1=0,0,IF(Configuration!$F$8="D",$R9,Table7[[#This Row],[Vo]])) -> 0 | U8: =IF(U$1=0,0,IF(Configuration!$F$9="D",$R9,Table7[[#This Row],[Vo]])) -> 0 | V8: =IF(V$1=0,0,IF(Configuration!$F$10="D",$R9,Table7[[#This Row],[Vo]])) -> 0 | W8: =IF(W$1=0,0,IF(Configuration!$F$11="D",$R9,Table7[[#This Row],[Vo]])) -> 0 | X8: =IF(X$1=0,0,IF(Configuration!$F$12="D",$R9,Table7[[#This Row],[Vo]])) -> 0 | Y8: =IF(Y$1=0,0,IF(Configuration!$F$13="D",$R9,Table7[[#This Row],[Vo]])) -> 0 | Z8: =IF(Z$1=0,0,IF(Configuration!$F$14="D",$R9,Table7[[#This Row],[Vo]])) -> 0 | AA8: =IF(AA$1=0,0,IF(Configuration!$F$15="D",$R9,Table7[[#This Row],[Vo]])) -> 0 | AB8: =IF(AB$1=0,0,IF(Configuration!$F$16="D",$R9,Table7[[#This Row],[Vo]])) -> 0 | AC8: =IF(AC$1=0,0,IF(Configuration!$F$17="D",$R9,Table7[[#This Row],[Vo]])) -> 0
A9: DFF5NMS-240-P2 | B9: NMS-240-P2 | C9: Signal Wire - Parallel 2 x NMS-240 | D9: NMS-240-P2 | E9: Accessory | K9: 2 | L9: NMS-240-P2 | M9: FAP-009*2pcs | P9: Aruba | R9: 3.5 | S9: =IF(S$1=0,0,IF(Configuration!$F$7="D",$R10,Table7[[#This Row],[Vo]])) -> 0 | T9: =IF(T$1=0,0,IF(Configuration!$F$8="D",$R10,Table7[[#This Row],[Vo]])) -> 0 | U9: =IF(U$1=0,0,IF(Configuration!$F$9="D",$R10,Table7[[#This Row],[Vo]])) -> 0 | V9: =IF(V$1=0,0,IF(Configuration!$F$10="D",$R10,Table7[[#This Row],[Vo]])) -> 0 | W9: =IF(W$1=0,0,IF(Configuration!$F$11="D",$R10,Table7[[#This Row],[Vo]])) -> 0 | X9: =IF(X$1=0,0,IF(Configuration!$F$12="D",$R10,Table7[[#This Row],[Vo]])) -> 0 | Y9: =IF(Y$1=0,0,IF(Configuration!$F$13="D",$R10,Table7[[#This Row],[Vo]])) -> 0 | Z9: =IF(Z$1=0,0,IF(Configuration!$F$14="D",$R10,Table7[[#This Row],[Vo]])) -> 0 | AA9: =IF(AA$1=0,0,IF(Configuration!$F$15="D",$R10,Table7[[#This Row],[Vo]])) -> 0 | AB9: =IF(AB$1=0,0,IF(Configuration!$F$16="D",$R10,Table7[[#This Row],[Vo]])) -> 0 | AC9: =IF(AC$1=0,0,IF(Configuration!$F$17="D",$R10,Table7[[#This Row],[Vo]])) -> 0
A10: DFF5NMS-240-P3 | B10: NMS-240-P3 | C10: Signal Wire - Parallel 3 x NMS-240 | D10: NMS-240-P3 | E10: Accessory | K10: 3 | L10: NMS-240-P3 | M10: FAP-010*2pcs | P10: Azerbaijan | R10: 3.6 | S10: =IF(S$1=0,0,IF(Configuration!$F$7="D",$R11,Table7[[#This Row],[Vo]])) -> 0 | T10: =IF(T$1=0,0,IF(Configuration!$F$8="D",$R11,Table7[[#This Row],[Vo]])) -> 0 | U10: =IF(U$1=0,0,IF(Configuration!$F$9="D",$R11,Table7[[#This Row],[Vo]])) -> 0 | V10: =IF(V$1=0,0,IF(Configuration!$F$10="D",$R11,Table7[[#This Row],[Vo]])) -> 0 | W10: =IF(W$1=0,0,IF(Configuration!$F$11="D",$R11,Table7[[#This Row],[Vo]])) -> 0 | X10: =IF(X$1=0,0,IF(Configuration!$F$12="D",$R11,Table7[[#This Row],[Vo]])) -> 0 | Y10: =IF(Y$1=0,0,IF(Configuration!$F$13="D",$R11,Table7[[#This Row],[Vo]])) -> 0 | Z10: =IF(Z$1=0,0,IF(Configuration!$F$14="D",$R11,Table7[[#This Row],[Vo]])) -> 0 | AA10: =IF(AA$1=0,0,IF(Configuration!$F$15="D",$R11,Table7[[#This Row],[Vo]])) -> 0 | AB10: =IF(AB$1=0,0,IF(Configuration!$F$16="D",$R11,Table7[[#This Row],[Vo]])) -> 0 | AC10: =IF(AC$1=0,0,IF(Configuration!$F$17="D",$R11,Table7[[#This Row],[Vo]])) -> 0
A11: DFF5NMS-240-P4 | B11: NMS-240-P4 | C11: Signal Wire - Parallel 4 x NMS-240 | D11: NMS-240-P4 | E11: Accessory | K11: 4 | L11: NMS-240-P4 | M11: FAP-009*6pcs | P11: Albania | R11: 3.7 | S11: =IF(S$1=0,0,IF(Configuration!$F$7="D",$R12,Table7[[#This Row],[Vo]])) -> 0 | T11: =IF(T$1=0,0,IF(Configuration!$F$8="D",$R12,Table7[[#This Row],[Vo]])) -> 0 | U11: =IF(U$1=0,0,IF(Configuration!$F$9="D",$R12,Table7[[#This Row],[Vo]])) -> 0 | V11: =IF(V$1=0,0,IF(Configuration!$F$10="D",$R12,Table7[[#This Row],[Vo]])) -> 0 | W11: =IF(W$1=0,0,IF(Configuration!$F$11="D",$R12,Table7[[#This Row],[Vo]])) -> 0 | X11: =IF(X$1=0,0,IF(Configuration!$F$12="D",$R12,Table7[[#This Row],[Vo]])) -> 0 | Y11: =IF(Y$1=0,0,IF(Configuration!$F$13="D",$R12,Table7[[#This Row],[Vo]])) -> 0 | Z11: =IF(Z$1=0,0,IF(Configuration!$F$14="D",$R12,Table7[[#This Row],[Vo]])) -> 0 | AA11: =IF(AA$1=0,0,IF(Configuration!$F$15="D",$R12,Table7[[#This Row],[Vo]])) -> 0 | AB11: =IF(AB$1=0,0,IF(Configuration!$F$16="D",$R12,Table7[[#This Row],[Vo]])) -> 0 | AC11: =IF(AC$1=0,0,IF(Configuration!$F$17="D",$R12,Table7[[#This Row],[Vo]])) -> 0
A12: DFF5NMS-240-P5 | B12: NMS-240-P5 | C12: Signal Wire - Parallel 5 x NMS-240 | D12: NMS-240-P5 | E12: Accessory | K12: 5 | L12: NMS-240-P5 | M12: FAP-009*4pcs + FAP-010*2pcs | P12: Algeria | R12: 3.8 | S12: =IF(S$1=0,0,IF(Configuration!$F$7="D",$R13,Table7[[#This Row],[Vo]])) -> 0 | T12: =IF(T$1=0,0,IF(Configuration!$F$8="D",$R13,Table7[[#This Row],[Vo]])) -> 0 | U12: =IF(U$1=0,0,IF(Configuration!$F$9="D",$R13,Table7[[#This Row],[Vo]])) -> 0 | V12: =IF(V$1=0,0,IF(Configuration!$F$10="D",$R13,Table7[[#This Row],[Vo]])) -> 0 | W12: =IF(W$1=0,0,IF(Configuration!$F$11="D",$R13,Table7[[#This Row],[Vo]])) -> 0 | X12: =IF(X$1=0,0,IF(Configuration!$F$12="D",$R13,Table7[[#This Row],[Vo]])) -> 0 | Y12: =IF(Y$1=0,0,IF(Configuration!$F$13="D",$R13,Table7[[#This Row],[Vo]])) -> 0 | Z12: =IF(Z$1=0,0,IF(Configuration!$F$14="D",$R13,Table7[[#This Row],[Vo]])) -> 0 | AA12: =IF(AA$1=0,0,IF(Configuration!$F$15="D",$R13,Table7[[#This Row],[Vo]])) -> 0 | AB12: =IF(AB$1=0,0,IF(Configuration!$F$16="D",$R13,Table7[[#This Row],[Vo]])) -> 0 | AC12: =IF(AC$1=0,0,IF(Configuration!$F$17="D",$R13,Table7[[#This Row],[Vo]])) -> 0
A13: DFF5NMS-240-P6 | B13: NMS-240-P6 | C13: Signal Wire - Parallel 6 x NMS-240 | D13: NMS-240-P6 | E13: Accessory | K13: 6 | L13: NMS-240-P6 | M13: FAP-009*2pcs + FAP-010*4pcs | P13: Argentina | R13: 3.9 | S13: =IF(S$1=0,0,IF(Configuration!$F$7="D",$R14,Table7[[#This Row],[Vo]])) -> 0 | T13: =IF(T$1=0,0,IF(Configuration!$F$8="D",$R14,Table7[[#This Row],[Vo]])) -> 0 | U13: =IF(U$1=0,0,IF(Configuration!$F$9="D",$R14,Table7[[#This Row],[Vo]])) -> 0 | V13: =IF(V$1=0,0,IF(Configuration!$F$10="D",$R14,Table7[[#This Row],[Vo]])) -> 0 | W13: =IF(W$1=0,0,IF(Configuration!$F$11="D",$R14,Table7[[#This Row],[Vo]])) -> 0 | X13: =IF(X$1=0,0,IF(Configuration!$F$12="D",$R14,Table7[[#This Row],[Vo]])) -> 0 | Y13: =IF(Y$1=0,0,IF(Configuration!$F$13="D",$R14,Table7[[#This Row],[Vo]])) -> 0 | Z13: =IF(Z$1=0,0,IF(Configuration!$F$14="D",$R14,Table7[[#This Row],[Vo]])) -> 0 | AA13: =IF(AA$1=0,0,IF(Configuration!$F$15="D",$R14,Table7[[#This Row],[Vo]])) -> 0 | AB13: =IF(AB$1=0,0,IF(Configuration!$F$16="D",$R14,Table7[[#This Row],[Vo]])) -> 0 | AC13: =IF(AC$1=0,0,IF(Configuration!$F$17="D",$R14,Table7[[#This Row],[Vo]])) -> 0
A14: DGG2FAP-009 | B14: FAP-009 | C14: FAP-009 Parallel Connect 2x NMS-240 | D14: FAP-009 | E14: Accessory | P14: Australia | R14: 4 | S14: =IF(S$1=0,0,IF(Configuration!$F$7="D",$R15,Table7[[#This Row],[Vo]])) -> 0 | T14: =IF(T$1=0,0,IF(Configuration!$F$8="D",$R15,Table7[[#This Row],[Vo]])) -> 0 | U14: =IF(U$1=0,0,IF(Configuration!$F$9="D",$R15,Table7[[#This Row],[Vo]])) -> 0 | V14: =IF(V$1=0,0,IF(Configuration!$F$10="D",$R15,Table7[[#This Row],[Vo]])) -> 0 | W14: =IF(W$1=0,0,IF(Configuration!$F$11="D",$R15,Table7[[#This Row],[Vo]])) -> 0 | X14: =IF(X$1=0,0,IF(Configuration!$F$12="D",$R15,Table7[[#This Row],[Vo]])) -> 0 | Y14: =IF(Y$1=0,0,IF(Configuration!$F$13="D",$R15,Table7[[#This Row],[Vo]])) -> 0 | Z14: =IF(Z$1=0,0,IF(Configuration!$F$14="D",$R15,Table7[[#This Row],[Vo]])) -> 0 | AA14: =IF(AA$1=0,0,IF(Configuration!$F$15="D",$R15,Table7[[#This Row],[Vo]])) -> 0 | AB14: =IF(AB$1=0,0,IF(Configuration!$F$16="D",$R15,Table7[[#This Row],[Vo]])) -> 0 | AC14: =IF(AC$1=0,0,IF(Configuration!$F$17="D",$R15,Table7[[#This Row],[Vo]])) -> 0
A15: DGG2FAP-010 | B15: FAP-010 | C15: FAP-010 Parallel Connect 3x NMS-240 | D15: FAP-010 | E15: Accessory | P15: Austria | R15: 4.1 | S15: =IF(S$1=0,0,IF(Configuration!$F$7="D",$R16,Table7[[#This Row],[Vo]])) -> 0 | T15: =IF(T$1=0,0,IF(Configuration!$F$8="D",$R16,Table7[[#This Row],[Vo]])) -> 0 | U15: =IF(U$1=0,0,IF(Configuration!$F$9="D",$R16,Table7[[#This Row],[Vo]])) -> 0 | V15: =IF(V$1=0,0,IF(Configuration!$F$10="D",$R16,Table7[[#This Row],[Vo]])) -> 0 | W15: =IF(W$1=0,0,IF(Configuration!$F$11="D",$R16,Table7[[#This Row],[Vo]])) -> 0 | X15: =IF(X$1=0,0,IF(Configuration!$F$12="D",$R16,Table7[[#This Row],[Vo]])) -> 0 | Y15: =IF(Y$1=0,0,IF(Configuration!$F$13="D",$R16,Table7[[#This Row],[Vo]])) -> 0 | Z15: =IF(Z$1=0,0,IF(Configuration!$F$14="D",$R16,Table7[[#This Row],[Vo]])) -> 0 | AA15: =IF(AA$1=0,0,IF(Configuration!$F$15="D",$R16,Table7[[#This Row],[Vo]])) -> 0 | AB15: =IF(AB$1=0,0,IF(Configuration!$F$16="D",$R16,Table7[[#This Row],[Vo]])) -> 0 | AC15: =IF(AC$1=0,0,IF(Configuration!$F$17="D",$R16,Table7[[#This Row],[Vo]])) -> 0
A16: DGG2FAS-005 | B16: FAS-005 | C16: FAS-005 - Serial Connection NMS-240 | D16: FAS-005 | E16: Accessory | P16: Bangladesh | R16: 4.2 | S16: =IF(S$1=0,0,IF(Configuration!$F$7="D",$R17,Table7[[#This Row],[Vo]])) -> 0 | T16: =IF(T$1=0,0,IF(Configuration!$F$8="D",$R17,Table7[[#This Row],[Vo]])) -> 0 | U16: =IF(U$1=0,0,IF(Configuration!$F$9="D",$R17,Table7[[#This Row],[Vo]])) -> 0 | V16: =IF(V$1=0,0,IF(Configuration!$F$10="D",$R17,Table7[[#This Row],[Vo]])) -> 0 | W16: =IF(W$1=0,0,IF(Configuration!$F$11="D",$R17,Table7[[#This Row],[Vo]])) -> 0 | X16: =IF(X$1=0,0,IF(Configuration!$F$12="D",$R17,Table7[[#This Row],[Vo]])) -> 0 | Y16: =IF(Y$1=0,0,IF(Configuration!$F$13="D",$R17,Table7[[#This Row],[Vo]])) -> 0 | Z16: =IF(Z$1=0,0,IF(Configuration!$F$14="D",$R17,Table7[[#This Row],[Vo]])) -> 0 | AA16: =IF(AA$1=0,0,IF(Configuration!$F$15="D",$R17,Table7[[#This Row],[Vo]])) -> 0 | AB16: =IF(AB$1=0,0,IF(Configuration!$F$16="D",$R17,Table7[[#This Row],[Vo]])) -> 0 | AC16: =IF(AC$1=0,0,IF(Configuration!$F$17="D",$R17,Table7[[#This Row],[Vo]])) -> 0
P17: Barbados | R17: 4.3 | S17: =IF(S$1=0,0,IF(Configuration!$F$7="D",$R18,Table7[[#This Row],[Vo]])) -> 0 | T17: =IF(T$1=0,0,IF(Configuration!$F$8="D",$R18,Table7[[#This Row],[Vo]])) -> 0 | U17: =IF(U$1=0,0,IF(Configuration!$F$9="D",$R18,Table7[[#This Row],[Vo]])) -> 0 | V17: =IF(V$1=0,0,IF(Configuration!$F$10="D",$R18,Table7[[#This Row],[Vo]])) -> 0 | W17: =IF(W$1=0,0,IF(Configuration!$F$11="D",$R18,Table7[[#This Row],[Vo]])) -> 0 | X17: =IF(X$1=0,0,IF(Configuration!$F$12="D",$R18,Table7[[#This Row],[Vo]])) -> 0 | Y17: =IF(Y$1=0,0,IF(Configuration!$F$13="D",$R18,Table7[[#This Row],[Vo]])) -> 0 | Z17: =IF(Z$1=0,0,IF(Configuration!$F$14="D",$R18,Table7[[#This Row],[Vo]])) -> 0 | AA17: =IF(AA$1=0,0,IF(Configuration!$F$15="D",$R18,Table7[[#This Row],[Vo]])) -> 0 | AB17: =IF(AB$1=0,0,IF(Configuration!$F$16="D",$R18,Table7[[#This Row],[Vo]])) -> 0 | AC17: =IF(AC$1=0,0,IF(Configuration!$F$17="D",$R18,Table7[[#This Row],[Vo]])) -> 0
K18: MEAN WELL Sales Office | L18: Email | M18: Contact | N18: Tel | P18: Belize | R18: 4.4 | S18: =IF(S$1=0,0,IF(Configuration!$F$7="D",$R19,Table7[[#This Row],[Vo]])) -> 0 | T18: =IF(T$1=0,0,IF(Configuration!$F$8="D",$R19,Table7[[#This Row],[Vo]])) -> 0 | U18: =IF(U$1=0,0,IF(Configuration!$F$9="D",$R19,Table7[[#This Row],[Vo]])) -> 0 | V18: =IF(V$1=0,0,IF(Configuration!$F$10="D",$R19,Table7[[#This Row],[Vo]])) -> 0 | W18: =IF(W$1=0,0,IF(Configuration!$F$11="D",$R19,Table7[[#This Row],[Vo]])) -> 0 | X18: =IF(X$1=0,0,IF(Configuration!$F$12="D",$R19,Table7[[#This Row],[Vo]])) -> 0 | Y18: =IF(Y$1=0,0,IF(Configuration!$F$13="D",$R19,Table7[[#This Row],[Vo]])) -> 0 | Z18: =IF(Z$1=0,0,IF(Configuration!$F$14="D",$R19,Table7[[#This Row],[Vo]])) -> 0 | AA18: =IF(AA$1=0,0,IF(Configuration!$F$15="D",$R19,Table7[[#This Row],[Vo]])) -> 0 | AB18: =IF(AB$1=0,0,IF(Configuration!$F$16="D",$R19,Table7[[#This Row],[Vo]])) -> 0 | AC18: =IF(AC$1=0,0,IF(Configuration!$F$17="D",$R19,Table7[[#This Row],[Vo]])) -> 0
A19: Output Voltage | B19: Short Name | C19: Module rated current | D19: Module rated power | E19: Module Code | F19: Available No. of Slot | G19: Max power per output | H19: Max current per output | K19: MEAN WELL (GUANGZHOU) ELECTRONICS CO., LTD. | L19: info@meanwell.com.cn | N19: +86-20-3773-7100 /400-800-3608 | P19: Bhutan | R19: 4.5 | S19: =IF(S$1=0,0,IF(Configuration!$F$7="D",$R20,Table7[[#This Row],[Vo]])) -> 0 | T19: =IF(T$1=0,0,IF(Configuration!$F$8="D",$R20,Table7[[#This Row],[Vo]])) -> 0 | U19: =IF(U$1=0,0,IF(Configuration!$F$9="D",$R20,Table7[[#This Row],[Vo]])) -> 0 | V19: =IF(V$1=0,0,IF(Configuration!$F$10="D",$R20,Table7[[#This Row],[Vo]])) -> 0 | W19: =IF(W$1=0,0,IF(Configuration!$F$11="D",$R20,Table7[[#This Row],[Vo]])) -> 0 | X19: =IF(X$1=0,0,IF(Configuration!$F$12="D",$R20,Table7[[#This Row],[Vo]])) -> 0 | Y19: =IF(Y$1=0,0,IF(Configuration!$F$13="D",$R20,Table7[[#This Row],[Vo]])) -> 0 | Z19: =IF(Z$1=0,0,IF(Configuration!$F$14="D",$R20,Table7[[#This Row],[Vo]])) -> 0 | AA19: =IF(AA$1=0,0,IF(Configuration!$F$15="D",$R20,Table7[[#This Row],[Vo]])) -> 0 | AB19: =IF(AB$1=0,0,IF(Configuration!$F$16="D",$R20,Table7[[#This Row],[Vo]])) -> 0 | AC19: =IF(AC$1=0,0,IF(Configuration!$F$17="D",$R20,Table7[[#This Row],[Vo]])) -> 0
A20: Blank Slot | B20: BLANK-NMS240 | C20: Blank Slot | D20: Blank Slot | E20: # | F20: 6 | G20: Blank Slot | H20: Blank Slot | K20: MEAN WELL ASEAN Regional Office | L20: wswong@meanwellasean.com | M20: Mr. Weng Seong Wong | N20: +60-3-5888-8033 | P20: Botswana | R20: 4.6 | S20: =IF(S$1=0,0,IF(Configuration!$F$7="D",$R21,Table7[[#This Row],[Vo]])) -> 0 | T20: =IF(T$1=0,0,IF(Configuration!$F$8="D",$R21,Table7[[#This Row],[Vo]])) -> 0 | U20: =IF(U$1=0,0,IF(Configuration!$F$9="D",$R21,Table7[[#This Row],[Vo]])) -> 0 | V20: =IF(V$1=0,0,IF(Configuration!$F$10="D",$R21,Table7[[#This Row],[Vo]])) -> 0 | W20: =IF(W$1=0,0,IF(Configuration!$F$11="D",$R21,Table7[[#This Row],[Vo]])) -> 0 | X20: =IF(X$1=0,0,IF(Configuration!$F$12="D",$R21,Table7[[#This Row],[Vo]])) -> 0 | Y20: =IF(Y$1=0,0,IF(Configuration!$F$13="D",$R21,Table7[[#This Row],[Vo]])) -> 0 | Z20: =IF(Z$1=0,0,IF(Configuration!$F$14="D",$R21,Table7[[#This Row],[Vo]])) -> 0 | AA20: =IF(AA$1=0,0,IF(Configuration!$F$15="D",$R21,Table7[[#This Row],[Vo]])) -> 0 | AB20: =IF(AB$1=0,0,IF(Configuration!$F$16="D",$R21,Table7[[#This Row],[Vo]])) -> 0 | AC20: =IF(AC$1=0,0,IF(Configuration!$F$17="D",$R21,Table7[[#This Row],[Vo]])) -> 0
A21: 3 | B21: NMS-240-5 | C21: 36 | D21: =A21*C21 -> 108 | E21: C | F21: =IF(1200/Table2[[#This Row],[Module rated power]]>6,6,ROUNDDOWN(1200/Table2[[#This Row],[Module rated power]],0)) -> 6 | G21: =Table2[[#This Row],[Module rated power]]*Table2[[#This Row],[Available No. of Slot]] -> 648 | H21: =ROUNDDOWN(Table2[[#This Row],[Max power per output]]/Table2[[#This Row],[Output Voltage]],2) -> 216 | K21: MEAN WELL ENTERPRISES CO., LTD. (Headquarters) | L21: frances@meanwell.com | M21: Ms. Frances Lai | N21: +886-2-2299-6100 ext. 616 | P21: Brunei Darussalam | R21: 4.7 | S21: =IF(S$1=0,0,IF(Configuration!$F$7="D",$R22,Table7[[#This Row],[Vo]])) -> 0 | T21: =IF(T$1=0,0,IF(Configuration!$F$8="D",$R22,Table7[[#This Row],[Vo]])) -> 0 | U21: =IF(U$1=0,0,IF(Configuration!$F$9="D",$R22,Table7[[#This Row],[Vo]])) -> 0 | V21: =IF(V$1=0,0,IF(Configuration!$F$10="D",$R22,Table7[[#This Row],[Vo]])) -> 0 | W21: =IF(W$1=0,0,IF(Configuration!$F$11="D",$R22,Table7[[#This Row],[Vo]])) -> 0 | X21: =IF(X$1=0,0,IF(Configuration!$F$12="D",$R22,Table7[[#This Row],[Vo]])) -> 0 | Y21: =IF(Y$1=0,0,IF(Configuration!$F$13="D",$R22,Table7[[#This Row],[Vo]])) -> 0 | Z21: =IF(Z$1=0,0,IF(Configuration!$F$14="D",$R22,Table7[[#This Row],[Vo]])) -> 0 | AA21: =IF(AA$1=0,0,IF(Configuration!$F$15="D",$R22,Table7[[#This Row],[Vo]])) -> 0 | AB21: =IF(AB$1=0,0,IF(Configuration!$F$16="D",$R22,Table7[[#This Row],[Vo]])) -> 0 | AC21: =IF(AC$1=0,0,IF(Configuration!$F$17="D",$R22,Table7[[#This Row],[Vo]])) -> 0
A22: =ROUNDUP(A21+0.1,1) -> 3.1 | B22: NMS-240-5 | C22: 36 | D22: 111.6 | E22: C | F22: =IF(1200/Table2[[#This Row],[Module rated power]]>6,6,ROUNDDOWN(1200/Table2[[#This Row],[Module rated power]],0)) -> 6 | G22: =Table2[[#This Row],[Module rated power]]*Table2[[#This Row],[Available No. of Slot]] -> 669.6 | H22: =ROUNDDOWN(Table2[[#This Row],[Max power per output]]/Table2[[#This Row],[Output Voltage]],2) -> 216 | K22: MEAN WELL EUROPE B.V. | L22: info@meanwell.eu | N22: +31-20-758-6000 | P22: Burkina Faso | R22: 4.8 | S22: =IF(S$1=0,0,IF(Configuration!$F$7="D",$R23,Table7[[#This Row],[Vo]])) -> 0 | T22: =IF(T$1=0,0,IF(Configuration!$F$8="D",$R23,Table7[[#This Row],[Vo]])) -> 0 | U22: =IF(U$1=0,0,IF(Configuration!$F$9="D",$R23,Table7[[#This Row],[Vo]])) -> 0 | V22: =IF(V$1=0,0,IF(Configuration!$F$10="D",$R23,Table7[[#This Row],[Vo]])) -> 0 | W22: =IF(W$1=0,0,IF(Configuration!$F$11="D",$R23,Table7[[#This Row],[Vo]])) -> 0 | X22: =IF(X$1=0,0,IF(Configuration!$F$12="D",$R23,Table7[[#This Row],[Vo]])) -> 0 | Y22: =IF(Y$1=0,0,IF(Configuration!$F$13="D",$R23,Table7[[#This Row],[Vo]])) -> 0 | Z22: =IF(Z$1=0,0,IF(Configuration!$F$14="D",$R23,Table7[[#This Row],[Vo]])) -> 0 | AA22: =IF(AA$1=0,0,IF(Configuration!$F$15="D",$R23,Table7[[#This Row],[Vo]])) -> 0 | AB22: =IF(AB$1=0,0,IF(Configuration!$F$16="D",$R23,Table7[[#This Row],[Vo]])) -> 0 | AC22: =IF(AC$1=0,0,IF(Configuration!$F$17="D",$R23,Table7[[#This Row],[Vo]])) -> 0
A23: =ROUNDUP(A22+0.1,1) -> 3.2 | B23: NMS-240-5 | C23: 36 | D23: 115.2 | E23: C | F23: =IF(1200/Table2[[#This Row],[Module rated power]]>6,6,ROUNDDOWN(1200/Table2[[#This Row],[Module rated power]],0)) -> 6 | G23: =Table2[[#This Row],[Module rated power]]*Table2[[#This Row],[Available No. of Slot]] -> 691.2 | H23: =ROUNDDOWN(Table2[[#This Row],[Max power per output]]/Table2[[#This Row],[Output Voltage]],2) -> 216 | K23: MEAN WELL USA, INC. | L23: info@meanwellusa.com | N23: +1-510-683-8886 | P23: Burundi | R23: 4.9 | S23: =IF(S$1=0,0,IF(Configuration!$F$7="D",$R24,Table7[[#This Row],[Vo]])) -> 0 | T23: =IF(T$1=0,0,IF(Configuration!$F$8="D",$R24,Table7[[#This Row],[Vo]])) -> 0 | U23: =IF(U$1=0,0,IF(Configuration!$F$9="D",$R24,Table7[[#This Row],[Vo]])) -> 0 | V23: =IF(V$1=0,0,IF(Configuration!$F$10="D",$R24,Table7[[#This Row],[Vo]])) -> 0 | W23: =IF(W$1=0,0,IF(Configuration!$F$11="D",$R24,Table7[[#This Row],[Vo]])) -> 0 | X23: =IF(X$1=0,0,IF(Configuration!$F$12="D",$R24,Table7[[#This Row],[Vo]])) -> 0 | Y23: =IF(Y$1=0,0,IF(Configuration!$F$13="D",$R24,Table7[[#This Row],[Vo]])) -> 0 | Z23: =IF(Z$1=0,0,IF(Configuration!$F$14="D",$R24,Table7[[#This Row],[Vo]])) -> 0 | AA23: =IF(AA$1=0,0,IF(Configuration!$F$15="D",$R24,Table7[[#This Row],[Vo]])) -> 0 | AB23: =IF(AB$1=0,0,IF(Configuration!$F$16="D",$R24,Table7[[#This Row],[Vo]])) -> 0 | AC23: =IF(AC$1=0,0,IF(Configuration!$F$17="D",$R24,Table7[[#This Row],[Vo]])) -> 0
A24: 3.3 | B24: NMS-240-5 | C24: 36 | D24: 118.8 | E24: C | F24: =IF(1200/Table2[[#This Row],[Module rated power]]>6,6,ROUNDDOWN(1200/Table2[[#This Row],[Module rated power]],0)) -> 6 | G24: =Table2[[#This Row],[Module rated power]]*Table2[[#This Row],[Available No. of Slot]] -> 712.8 | H24: =ROUNDDOWN(Table2[[#This Row],[Max power per output]]/Table2[[#This Row],[Output Voltage]],2) -> 216 | K24: Sales Representative of India | L24: benaka.v@meanwellindia.com | M24: Mr. Benaka Varadaraju | N24: +91-9686448906 | P24: Bahamas | R24: 5 | S24: =IF(S$1=0,0,IF(Configuration!$F$7="D",$R25,Table7[[#This Row],[Vo]])) -> 0 | T24: =IF(T$1=0,0,IF(Configuration!$F$8="D",$R25,Table7[[#This Row],[Vo]])) -> 0 | U24: =IF(U$1=0,0,IF(Configuration!$F$9="D",$R25,Table7[[#This Row],[Vo]])) -> 0 | V24: =IF(V$1=0,0,IF(Configuration!$F$10="D",$R25,Table7[[#This Row],[Vo]])) -> 0 | W24: =IF(W$1=0,0,IF(Configuration!$F$11="D",$R25,Table7[[#This Row],[Vo]])) -> 0 | X24: =IF(X$1=0,0,IF(Configuration!$F$12="D",$R25,Table7[[#This Row],[Vo]])) -> 0 | Y24: =IF(Y$1=0,0,IF(Configuration!$F$13="D",$R25,Table7[[#This Row],[Vo]])) -> 0 | Z24: =IF(Z$1=0,0,IF(Configuration!$F$14="D",$R25,Table7[[#This Row],[Vo]])) -> 0 | AA24: =IF(AA$1=0,0,IF(Configuration!$F$15="D",$R25,Table7[[#This Row],[Vo]])) -> 0 | AB24: =IF(AB$1=0,0,IF(Configuration!$F$16="D",$R25,Table7[[#This Row],[Vo]])) -> 0 | AC24: =IF(AC$1=0,0,IF(Configuration!$F$17="D",$R25,Table7[[#This Row],[Vo]])) -> 0
A25: 3.4 | B25: NMS-240-5 | C25: 36 | D25: 122.4 | E25: C | F25: =IF(1200/Table2[[#This Row],[Module rated power]]>6,6,ROUNDDOWN(1200/Table2[[#This Row],[Module rated power]],0)) -> 6 | G25: =Table2[[#This Row],[Module rated power]]*Table2[[#This Row],[Available No. of Slot]] -> 734.4 | H25: =ROUNDDOWN(Table2[[#This Row],[Max power per output]]/Table2[[#This Row],[Output Voltage]],2) -> 216 | K25: Sales Representative of Japan | L25: jeff@meanwell.com | M25: Mr. Jeff Fang | N25: +81-80-7898-5119 | P25: Bahrain | R25: 5.1 | S25: =IF(S$1=0,0,IF(Configuration!$F$7="D",$R26,Table7[[#This Row],[Vo]])) -> 0 | T25: =IF(T$1=0,0,IF(Configuration!$F$8="D",$R26,Table7[[#This Row],[Vo]])) -> 0 | U25: =IF(U$1=0,0,IF(Configuration!$F$9="D",$R26,Table7[[#This Row],[Vo]])) -> 0 | V25: =IF(V$1=0,0,IF(Configuration!$F$10="D",$R26,Table7[[#This Row],[Vo]])) -> 0 | W25: =IF(W$1=0,0,IF(Configuration!$F$11="D",$R26,Table7[[#This Row],[Vo]])) -> 0 | X25: =IF(X$1=0,0,IF(Configuration!$F$12="D",$R26,Table7[[#This Row],[Vo]])) -> 0 | Y25: =IF(Y$1=0,0,IF(Configuration!$F$13="D",$R26,Table7[[#This Row],[Vo]])) -> 0 | Z25: =IF(Z$1=0,0,IF(Configuration!$F$14="D",$R26,Table7[[#This Row],[Vo]])) -> 0 | AA25: =IF(AA$1=0,0,IF(Configuration!$F$15="D",$R26,Table7[[#This Row],[Vo]])) -> 0 | AB25: =IF(AB$1=0,0,IF(Configuration!$F$16="D",$R26,Table7[[#This Row],[Vo]])) -> 0 | AC25: =IF(AC$1=0,0,IF(Configuration!$F$17="D",$R26,Table7[[#This Row],[Vo]])) -> 0
A26: 3.5 | B26: NMS-240-5 | C26: 36 | D26: 126 | E26: C | F26: =IF(1200/Table2[[#This Row],[Module rated power]]>6,6,ROUNDDOWN(1200/Table2[[#This Row],[Module rated power]],0)) -> 6 | G26: =Table2[[#This Row],[Module rated power]]*Table2[[#This Row],[Available No. of Slot]] -> 756 | H26: =ROUNDDOWN(Table2[[#This Row],[Max power per output]]/Table2[[#This Row],[Output Voltage]],2) -> 216 | K26: Sales Representative of Korea | L26: kjshin@meanwellkr.com | M26: Mr. KWANG-JO SHIN | N26: +82-2-6953-7887 | P26: Belarus | R26: 5.2 | S26: =IF(S$1=0,0,IF(Configuration!$F$7="D",$R27,Table7[[#This Row],[Vo]])) -> 0 | T26: =IF(T$1=0,0,IF(Configuration!$F$8="D",$R27,Table7[[#This Row],[Vo]])) -> 0 | U26: =IF(U$1=0,0,IF(Configuration!$F$9="D",$R27,Table7[[#This Row],[Vo]])) -> 0 | V26: =IF(V$1=0,0,IF(Configuration!$F$10="D",$R27,Table7[[#This Row],[Vo]])) -> 0 | W26: =IF(W$1=0,0,IF(Configuration!$F$11="D",$R27,Table7[[#This Row],[Vo]])) -> 0 | X26: =IF(X$1=0,0,IF(Configuration!$F$12="D",$R27,Table7[[#This Row],[Vo]])) -> 0 | Y26: =IF(Y$1=0,0,IF(Configuration!$F$13="D",$R27,Table7[[#This Row],[Vo]])) -> 0 | Z26: =IF(Z$1=0,0,IF(Configuration!$F$14="D",$R27,Table7[[#This Row],[Vo]])) -> 0 | AA26: =IF(AA$1=0,0,IF(Configuration!$F$15="D",$R27,Table7[[#This Row],[Vo]])) -> 0 | AB26: =IF(AB$1=0,0,IF(Configuration!$F$16="D",$R27,Table7[[#This Row],[Vo]])) -> 0 | AC26: =IF(AC$1=0,0,IF(Configuration!$F$17="D",$R27,Table7[[#This Row],[Vo]])) -> 0
A27: 3.6 | B27: NMS-240-5 | C27: 36 | D27: 129.6 | E27: C | F27: =IF(1200/Table2[[#This Row],[Module rated power]]>6,6,ROUNDDOWN(1200/Table2[[#This Row],[Module rated power]],0)) -> 6 | G27: =Table2[[#This Row],[Module rated power]]*Table2[[#This Row],[Available No. of Slot]] -> 777.6 | H27: =ROUNDDOWN(Table2[[#This Row],[Max power per output]]/Table2[[#This Row],[Output Voltage]],2) -> 216 | K27: Sales Representative of Russia | L27: info@meanwellrussia.com | M27: Mr. Svyatoslav SHIROKOV | N27: +7-812-946-0097 | P27: Belgium | R27: 5.3 | S27: =IF(S$1=0,0,IF(Configuration!$F$7="D",$R28,Table7[[#This Row],[Vo]])) -> 0 | T27: =IF(T$1=0,0,IF(Configuration!$F$8="D",$R28,Table7[[#This Row],[Vo]])) -> 0 | U27: =IF(U$1=0,0,IF(Configuration!$F$9="D",$R28,Table7[[#This Row],[Vo]])) -> 0 | V27: =IF(V$1=0,0,IF(Configuration!$F$10="D",$R28,Table7[[#This Row],[Vo]])) -> 0 | W27: =IF(W$1=0,0,IF(Configuration!$F$11="D",$R28,Table7[[#This Row],[Vo]])) -> 0 | X27: =IF(X$1=0,0,IF(Configuration!$F$12="D",$R28,Table7[[#This Row],[Vo]])) -> 0 | Y27: =IF(Y$1=0,0,IF(Configuration!$F$13="D",$R28,Table7[[#This Row],[Vo]])) -> 0 | Z27: =IF(Z$1=0,0,IF(Configuration!$F$14="D",$R28,Table7[[#This Row],[Vo]])) -> 0 | AA27: =IF(AA$1=0,0,IF(Configuration!$F$15="D",$R28,Table7[[#This Row],[Vo]])) -> 0 | AB27: =IF(AB$1=0,0,IF(Configuration!$F$16="D",$R28,Table7[[#This Row],[Vo]])) -> 0 | AC27: =IF(AC$1=0,0,IF(Configuration!$F$17="D",$R28,Table7[[#This Row],[Vo]])) -> 0
A28: 3.7 | B28: NMS-240-5 | C28: 36 | D28: 133.2 | E28: C | F28: =IF(1200/Table2[[#This Row],[Module rated power]]>6,6,ROUNDDOWN(1200/Table2[[#This Row],[Module rated power]],0)) -> 6 | G28: =Table2[[#This Row],[Module rated power]]*Table2[[#This Row],[Available No. of Slot]] -> 799.2 | H28: =ROUNDDOWN(Table2[[#This Row],[Max power per output]]/Table2[[#This Row],[Output Voltage]],2) -> 216 | K28: Sales Representative of Turkey | L28: a.argilli@meanwell.com | M28: Mr. Abdullah Ziya ARGILLI | N28: +90-505-2020205 | P28: Benin | R28: 5.4 | S28: =IF(S$1=0,0,IF(Configuration!$F$7="D",$R29,Table7[[#This Row],[Vo]])) -> 0 | T28: =IF(T$1=0,0,IF(Configuration!$F$8="D",$R29,Table7[[#This Row],[Vo]])) -> 0 | U28: =IF(U$1=0,0,IF(Configuration!$F$9="D",$R29,Table7[[#This Row],[Vo]])) -> 0 | V28: =IF(V$1=0,0,IF(Configuration!$F$10="D",$R29,Table7[[#This Row],[Vo]])) -> 0 | W28: =IF(W$1=0,0,IF(Configuration!$F$11="D",$R29,Table7[[#This Row],[Vo]])) -> 0 | X28: =IF(X$1=0,0,IF(Configuration!$F$12="D",$R29,Table7[[#This Row],[Vo]])) -> 0 | Y28: =IF(Y$1=0,0,IF(Configuration!$F$13="D",$R29,Table7[[#This Row],[Vo]])) -> 0 | Z28: =IF(Z$1=0,0,IF(Configuration!$F$14="D",$R29,Table7[[#This Row],[Vo]])) -> 0 | AA28: =IF(AA$1=0,0,IF(Configuration!$F$15="D",$R29,Table7[[#This Row],[Vo]])) -> 0 | AB28: =IF(AB$1=0,0,IF(Configuration!$F$16="D",$R29,Table7[[#This Row],[Vo]])) -> 0 | AC28: =IF(AC$1=0,0,IF(Configuration!$F$17="D",$R29,Table7[[#This Row],[Vo]])) -> 0
A29: 3.8 | B29: NMS-240-5 | C29: 36 | D29: 136.8 | E29: C | F29: =IF(1200/Table2[[#This Row],[Module rated power]]>6,6,ROUNDDOWN(1200/Table2[[#This Row],[Module rated power]],0)) -> 6 | G29: =Table2[[#This Row],[Module rated power]]*Table2[[#This Row],[Available No. of Slot]] -> 820.8 | H29: =ROUNDDOWN(Table2[[#This Row],[Max power per output]]/Table2[[#This Row],[Output Voltage]],2) -> 216 | K29: Sales Representative of Vietnam | L29: pide@meanwell.com | M29: Mr. Pide Hoang | N29: +84-0705886189 | P29: Bermuda | R29: 5.5 | S29: =IF(S$1=0,0,IF(Configuration!$F$7="D",$R30,Table7[[#This Row],[Vo]])) -> 0 | T29: =IF(T$1=0,0,IF(Configuration!$F$8="D",$R30,Table7[[#This Row],[Vo]])) -> 0 | U29: =IF(U$1=0,0,IF(Configuration!$F$9="D",$R30,Table7[[#This Row],[Vo]])) -> 0 | V29: =IF(V$1=0,0,IF(Configuration!$F$10="D",$R30,Table7[[#This Row],[Vo]])) -> 0 | W29: =IF(W$1=0,0,IF(Configuration!$F$11="D",$R30,Table7[[#This Row],[Vo]])) -> 0 | X29: =IF(X$1=0,0,IF(Configuration!$F$12="D",$R30,Table7[[#This Row],[Vo]])) -> 0 | Y29: =IF(Y$1=0,0,IF(Configuration!$F$13="D",$R30,Table7[[#This Row],[Vo]])) -> 0 | Z29: =IF(Z$1=0,0,IF(Configuration!$F$14="D",$R30,Table7[[#This Row],[Vo]])) -> 0 | AA29: =IF(AA$1=0,0,IF(Configuration!$F$15="D",$R30,Table7[[#This Row],[Vo]])) -> 0 | AB29: =IF(AB$1=0,0,IF(Configuration!$F$16="D",$R30,Table7[[#This Row],[Vo]])) -> 0 | AC29: =IF(AC$1=0,0,IF(Configuration!$F$17="D",$R30,Table7[[#This Row],[Vo]])) -> 0
A30: 3.9 | B30: NMS-240-5 | C30: 36 | D30: 140.4 | E30: C | F30: =IF(1200/Table2[[#This Row],[Module rated power]]>6,6,ROUNDDOWN(1200/Table2[[#This Row],[Module rated power]],0)) -> 6 | G30: =Table2[[#This Row],[Module rated power]]*Table2[[#This Row],[Available No. of Slot]] -> 842.4 | H30: =ROUNDDOWN(Table2[[#This Row],[Max power per output]]/Table2[[#This Row],[Output Voltage]],2) -> 216 | K30: SUZHOU MEAN WELL TECHNOLOGY CO., LTD. | L30: info@meanwell.cc | N30: +86-512-6508-8600 | P30: Bolivia | R30: 5.6 | S30: =IF(S$1=0,0,IF(Configuration!$F$7="D",$R31,Table7[[#This Row],[Vo]])) -> 0 | T30: =IF(T$1=0,0,IF(Configuration!$F$8="D",$R31,Table7[[#This Row],[Vo]])) -> 0 | U30: =IF(U$1=0,0,IF(Configuration!$F$9="D",$R31,Table7[[#This Row],[Vo]])) -> 0 | V30: =IF(V$1=0,0,IF(Configuration!$F$10="D",$R31,Table7[[#This Row],[Vo]])) -> 0 | W30: =IF(W$1=0,0,IF(Configuration!$F$11="D",$R31,Table7[[#This Row],[Vo]])) -> 0 | X30: =IF(X$1=0,0,IF(Configuration!$F$12="D",$R31,Table7[[#This Row],[Vo]])) -> 0 | Y30: =IF(Y$1=0,0,IF(Configuration!$F$13="D",$R31,Table7[[#This Row],[Vo]])) -> 0 | Z30: =IF(Z$1=0,0,IF(Configuration!$F$14="D",$R31,Table7[[#This Row],[Vo]])) -> 0 | AA30: =IF(AA$1=0,0,IF(Configuration!$F$15="D",$R31,Table7[[#This Row],[Vo]])) -> 0 | AB30: =IF(AB$1=0,0,IF(Configuration!$F$16="D",$R31,Table7[[#This Row],[Vo]])) -> 0 | AC30: =IF(AC$1=0,0,IF(Configuration!$F$17="D",$R31,Table7[[#This Row],[Vo]])) -> 0
A31: 4 | B31: NMS-240-5 | C31: 36 | D31: 144 | E31: C | F31: =IF(1200/Table2[[#This Row],[Module rated power]]>6,6,ROUNDDOWN(1200/Table2[[#This Row],[Module rated power]],0)) -> 6 | G31: =Table2[[#This Row],[Module rated power]]*Table2[[#This Row],[Available No. of Slot]] -> 864 | H31: =ROUNDDOWN(Table2[[#This Row],[Max power per output]]/Table2[[#This Row],[Output Voltage]],2) -> 216 | P31: Bulgaria | R31: 5.7 | S31: =IF(S$1=0,0,IF(Configuration!$F$7="D",$R32,Table7[[#This Row],[Vo]])) -> 0 | T31: =IF(T$1=0,0,IF(Configuration!$F$8="D",$R32,Table7[[#This Row],[Vo]])) -> 0 | U31: =IF(U$1=0,0,IF(Configuration!$F$9="D",$R32,Table7[[#This Row],[Vo]])) -> 0 | V31: =IF(V$1=0,0,IF(Configuration!$F$10="D",$R32,Table7[[#This Row],[Vo]])) -> 0 | W31: =IF(W$1=0,0,IF(Configuration!$F$11="D",$R32,Table7[[#This Row],[Vo]])) -> 0 | X31: =IF(X$1=0,0,IF(Configuration!$F$12="D",$R32,Table7[[#This Row],[Vo]])) -> 0 | Y31: =IF(Y$1=0,0,IF(Configuration!$F$13="D",$R32,Table7[[#This Row],[Vo]])) -> 0 | Z31: =IF(Z$1=0,0,IF(Configuration!$F$14="D",$R32,Table7[[#This Row],[Vo]])) -> 0 | AA31: =IF(AA$1=0,0,IF(Configuration!$F$15="D",$R32,Table7[[#This Row],[Vo]])) -> 0 | AB31: =IF(AB$1=0,0,IF(Configuration!$F$16="D",$R32,Table7[[#This Row],[Vo]])) -> 0 | AC31: =IF(AC$1=0,0,IF(Configuration!$F$17="D",$R32,Table7[[#This Row],[Vo]])) -> 0
A32: 4.1 | B32: NMS-240-5 | C32: 36 | D32: 147.6 | E32: C | F32: =IF(1200/Table2[[#This Row],[Module rated power]]>6,6,ROUNDDOWN(1200/Table2[[#This Row],[Module rated power]],0)) -> 6 | G32: =Table2[[#This Row],[Module rated power]]*Table2[[#This Row],[Available No. of Slot]] -> 885.6 | H32: =ROUNDDOWN(Table2[[#This Row],[Max power per output]]/Table2[[#This Row],[Output Voltage]],2) -> 216 | P32: Cambodia | R32: 5.8 | S32: =IF(S$1=0,0,IF(Configuration!$F$7="D",$R33,Table7[[#This Row],[Vo]])) -> 0 | T32: =IF(T$1=0,0,IF(Configuration!$F$8="D",$R33,Table7[[#This Row],[Vo]])) -> 0 | U32: =IF(U$1=0,0,IF(Configuration!$F$9="D",$R33,Table7[[#This Row],[Vo]])) -> 0 | V32: =IF(V$1=0,0,IF(Configuration!$F$10="D",$R33,Table7[[#This Row],[Vo]])) -> 0 | W32: =IF(W$1=0,0,IF(Configuration!$F$11="D",$R33,Table7[[#This Row],[Vo]])) -> 0 | X32: =IF(X$1=0,0,IF(Configuration!$F$12="D",$R33,Table7[[#This Row],[Vo]])) -> 0 | Y32: =IF(Y$1=0,0,IF(Configuration!$F$13="D",$R33,Table7[[#This Row],[Vo]])) -> 0 | Z32: =IF(Z$1=0,0,IF(Configuration!$F$14="D",$R33,Table7[[#This Row],[Vo]])) -> 0 | AA32: =IF(AA$1=0,0,IF(Configuration!$F$15="D",$R33,Table7[[#This Row],[Vo]])) -> 0 | AB32: =IF(AB$1=0,0,IF(Configuration!$F$16="D",$R33,Table7[[#This Row],[Vo]])) -> 0 | AC32: =IF(AC$1=0,0,IF(Configuration!$F$17="D",$R33,Table7[[#This Row],[Vo]])) -> 0
A33: 4.2 | B33: NMS-240-5 | C33: 36 | D33: 151.2 | E33: C | F33: =IF(1200/Table2[[#This Row],[Module rated power]]>6,6,ROUNDDOWN(1200/Table2[[#This Row],[Module rated power]],0)) -> 6 | G33: =Table2[[#This Row],[Module rated power]]*Table2[[#This Row],[Available No. of Slot]] -> 907.2 | H33: =ROUNDDOWN(Table2[[#This Row],[Max power per output]]/Table2[[#This Row],[Output Voltage]],2) -> 216 | P33: Cape Verde | R33: 5.9 | S33: =IF(S$1=0,0,IF(Configuration!$F$7="D",$R34,Table7[[#This Row],[Vo]])) -> 0 | T33: =IF(T$1=0,0,IF(Configuration!$F$8="D",$R34,Table7[[#This Row],[Vo]])) -> 0 | U33: =IF(U$1=0,0,IF(Configuration!$F$9="D",$R34,Table7[[#This Row],[Vo]])) -> 0 | V33: =IF(V$1=0,0,IF(Configuration!$F$10="D",$R34,Table7[[#This Row],[Vo]])) -> 0 | W33: =IF(W$1=0,0,IF(Configuration!$F$11="D",$R34,Table7[[#This Row],[Vo]])) -> 0 | X33: =IF(X$1=0,0,IF(Configuration!$F$12="D",$R34,Table7[[#This Row],[Vo]])) -> 0 | Y33: =IF(Y$1=0,0,IF(Configuration!$F$13="D",$R34,Table7[[#This Row],[Vo]])) -> 0 | Z33: =IF(Z$1=0,0,IF(Configuration!$F$14="D",$R34,Table7[[#This Row],[Vo]])) -> 0 | AA33: =IF(AA$1=0,0,IF(Configuration!$F$15="D",$R34,Table7[[#This Row],[Vo]])) -> 0 | AB33: =IF(AB$1=0,0,IF(Configuration!$F$16="D",$R34,Table7[[#This Row],[Vo]])) -> 0 | AC33: =IF(AC$1=0,0,IF(Configuration!$F$17="D",$R34,Table7[[#This Row],[Vo]])) -> 0
A34: 4.3 | B34: NMS-240-5 | C34: 36 | D34: 154.8 | E34: C | F34: =IF(1200/Table2[[#This Row],[Module rated power]]>6,6,ROUNDDOWN(1200/Table2[[#This Row],[Module rated power]],0)) -> 6 | G34: =Table2[[#This Row],[Module rated power]]*Table2[[#This Row],[Available No. of Slot]] -> 928.8 | H34: =ROUNDDOWN(Table2[[#This Row],[Max power per output]]/Table2[[#This Row],[Output Voltage]],2) -> 216 | P34: Cayman Islands | R34: 6 | S34: =IF(S$1=0,0,IF(Configuration!$F$7="D",$R35,Table7[[#This Row],[Vo]])) -> 0 | T34: =IF(T$1=0,0,IF(Configuration!$F$8="D",$R35,Table7[[#This Row],[Vo]])) -> 0 | U34: =IF(U$1=0,0,IF(Configuration!$F$9="D",$R35,Table7[[#This Row],[Vo]])) -> 0 | V34: =IF(V$1=0,0,IF(Configuration!$F$10="D",$R35,Table7[[#This Row],[Vo]])) -> 0 | W34: =IF(W$1=0,0,IF(Configuration!$F$11="D",$R35,Table7[[#This Row],[Vo]])) -> 0 | X34: =IF(X$1=0,0,IF(Configuration!$F$12="D",$R35,Table7[[#This Row],[Vo]])) -> 0 | Y34: =IF(Y$1=0,0,IF(Configuration!$F$13="D",$R35,Table7[[#This Row],[Vo]])) -> 0 | Z34: =IF(Z$1=0,0,IF(Configuration!$F$14="D",$R35,Table7[[#This Row],[Vo]])) -> 0 | AA34: =IF(AA$1=0,0,IF(Configuration!$F$15="D",$R35,Table7[[#This Row],[Vo]])) -> 0 | AB34: =IF(AB$1=0,0,IF(Configuration!$F$16="D",$R35,Table7[[#This Row],[Vo]])) -> 0 | AC34: =IF(AC$1=0,0,IF(Configuration!$F$17="D",$R35,Table7[[#This Row],[Vo]])) -> 0
A35: 4.4 | B35: NMS-240-5 | C35: 36 | D35: 158.4 | E35: C | F35: =IF(1200/Table2[[#This Row],[Module rated power]]>6,6,ROUNDDOWN(1200/Table2[[#This Row],[Module rated power]],0)) -> 6 | G35: =Table2[[#This Row],[Module rated power]]*Table2[[#This Row],[Available No. of Slot]] -> 950.4 | H35: =ROUNDDOWN(Table2[[#This Row],[Max power per output]]/Table2[[#This Row],[Output Voltage]],2) -> 216 | P35: Central African Republic | R35: 6.1 | S35: =IF(S$1=0,0,IF(Configuration!$F$7="D",$R36,Table7[[#This Row],[Vo]])) -> 0 | T35: =IF(T$1=0,0,IF(Configuration!$F$8="D",$R36,Table7[[#This Row],[Vo]])) -> 0 | U35: =IF(U$1=0,0,IF(Configuration!$F$9="D",$R36,Table7[[#This Row],[Vo]])) -> 0 | V35: =IF(V$1=0,0,IF(Configuration!$F$10="D",$R36,Table7[[#This Row],[Vo]])) -> 0 | W35: =IF(W$1=0,0,IF(Configuration!$F$11="D",$R36,Table7[[#This Row],[Vo]])) -> 0 | X35: =IF(X$1=0,0,IF(Configuration!$F$12="D",$R36,Table7[[#This Row],[Vo]])) -> 0 | Y35: =IF(Y$1=0,0,IF(Configuration!$F$13="D",$R36,Table7[[#This Row],[Vo]])) -> 0 | Z35: =IF(Z$1=0,0,IF(Configuration!$F$14="D",$R36,Table7[[#This Row],[Vo]])) -> 0 | AA35: =IF(AA$1=0,0,IF(Configuration!$F$15="D",$R36,Table7[[#This Row],[Vo]])) -> 0 | AB35: =IF(AB$1=0,0,IF(Configuration!$F$16="D",$R36,Table7[[#This Row],[Vo]])) -> 0 | AC35: =IF(AC$1=0,0,IF(Configuration!$F$17="D",$R36,Table7[[#This Row],[Vo]])) -> 0
A36: 4.5 | B36: NMS-240-5 | C36: 36 | D36: 162 | E36: C | F36: =IF(1200/Table2[[#This Row],[Module rated power]]>6,6,ROUNDDOWN(1200/Table2[[#This Row],[Module rated power]],0)) -> 6 | G36: =Table2[[#This Row],[Module rated power]]*Table2[[#This Row],[Available No. of Slot]] -> 972 | H36: =ROUNDDOWN(Table2[[#This Row],[Max power per output]]/Table2[[#This Row],[Output Voltage]],2) -> 216 | P36: Chad | R36: 6.2 | S36: =IF(S$1=0,0,IF(Configuration!$F$7="D",$R37,Table7[[#This Row],[Vo]])) -> 0 | T36: =IF(T$1=0,0,IF(Configuration!$F$8="D",$R37,Table7[[#This Row],[Vo]])) -> 0 | U36: =IF(U$1=0,0,IF(Configuration!$F$9="D",$R37,Table7[[#This Row],[Vo]])) -> 0 | V36: =IF(V$1=0,0,IF(Configuration!$F$10="D",$R37,Table7[[#This Row],[Vo]])) -> 0 | W36: =IF(W$1=0,0,IF(Configuration!$F$11="D",$R37,Table7[[#This Row],[Vo]])) -> 0 | X36: =IF(X$1=0,0,IF(Configuration!$F$12="D",$R37,Table7[[#This Row],[Vo]])) -> 0 | Y36: =IF(Y$1=0,0,IF(Configuration!$F$13="D",$R37,Table7[[#This Row],[Vo]])) -> 0 | Z36: =IF(Z$1=0,0,IF(Configuration!$F$14="D",$R37,Table7[[#This Row],[Vo]])) -> 0 | AA36: =IF(AA$1=0,0,IF(Configuration!$F$15="D",$R37,Table7[[#This Row],[Vo]])) -> 0 | AB36: =IF(AB$1=0,0,IF(Configuration!$F$16="D",$R37,Table7[[#This Row],[Vo]])) -> 0 | AC36: =IF(AC$1=0,0,IF(Configuration!$F$17="D",$R37,Table7[[#This Row],[Vo]])) -> 0
A37: 4.6 | B37: NMS-240-5 | C37: 36 | D37: 165.6 | E37: C | F37: =IF(1200/Table2[[#This Row],[Module rated power]]>6,6,ROUNDDOWN(1200/Table2[[#This Row],[Module rated power]],0)) -> 6 | G37: =Table2[[#This Row],[Module rated power]]*Table2[[#This Row],[Available No. of Slot]] -> 993.6 | H37: =ROUNDDOWN(Table2[[#This Row],[Max power per output]]/Table2[[#This Row],[Output Voltage]],2) -> 216 | P37: Comoros | R37: 6.3 | S37: =IF(S$1=0,0,IF(Configuration!$F$7="D",$R38,Table7[[#This Row],[Vo]])) -> 0 | T37: =IF(T$1=0,0,IF(Configuration!$F$8="D",$R38,Table7[[#This Row],[Vo]])) -> 0 | U37: =IF(U$1=0,0,IF(Configuration!$F$9="D",$R38,Table7[[#This Row],[Vo]])) -> 0 | V37: =IF(V$1=0,0,IF(Configuration!$F$10="D",$R38,Table7[[#This Row],[Vo]])) -> 0 | W37: =IF(W$1=0,0,IF(Configuration!$F$11="D",$R38,Table7[[#This Row],[Vo]])) -> 0 | X37: =IF(X$1=0,0,IF(Configuration!$F$12="D",$R38,Table7[[#This Row],[Vo]])) -> 0 | Y37: =IF(Y$1=0,0,IF(Configuration!$F$13="D",$R38,Table7[[#This Row],[Vo]])) -> 0 | Z37: =IF(Z$1=0,0,IF(Configuration!$F$14="D",$R38,Table7[[#This Row],[Vo]])) -> 0 | AA37: =IF(AA$1=0,0,IF(Configuration!$F$15="D",$R38,Table7[[#This Row],[Vo]])) -> 0 | AB37: =IF(AB$1=0,0,IF(Configuration!$F$16="D",$R38,Table7[[#This Row],[Vo]])) -> 0 | AC37: =IF(AC$1=0,0,IF(Configuration!$F$17="D",$R38,Table7[[#This Row],[Vo]])) -> 0
A38: 4.7 | B38: NMS-240-5 | C38: 36 | D38: 169.2 | E38: C | F38: =IF(1200/Table2[[#This Row],[Module rated power]]>6,6,ROUNDDOWN(1200/Table2[[#This Row],[Module rated power]],0)) -> 6 | G38: =Table2[[#This Row],[Module rated power]]*Table2[[#This Row],[Available No. of Slot]] -> 1015.2 | H38: =ROUNDDOWN(Table2[[#This Row],[Max power per output]]/Table2[[#This Row],[Output Voltage]],2) -> 216 | P38: Congo | R38: 6.4 | S38: =IF(S$1=0,0,IF(Configuration!$F$7="D",$R39,Table7[[#This Row],[Vo]])) -> 0 | T38: =IF(T$1=0,0,IF(Configuration!$F$8="D",$R39,Table7[[#This Row],[Vo]])) -> 0 | U38: =IF(U$1=0,0,IF(Configuration!$F$9="D",$R39,Table7[[#This Row],[Vo]])) -> 0 | V38: =IF(V$1=0,0,IF(Configuration!$F$10="D",$R39,Table7[[#This Row],[Vo]])) -> 0 | W38: =IF(W$1=0,0,IF(Configuration!$F$11="D",$R39,Table7[[#This Row],[Vo]])) -> 0 | X38: =IF(X$1=0,0,IF(Configuration!$F$12="D",$R39,Table7[[#This Row],[Vo]])) -> 0 | Y38: =IF(Y$1=0,0,IF(Configuration!$F$13="D",$R39,Table7[[#This Row],[Vo]])) -> 0 | Z38: =IF(Z$1=0,0,IF(Configuration!$F$14="D",$R39,Table7[[#This Row],[Vo]])) -> 0 | AA38: =IF(AA$1=0,0,IF(Configuration!$F$15="D",$R39,Table7[[#This Row],[Vo]])) -> 0 | AB38: =IF(AB$1=0,0,IF(Configuration!$F$16="D",$R39,Table7[[#This Row],[Vo]])) -> 0 | AC38: =IF(AC$1=0,0,IF(Configuration!$F$17="D",$R39,Table7[[#This Row],[Vo]])) -> 0
A39: 4.8 | B39: NMS-240-5 | C39: 36 | D39: 172.8 | E39: C | F39: =IF(1200/Table2[[#This Row],[Module rated power]]>6,6,ROUNDDOWN(1200/Table2[[#This Row],[Module rated power]],0)) -> 6 | G39: =Table2[[#This Row],[Module rated power]]*Table2[[#This Row],[Available No. of Slot]] -> 1036.8 | H39: =ROUNDDOWN(Table2[[#This Row],[Max power per output]]/Table2[[#This Row],[Output Voltage]],2) -> 216 | P39: Congo, Democratic Republic of | R39: 6.5 | S39: =IF(S$1=0,0,IF(Configuration!$F$7="D",$R40,Table7[[#This Row],[Vo]])) -> 0 | T39: =IF(T$1=0,0,IF(Configuration!$F$8="D",$R40,Table7[[#This Row],[Vo]])) -> 0 | U39: =IF(U$1=0,0,IF(Configuration!$F$9="D",$R40,Table7[[#This Row],[Vo]])) -> 0 | V39: =IF(V$1=0,0,IF(Configuration!$F$10="D",$R40,Table7[[#This Row],[Vo]])) -> 0 | W39: =IF(W$1=0,0,IF(Configuration!$F$11="D",$R40,Table7[[#This Row],[Vo]])) -> 0 | X39: =IF(X$1=0,0,IF(Configuration!$F$12="D",$R40,Table7[[#This Row],[Vo]])) -> 0 | Y39: =IF(Y$1=0,0,IF(Configuration!$F$13="D",$R40,Table7[[#This Row],[Vo]])) -> 0 | Z39: =IF(Z$1=0,0,IF(Configuration!$F$14="D",$R40,Table7[[#This Row],[Vo]])) -> 0 | AA39: =IF(AA$1=0,0,IF(Configuration!$F$15="D",$R40,Table7[[#This Row],[Vo]])) -> 0 | AB39: =IF(AB$1=0,0,IF(Configuration!$F$16="D",$R40,Table7[[#This Row],[Vo]])) -> 0 | AC39: =IF(AC$1=0,0,IF(Configuration!$F$17="D",$R40,Table7[[#This Row],[Vo]])) -> 0
A40: 4.9 | B40: NMS-240-5 | C40: 36 | D40: 176.4 | E40: C | F40: =IF(1200/Table2[[#This Row],[Module rated power]]>6,6,ROUNDDOWN(1200/Table2[[#This Row],[Module rated power]],0)) -> 6 | G40: =Table2[[#This Row],[Module rated power]]*Table2[[#This Row],[Available No. of Slot]] -> 1058.4 | H40: =ROUNDDOWN(Table2[[#This Row],[Max power per output]]/Table2[[#This Row],[Output Voltage]],2) -> 216 | P40: Côte d'Ivoire | R40: 6.6 | S40: =IF(S$1=0,0,IF(Configuration!$F$7="D",$R41,Table7[[#This Row],[Vo]])) -> 0 | T40: =IF(T$1=0,0,IF(Configuration!$F$8="D",$R41,Table7[[#This Row],[Vo]])) -> 0 | U40: =IF(U$1=0,0,IF(Configuration!$F$9="D",$R41,Table7[[#This Row],[Vo]])) -> 0 | V40: =IF(V$1=0,0,IF(Configuration!$F$10="D",$R41,Table7[[#This Row],[Vo]])) -> 0 | W40: =IF(W$1=0,0,IF(Configuration!$F$11="D",$R41,Table7[[#This Row],[Vo]])) -> 0 | X40: =IF(X$1=0,0,IF(Configuration!$F$12="D",$R41,Table7[[#This Row],[Vo]])) -> 0 | Y40: =IF(Y$1=0,0,IF(Configuration!$F$13="D",$R41,Table7[[#This Row],[Vo]])) -> 0 | Z40: =IF(Z$1=0,0,IF(Configuration!$F$14="D",$R41,Table7[[#This Row],[Vo]])) -> 0 | AA40: =IF(AA$1=0,0,IF(Configuration!$F$15="D",$R41,Table7[[#This Row],[Vo]])) -> 0 | AB40: =IF(AB$1=0,0,IF(Configuration!$F$16="D",$R41,Table7[[#This Row],[Vo]])) -> 0 | AC40: =IF(AC$1=0,0,IF(Configuration!$F$17="D",$R41,Table7[[#This Row],[Vo]])) -> 0
A41: 5 | B41: NMS-240-5 | C41: 36 | D41: 180 | E41: C | F41: =IF(1200/Table2[[#This Row],[Module rated power]]>6,6,ROUNDDOWN(1200/Table2[[#This Row],[Module rated power]],0)) -> 6 | G41: =Table2[[#This Row],[Module rated power]]*Table2[[#This Row],[Available No. of Slot]] -> 1080 | H41: =ROUNDDOWN(Table2[[#This Row],[Max power per output]]/Table2[[#This Row],[Output Voltage]],2) -> 216 | P41: Cuba | R41: 6.7 | S41: =IF(S$1=0,0,IF(Configuration!$F$7="D",$R42,Table7[[#This Row],[Vo]])) -> 0 | T41: =IF(T$1=0,0,IF(Configuration!$F$8="D",$R42,Table7[[#This Row],[Vo]])) -> 0 | U41: =IF(U$1=0,0,IF(Configuration!$F$9="D",$R42,Table7[[#This Row],[Vo]])) -> 0 | V41: =IF(V$1=0,0,IF(Configuration!$F$10="D",$R42,Table7[[#This Row],[Vo]])) -> 0 | W41: =IF(W$1=0,0,IF(Configuration!$F$11="D",$R42,Table7[[#This Row],[Vo]])) -> 0 | X41: =IF(X$1=0,0,IF(Configuration!$F$12="D",$R42,Table7[[#This Row],[Vo]])) -> 0 | Y41: =IF(Y$1=0,0,IF(Configuration!$F$13="D",$R42,Table7[[#This Row],[Vo]])) -> 0 | Z41: =IF(Z$1=0,0,IF(Configuration!$F$14="D",$R42,Table7[[#This Row],[Vo]])) -> 0 | AA41: =IF(AA$1=0,0,IF(Configuration!$F$15="D",$R42,Table7[[#This Row],[Vo]])) -> 0 | AB41: =IF(AB$1=0,0,IF(Configuration!$F$16="D",$R42,Table7[[#This Row],[Vo]])) -> 0 | AC41: =IF(AC$1=0,0,IF(Configuration!$F$17="D",$R42,Table7[[#This Row],[Vo]])) -> 0
A42: 5.1 | B42: NMS-240-5 | C42: =D42/A42 -> 35.29411765 | D42: 180 | E42: C | F42: =IF(1200/Table2[[#This Row],[Module rated power]]>6,6,ROUNDDOWN(1200/Table2[[#This Row],[Module rated power]],0)) -> 6 | G42: =Table2[[#This Row],[Module rated power]]*Table2[[#This Row],[Available No. of Slot]] -> 1080 | H42: =ROUNDDOWN(Table2[[#This Row],[Max power per output]]/Table2[[#This Row],[Output Voltage]],2) -> 211.76 | P42: Curaçao | R42: 6.8 | S42: =IF(S$1=0,0,IF(Configuration!$F$7="D",$R43,Table7[[#This Row],[Vo]])) -> 0 | T42: =IF(T$1=0,0,IF(Configuration!$F$8="D",$R43,Table7[[#This Row],[Vo]])) -> 0 | U42: =IF(U$1=0,0,IF(Configuration!$F$9="D",$R43,Table7[[#This Row],[Vo]])) -> 0 | V42: =IF(V$1=0,0,IF(Configuration!$F$10="D",$R43,Table7[[#This Row],[Vo]])) -> 0 | W42: =IF(W$1=0,0,IF(Configuration!$F$11="D",$R43,Table7[[#This Row],[Vo]])) -> 0 | X42: =IF(X$1=0,0,IF(Configuration!$F$12="D",$R43,Table7[[#This Row],[Vo]])) -> 0 | Y42: =IF(Y$1=0,0,IF(Configuration!$F$13="D",$R43,Table7[[#This Row],[Vo]])) -> 0 | Z42: =IF(Z$1=0,0,IF(Configuration!$F$14="D",$R43,Table7[[#This Row],[Vo]])) -> 0 | AA42: =IF(AA$1=0,0,IF(Configuration!$F$15="D",$R43,Table7[[#This Row],[Vo]])) -> 0 | AB42: =IF(AB$1=0,0,IF(Configuration!$F$16="D",$R43,Table7[[#This Row],[Vo]])) -> 0 | AC42: =IF(AC$1=0,0,IF(Configuration!$F$17="D",$R43,Table7[[#This Row],[Vo]])) -> 0
A43: 5.2 | B43: NMS-240-5 | C43: 34.61538462 | D43: 180 | E43: C | F43: =IF(1200/Table2[[#This Row],[Module rated power]]>6,6,ROUNDDOWN(1200/Table2[[#This Row],[Module rated power]],0)) -> 6 | G43: =Table2[[#This Row],[Module rated power]]*Table2[[#This Row],[Available No. of Slot]] -> 1080 | H43: =ROUNDDOWN(Table2[[#This Row],[Max power per output]]/Table2[[#This Row],[Output Voltage]],2) -> 207.69 | P43: Cameroon | R43: 6.9 | S43: =IF(S$1=0,0,IF(Configuration!$F$7="D",$R44,Table7[[#This Row],[Vo]])) -> 0 | T43: =IF(T$1=0,0,IF(Configuration!$F$8="D",$R44,Table7[[#This Row],[Vo]])) -> 0 | U43: =IF(U$1=0,0,IF(Configuration!$F$9="D",$R44,Table7[[#This Row],[Vo]])) -> 0 | V43: =IF(V$1=0,0,IF(Configuration!$F$10="D",$R44,Table7[[#This Row],[Vo]])) -> 0 | W43: =IF(W$1=0,0,IF(Configuration!$F$11="D",$R44,Table7[[#This Row],[Vo]])) -> 0 | X43: =IF(X$1=0,0,IF(Configuration!$F$12="D",$R44,Table7[[#This Row],[Vo]])) -> 0 | Y43: =IF(Y$1=0,0,IF(Configuration!$F$13="D",$R44,Table7[[#This Row],[Vo]])) -> 0 | Z43: =IF(Z$1=0,0,IF(Configuration!$F$14="D",$R44,Table7[[#This Row],[Vo]])) -> 0 | AA43: =IF(AA$1=0,0,IF(Configuration!$F$15="D",$R44,Table7[[#This Row],[Vo]])) -> 0 | AB43: =IF(AB$1=0,0,IF(Configuration!$F$16="D",$R44,Table7[[#This Row],[Vo]])) -> 0 | AC43: =IF(AC$1=0,0,IF(Configuration!$F$17="D",$R44,Table7[[#This Row],[Vo]])) -> 0
A44: 5.3 | B44: NMS-240-5 | C44: 33.96226415 | D44: 180 | E44: C | F44: =IF(1200/Table2[[#This Row],[Module rated power]]>6,6,ROUNDDOWN(1200/Table2[[#This Row],[Module rated power]],0)) -> 6 | G44: =Table2[[#This Row],[Module rated power]]*Table2[[#This Row],[Available No. of Slot]] -> 1080 | H44: =ROUNDDOWN(Table2[[#This Row],[Max power per output]]/Table2[[#This Row],[Output Voltage]],2) -> 203.77 | P44: Canada | R44: 7 | S44: =IF(S$1=0,0,IF(Configuration!$F$7="D",$R45,Table7[[#This Row],[Vo]])) -> 0 | T44: =IF(T$1=0,0,IF(Configuration!$F$8="D",$R45,Table7[[#This Row],[Vo]])) -> 0 | U44: =IF(U$1=0,0,IF(Configuration!$F$9="D",$R45,Table7[[#This Row],[Vo]])) -> 0 | V44: =IF(V$1=0,0,IF(Configuration!$F$10="D",$R45,Table7[[#This Row],[Vo]])) -> 0 | W44: =IF(W$1=0,0,IF(Configuration!$F$11="D",$R45,Table7[[#This Row],[Vo]])) -> 0 | X44: =IF(X$1=0,0,IF(Configuration!$F$12="D",$R45,Table7[[#This Row],[Vo]])) -> 0 | Y44: =IF(Y$1=0,0,IF(Configuration!$F$13="D",$R45,Table7[[#This Row],[Vo]])) -> 0 | Z44: =IF(Z$1=0,0,IF(Configuration!$F$14="D",$R45,Table7[[#This Row],[Vo]])) -> 0 | AA44: =IF(AA$1=0,0,IF(Configuration!$F$15="D",$R45,Table7[[#This Row],[Vo]])) -> 0 | AB44: =IF(AB$1=0,0,IF(Configuration!$F$16="D",$R45,Table7[[#This Row],[Vo]])) -> 0 | AC44: =IF(AC$1=0,0,IF(Configuration!$F$17="D",$R45,Table7[[#This Row],[Vo]])) -> 0
A45: 5.4 | B45: NMS-240-5 | C45: 33.33333333 | D45: 180 | E45: C | F45: =IF(1200/Table2[[#This Row],[Module rated power]]>6,6,ROUNDDOWN(1200/Table2[[#This Row],[Module rated power]],0)) -> 6 | G45: =Table2[[#This Row],[Module rated power]]*Table2[[#This Row],[Available No. of Slot]] -> 1080 | H45: =ROUNDDOWN(Table2[[#This Row],[Max power per output]]/Table2[[#This Row],[Output Voltage]],2) -> 200 | P45: Chile | R45: 7.1 | S45: =IF(S$1=0,0,IF(Configuration!$F$7="D",$R46,Table7[[#This Row],[Vo]])) -> 0 | T45: =IF(T$1=0,0,IF(Configuration!$F$8="D",$R46,Table7[[#This Row],[Vo]])) -> 0 | U45: =IF(U$1=0,0,IF(Configuration!$F$9="D",$R46,Table7[[#This Row],[Vo]])) -> 0 | V45: =IF(V$1=0,0,IF(Configuration!$F$10="D",$R46,Table7[[#This Row],[Vo]])) -> 0 | W45: =IF(W$1=0,0,IF(Configuration!$F$11="D",$R46,Table7[[#This Row],[Vo]])) -> 0 | X45: =IF(X$1=0,0,IF(Configuration!$F$12="D",$R46,Table7[[#This Row],[Vo]])) -> 0 | Y45: =IF(Y$1=0,0,IF(Configuration!$F$13="D",$R46,Table7[[#This Row],[Vo]])) -> 0 | Z45: =IF(Z$1=0,0,IF(Configuration!$F$14="D",$R46,Table7[[#This Row],[Vo]])) -> 0 | AA45: =IF(AA$1=0,0,IF(Configuration!$F$15="D",$R46,Table7[[#This Row],[Vo]])) -> 0 | AB45: =IF(AB$1=0,0,IF(Configuration!$F$16="D",$R46,Table7[[#This Row],[Vo]])) -> 0 | AC45: =IF(AC$1=0,0,IF(Configuration!$F$17="D",$R46,Table7[[#This Row],[Vo]])) -> 0
A46: 5.5 | B46: NMS-240-5 | C46: 32.72727273 | D46: 180 | E46: C | F46: =IF(1200/Table2[[#This Row],[Module rated power]]>6,6,ROUNDDOWN(1200/Table2[[#This Row],[Module rated power]],0)) -> 6 | G46: =Table2[[#This Row],[Module rated power]]*Table2[[#This Row],[Available No. of Slot]] -> 1080 | H46: =ROUNDDOWN(Table2[[#This Row],[Max power per output]]/Table2[[#This Row],[Output Voltage]],2) -> 196.36 | P46: China | R46: 7.2 | S46: =IF(S$1=0,0,IF(Configuration!$F$7="D",$R47,Table7[[#This Row],[Vo]])) -> 0 | T46: =IF(T$1=0,0,IF(Configuration!$F$8="D",$R47,Table7[[#This Row],[Vo]])) -> 0 | U46: =IF(U$1=0,0,IF(Configuration!$F$9="D",$R47,Table7[[#This Row],[Vo]])) -> 0 | V46: =IF(V$1=0,0,IF(Configuration!$F$10="D",$R47,Table7[[#This Row],[Vo]])) -> 0 | W46: =IF(W$1=0,0,IF(Configuration!$F$11="D",$R47,Table7[[#This Row],[Vo]])) -> 0 | X46: =IF(X$1=0,0,IF(Configuration!$F$12="D",$R47,Table7[[#This Row],[Vo]])) -> 0 | Y46: =IF(Y$1=0,0,IF(Configuration!$F$13="D",$R47,Table7[[#This Row],[Vo]])) -> 0 | Z46: =IF(Z$1=0,0,IF(Configuration!$F$14="D",$R47,Table7[[#This Row],[Vo]])) -> 0 | AA46: =IF(AA$1=0,0,IF(Configuration!$F$15="D",$R47,Table7[[#This Row],[Vo]])) -> 0 | AB46: =IF(AB$1=0,0,IF(Configuration!$F$16="D",$R47,Table7[[#This Row],[Vo]])) -> 0 | AC46: =IF(AC$1=0,0,IF(Configuration!$F$17="D",$R47,Table7[[#This Row],[Vo]])) -> 0
A47: 5.6 | B47: NMS-240-5 | C47: 32.14285714 | D47: 180 | E47: C | F47: =IF(1200/Table2[[#This Row],[Module rated power]]>6,6,ROUNDDOWN(1200/Table2[[#This Row],[Module rated power]],0)) -> 6 | G47: =Table2[[#This Row],[Module rated power]]*Table2[[#This Row],[Available No. of Slot]] -> 1080 | H47: =ROUNDDOWN(Table2[[#This Row],[Max power per output]]/Table2[[#This Row],[Output Voltage]],2) -> 192.85 | P47: Colombia | R47: 7.3 | S47: =IF(S$1=0,0,IF(Configuration!$F$7="D",$R48,Table7[[#This Row],[Vo]])) -> 0 | T47: =IF(T$1=0,0,IF(Configuration!$F$8="D",$R48,Table7[[#This Row],[Vo]])) -> 0 | U47: =IF(U$1=0,0,IF(Configuration!$F$9="D",$R48,Table7[[#This Row],[Vo]])) -> 0 | V47: =IF(V$1=0,0,IF(Configuration!$F$10="D",$R48,Table7[[#This Row],[Vo]])) -> 0 | W47: =IF(W$1=0,0,IF(Configuration!$F$11="D",$R48,Table7[[#This Row],[Vo]])) -> 0 | X47: =IF(X$1=0,0,IF(Configuration!$F$12="D",$R48,Table7[[#This Row],[Vo]])) -> 0 | Y47: =IF(Y$1=0,0,IF(Configuration!$F$13="D",$R48,Table7[[#This Row],[Vo]])) -> 0 | Z47: =IF(Z$1=0,0,IF(Configuration!$F$14="D",$R48,Table7[[#This Row],[Vo]])) -> 0 | AA47: =IF(AA$1=0,0,IF(Configuration!$F$15="D",$R48,Table7[[#This Row],[Vo]])) -> 0 | AB47: =IF(AB$1=0,0,IF(Configuration!$F$16="D",$R48,Table7[[#This Row],[Vo]])) -> 0 | AC47: =IF(AC$1=0,0,IF(Configuration!$F$17="D",$R48,Table7[[#This Row],[Vo]])) -> 0
A48: 5.7 | B48: NMS-240-5 | C48: 31.57894737 | D48: 180 | E48: C | F48: =IF(1200/Table2[[#This Row],[Module rated power]]>6,6,ROUNDDOWN(1200/Table2[[#This Row],[Module rated power]],0)) -> 6 | G48: =Table2[[#This Row],[Module rated power]]*Table2[[#This Row],[Available No. of Slot]] -> 1080 | H48: =ROUNDDOWN(Table2[[#This Row],[Max power per output]]/Table2[[#This Row],[Output Voltage]],2) -> 189.47 | P48: Costa Rica | R48: 7.4 | S48: =IF(S$1=0,0,IF(Configuration!$F$7="D",$R49,Table7[[#This Row],[Vo]])) -> 0 | T48: =IF(T$1=0,0,IF(Configuration!$F$8="D",$R49,Table7[[#This Row],[Vo]])) -> 0 | U48: =IF(U$1=0,0,IF(Configuration!$F$9="D",$R49,Table7[[#This Row],[Vo]])) -> 0 | V48: =IF(V$1=0,0,IF(Configuration!$F$10="D",$R49,Table7[[#This Row],[Vo]])) -> 0 | W48: =IF(W$1=0,0,IF(Configuration!$F$11="D",$R49,Table7[[#This Row],[Vo]])) -> 0 | X48: =IF(X$1=0,0,IF(Configuration!$F$12="D",$R49,Table7[[#This Row],[Vo]])) -> 0 | Y48: =IF(Y$1=0,0,IF(Configuration!$F$13="D",$R49,Table7[[#This Row],[Vo]])) -> 0 | Z48: =IF(Z$1=0,0,IF(Configuration!$F$14="D",$R49,Table7[[#This Row],[Vo]])) -> 0 | AA48: =IF(AA$1=0,0,IF(Configuration!$F$15="D",$R49,Table7[[#This Row],[Vo]])) -> 0 | AB48: =IF(AB$1=0,0,IF(Configuration!$F$16="D",$R49,Table7[[#This Row],[Vo]])) -> 0 | AC48: =IF(AC$1=0,0,IF(Configuration!$F$17="D",$R49,Table7[[#This Row],[Vo]])) -> 0
A49: 5.8 | B49: NMS-240-5 | C49: 31.03448276 | D49: 180 | E49: C | F49: =IF(1200/Table2[[#This Row],[Module rated power]]>6,6,ROUNDDOWN(1200/Table2[[#This Row],[Module rated power]],0)) -> 6 | G49: =Table2[[#This Row],[Module rated power]]*Table2[[#This Row],[Available No. of Slot]] -> 1080 | H49: =ROUNDDOWN(Table2[[#This Row],[Max power per output]]/Table2[[#This Row],[Output Voltage]],2) -> 186.2 | P49: Croatia | R49: 7.5 | S49: =IF(S$1=0,0,IF(Configuration!$F$7="D",$R50,Table7[[#This Row],[Vo]])) -> 0 | T49: =IF(T$1=0,0,IF(Configuration!$F$8="D",$R50,Table7[[#This Row],[Vo]])) -> 0 | U49: =IF(U$1=0,0,IF(Configuration!$F$9="D",$R50,Table7[[#This Row],[Vo]])) -> 0 | V49: =IF(V$1=0,0,IF(Configuration!$F$10="D",$R50,Table7[[#This Row],[Vo]])) -> 0 | W49: =IF(W$1=0,0,IF(Configuration!$F$11="D",$R50,Table7[[#This Row],[Vo]])) -> 0 | X49: =IF(X$1=0,0,IF(Configuration!$F$12="D",$R50,Table7[[#This Row],[Vo]])) -> 0 | Y49: =IF(Y$1=0,0,IF(Configuration!$F$13="D",$R50,Table7[[#This Row],[Vo]])) -> 0 | Z49: =IF(Z$1=0,0,IF(Configuration!$F$14="D",$R50,Table7[[#This Row],[Vo]])) -> 0 | AA49: =IF(AA$1=0,0,IF(Configuration!$F$15="D",$R50,Table7[[#This Row],[Vo]])) -> 0 | AB49: =IF(AB$1=0,0,IF(Configuration!$F$16="D",$R50,Table7[[#This Row],[Vo]])) -> 0 | AC49: =IF(AC$1=0,0,IF(Configuration!$F$17="D",$R50,Table7[[#This Row],[Vo]])) -> 0
A50: 5.9 | B50: NMS-240-5 | C50: 30.50847458 | D50: 180 | E50: C | F50: =IF(1200/Table2[[#This Row],[Module rated power]]>6,6,ROUNDDOWN(1200/Table2[[#This Row],[Module rated power]],0)) -> 6 | G50: =Table2[[#This Row],[Module rated power]]*Table2[[#This Row],[Available No. of Slot]] -> 1080 | H50: =ROUNDDOWN(Table2[[#This Row],[Max power per output]]/Table2[[#This Row],[Output Voltage]],2) -> 183.05 | P50: Cyprus | R50: 7.6 | S50: =IF(S$1=0,0,IF(Configuration!$F$7="D",$R51,Table7[[#This Row],[Vo]])) -> 0 | T50: =IF(T$1=0,0,IF(Configuration!$F$8="D",$R51,Table7[[#This Row],[Vo]])) -> 0 | U50: =IF(U$1=0,0,IF(Configuration!$F$9="D",$R51,Table7[[#This Row],[Vo]])) -> 0 | V50: =IF(V$1=0,0,IF(Configuration!$F$10="D",$R51,Table7[[#This Row],[Vo]])) -> 0 | W50: =IF(W$1=0,0,IF(Configuration!$F$11="D",$R51,Table7[[#This Row],[Vo]])) -> 0 | X50: =IF(X$1=0,0,IF(Configuration!$F$12="D",$R51,Table7[[#This Row],[Vo]])) -> 0 | Y50: =IF(Y$1=0,0,IF(Configuration!$F$13="D",$R51,Table7[[#This Row],[Vo]])) -> 0 | Z50: =IF(Z$1=0,0,IF(Configuration!$F$14="D",$R51,Table7[[#This Row],[Vo]])) -> 0 | AA50: =IF(AA$1=0,0,IF(Configuration!$F$15="D",$R51,Table7[[#This Row],[Vo]])) -> 0 | AB50: =IF(AB$1=0,0,IF(Configuration!$F$16="D",$R51,Table7[[#This Row],[Vo]])) -> 0 | AC50: =IF(AC$1=0,0,IF(Configuration!$F$17="D",$R51,Table7[[#This Row],[Vo]])) -> 0
A51: 6 | B51: NMS-240-5 | C51: 30 | D51: 180 | E51: C | F51: =IF(1200/Table2[[#This Row],[Module rated power]]>6,6,ROUNDDOWN(1200/Table2[[#This Row],[Module rated power]],0)) -> 6 | G51: =Table2[[#This Row],[Module rated power]]*Table2[[#This Row],[Available No. of Slot]] -> 1080 | H51: =ROUNDDOWN(Table2[[#This Row],[Max power per output]]/Table2[[#This Row],[Output Voltage]],2) -> 180 | P51: Czech Republic | R51: 7.7 | S51: =IF(S$1=0,0,IF(Configuration!$F$7="D",$R52,Table7[[#This Row],[Vo]])) -> 0 | T51: =IF(T$1=0,0,IF(Configuration!$F$8="D",$R52,Table7[[#This Row],[Vo]])) -> 0 | U51: =IF(U$1=0,0,IF(Configuration!$F$9="D",$R52,Table7[[#This Row],[Vo]])) -> 0 | V51: =IF(V$1=0,0,IF(Configuration!$F$10="D",$R52,Table7[[#This Row],[Vo]])) -> 0 | W51: =IF(W$1=0,0,IF(Configuration!$F$11="D",$R52,Table7[[#This Row],[Vo]])) -> 0 | X51: =IF(X$1=0,0,IF(Configuration!$F$12="D",$R52,Table7[[#This Row],[Vo]])) -> 0 | Y51: =IF(Y$1=0,0,IF(Configuration!$F$13="D",$R52,Table7[[#This Row],[Vo]])) -> 0 | Z51: =IF(Z$1=0,0,IF(Configuration!$F$14="D",$R52,Table7[[#This Row],[Vo]])) -> 0 | AA51: =IF(AA$1=0,0,IF(Configuration!$F$15="D",$R52,Table7[[#This Row],[Vo]])) -> 0 | AB51: =IF(AB$1=0,0,IF(Configuration!$F$16="D",$R52,Table7[[#This Row],[Vo]])) -> 0 | AC51: =IF(AC$1=0,0,IF(Configuration!$F$17="D",$R52,Table7[[#This Row],[Vo]])) -> 0
A52: 6.1 | B52: NMS-240-12 | C52: 20 | D52: =Table2[[#This Row],[Output Voltage]]*Table2[[#This Row],[Module rated current]] -> 122 | E52: E | F52: =IF(1200/Table2[[#This Row],[Module rated power]]>6,6,ROUNDDOWN(1200/Table2[[#This Row],[Module rated power]],0)) -> 6 | G52: =Table2[[#This Row],[Module rated power]]*Table2[[#This Row],[Available No. of Slot]] -> 732 | H52: =ROUNDDOWN(Table2[[#This Row],[Max power per output]]/Table2[[#This Row],[Output Voltage]],2) -> 120 | P52: Dominica | R52: 7.8 | S52: =IF(S$1=0,0,IF(Configuration!$F$7="D",$R53,Table7[[#This Row],[Vo]])) -> 0 | T52: =IF(T$1=0,0,IF(Configuration!$F$8="D",$R53,Table7[[#This Row],[Vo]])) -> 0 | U52: =IF(U$1=0,0,IF(Configuration!$F$9="D",$R53,Table7[[#This Row],[Vo]])) -> 0 | V52: =IF(V$1=0,0,IF(Configuration!$F$10="D",$R53,Table7[[#This Row],[Vo]])) -> 0 | W52: =IF(W$1=0,0,IF(Configuration!$F$11="D",$R53,Table7[[#This Row],[Vo]])) -> 0 | X52: =IF(X$1=0,0,IF(Configuration!$F$12="D",$R53,Table7[[#This Row],[Vo]])) -> 0 | Y52: =IF(Y$1=0,0,IF(Configuration!$F$13="D",$R53,Table7[[#This Row],[Vo]])) -> 0 | Z52: =IF(Z$1=0,0,IF(Configuration!$F$14="D",$R53,Table7[[#This Row],[Vo]])) -> 0 | AA52: =IF(AA$1=0,0,IF(Configuration!$F$15="D",$R53,Table7[[#This Row],[Vo]])) -> 0 | AB52: =IF(AB$1=0,0,IF(Configuration!$F$16="D",$R53,Table7[[#This Row],[Vo]])) -> 0 | AC52: =IF(AC$1=0,0,IF(Configuration!$F$17="D",$R53,Table7[[#This Row],[Vo]])) -> 0
A53: 6.2 | B53: NMS-240-12 | C53: 20 | D53: =Table2[[#This Row],[Output Voltage]]*Table2[[#This Row],[Module rated current]] -> 124 | E53: E | F53: =IF(1200/Table2[[#This Row],[Module rated power]]>6,6,ROUNDDOWN(1200/Table2[[#This Row],[Module rated power]],0)) -> 6 | G53: =Table2[[#This Row],[Module rated power]]*Table2[[#This Row],[Available No. of Slot]] -> 744 | H53: =ROUNDDOWN(Table2[[#This Row],[Max power per output]]/Table2[[#This Row],[Output Voltage]],2) -> 120 | P53: Denmark | R53: 7.9 | S53: =IF(S$1=0,0,IF(Configuration!$F$7="D",$R54,Table7[[#This Row],[Vo]])) -> 0 | T53: =IF(T$1=0,0,IF(Configuration!$F$8="D",$R54,Table7[[#This Row],[Vo]])) -> 0 | U53: =IF(U$1=0,0,IF(Configuration!$F$9="D",$R54,Table7[[#This Row],[Vo]])) -> 0 | V53: =IF(V$1=0,0,IF(Configuration!$F$10="D",$R54,Table7[[#This Row],[Vo]])) -> 0 | W53: =IF(W$1=0,0,IF(Configuration!$F$11="D",$R54,Table7[[#This Row],[Vo]])) -> 0 | X53: =IF(X$1=0,0,IF(Configuration!$F$12="D",$R54,Table7[[#This Row],[Vo]])) -> 0 | Y53: =IF(Y$1=0,0,IF(Configuration!$F$13="D",$R54,Table7[[#This Row],[Vo]])) -> 0 | Z53: =IF(Z$1=0,0,IF(Configuration!$F$14="D",$R54,Table7[[#This Row],[Vo]])) -> 0 | AA53: =IF(AA$1=0,0,IF(Configuration!$F$15="D",$R54,Table7[[#This Row],[Vo]])) -> 0 | AB53: =IF(AB$1=0,0,IF(Configuration!$F$16="D",$R54,Table7[[#This Row],[Vo]])) -> 0 | AC53: =IF(AC$1=0,0,IF(Configuration!$F$17="D",$R54,Table7[[#This Row],[Vo]])) -> 0
A54: 6.3 | B54: NMS-240-12 | C54: 20 | D54: =Table2[[#This Row],[Output Voltage]]*Table2[[#This Row],[Module rated current]] -> 126 | E54: E | F54: =IF(1200/Table2[[#This Row],[Module rated power]]>6,6,ROUNDDOWN(1200/Table2[[#This Row],[Module rated power]],0)) -> 6 | G54: =Table2[[#This Row],[Module rated power]]*Table2[[#This Row],[Available No. of Slot]] -> 756 | H54: =ROUNDDOWN(Table2[[#This Row],[Max power per output]]/Table2[[#This Row],[Output Voltage]],2) -> 120 | P54: Denmark (Faroe Islands) | R54: 8 | S54: =IF(S$1=0,0,IF(Configuration!$F$7="D",$R55,Table7[[#This Row],[Vo]])) -> 0 | T54: =IF(T$1=0,0,IF(Configuration!$F$8="D",$R55,Table7[[#This Row],[Vo]])) -> 0 | U54: =IF(U$1=0,0,IF(Configuration!$F$9="D",$R55,Table7[[#This Row],[Vo]])) -> 0 | V54: =IF(V$1=0,0,IF(Configuration!$F$10="D",$R55,Table7[[#This Row],[Vo]])) -> 0 | W54: =IF(W$1=0,0,IF(Configuration!$F$11="D",$R55,Table7[[#This Row],[Vo]])) -> 0 | X54: =IF(X$1=0,0,IF(Configuration!$F$12="D",$R55,Table7[[#This Row],[Vo]])) -> 0 | Y54: =IF(Y$1=0,0,IF(Configuration!$F$13="D",$R55,Table7[[#This Row],[Vo]])) -> 0 | Z54: =IF(Z$1=0,0,IF(Configuration!$F$14="D",$R55,Table7[[#This Row],[Vo]])) -> 0 | AA54: =IF(AA$1=0,0,IF(Configuration!$F$15="D",$R55,Table7[[#This Row],[Vo]])) -> 0 | AB54: =IF(AB$1=0,0,IF(Configuration!$F$16="D",$R55,Table7[[#This Row],[Vo]])) -> 0 | AC54: =IF(AC$1=0,0,IF(Configuration!$F$17="D",$R55,Table7[[#This Row],[Vo]])) -> 0
A55: 6.4 | B55: NMS-240-12 | C55: 20 | D55: =Table2[[#This Row],[Output Voltage]]*Table2[[#This Row],[Module rated current]] -> 128 | E55: E | F55: =IF(1200/Table2[[#This Row],[Module rated power]]>6,6,ROUNDDOWN(1200/Table2[[#This Row],[Module rated power]],0)) -> 6 | G55: =Table2[[#This Row],[Module rated power]]*Table2[[#This Row],[Available No. of Slot]] -> 768 | H55: =ROUNDDOWN(Table2[[#This Row],[Max power per output]]/Table2[[#This Row],[Output Voltage]],2) -> 120 | P55: Djibouti | R55: 8.1 | S55: =IF(S$1=0,0,IF(Configuration!$F$7="D",$R56,Table7[[#This Row],[Vo]])) -> 0 | T55: =IF(T$1=0,0,IF(Configuration!$F$8="D",$R56,Table7[[#This Row],[Vo]])) -> 0 | U55: =IF(U$1=0,0,IF(Configuration!$F$9="D",$R56,Table7[[#This Row],[Vo]])) -> 0 | V55: =IF(V$1=0,0,IF(Configuration!$F$10="D",$R56,Table7[[#This Row],[Vo]])) -> 0 | W55: =IF(W$1=0,0,IF(Configuration!$F$11="D",$R56,Table7[[#This Row],[Vo]])) -> 0 | X55: =IF(X$1=0,0,IF(Configuration!$F$12="D",$R56,Table7[[#This Row],[Vo]])) -> 0 | Y55: =IF(Y$1=0,0,IF(Configuration!$F$13="D",$R56,Table7[[#This Row],[Vo]])) -> 0 | Z55: =IF(Z$1=0,0,IF(Configuration!$F$14="D",$R56,Table7[[#This Row],[Vo]])) -> 0 | AA55: =IF(AA$1=0,0,IF(Configuration!$F$15="D",$R56,Table7[[#This Row],[Vo]])) -> 0 | AB55: =IF(AB$1=0,0,IF(Configuration!$F$16="D",$R56,Table7[[#This Row],[Vo]])) -> 0 | AC55: =IF(AC$1=0,0,IF(Configuration!$F$17="D",$R56,Table7[[#This Row],[Vo]])) -> 0
A56: 6.5 | B56: NMS-240-12 | C56: 20 | D56: =Table2[[#This Row],[Output Voltage]]*Table2[[#This Row],[Module rated current]] -> 130 | E56: E | F56: =IF(1200/Table2[[#This Row],[Module rated power]]>6,6,ROUNDDOWN(1200/Table2[[#This Row],[Module rated power]],0)) -> 6 | G56: =Table2[[#This Row],[Module rated power]]*Table2[[#This Row],[Available No. of Slot]] -> 780 | H56: =ROUNDDOWN(Table2[[#This Row],[Max power per output]]/Table2[[#This Row],[Output Voltage]],2) -> 120 | P56: Dominican Republic | R56: 8.2 | S56: =IF(S$1=0,0,IF(Configuration!$F$7="D",$R57,Table7[[#This Row],[Vo]])) -> 0 | T56: =IF(T$1=0,0,IF(Configuration!$F$8="D",$R57,Table7[[#This Row],[Vo]])) -> 0 | U56: =IF(U$1=0,0,IF(Configuration!$F$9="D",$R57,Table7[[#This Row],[Vo]])) -> 0 | V56: =IF(V$1=0,0,IF(Configuration!$F$10="D",$R57,Table7[[#This Row],[Vo]])) -> 0 | W56: =IF(W$1=0,0,IF(Configuration!$F$11="D",$R57,Table7[[#This Row],[Vo]])) -> 0 | X56: =IF(X$1=0,0,IF(Configuration!$F$12="D",$R57,Table7[[#This Row],[Vo]])) -> 0 | Y56: =IF(Y$1=0,0,IF(Configuration!$F$13="D",$R57,Table7[[#This Row],[Vo]])) -> 0 | Z56: =IF(Z$1=0,0,IF(Configuration!$F$14="D",$R57,Table7[[#This Row],[Vo]])) -> 0 | AA56: =IF(AA$1=0,0,IF(Configuration!$F$15="D",$R57,Table7[[#This Row],[Vo]])) -> 0 | AB56: =IF(AB$1=0,0,IF(Configuration!$F$16="D",$R57,Table7[[#This Row],[Vo]])) -> 0 | AC56: =IF(AC$1=0,0,IF(Configuration!$F$17="D",$R57,Table7[[#This Row],[Vo]])) -> 0
A57: 6.6 | B57: NMS-240-12 | C57: 20 | D57: =Table2[[#This Row],[Output Voltage]]*Table2[[#This Row],[Module rated current]] -> 132 | E57: E | F57: =IF(1200/Table2[[#This Row],[Module rated power]]>6,6,ROUNDDOWN(1200/Table2[[#This Row],[Module rated power]],0)) -> 6 | G57: =Table2[[#This Row],[Module rated power]]*Table2[[#This Row],[Available No. of Slot]] -> 792 | H57: =ROUNDDOWN(Table2[[#This Row],[Max power per output]]/Table2[[#This Row],[Output Voltage]],2) -> 120 | P57: Equatorial Guinea | R57: 8.3 | S57: =IF(S$1=0,0,IF(Configuration!$F$7="D",$R58,Table7[[#This Row],[Vo]])) -> 0 | T57: =IF(T$1=0,0,IF(Configuration!$F$8="D",$R58,Table7[[#This Row],[Vo]])) -> 0 | U57: =IF(U$1=0,0,IF(Configuration!$F$9="D",$R58,Table7[[#This Row],[Vo]])) -> 0 | V57: =IF(V$1=0,0,IF(Configuration!$F$10="D",$R58,Table7[[#This Row],[Vo]])) -> 0 | W57: =IF(W$1=0,0,IF(Configuration!$F$11="D",$R58,Table7[[#This Row],[Vo]])) -> 0 | X57: =IF(X$1=0,0,IF(Configuration!$F$12="D",$R58,Table7[[#This Row],[Vo]])) -> 0 | Y57: =IF(Y$1=0,0,IF(Configuration!$F$13="D",$R58,Table7[[#This Row],[Vo]])) -> 0 | Z57: =IF(Z$1=0,0,IF(Configuration!$F$14="D",$R58,Table7[[#This Row],[Vo]])) -> 0 | AA57: =IF(AA$1=0,0,IF(Configuration!$F$15="D",$R58,Table7[[#This Row],[Vo]])) -> 0 | AB57: =IF(AB$1=0,0,IF(Configuration!$F$16="D",$R58,Table7[[#This Row],[Vo]])) -> 0 | AC57: =IF(AC$1=0,0,IF(Configuration!$F$17="D",$R58,Table7[[#This Row],[Vo]])) -> 0
A58: 6.7 | B58: NMS-240-12 | C58: 20 | D58: =Table2[[#This Row],[Output Voltage]]*Table2[[#This Row],[Module rated current]] -> 134 | E58: E | F58: =IF(1200/Table2[[#This Row],[Module rated power]]>6,6,ROUNDDOWN(1200/Table2[[#This Row],[Module rated power]],0)) -> 6 | G58: =Table2[[#This Row],[Module rated power]]*Table2[[#This Row],[Available No. of Slot]] -> 804 | H58: =ROUNDDOWN(Table2[[#This Row],[Max power per output]]/Table2[[#This Row],[Output Voltage]],2) -> 120 | P58: Eritrea | R58: 8.4 | S58: =IF(S$1=0,0,IF(Configuration!$F$7="D",$R59,Table7[[#This Row],[Vo]])) -> 0 | T58: =IF(T$1=0,0,IF(Configuration!$F$8="D",$R59,Table7[[#This Row],[Vo]])) -> 0 | U58: =IF(U$1=0,0,IF(Configuration!$F$9="D",$R59,Table7[[#This Row],[Vo]])) -> 0 | V58: =IF(V$1=0,0,IF(Configuration!$F$10="D",$R59,Table7[[#This Row],[Vo]])) -> 0 | W58: =IF(W$1=0,0,IF(Configuration!$F$11="D",$R59,Table7[[#This Row],[Vo]])) -> 0 | X58: =IF(X$1=0,0,IF(Configuration!$F$12="D",$R59,Table7[[#This Row],[Vo]])) -> 0 | Y58: =IF(Y$1=0,0,IF(Configuration!$F$13="D",$R59,Table7[[#This Row],[Vo]])) -> 0 | Z58: =IF(Z$1=0,0,IF(Configuration!$F$14="D",$R59,Table7[[#This Row],[Vo]])) -> 0 | AA58: =IF(AA$1=0,0,IF(Configuration!$F$15="D",$R59,Table7[[#This Row],[Vo]])) -> 0 | AB58: =IF(AB$1=0,0,IF(Configuration!$F$16="D",$R59,Table7[[#This Row],[Vo]])) -> 0 | AC58: =IF(AC$1=0,0,IF(Configuration!$F$17="D",$R59,Table7[[#This Row],[Vo]])) -> 0
A59: 6.8 | B59: NMS-240-12 | C59: 20 | D59: =Table2[[#This Row],[Output Voltage]]*Table2[[#This Row],[Module rated current]] -> 136 | E59: E | F59: =IF(1200/Table2[[#This Row],[Module rated power]]>6,6,ROUNDDOWN(1200/Table2[[#This Row],[Module rated power]],0)) -> 6 | G59: =Table2[[#This Row],[Module rated power]]*Table2[[#This Row],[Available No. of Slot]] -> 816 | H59: =ROUNDDOWN(Table2[[#This Row],[Max power per output]]/Table2[[#This Row],[Output Voltage]],2) -> 120 | P59: Ethiopia | R59: 8.5 | S59: =IF(S$1=0,0,IF(Configuration!$F$7="D",$R60,Table7[[#This Row],[Vo]])) -> 0 | T59: =IF(T$1=0,0,IF(Configuration!$F$8="D",$R60,Table7[[#This Row],[Vo]])) -> 0 | U59: =IF(U$1=0,0,IF(Configuration!$F$9="D",$R60,Table7[[#This Row],[Vo]])) -> 0 | V59: =IF(V$1=0,0,IF(Configuration!$F$10="D",$R60,Table7[[#This Row],[Vo]])) -> 0 | W59: =IF(W$1=0,0,IF(Configuration!$F$11="D",$R60,Table7[[#This Row],[Vo]])) -> 0 | X59: =IF(X$1=0,0,IF(Configuration!$F$12="D",$R60,Table7[[#This Row],[Vo]])) -> 0 | Y59: =IF(Y$1=0,0,IF(Configuration!$F$13="D",$R60,Table7[[#This Row],[Vo]])) -> 0 | Z59: =IF(Z$1=0,0,IF(Configuration!$F$14="D",$R60,Table7[[#This Row],[Vo]])) -> 0 | AA59: =IF(AA$1=0,0,IF(Configuration!$F$15="D",$R60,Table7[[#This Row],[Vo]])) -> 0 | AB59: =IF(AB$1=0,0,IF(Configuration!$F$16="D",$R60,Table7[[#This Row],[Vo]])) -> 0 | AC59: =IF(AC$1=0,0,IF(Configuration!$F$17="D",$R60,Table7[[#This Row],[Vo]])) -> 0
A60: 6.9 | B60: NMS-240-12 | C60: 20 | D60: =Table2[[#This Row],[Output Voltage]]*Table2[[#This Row],[Module rated current]] -> 138 | E60: E | F60: =IF(1200/Table2[[#This Row],[Module rated power]]>6,6,ROUNDDOWN(1200/Table2[[#This Row],[Module rated power]],0)) -> 6 | G60: =Table2[[#This Row],[Module rated power]]*Table2[[#This Row],[Available No. of Slot]] -> 828 | H60: =ROUNDDOWN(Table2[[#This Row],[Max power per output]]/Table2[[#This Row],[Output Voltage]],2) -> 120 | P60: Ecuador | R60: 8.6 | S60: =IF(S$1=0,0,IF(Configuration!$F$7="D",$R61,Table7[[#This Row],[Vo]])) -> 0 | T60: =IF(T$1=0,0,IF(Configuration!$F$8="D",$R61,Table7[[#This Row],[Vo]])) -> 0 | U60: =IF(U$1=0,0,IF(Configuration!$F$9="D",$R61,Table7[[#This Row],[Vo]])) -> 0 | V60: =IF(V$1=0,0,IF(Configuration!$F$10="D",$R61,Table7[[#This Row],[Vo]])) -> 0 | W60: =IF(W$1=0,0,IF(Configuration!$F$11="D",$R61,Table7[[#This Row],[Vo]])) -> 0 | X60: =IF(X$1=0,0,IF(Configuration!$F$12="D",$R61,Table7[[#This Row],[Vo]])) -> 0 | Y60: =IF(Y$1=0,0,IF(Configuration!$F$13="D",$R61,Table7[[#This Row],[Vo]])) -> 0 | Z60: =IF(Z$1=0,0,IF(Configuration!$F$14="D",$R61,Table7[[#This Row],[Vo]])) -> 0 | AA60: =IF(AA$1=0,0,IF(Configuration!$F$15="D",$R61,Table7[[#This Row],[Vo]])) -> 0 | AB60: =IF(AB$1=0,0,IF(Configuration!$F$16="D",$R61,Table7[[#This Row],[Vo]])) -> 0 | AC60: =IF(AC$1=0,0,IF(Configuration!$F$17="D",$R61,Table7[[#This Row],[Vo]])) -> 0
A61: 7 | B61: NMS-240-12 | C61: 20 | D61: =Table2[[#This Row],[Output Voltage]]*Table2[[#This Row],[Module rated current]] -> 140 | E61: E | F61: =IF(1200/Table2[[#This Row],[Module rated power]]>6,6,ROUNDDOWN(1200/Table2[[#This Row],[Module rated power]],0)) -> 6 | G61: =Table2[[#This Row],[Module rated power]]*Table2[[#This Row],[Available No. of Slot]] -> 840 | H61: =ROUNDDOWN(Table2[[#This Row],[Max power per output]]/Table2[[#This Row],[Output Voltage]],2) -> 120 | P61: Egypt | R61: 8.7 | S61: =IF(S$1=0,0,IF(Configuration!$F$7="D",$R62,Table7[[#This Row],[Vo]])) -> 0 | T61: =IF(T$1=0,0,IF(Configuration!$F$8="D",$R62,Table7[[#This Row],[Vo]])) -> 0 | U61: =IF(U$1=0,0,IF(Configuration!$F$9="D",$R62,Table7[[#This Row],[Vo]])) -> 0 | V61: =IF(V$1=0,0,IF(Configuration!$F$10="D",$R62,Table7[[#This Row],[Vo]])) -> 0 | W61: =IF(W$1=0,0,IF(Configuration!$F$11="D",$R62,Table7[[#This Row],[Vo]])) -> 0 | X61: =IF(X$1=0,0,IF(Configuration!$F$12="D",$R62,Table7[[#This Row],[Vo]])) -> 0 | Y61: =IF(Y$1=0,0,IF(Configuration!$F$13="D",$R62,Table7[[#This Row],[Vo]])) -> 0 | Z61: =IF(Z$1=0,0,IF(Configuration!$F$14="D",$R62,Table7[[#This Row],[Vo]])) -> 0 | AA61: =IF(AA$1=0,0,IF(Configuration!$F$15="D",$R62,Table7[[#This Row],[Vo]])) -> 0 | AB61: =IF(AB$1=0,0,IF(Configuration!$F$16="D",$R62,Table7[[#This Row],[Vo]])) -> 0 | AC61: =IF(AC$1=0,0,IF(Configuration!$F$17="D",$R62,Table7[[#This Row],[Vo]])) -> 0
A62: 7.1 | B62: NMS-240-12 | C62: 20 | D62: =Table2[[#This Row],[Output Voltage]]*Table2[[#This Row],[Module rated current]] -> 142 | E62: E | F62: =IF(1200/Table2[[#This Row],[Module rated power]]>6,6,ROUNDDOWN(1200/Table2[[#This Row],[Module rated power]],0)) -> 6 | G62: =Table2[[#This Row],[Module rated power]]*Table2[[#This Row],[Available No. of Slot]] -> 852 | H62: =ROUNDDOWN(Table2[[#This Row],[Max power per output]]/Table2[[#This Row],[Output Voltage]],2) -> 120 | P62: El Salvador | R62: 8.8 | S62: =IF(S$1=0,0,IF(Configuration!$F$7="D",$R63,Table7[[#This Row],[Vo]])) -> 0 | T62: =IF(T$1=0,0,IF(Configuration!$F$8="D",$R63,Table7[[#This Row],[Vo]])) -> 0 | U62: =IF(U$1=0,0,IF(Configuration!$F$9="D",$R63,Table7[[#This Row],[Vo]])) -> 0 | V62: =IF(V$1=0,0,IF(Configuration!$F$10="D",$R63,Table7[[#This Row],[Vo]])) -> 0 | W62: =IF(W$1=0,0,IF(Configuration!$F$11="D",$R63,Table7[[#This Row],[Vo]])) -> 0 | X62: =IF(X$1=0,0,IF(Configuration!$F$12="D",$R63,Table7[[#This Row],[Vo]])) -> 0 | Y62: =IF(Y$1=0,0,IF(Configuration!$F$13="D",$R63,Table7[[#This Row],[Vo]])) -> 0 | Z62: =IF(Z$1=0,0,IF(Configuration!$F$14="D",$R63,Table7[[#This Row],[Vo]])) -> 0 | AA62: =IF(AA$1=0,0,IF(Configuration!$F$15="D",$R63,Table7[[#This Row],[Vo]])) -> 0 | AB62: =IF(AB$1=0,0,IF(Configuration!$F$16="D",$R63,Table7[[#This Row],[Vo]])) -> 0 | AC62: =IF(AC$1=0,0,IF(Configuration!$F$17="D",$R63,Table7[[#This Row],[Vo]])) -> 0
A63: 7.2 | B63: NMS-240-12 | C63: 20 | D63: =Table2[[#This Row],[Output Voltage]]*Table2[[#This Row],[Module rated current]] -> 144 | E63: E | F63: =IF(1200/Table2[[#This Row],[Module rated power]]>6,6,ROUNDDOWN(1200/Table2[[#This Row],[Module rated power]],0)) -> 6 | G63: =Table2[[#This Row],[Module rated power]]*Table2[[#This Row],[Available No. of Slot]] -> 864 | H63: =ROUNDDOWN(Table2[[#This Row],[Max power per output]]/Table2[[#This Row],[Output Voltage]],2) -> 120 | P63: Finland | R63: 8.9 | S63: =IF(S$1=0,0,IF(Configuration!$F$7="D",$R64,Table7[[#This Row],[Vo]])) -> 0 | T63: =IF(T$1=0,0,IF(Configuration!$F$8="D",$R64,Table7[[#This Row],[Vo]])) -> 0 | U63: =IF(U$1=0,0,IF(Configuration!$F$9="D",$R64,Table7[[#This Row],[Vo]])) -> 0 | V63: =IF(V$1=0,0,IF(Configuration!$F$10="D",$R64,Table7[[#This Row],[Vo]])) -> 0 | W63: =IF(W$1=0,0,IF(Configuration!$F$11="D",$R64,Table7[[#This Row],[Vo]])) -> 0 | X63: =IF(X$1=0,0,IF(Configuration!$F$12="D",$R64,Table7[[#This Row],[Vo]])) -> 0 | Y63: =IF(Y$1=0,0,IF(Configuration!$F$13="D",$R64,Table7[[#This Row],[Vo]])) -> 0 | Z63: =IF(Z$1=0,0,IF(Configuration!$F$14="D",$R64,Table7[[#This Row],[Vo]])) -> 0 | AA63: =IF(AA$1=0,0,IF(Configuration!$F$15="D",$R64,Table7[[#This Row],[Vo]])) -> 0 | AB63: =IF(AB$1=0,0,IF(Configuration!$F$16="D",$R64,Table7[[#This Row],[Vo]])) -> 0 | AC63: =IF(AC$1=0,0,IF(Configuration!$F$17="D",$R64,Table7[[#This Row],[Vo]])) -> 0
A64: 7.3 | B64: NMS-240-12 | C64: 20 | D64: =Table2[[#This Row],[Output Voltage]]*Table2[[#This Row],[Module rated current]] -> 146 | E64: E | F64: =IF(1200/Table2[[#This Row],[Module rated power]]>6,6,ROUNDDOWN(1200/Table2[[#This Row],[Module rated power]],0)) -> 6 | G64: =Table2[[#This Row],[Module rated power]]*Table2[[#This Row],[Available No. of Slot]] -> 876 | H64: =ROUNDDOWN(Table2[[#This Row],[Max power per output]]/Table2[[#This Row],[Output Voltage]],2) -> 120 | P64: France | R64: 9 | S64: =IF(S$1=0,0,IF(Configuration!$F$7="D",$R65,Table7[[#This Row],[Vo]])) -> 0 | T64: =IF(T$1=0,0,IF(Configuration!$F$8="D",$R65,Table7[[#This Row],[Vo]])) -> 0 | U64: =IF(U$1=0,0,IF(Configuration!$F$9="D",$R65,Table7[[#This Row],[Vo]])) -> 0 | V64: =IF(V$1=0,0,IF(Configuration!$F$10="D",$R65,Table7[[#This Row],[Vo]])) -> 0 | W64: =IF(W$1=0,0,IF(Configuration!$F$11="D",$R65,Table7[[#This Row],[Vo]])) -> 0 | X64: =IF(X$1=0,0,IF(Configuration!$F$12="D",$R65,Table7[[#This Row],[Vo]])) -> 0 | Y64: =IF(Y$1=0,0,IF(Configuration!$F$13="D",$R65,Table7[[#This Row],[Vo]])) -> 0 | Z64: =IF(Z$1=0,0,IF(Configuration!$F$14="D",$R65,Table7[[#This Row],[Vo]])) -> 0 | AA64: =IF(AA$1=0,0,IF(Configuration!$F$15="D",$R65,Table7[[#This Row],[Vo]])) -> 0 | AB64: =IF(AB$1=0,0,IF(Configuration!$F$16="D",$R65,Table7[[#This Row],[Vo]])) -> 0 | AC64: =IF(AC$1=0,0,IF(Configuration!$F$17="D",$R65,Table7[[#This Row],[Vo]])) -> 0
A65: 7.4 | B65: NMS-240-12 | C65: 20 | D65: =Table2[[#This Row],[Output Voltage]]*Table2[[#This Row],[Module rated current]] -> 148 | E65: E | F65: =IF(1200/Table2[[#This Row],[Module rated power]]>6,6,ROUNDDOWN(1200/Table2[[#This Row],[Module rated power]],0)) -> 6 | G65: =Table2[[#This Row],[Module rated power]]*Table2[[#This Row],[Available No. of Slot]] -> 888 | H65: =ROUNDDOWN(Table2[[#This Row],[Max power per output]]/Table2[[#This Row],[Output Voltage]],2) -> 120 | P65: Gabon | R65: 9.1 | S65: =IF(S$1=0,0,IF(Configuration!$F$7="D",$R66,Table7[[#This Row],[Vo]])) -> 0 | T65: =IF(T$1=0,0,IF(Configuration!$F$8="D",$R66,Table7[[#This Row],[Vo]])) -> 0 | U65: =IF(U$1=0,0,IF(Configuration!$F$9="D",$R66,Table7[[#This Row],[Vo]])) -> 0 | V65: =IF(V$1=0,0,IF(Configuration!$F$10="D",$R66,Table7[[#This Row],[Vo]])) -> 0 | W65: =IF(W$1=0,0,IF(Configuration!$F$11="D",$R66,Table7[[#This Row],[Vo]])) -> 0 | X65: =IF(X$1=0,0,IF(Configuration!$F$12="D",$R66,Table7[[#This Row],[Vo]])) -> 0 | Y65: =IF(Y$1=0,0,IF(Configuration!$F$13="D",$R66,Table7[[#This Row],[Vo]])) -> 0 | Z65: =IF(Z$1=0,0,IF(Configuration!$F$14="D",$R66,Table7[[#This Row],[Vo]])) -> 0 | AA65: =IF(AA$1=0,0,IF(Configuration!$F$15="D",$R66,Table7[[#This Row],[Vo]])) -> 0 | AB65: =IF(AB$1=0,0,IF(Configuration!$F$16="D",$R66,Table7[[#This Row],[Vo]])) -> 0 | AC65: =IF(AC$1=0,0,IF(Configuration!$F$17="D",$R66,Table7[[#This Row],[Vo]])) -> 0
A66: 7.5 | B66: NMS-240-12 | C66: 20 | D66: =Table2[[#This Row],[Output Voltage]]*Table2[[#This Row],[Module rated current]] -> 150 | E66: E | F66: =IF(1200/Table2[[#This Row],[Module rated power]]>6,6,ROUNDDOWN(1200/Table2[[#This Row],[Module rated power]],0)) -> 6 | G66: =Table2[[#This Row],[Module rated power]]*Table2[[#This Row],[Available No. of Slot]] -> 900 | H66: =ROUNDDOWN(Table2[[#This Row],[Max power per output]]/Table2[[#This Row],[Output Voltage]],2) -> 120 | P66: Gambia | R66: 9.2 | S66: =IF(S$1=0,0,IF(Configuration!$F$7="D",$R67,Table7[[#This Row],[Vo]])) -> 0 | T66: =IF(T$1=0,0,IF(Configuration!$F$8="D",$R67,Table7[[#This Row],[Vo]])) -> 0 | U66: =IF(U$1=0,0,IF(Configuration!$F$9="D",$R67,Table7[[#This Row],[Vo]])) -> 0 | V66: =IF(V$1=0,0,IF(Configuration!$F$10="D",$R67,Table7[[#This Row],[Vo]])) -> 0 | W66: =IF(W$1=0,0,IF(Configuration!$F$11="D",$R67,Table7[[#This Row],[Vo]])) -> 0 | X66: =IF(X$1=0,0,IF(Configuration!$F$12="D",$R67,Table7[[#This Row],[Vo]])) -> 0 | Y66: =IF(Y$1=0,0,IF(Configuration!$F$13="D",$R67,Table7[[#This Row],[Vo]])) -> 0 | Z66: =IF(Z$1=0,0,IF(Configuration!$F$14="D",$R67,Table7[[#This Row],[Vo]])) -> 0 | AA66: =IF(AA$1=0,0,IF(Configuration!$F$15="D",$R67,Table7[[#This Row],[Vo]])) -> 0 | AB66: =IF(AB$1=0,0,IF(Configuration!$F$16="D",$R67,Table7[[#This Row],[Vo]])) -> 0 | AC66: =IF(AC$1=0,0,IF(Configuration!$F$17="D",$R67,Table7[[#This Row],[Vo]])) -> 0
A67: 7.6 | B67: NMS-240-12 | C67: 20 | D67: =Table2[[#This Row],[Output Voltage]]*Table2[[#This Row],[Module rated current]] -> 152 | E67: E | F67: =IF(1200/Table2[[#This Row],[Module rated power]]>6,6,ROUNDDOWN(1200/Table2[[#This Row],[Module rated power]],0)) -> 6 | G67: =Table2[[#This Row],[Module rated power]]*Table2[[#This Row],[Available No. of Slot]] -> 912 | H67: =ROUNDDOWN(Table2[[#This Row],[Max power per output]]/Table2[[#This Row],[Output Voltage]],2) -> 120 | P67: Gibraltar | R67: 9.3 | S67: =IF(S$1=0,0,IF(Configuration!$F$7="D",$R68,Table7[[#This Row],[Vo]])) -> 0 | T67: =IF(T$1=0,0,IF(Configuration!$F$8="D",$R68,Table7[[#This Row],[Vo]])) -> 0 | U67: =IF(U$1=0,0,IF(Configuration!$F$9="D",$R68,Table7[[#This Row],[Vo]])) -> 0 | V67: =IF(V$1=0,0,IF(Configuration!$F$10="D",$R68,Table7[[#This Row],[Vo]])) -> 0 | W67: =IF(W$1=0,0,IF(Configuration!$F$11="D",$R68,Table7[[#This Row],[Vo]])) -> 0 | X67: =IF(X$1=0,0,IF(Configuration!$F$12="D",$R68,Table7[[#This Row],[Vo]])) -> 0 | Y67: =IF(Y$1=0,0,IF(Configuration!$F$13="D",$R68,Table7[[#This Row],[Vo]])) -> 0 | Z67: =IF(Z$1=0,0,IF(Configuration!$F$14="D",$R68,Table7[[#This Row],[Vo]])) -> 0 | AA67: =IF(AA$1=0,0,IF(Configuration!$F$15="D",$R68,Table7[[#This Row],[Vo]])) -> 0 | AB67: =IF(AB$1=0,0,IF(Configuration!$F$16="D",$R68,Table7[[#This Row],[Vo]])) -> 0 | AC67: =IF(AC$1=0,0,IF(Configuration!$F$17="D",$R68,Table7[[#This Row],[Vo]])) -> 0
A68: 7.7 | B68: NMS-240-12 | C68: 20 | D68: =Table2[[#This Row],[Output Voltage]]*Table2[[#This Row],[Module rated current]] -> 154 | E68: E | F68: =IF(1200/Table2[[#This Row],[Module rated power]]>6,6,ROUNDDOWN(1200/Table2[[#This Row],[Module rated power]],0)) -> 6 | G68: =Table2[[#This Row],[Module rated power]]*Table2[[#This Row],[Available No. of Slot]] -> 924 | H68: =ROUNDDOWN(Table2[[#This Row],[Max power per output]]/Table2[[#This Row],[Output Voltage]],2) -> 120 | P68: Grenada | R68: 9.4 | S68: =IF(S$1=0,0,IF(Configuration!$F$7="D",$R69,Table7[[#This Row],[Vo]])) -> 0 | T68: =IF(T$1=0,0,IF(Configuration!$F$8="D",$R69,Table7[[#This Row],[Vo]])) -> 0 | U68: =IF(U$1=0,0,IF(Configuration!$F$9="D",$R69,Table7[[#This Row],[Vo]])) -> 0 | V68: =IF(V$1=0,0,IF(Configuration!$F$10="D",$R69,Table7[[#This Row],[Vo]])) -> 0 | W68: =IF(W$1=0,0,IF(Configuration!$F$11="D",$R69,Table7[[#This Row],[Vo]])) -> 0 | X68: =IF(X$1=0,0,IF(Configuration!$F$12="D",$R69,Table7[[#This Row],[Vo]])) -> 0 | Y68: =IF(Y$1=0,0,IF(Configuration!$F$13="D",$R69,Table7[[#This Row],[Vo]])) -> 0 | Z68: =IF(Z$1=0,0,IF(Configuration!$F$14="D",$R69,Table7[[#This Row],[Vo]])) -> 0 | AA68: =IF(AA$1=0,0,IF(Configuration!$F$15="D",$R69,Table7[[#This Row],[Vo]])) -> 0 | AB68: =IF(AB$1=0,0,IF(Configuration!$F$16="D",$R69,Table7[[#This Row],[Vo]])) -> 0 | AC68: =IF(AC$1=0,0,IF(Configuration!$F$17="D",$R69,Table7[[#This Row],[Vo]])) -> 0
A69: 7.8 | B69: NMS-240-12 | C69: 20 | D69: =Table2[[#This Row],[Output Voltage]]*Table2[[#This Row],[Module rated current]] -> 156 | E69: E | F69: =IF(1200/Table2[[#This Row],[Module rated power]]>6,6,ROUNDDOWN(1200/Table2[[#This Row],[Module rated power]],0)) -> 6 | G69: =Table2[[#This Row],[Module rated power]]*Table2[[#This Row],[Available No. of Slot]] -> 936 | H69: =ROUNDDOWN(Table2[[#This Row],[Max power per output]]/Table2[[#This Row],[Output Voltage]],2) -> 120 | P69: Guinea | R69: 9.5 | S69: =IF(S$1=0,0,IF(Configuration!$F$7="D",$R70,Table7[[#This Row],[Vo]])) -> 0 | T69: =IF(T$1=0,0,IF(Configuration!$F$8="D",$R70,Table7[[#This Row],[Vo]])) -> 0 | U69: =IF(U$1=0,0,IF(Configuration!$F$9="D",$R70,Table7[[#This Row],[Vo]])) -> 0 | V69: =IF(V$1=0,0,IF(Configuration!$F$10="D",$R70,Table7[[#This Row],[Vo]])) -> 0 | W69: =IF(W$1=0,0,IF(Configuration!$F$11="D",$R70,Table7[[#This Row],[Vo]])) -> 0 | X69: =IF(X$1=0,0,IF(Configuration!$F$12="D",$R70,Table7[[#This Row],[Vo]])) -> 0 | Y69: =IF(Y$1=0,0,IF(Configuration!$F$13="D",$R70,Table7[[#This Row],[Vo]])) -> 0 | Z69: =IF(Z$1=0,0,IF(Configuration!$F$14="D",$R70,Table7[[#This Row],[Vo]])) -> 0 | AA69: =IF(AA$1=0,0,IF(Configuration!$F$15="D",$R70,Table7[[#This Row],[Vo]])) -> 0 | AB69: =IF(AB$1=0,0,IF(Configuration!$F$16="D",$R70,Table7[[#This Row],[Vo]])) -> 0 | AC69: =IF(AC$1=0,0,IF(Configuration!$F$17="D",$R70,Table7[[#This Row],[Vo]])) -> 0
A70: 7.9 | B70: NMS-240-12 | C70: 20 | D70: =Table2[[#This Row],[Output Voltage]]*Table2[[#This Row],[Module rated current]] -> 158 | E70: E | F70: =IF(1200/Table2[[#This Row],[Module rated power]]>6,6,ROUNDDOWN(1200/Table2[[#This Row],[Module rated power]],0)) -> 6 | G70: =Table2[[#This Row],[Module rated power]]*Table2[[#This Row],[Available No. of Slot]] -> 948 | H70: =ROUNDDOWN(Table2[[#This Row],[Max power per output]]/Table2[[#This Row],[Output Voltage]],2) -> 120 | P70: Guinea Bissau | R70: =ROUNDUP(R69+0.1,1) -> 9.6 | S70: =IF(S$1=0,0,IF(Configuration!$F$7="D",$R71,Table7[[#This Row],[Vo]])) -> 0 | T70: =IF(T$1=0,0,IF(Configuration!$F$8="D",$R71,Table7[[#This Row],[Vo]])) -> 0 | U70: =IF(U$1=0,0,IF(Configuration!$F$9="D",$R71,Table7[[#This Row],[Vo]])) -> 0 | V70: =IF(V$1=0,0,IF(Configuration!$F$10="D",$R71,Table7[[#This Row],[Vo]])) -> 0 | W70: =IF(W$1=0,0,IF(Configuration!$F$11="D",$R71,Table7[[#This Row],[Vo]])) -> 0 | X70: =IF(X$1=0,0,IF(Configuration!$F$12="D",$R71,Table7[[#This Row],[Vo]])) -> 0 | Y70: =IF(Y$1=0,0,IF(Configuration!$F$13="D",$R71,Table7[[#This Row],[Vo]])) -> 0 | Z70: =IF(Z$1=0,0,IF(Configuration!$F$14="D",$R71,Table7[[#This Row],[Vo]])) -> 0 | AA70: =IF(AA$1=0,0,IF(Configuration!$F$15="D",$R71,Table7[[#This Row],[Vo]])) -> 0 | AB70: =IF(AB$1=0,0,IF(Configuration!$F$16="D",$R71,Table7[[#This Row],[Vo]])) -> 0 | AC70: =IF(AC$1=0,0,IF(Configuration!$F$17="D",$R71,Table7[[#This Row],[Vo]])) -> 0
A71: 8 | B71: NMS-240-12 | C71: 20 | D71: =Table2[[#This Row],[Output Voltage]]*Table2[[#This Row],[Module rated current]] -> 160 | E71: E | F71: =IF(1200/Table2[[#This Row],[Module rated power]]>6,6,ROUNDDOWN(1200/Table2[[#This Row],[Module rated power]],0)) -> 6 | G71: =Table2[[#This Row],[Module rated power]]*Table2[[#This Row],[Available No. of Slot]] -> 960 | H71: =ROUNDDOWN(Table2[[#This Row],[Max power per output]]/Table2[[#This Row],[Output Voltage]],2) -> 120 | P71: Guyana | R71: 9.7 | S71: =IF(S$1=0,0,IF(Configuration!$F$7="D",$R72,Table7[[#This Row],[Vo]])) -> 0 | T71: =IF(T$1=0,0,IF(Configuration!$F$8="D",$R72,Table7[[#This Row],[Vo]])) -> 0 | U71: =IF(U$1=0,0,IF(Configuration!$F$9="D",$R72,Table7[[#This Row],[Vo]])) -> 0 | V71: =IF(V$1=0,0,IF(Configuration!$F$10="D",$R72,Table7[[#This Row],[Vo]])) -> 0 | W71: =IF(W$1=0,0,IF(Configuration!$F$11="D",$R72,Table7[[#This Row],[Vo]])) -> 0 | X71: =IF(X$1=0,0,IF(Configuration!$F$12="D",$R72,Table7[[#This Row],[Vo]])) -> 0 | Y71: =IF(Y$1=0,0,IF(Configuration!$F$13="D",$R72,Table7[[#This Row],[Vo]])) -> 0 | Z71: =IF(Z$1=0,0,IF(Configuration!$F$14="D",$R72,Table7[[#This Row],[Vo]])) -> 0 | AA71: =IF(AA$1=0,0,IF(Configuration!$F$15="D",$R72,Table7[[#This Row],[Vo]])) -> 0 | AB71: =IF(AB$1=0,0,IF(Configuration!$F$16="D",$R72,Table7[[#This Row],[Vo]])) -> 0 | AC71: =IF(AC$1=0,0,IF(Configuration!$F$17="D",$R72,Table7[[#This Row],[Vo]])) -> 0
A72: 8.1 | B72: NMS-240-12 | C72: 20 | D72: =Table2[[#This Row],[Output Voltage]]*Table2[[#This Row],[Module rated current]] -> 162 | E72: E | F72: =IF(1200/Table2[[#This Row],[Module rated power]]>6,6,ROUNDDOWN(1200/Table2[[#This Row],[Module rated power]],0)) -> 6 | G72: =Table2[[#This Row],[Module rated power]]*Table2[[#This Row],[Available No. of Slot]] -> 972 | H72: =ROUNDDOWN(Table2[[#This Row],[Max power per output]]/Table2[[#This Row],[Output Voltage]],2) -> 120 | P72: Georgia | R72: 9.8 | S72: =IF(S$1=0,0,IF(Configuration!$F$7="D",$R73,Table7[[#This Row],[Vo]])) -> 0 | T72: =IF(T$1=0,0,IF(Configuration!$F$8="D",$R73,Table7[[#This Row],[Vo]])) -> 0 | U72: =IF(U$1=0,0,IF(Configuration!$F$9="D",$R73,Table7[[#This Row],[Vo]])) -> 0 | V72: =IF(V$1=0,0,IF(Configuration!$F$10="D",$R73,Table7[[#This Row],[Vo]])) -> 0 | W72: =IF(W$1=0,0,IF(Configuration!$F$11="D",$R73,Table7[[#This Row],[Vo]])) -> 0 | X72: =IF(X$1=0,0,IF(Configuration!$F$12="D",$R73,Table7[[#This Row],[Vo]])) -> 0 | Y72: =IF(Y$1=0,0,IF(Configuration!$F$13="D",$R73,Table7[[#This Row],[Vo]])) -> 0 | Z72: =IF(Z$1=0,0,IF(Configuration!$F$14="D",$R73,Table7[[#This Row],[Vo]])) -> 0 | AA72: =IF(AA$1=0,0,IF(Configuration!$F$15="D",$R73,Table7[[#This Row],[Vo]])) -> 0 | AB72: =IF(AB$1=0,0,IF(Configuration!$F$16="D",$R73,Table7[[#This Row],[Vo]])) -> 0 | AC72: =IF(AC$1=0,0,IF(Configuration!$F$17="D",$R73,Table7[[#This Row],[Vo]])) -> 0
A73: 8.2 | B73: NMS-240-12 | C73: 20 | D73: =Table2[[#This Row],[Output Voltage]]*Table2[[#This Row],[Module rated current]] -> 164 | E73: E | F73: =IF(1200/Table2[[#This Row],[Module rated power]]>6,6,ROUNDDOWN(1200/Table2[[#This Row],[Module rated power]],0)) -> 6 | G73: =Table2[[#This Row],[Module rated power]]*Table2[[#This Row],[Available No. of Slot]] -> 984 | H73: =ROUNDDOWN(Table2[[#This Row],[Max power per output]]/Table2[[#This Row],[Output Voltage]],2) -> 120 | P73: Germany | R73: 9.9 | S73: =IF(S$1=0,0,IF(Configuration!$F$7="D",$R74,Table7[[#This Row],[Vo]])) -> 0 | T73: =IF(T$1=0,0,IF(Configuration!$F$8="D",$R74,Table7[[#This Row],[Vo]])) -> 0 | U73: =IF(U$1=0,0,IF(Configuration!$F$9="D",$R74,Table7[[#This Row],[Vo]])) -> 0 | V73: =IF(V$1=0,0,IF(Configuration!$F$10="D",$R74,Table7[[#This Row],[Vo]])) -> 0 | W73: =IF(W$1=0,0,IF(Configuration!$F$11="D",$R74,Table7[[#This Row],[Vo]])) -> 0 | X73: =IF(X$1=0,0,IF(Configuration!$F$12="D",$R74,Table7[[#This Row],[Vo]])) -> 0 | Y73: =IF(Y$1=0,0,IF(Configuration!$F$13="D",$R74,Table7[[#This Row],[Vo]])) -> 0 | Z73: =IF(Z$1=0,0,IF(Configuration!$F$14="D",$R74,Table7[[#This Row],[Vo]])) -> 0 | AA73: =IF(AA$1=0,0,IF(Configuration!$F$15="D",$R74,Table7[[#This Row],[Vo]])) -> 0 | AB73: =IF(AB$1=0,0,IF(Configuration!$F$16="D",$R74,Table7[[#This Row],[Vo]])) -> 0 | AC73: =IF(AC$1=0,0,IF(Configuration!$F$17="D",$R74,Table7[[#This Row],[Vo]])) -> 0
A74: 8.3 | B74: NMS-240-12 | C74: 20 | D74: =Table2[[#This Row],[Output Voltage]]*Table2[[#This Row],[Module rated current]] -> 166 | E74: E | F74: =IF(1200/Table2[[#This Row],[Module rated power]]>6,6,ROUNDDOWN(1200/Table2[[#This Row],[Module rated power]],0)) -> 6 | G74: =Table2[[#This Row],[Module rated power]]*Table2[[#This Row],[Available No. of Slot]] -> 996 | H74: =ROUNDDOWN(Table2[[#This Row],[Max power per output]]/Table2[[#This Row],[Output Voltage]],2) -> 120 | P74: Ghana | R74: 10 | S74: =IF(S$1=0,0,IF(Configuration!$F$7="D",$R75,Table7[[#This Row],[Vo]])) -> 0 | T74: =IF(T$1=0,0,IF(Configuration!$F$8="D",$R75,Table7[[#This Row],[Vo]])) -> 0 | U74: =IF(U$1=0,0,IF(Configuration!$F$9="D",$R75,Table7[[#This Row],[Vo]])) -> 0 | V74: =IF(V$1=0,0,IF(Configuration!$F$10="D",$R75,Table7[[#This Row],[Vo]])) -> 0 | W74: =IF(W$1=0,0,IF(Configuration!$F$11="D",$R75,Table7[[#This Row],[Vo]])) -> 0 | X74: =IF(X$1=0,0,IF(Configuration!$F$12="D",$R75,Table7[[#This Row],[Vo]])) -> 0 | Y74: =IF(Y$1=0,0,IF(Configuration!$F$13="D",$R75,Table7[[#This Row],[Vo]])) -> 0 | Z74: =IF(Z$1=0,0,IF(Configuration!$F$14="D",$R75,Table7[[#This Row],[Vo]])) -> 0 | AA74: =IF(AA$1=0,0,IF(Configuration!$F$15="D",$R75,Table7[[#This Row],[Vo]])) -> 0 | AB74: =IF(AB$1=0,0,IF(Configuration!$F$16="D",$R75,Table7[[#This Row],[Vo]])) -> 0 | AC74: =IF(AC$1=0,0,IF(Configuration!$F$17="D",$R75,Table7[[#This Row],[Vo]])) -> 0
A75: 8.4 | B75: NMS-240-12 | C75: 20 | D75: =Table2[[#This Row],[Output Voltage]]*Table2[[#This Row],[Module rated current]] -> 168 | E75: E | F75: =IF(1200/Table2[[#This Row],[Module rated power]]>6,6,ROUNDDOWN(1200/Table2[[#This Row],[Module rated power]],0)) -> 6 | G75: =Table2[[#This Row],[Module rated power]]*Table2[[#This Row],[Available No. of Slot]] -> 1008 | H75: =ROUNDDOWN(Table2[[#This Row],[Max power per output]]/Table2[[#This Row],[Output Voltage]],2) -> 120 | P75: Greece | R75: 10.1 | S75: =IF(S$1=0,0,IF(Configuration!$F$7="D",$R76,Table7[[#This Row],[Vo]])) -> 0 | T75: =IF(T$1=0,0,IF(Configuration!$F$8="D",$R76,Table7[[#This Row],[Vo]])) -> 0 | U75: =IF(U$1=0,0,IF(Configuration!$F$9="D",$R76,Table7[[#This Row],[Vo]])) -> 0 | V75: =IF(V$1=0,0,IF(Configuration!$F$10="D",$R76,Table7[[#This Row],[Vo]])) -> 0 | W75: =IF(W$1=0,0,IF(Configuration!$F$11="D",$R76,Table7[[#This Row],[Vo]])) -> 0 | X75: =IF(X$1=0,0,IF(Configuration!$F$12="D",$R76,Table7[[#This Row],[Vo]])) -> 0 | Y75: =IF(Y$1=0,0,IF(Configuration!$F$13="D",$R76,Table7[[#This Row],[Vo]])) -> 0 | Z75: =IF(Z$1=0,0,IF(Configuration!$F$14="D",$R76,Table7[[#This Row],[Vo]])) -> 0 | AA75: =IF(AA$1=0,0,IF(Configuration!$F$15="D",$R76,Table7[[#This Row],[Vo]])) -> 0 | AB75: =IF(AB$1=0,0,IF(Configuration!$F$16="D",$R76,Table7[[#This Row],[Vo]])) -> 0 | AC75: =IF(AC$1=0,0,IF(Configuration!$F$17="D",$R76,Table7[[#This Row],[Vo]])) -> 0
A76: 8.5 | B76: NMS-240-12 | C76: 20 | D76: =Table2[[#This Row],[Output Voltage]]*Table2[[#This Row],[Module rated current]] -> 170 | E76: E | F76: =IF(1200/Table2[[#This Row],[Module rated power]]>6,6,ROUNDDOWN(1200/Table2[[#This Row],[Module rated power]],0)) -> 6 | G76: =Table2[[#This Row],[Module rated power]]*Table2[[#This Row],[Available No. of Slot]] -> 1020 | H76: =ROUNDDOWN(Table2[[#This Row],[Max power per output]]/Table2[[#This Row],[Output Voltage]],2) -> 120 | P76: Guatemala | R76: 10.2 | S76: =IF(S$1=0,0,IF(Configuration!$F$7="D",$R77,Table7[[#This Row],[Vo]])) -> 0 | T76: =IF(T$1=0,0,IF(Configuration!$F$8="D",$R77,Table7[[#This Row],[Vo]])) -> 0 | U76: =IF(U$1=0,0,IF(Configuration!$F$9="D",$R77,Table7[[#This Row],[Vo]])) -> 0 | V76: =IF(V$1=0,0,IF(Configuration!$F$10="D",$R77,Table7[[#This Row],[Vo]])) -> 0 | W76: =IF(W$1=0,0,IF(Configuration!$F$11="D",$R77,Table7[[#This Row],[Vo]])) -> 0 | X76: =IF(X$1=0,0,IF(Configuration!$F$12="D",$R77,Table7[[#This Row],[Vo]])) -> 0 | Y76: =IF(Y$1=0,0,IF(Configuration!$F$13="D",$R77,Table7[[#This Row],[Vo]])) -> 0 | Z76: =IF(Z$1=0,0,IF(Configuration!$F$14="D",$R77,Table7[[#This Row],[Vo]])) -> 0 | AA76: =IF(AA$1=0,0,IF(Configuration!$F$15="D",$R77,Table7[[#This Row],[Vo]])) -> 0 | AB76: =IF(AB$1=0,0,IF(Configuration!$F$16="D",$R77,Table7[[#This Row],[Vo]])) -> 0 | AC76: =IF(AC$1=0,0,IF(Configuration!$F$17="D",$R77,Table7[[#This Row],[Vo]])) -> 0
A77: 8.6 | B77: NMS-240-12 | C77: 20 | D77: =Table2[[#This Row],[Output Voltage]]*Table2[[#This Row],[Module rated current]] -> 172 | E77: E | F77: =IF(1200/Table2[[#This Row],[Module rated power]]>6,6,ROUNDDOWN(1200/Table2[[#This Row],[Module rated power]],0)) -> 6 | G77: =Table2[[#This Row],[Module rated power]]*Table2[[#This Row],[Available No. of Slot]] -> 1032 | H77: =ROUNDDOWN(Table2[[#This Row],[Max power per output]]/Table2[[#This Row],[Output Voltage]],2) -> 120 | P77: Guernsey | R77: 10.3 | S77: =IF(S$1=0,0,IF(Configuration!$F$7="D",$R78,Table7[[#This Row],[Vo]])) -> 0 | T77: =IF(T$1=0,0,IF(Configuration!$F$8="D",$R78,Table7[[#This Row],[Vo]])) -> 0 | U77: =IF(U$1=0,0,IF(Configuration!$F$9="D",$R78,Table7[[#This Row],[Vo]])) -> 0 | V77: =IF(V$1=0,0,IF(Configuration!$F$10="D",$R78,Table7[[#This Row],[Vo]])) -> 0 | W77: =IF(W$1=0,0,IF(Configuration!$F$11="D",$R78,Table7[[#This Row],[Vo]])) -> 0 | X77: =IF(X$1=0,0,IF(Configuration!$F$12="D",$R78,Table7[[#This Row],[Vo]])) -> 0 | Y77: =IF(Y$1=0,0,IF(Configuration!$F$13="D",$R78,Table7[[#This Row],[Vo]])) -> 0 | Z77: =IF(Z$1=0,0,IF(Configuration!$F$14="D",$R78,Table7[[#This Row],[Vo]])) -> 0 | AA77: =IF(AA$1=0,0,IF(Configuration!$F$15="D",$R78,Table7[[#This Row],[Vo]])) -> 0 | AB77: =IF(AB$1=0,0,IF(Configuration!$F$16="D",$R78,Table7[[#This Row],[Vo]])) -> 0 | AC77: =IF(AC$1=0,0,IF(Configuration!$F$17="D",$R78,Table7[[#This Row],[Vo]])) -> 0
A78: 8.7 | B78: NMS-240-12 | C78: 20 | D78: =Table2[[#This Row],[Output Voltage]]*Table2[[#This Row],[Module rated current]] -> 174 | E78: E | F78: =IF(1200/Table2[[#This Row],[Module rated power]]>6,6,ROUNDDOWN(1200/Table2[[#This Row],[Module rated power]],0)) -> 6 | G78: =Table2[[#This Row],[Module rated power]]*Table2[[#This Row],[Available No. of Slot]] -> 1044 | H78: =ROUNDDOWN(Table2[[#This Row],[Max power per output]]/Table2[[#This Row],[Output Voltage]],2) -> 120 | P78: Haiti | R78: 10.4 | S78: =IF(S$1=0,0,IF(Configuration!$F$7="D",$R79,Table7[[#This Row],[Vo]])) -> 0 | T78: =IF(T$1=0,0,IF(Configuration!$F$8="D",$R79,Table7[[#This Row],[Vo]])) -> 0 | U78: =IF(U$1=0,0,IF(Configuration!$F$9="D",$R79,Table7[[#This Row],[Vo]])) -> 0 | V78: =IF(V$1=0,0,IF(Configuration!$F$10="D",$R79,Table7[[#This Row],[Vo]])) -> 0 | W78: =IF(W$1=0,0,IF(Configuration!$F$11="D",$R79,Table7[[#This Row],[Vo]])) -> 0 | X78: =IF(X$1=0,0,IF(Configuration!$F$12="D",$R79,Table7[[#This Row],[Vo]])) -> 0 | Y78: =IF(Y$1=0,0,IF(Configuration!$F$13="D",$R79,Table7[[#This Row],[Vo]])) -> 0 | Z78: =IF(Z$1=0,0,IF(Configuration!$F$14="D",$R79,Table7[[#This Row],[Vo]])) -> 0 | AA78: =IF(AA$1=0,0,IF(Configuration!$F$15="D",$R79,Table7[[#This Row],[Vo]])) -> 0 | AB78: =IF(AB$1=0,0,IF(Configuration!$F$16="D",$R79,Table7[[#This Row],[Vo]])) -> 0 | AC78: =IF(AC$1=0,0,IF(Configuration!$F$17="D",$R79,Table7[[#This Row],[Vo]])) -> 0
A79: 8.8 | B79: NMS-240-12 | C79: 20 | D79: =Table2[[#This Row],[Output Voltage]]*Table2[[#This Row],[Module rated current]] -> 176 | E79: E | F79: =IF(1200/Table2[[#This Row],[Module rated power]]>6,6,ROUNDDOWN(1200/Table2[[#This Row],[Module rated power]],0)) -> 6 | G79: =Table2[[#This Row],[Module rated power]]*Table2[[#This Row],[Available No. of Slot]] -> 1056 | H79: =ROUNDDOWN(Table2[[#This Row],[Max power per output]]/Table2[[#This Row],[Output Voltage]],2) -> 120 | P79: Honduras | R79: 10.5 | S79: =IF(S$1=0,0,IF(Configuration!$F$7="D",$R80,Table7[[#This Row],[Vo]])) -> 0 | T79: =IF(T$1=0,0,IF(Configuration!$F$8="D",$R80,Table7[[#This Row],[Vo]])) -> 0 | U79: =IF(U$1=0,0,IF(Configuration!$F$9="D",$R80,Table7[[#This Row],[Vo]])) -> 0 | V79: =IF(V$1=0,0,IF(Configuration!$F$10="D",$R80,Table7[[#This Row],[Vo]])) -> 0 | W79: =IF(W$1=0,0,IF(Configuration!$F$11="D",$R80,Table7[[#This Row],[Vo]])) -> 0 | X79: =IF(X$1=0,0,IF(Configuration!$F$12="D",$R80,Table7[[#This Row],[Vo]])) -> 0 | Y79: =IF(Y$1=0,0,IF(Configuration!$F$13="D",$R80,Table7[[#This Row],[Vo]])) -> 0 | Z79: =IF(Z$1=0,0,IF(Configuration!$F$14="D",$R80,Table7[[#This Row],[Vo]])) -> 0 | AA79: =IF(AA$1=0,0,IF(Configuration!$F$15="D",$R80,Table7[[#This Row],[Vo]])) -> 0 | AB79: =IF(AB$1=0,0,IF(Configuration!$F$16="D",$R80,Table7[[#This Row],[Vo]])) -> 0 | AC79: =IF(AC$1=0,0,IF(Configuration!$F$17="D",$R80,Table7[[#This Row],[Vo]])) -> 0
A80: 8.9 | B80: NMS-240-12 | C80: 20 | D80: =Table2[[#This Row],[Output Voltage]]*Table2[[#This Row],[Module rated current]] -> 178 | E80: E | F80: =IF(1200/Table2[[#This Row],[Module rated power]]>6,6,ROUNDDOWN(1200/Table2[[#This Row],[Module rated power]],0)) -> 6 | G80: =Table2[[#This Row],[Module rated power]]*Table2[[#This Row],[Available No. of Slot]] -> 1068 | H80: =ROUNDDOWN(Table2[[#This Row],[Max power per output]]/Table2[[#This Row],[Output Voltage]],2) -> 120 | P80: Hong Kong | R80: 10.6 | S80: =IF(S$1=0,0,IF(Configuration!$F$7="D",$R81,Table7[[#This Row],[Vo]])) -> 0 | T80: =IF(T$1=0,0,IF(Configuration!$F$8="D",$R81,Table7[[#This Row],[Vo]])) -> 0 | U80: =IF(U$1=0,0,IF(Configuration!$F$9="D",$R81,Table7[[#This Row],[Vo]])) -> 0 | V80: =IF(V$1=0,0,IF(Configuration!$F$10="D",$R81,Table7[[#This Row],[Vo]])) -> 0 | W80: =IF(W$1=0,0,IF(Configuration!$F$11="D",$R81,Table7[[#This Row],[Vo]])) -> 0 | X80: =IF(X$1=0,0,IF(Configuration!$F$12="D",$R81,Table7[[#This Row],[Vo]])) -> 0 | Y80: =IF(Y$1=0,0,IF(Configuration!$F$13="D",$R81,Table7[[#This Row],[Vo]])) -> 0 | Z80: =IF(Z$1=0,0,IF(Configuration!$F$14="D",$R81,Table7[[#This Row],[Vo]])) -> 0 | AA80: =IF(AA$1=0,0,IF(Configuration!$F$15="D",$R81,Table7[[#This Row],[Vo]])) -> 0 | AB80: =IF(AB$1=0,0,IF(Configuration!$F$16="D",$R81,Table7[[#This Row],[Vo]])) -> 0 | AC80: =IF(AC$1=0,0,IF(Configuration!$F$17="D",$R81,Table7[[#This Row],[Vo]])) -> 0
A81: 9 | B81: NMS-240-12 | C81: 20 | D81: =Table2[[#This Row],[Output Voltage]]*Table2[[#This Row],[Module rated current]] -> 180 | E81: E | F81: =IF(1200/Table2[[#This Row],[Module rated power]]>6,6,ROUNDDOWN(1200/Table2[[#This Row],[Module rated power]],0)) -> 6 | G81: =Table2[[#This Row],[Module rated power]]*Table2[[#This Row],[Available No. of Slot]] -> 1080 | H81: =ROUNDDOWN(Table2[[#This Row],[Max power per output]]/Table2[[#This Row],[Output Voltage]],2) -> 120 | P81: Hungary | R81: 10.7 | S81: =IF(S$1=0,0,IF(Configuration!$F$7="D",$R82,Table7[[#This Row],[Vo]])) -> 0 | T81: =IF(T$1=0,0,IF(Configuration!$F$8="D",$R82,Table7[[#This Row],[Vo]])) -> 0 | U81: =IF(U$1=0,0,IF(Configuration!$F$9="D",$R82,Table7[[#This Row],[Vo]])) -> 0 | V81: =IF(V$1=0,0,IF(Configuration!$F$10="D",$R82,Table7[[#This Row],[Vo]])) -> 0 | W81: =IF(W$1=0,0,IF(Configuration!$F$11="D",$R82,Table7[[#This Row],[Vo]])) -> 0 | X81: =IF(X$1=0,0,IF(Configuration!$F$12="D",$R82,Table7[[#This Row],[Vo]])) -> 0 | Y81: =IF(Y$1=0,0,IF(Configuration!$F$13="D",$R82,Table7[[#This Row],[Vo]])) -> 0 | Z81: =IF(Z$1=0,0,IF(Configuration!$F$14="D",$R82,Table7[[#This Row],[Vo]])) -> 0 | AA81: =IF(AA$1=0,0,IF(Configuration!$F$15="D",$R82,Table7[[#This Row],[Vo]])) -> 0 | AB81: =IF(AB$1=0,0,IF(Configuration!$F$16="D",$R82,Table7[[#This Row],[Vo]])) -> 0 | AC81: =IF(AC$1=0,0,IF(Configuration!$F$17="D",$R82,Table7[[#This Row],[Vo]])) -> 0
A82: 9.1 | B82: NMS-240-12 | C82: 20 | D82: =Table2[[#This Row],[Output Voltage]]*Table2[[#This Row],[Module rated current]] -> 182 | E82: E | F82: =IF(1200/Table2[[#This Row],[Module rated power]]>6,6,ROUNDDOWN(1200/Table2[[#This Row],[Module rated power]],0)) -> 6 | G82: =Table2[[#This Row],[Module rated power]]*Table2[[#This Row],[Available No. of Slot]] -> 1092 | H82: =ROUNDDOWN(Table2[[#This Row],[Max power per output]]/Table2[[#This Row],[Output Voltage]],2) -> 120 | P82: Iceland | R82: 10.8 | S82: =IF(S$1=0,0,IF(Configuration!$F$7="D",$R83,Table7[[#This Row],[Vo]])) -> 0 | T82: =IF(T$1=0,0,IF(Configuration!$F$8="D",$R83,Table7[[#This Row],[Vo]])) -> 0 | U82: =IF(U$1=0,0,IF(Configuration!$F$9="D",$R83,Table7[[#This Row],[Vo]])) -> 0 | V82: =IF(V$1=0,0,IF(Configuration!$F$10="D",$R83,Table7[[#This Row],[Vo]])) -> 0 | W82: =IF(W$1=0,0,IF(Configuration!$F$11="D",$R83,Table7[[#This Row],[Vo]])) -> 0 | X82: =IF(X$1=0,0,IF(Configuration!$F$12="D",$R83,Table7[[#This Row],[Vo]])) -> 0 | Y82: =IF(Y$1=0,0,IF(Configuration!$F$13="D",$R83,Table7[[#This Row],[Vo]])) -> 0 | Z82: =IF(Z$1=0,0,IF(Configuration!$F$14="D",$R83,Table7[[#This Row],[Vo]])) -> 0 | AA82: =IF(AA$1=0,0,IF(Configuration!$F$15="D",$R83,Table7[[#This Row],[Vo]])) -> 0 | AB82: =IF(AB$1=0,0,IF(Configuration!$F$16="D",$R83,Table7[[#This Row],[Vo]])) -> 0 | AC82: =IF(AC$1=0,0,IF(Configuration!$F$17="D",$R83,Table7[[#This Row],[Vo]])) -> 0
A83: 9.2 | B83: NMS-240-12 | C83: 20 | D83: =Table2[[#This Row],[Output Voltage]]*Table2[[#This Row],[Module rated current]] -> 184 | E83: E | F83: =IF(1200/Table2[[#This Row],[Module rated power]]>6,6,ROUNDDOWN(1200/Table2[[#This Row],[Module rated power]],0)) -> 6 | G83: =Table2[[#This Row],[Module rated power]]*Table2[[#This Row],[Available No. of Slot]] -> 1104 | H83: =ROUNDDOWN(Table2[[#This Row],[Max power per output]]/Table2[[#This Row],[Output Voltage]],2) -> 120 | P83: India | R83: 10.9 | S83: =IF(S$1=0,0,IF(Configuration!$F$7="D",$R84,Table7[[#This Row],[Vo]])) -> 0 | T83: =IF(T$1=0,0,IF(Configuration!$F$8="D",$R84,Table7[[#This Row],[Vo]])) -> 0 | U83: =IF(U$1=0,0,IF(Configuration!$F$9="D",$R84,Table7[[#This Row],[Vo]])) -> 0 | V83: =IF(V$1=0,0,IF(Configuration!$F$10="D",$R84,Table7[[#This Row],[Vo]])) -> 0 | W83: =IF(W$1=0,0,IF(Configuration!$F$11="D",$R84,Table7[[#This Row],[Vo]])) -> 0 | X83: =IF(X$1=0,0,IF(Configuration!$F$12="D",$R84,Table7[[#This Row],[Vo]])) -> 0 | Y83: =IF(Y$1=0,0,IF(Configuration!$F$13="D",$R84,Table7[[#This Row],[Vo]])) -> 0 | Z83: =IF(Z$1=0,0,IF(Configuration!$F$14="D",$R84,Table7[[#This Row],[Vo]])) -> 0 | AA83: =IF(AA$1=0,0,IF(Configuration!$F$15="D",$R84,Table7[[#This Row],[Vo]])) -> 0 | AB83: =IF(AB$1=0,0,IF(Configuration!$F$16="D",$R84,Table7[[#This Row],[Vo]])) -> 0 | AC83: =IF(AC$1=0,0,IF(Configuration!$F$17="D",$R84,Table7[[#This Row],[Vo]])) -> 0
A84: 9.3 | B84: NMS-240-12 | C84: 20 | D84: =Table2[[#This Row],[Output Voltage]]*Table2[[#This Row],[Module rated current]] -> 186 | E84: E | F84: =IF(1200/Table2[[#This Row],[Module rated power]]>6,6,ROUNDDOWN(1200/Table2[[#This Row],[Module rated power]],0)) -> 6 | G84: =Table2[[#This Row],[Module rated power]]*Table2[[#This Row],[Available No. of Slot]] -> 1116 | H84: =ROUNDDOWN(Table2[[#This Row],[Max power per output]]/Table2[[#This Row],[Output Voltage]],2) -> 120 | P84: Indonesia | R84: 11 | S84: =IF(S$1=0,0,IF(Configuration!$F$7="D",$R85,Table7[[#This Row],[Vo]])) -> 0 | T84: =IF(T$1=0,0,IF(Configuration!$F$8="D",$R85,Table7[[#This Row],[Vo]])) -> 0 | U84: =IF(U$1=0,0,IF(Configuration!$F$9="D",$R85,Table7[[#This Row],[Vo]])) -> 0 | V84: =IF(V$1=0,0,IF(Configuration!$F$10="D",$R85,Table7[[#This Row],[Vo]])) -> 0 | W84: =IF(W$1=0,0,IF(Configuration!$F$11="D",$R85,Table7[[#This Row],[Vo]])) -> 0 | X84: =IF(X$1=0,0,IF(Configuration!$F$12="D",$R85,Table7[[#This Row],[Vo]])) -> 0 | Y84: =IF(Y$1=0,0,IF(Configuration!$F$13="D",$R85,Table7[[#This Row],[Vo]])) -> 0 | Z84: =IF(Z$1=0,0,IF(Configuration!$F$14="D",$R85,Table7[[#This Row],[Vo]])) -> 0 | AA84: =IF(AA$1=0,0,IF(Configuration!$F$15="D",$R85,Table7[[#This Row],[Vo]])) -> 0 | AB84: =IF(AB$1=0,0,IF(Configuration!$F$16="D",$R85,Table7[[#This Row],[Vo]])) -> 0 | AC84: =IF(AC$1=0,0,IF(Configuration!$F$17="D",$R85,Table7[[#This Row],[Vo]])) -> 0
A85: 9.4 | B85: NMS-240-12 | C85: 20 | D85: =Table2[[#This Row],[Output Voltage]]*Table2[[#This Row],[Module rated current]] -> 188 | E85: E | F85: =IF(1200/Table2[[#This Row],[Module rated power]]>6,6,ROUNDDOWN(1200/Table2[[#This Row],[Module rated power]],0)) -> 6 | G85: =Table2[[#This Row],[Module rated power]]*Table2[[#This Row],[Available No. of Slot]] -> 1128 | H85: =ROUNDDOWN(Table2[[#This Row],[Max power per output]]/Table2[[#This Row],[Output Voltage]],2) -> 120 | P85: Ireland | R85: 11.1 | S85: =IF(S$1=0,0,IF(Configuration!$F$7="D",$R86,Table7[[#This Row],[Vo]])) -> 0 | T85: =IF(T$1=0,0,IF(Configuration!$F$8="D",$R86,Table7[[#This Row],[Vo]])) -> 0 | U85: =IF(U$1=0,0,IF(Configuration!$F$9="D",$R86,Table7[[#This Row],[Vo]])) -> 0 | V85: =IF(V$1=0,0,IF(Configuration!$F$10="D",$R86,Table7[[#This Row],[Vo]])) -> 0 | W85: =IF(W$1=0,0,IF(Configuration!$F$11="D",$R86,Table7[[#This Row],[Vo]])) -> 0 | X85: =IF(X$1=0,0,IF(Configuration!$F$12="D",$R86,Table7[[#This Row],[Vo]])) -> 0 | Y85: =IF(Y$1=0,0,IF(Configuration!$F$13="D",$R86,Table7[[#This Row],[Vo]])) -> 0 | Z85: =IF(Z$1=0,0,IF(Configuration!$F$14="D",$R86,Table7[[#This Row],[Vo]])) -> 0 | AA85: =IF(AA$1=0,0,IF(Configuration!$F$15="D",$R86,Table7[[#This Row],[Vo]])) -> 0 | AB85: =IF(AB$1=0,0,IF(Configuration!$F$16="D",$R86,Table7[[#This Row],[Vo]])) -> 0 | AC85: =IF(AC$1=0,0,IF(Configuration!$F$17="D",$R86,Table7[[#This Row],[Vo]])) -> 0
A86: 9.5 | B86: NMS-240-12 | C86: 20 | D86: =Table2[[#This Row],[Output Voltage]]*Table2[[#This Row],[Module rated current]] -> 190 | E86: E | F86: =IF(1200/Table2[[#This Row],[Module rated power]]>6,6,ROUNDDOWN(1200/Table2[[#This Row],[Module rated power]],0)) -> 6 | G86: =Table2[[#This Row],[Module rated power]]*Table2[[#This Row],[Available No. of Slot]] -> 1140 | H86: =ROUNDDOWN(Table2[[#This Row],[Max power per output]]/Table2[[#This Row],[Output Voltage]],2) -> 120 | P86: Isle of Man | R86: 11.2 | S86: =IF(S$1=0,0,IF(Configuration!$F$7="D",$R87,Table7[[#This Row],[Vo]])) -> 0 | T86: =IF(T$1=0,0,IF(Configuration!$F$8="D",$R87,Table7[[#This Row],[Vo]])) -> 0 | U86: =IF(U$1=0,0,IF(Configuration!$F$9="D",$R87,Table7[[#This Row],[Vo]])) -> 0 | V86: =IF(V$1=0,0,IF(Configuration!$F$10="D",$R87,Table7[[#This Row],[Vo]])) -> 0 | W86: =IF(W$1=0,0,IF(Configuration!$F$11="D",$R87,Table7[[#This Row],[Vo]])) -> 0 | X86: =IF(X$1=0,0,IF(Configuration!$F$12="D",$R87,Table7[[#This Row],[Vo]])) -> 0 | Y86: =IF(Y$1=0,0,IF(Configuration!$F$13="D",$R87,Table7[[#This Row],[Vo]])) -> 0 | Z86: =IF(Z$1=0,0,IF(Configuration!$F$14="D",$R87,Table7[[#This Row],[Vo]])) -> 0 | AA86: =IF(AA$1=0,0,IF(Configuration!$F$15="D",$R87,Table7[[#This Row],[Vo]])) -> 0 | AB86: =IF(AB$1=0,0,IF(Configuration!$F$16="D",$R87,Table7[[#This Row],[Vo]])) -> 0 | AC86: =IF(AC$1=0,0,IF(Configuration!$F$17="D",$R87,Table7[[#This Row],[Vo]])) -> 0
A87: =ROUNDUP(A86+0.1,1) -> 9.6 | B87: NMS-240-12 | C87: 20 | D87: =Table2[[#This Row],[Output Voltage]]*Table2[[#This Row],[Module rated current]] -> 192 | E87: E | F87: =IF(1200/Table2[[#This Row],[Module rated power]]>6,6,ROUNDDOWN(1200/Table2[[#This Row],[Module rated power]],0)) -> 6 | G87: =Table2[[#This Row],[Module rated power]]*Table2[[#This Row],[Available No. of Slot]] -> 1152 | H87: =ROUNDDOWN(Table2[[#This Row],[Max power per output]]/Table2[[#This Row],[Output Voltage]],2) -> 120 | P87: Iran | R87: 11.3 | S87: =IF(S$1=0,0,IF(Configuration!$F$7="D",$R88,Table7[[#This Row],[Vo]])) -> 0 | T87: =IF(T$1=0,0,IF(Configuration!$F$8="D",$R88,Table7[[#This Row],[Vo]])) -> 0 | U87: =IF(U$1=0,0,IF(Configuration!$F$9="D",$R88,Table7[[#This Row],[Vo]])) -> 0 | V87: =IF(V$1=0,0,IF(Configuration!$F$10="D",$R88,Table7[[#This Row],[Vo]])) -> 0 | W87: =IF(W$1=0,0,IF(Configuration!$F$11="D",$R88,Table7[[#This Row],[Vo]])) -> 0 | X87: =IF(X$1=0,0,IF(Configuration!$F$12="D",$R88,Table7[[#This Row],[Vo]])) -> 0 | Y87: =IF(Y$1=0,0,IF(Configuration!$F$13="D",$R88,Table7[[#This Row],[Vo]])) -> 0 | Z87: =IF(Z$1=0,0,IF(Configuration!$F$14="D",$R88,Table7[[#This Row],[Vo]])) -> 0 | AA87: =IF(AA$1=0,0,IF(Configuration!$F$15="D",$R88,Table7[[#This Row],[Vo]])) -> 0 | AB87: =IF(AB$1=0,0,IF(Configuration!$F$16="D",$R88,Table7[[#This Row],[Vo]])) -> 0 | AC87: =IF(AC$1=0,0,IF(Configuration!$F$17="D",$R88,Table7[[#This Row],[Vo]])) -> 0
A88: 9.7 | B88: NMS-240-12 | C88: 20 | D88: =Table2[[#This Row],[Output Voltage]]*Table2[[#This Row],[Module rated current]] -> 194 | E88: E | F88: =IF(1200/Table2[[#This Row],[Module rated power]]>6,6,ROUNDDOWN(1200/Table2[[#This Row],[Module rated power]],0)) -> 6 | G88: =Table2[[#This Row],[Module rated power]]*Table2[[#This Row],[Available No. of Slot]] -> 1164 | H88: =ROUNDDOWN(Table2[[#This Row],[Max power per output]]/Table2[[#This Row],[Output Voltage]],2) -> 120 | P88: Iraq | R88: 11.4 | S88: =IF(S$1=0,0,IF(Configuration!$F$7="D",$R89,Table7[[#This Row],[Vo]])) -> 0 | T88: =IF(T$1=0,0,IF(Configuration!$F$8="D",$R89,Table7[[#This Row],[Vo]])) -> 0 | U88: =IF(U$1=0,0,IF(Configuration!$F$9="D",$R89,Table7[[#This Row],[Vo]])) -> 0 | V88: =IF(V$1=0,0,IF(Configuration!$F$10="D",$R89,Table7[[#This Row],[Vo]])) -> 0 | W88: =IF(W$1=0,0,IF(Configuration!$F$11="D",$R89,Table7[[#This Row],[Vo]])) -> 0 | X88: =IF(X$1=0,0,IF(Configuration!$F$12="D",$R89,Table7[[#This Row],[Vo]])) -> 0 | Y88: =IF(Y$1=0,0,IF(Configuration!$F$13="D",$R89,Table7[[#This Row],[Vo]])) -> 0 | Z88: =IF(Z$1=0,0,IF(Configuration!$F$14="D",$R89,Table7[[#This Row],[Vo]])) -> 0 | AA88: =IF(AA$1=0,0,IF(Configuration!$F$15="D",$R89,Table7[[#This Row],[Vo]])) -> 0 | AB88: =IF(AB$1=0,0,IF(Configuration!$F$16="D",$R89,Table7[[#This Row],[Vo]])) -> 0 | AC88: =IF(AC$1=0,0,IF(Configuration!$F$17="D",$R89,Table7[[#This Row],[Vo]])) -> 0
A89: 9.8 | B89: NMS-240-12 | C89: 20 | D89: =Table2[[#This Row],[Output Voltage]]*Table2[[#This Row],[Module rated current]] -> 196 | E89: E | F89: =IF(1200/Table2[[#This Row],[Module rated power]]>6,6,ROUNDDOWN(1200/Table2[[#This Row],[Module rated power]],0)) -> 6 | G89: =Table2[[#This Row],[Module rated power]]*Table2[[#This Row],[Available No. of Slot]] -> 1176 | H89: =ROUNDDOWN(Table2[[#This Row],[Max power per output]]/Table2[[#This Row],[Output Voltage]],2) -> 120 | P89: Israel | R89: 11.5 | S89: =IF(S$1=0,0,IF(Configuration!$F$7="D",$R90,Table7[[#This Row],[Vo]])) -> 0 | T89: =IF(T$1=0,0,IF(Configuration!$F$8="D",$R90,Table7[[#This Row],[Vo]])) -> 0 | U89: =IF(U$1=0,0,IF(Configuration!$F$9="D",$R90,Table7[[#This Row],[Vo]])) -> 0 | V89: =IF(V$1=0,0,IF(Configuration!$F$10="D",$R90,Table7[[#This Row],[Vo]])) -> 0 | W89: =IF(W$1=0,0,IF(Configuration!$F$11="D",$R90,Table7[[#This Row],[Vo]])) -> 0 | X89: =IF(X$1=0,0,IF(Configuration!$F$12="D",$R90,Table7[[#This Row],[Vo]])) -> 0 | Y89: =IF(Y$1=0,0,IF(Configuration!$F$13="D",$R90,Table7[[#This Row],[Vo]])) -> 0 | Z89: =IF(Z$1=0,0,IF(Configuration!$F$14="D",$R90,Table7[[#This Row],[Vo]])) -> 0 | AA89: =IF(AA$1=0,0,IF(Configuration!$F$15="D",$R90,Table7[[#This Row],[Vo]])) -> 0 | AB89: =IF(AB$1=0,0,IF(Configuration!$F$16="D",$R90,Table7[[#This Row],[Vo]])) -> 0 | AC89: =IF(AC$1=0,0,IF(Configuration!$F$17="D",$R90,Table7[[#This Row],[Vo]])) -> 0
A90: 9.9 | B90: NMS-240-12 | C90: 20 | D90: =Table2[[#This Row],[Output Voltage]]*Table2[[#This Row],[Module rated current]] -> 198 | E90: E | F90: =IF(1200/Table2[[#This Row],[Module rated power]]>6,6,ROUNDDOWN(1200/Table2[[#This Row],[Module rated power]],0)) -> 6 | G90: =Table2[[#This Row],[Module rated power]]*Table2[[#This Row],[Available No. of Slot]] -> 1188 | H90: =ROUNDDOWN(Table2[[#This Row],[Max power per output]]/Table2[[#This Row],[Output Voltage]],2) -> 120 | P90: Italy | R90: 11.6 | S90: =IF(S$1=0,0,IF(Configuration!$F$7="D",$R91,Table7[[#This Row],[Vo]])) -> 0 | T90: =IF(T$1=0,0,IF(Configuration!$F$8="D",$R91,Table7[[#This Row],[Vo]])) -> 0 | U90: =IF(U$1=0,0,IF(Configuration!$F$9="D",$R91,Table7[[#This Row],[Vo]])) -> 0 | V90: =IF(V$1=0,0,IF(Configuration!$F$10="D",$R91,Table7[[#This Row],[Vo]])) -> 0 | W90: =IF(W$1=0,0,IF(Configuration!$F$11="D",$R91,Table7[[#This Row],[Vo]])) -> 0 | X90: =IF(X$1=0,0,IF(Configuration!$F$12="D",$R91,Table7[[#This Row],[Vo]])) -> 0 | Y90: =IF(Y$1=0,0,IF(Configuration!$F$13="D",$R91,Table7[[#This Row],[Vo]])) -> 0 | Z90: =IF(Z$1=0,0,IF(Configuration!$F$14="D",$R91,Table7[[#This Row],[Vo]])) -> 0 | AA90: =IF(AA$1=0,0,IF(Configuration!$F$15="D",$R91,Table7[[#This Row],[Vo]])) -> 0 | AB90: =IF(AB$1=0,0,IF(Configuration!$F$16="D",$R91,Table7[[#This Row],[Vo]])) -> 0 | AC90: =IF(AC$1=0,0,IF(Configuration!$F$17="D",$R91,Table7[[#This Row],[Vo]])) -> 0
A91: 10 | B91: NMS-240-12 | C91: 20 | D91: =Table2[[#This Row],[Output Voltage]]*Table2[[#This Row],[Module rated current]] -> 200 | E91: E | F91: =IF(1200/Table2[[#This Row],[Module rated power]]>6,6,ROUNDDOWN(1200/Table2[[#This Row],[Module rated power]],0)) -> 6 | G91: =Table2[[#This Row],[Module rated power]]*Table2[[#This Row],[Available No. of Slot]] -> 1200 | H91: =ROUNDDOWN(Table2[[#This Row],[Max power per output]]/Table2[[#This Row],[Output Voltage]],2) -> 120 | P91: Jamaica | R91: 11.7 | S91: =IF(S$1=0,0,IF(Configuration!$F$7="D",$R92,Table7[[#This Row],[Vo]])) -> 0 | T91: =IF(T$1=0,0,IF(Configuration!$F$8="D",$R92,Table7[[#This Row],[Vo]])) -> 0 | U91: =IF(U$1=0,0,IF(Configuration!$F$9="D",$R92,Table7[[#This Row],[Vo]])) -> 0 | V91: =IF(V$1=0,0,IF(Configuration!$F$10="D",$R92,Table7[[#This Row],[Vo]])) -> 0 | W91: =IF(W$1=0,0,IF(Configuration!$F$11="D",$R92,Table7[[#This Row],[Vo]])) -> 0 | X91: =IF(X$1=0,0,IF(Configuration!$F$12="D",$R92,Table7[[#This Row],[Vo]])) -> 0 | Y91: =IF(Y$1=0,0,IF(Configuration!$F$13="D",$R92,Table7[[#This Row],[Vo]])) -> 0 | Z91: =IF(Z$1=0,0,IF(Configuration!$F$14="D",$R92,Table7[[#This Row],[Vo]])) -> 0 | AA91: =IF(AA$1=0,0,IF(Configuration!$F$15="D",$R92,Table7[[#This Row],[Vo]])) -> 0 | AB91: =IF(AB$1=0,0,IF(Configuration!$F$16="D",$R92,Table7[[#This Row],[Vo]])) -> 0 | AC91: =IF(AC$1=0,0,IF(Configuration!$F$17="D",$R92,Table7[[#This Row],[Vo]])) -> 0
A92: 10.1 | B92: NMS-240-12 | C92: 20 | D92: =Table2[[#This Row],[Output Voltage]]*Table2[[#This Row],[Module rated current]] -> 202 | E92: E | F92: =IF(1200/Table2[[#This Row],[Module rated power]]>6,6,ROUNDDOWN(1200/Table2[[#This Row],[Module rated power]],0)) -> 5 | G92: =Table2[[#This Row],[Module rated power]]*Table2[[#This Row],[Available No. of Slot]] -> 1010 | H92: =ROUNDDOWN(Table2[[#This Row],[Max power per output]]/Table2[[#This Row],[Output Voltage]],2) -> 100 | P92: Japan | R92: 11.8 | S92: =IF(S$1=0,0,IF(Configuration!$F$7="D",$R93,Table7[[#This Row],[Vo]])) -> 0 | T92: =IF(T$1=0,0,IF(Configuration!$F$8="D",$R93,Table7[[#This Row],[Vo]])) -> 0 | U92: =IF(U$1=0,0,IF(Configuration!$F$9="D",$R93,Table7[[#This Row],[Vo]])) -> 0 | V92: =IF(V$1=0,0,IF(Configuration!$F$10="D",$R93,Table7[[#This Row],[Vo]])) -> 0 | W92: =IF(W$1=0,0,IF(Configuration!$F$11="D",$R93,Table7[[#This Row],[Vo]])) -> 0 | X92: =IF(X$1=0,0,IF(Configuration!$F$12="D",$R93,Table7[[#This Row],[Vo]])) -> 0 | Y92: =IF(Y$1=0,0,IF(Configuration!$F$13="D",$R93,Table7[[#This Row],[Vo]])) -> 0 | Z92: =IF(Z$1=0,0,IF(Configuration!$F$14="D",$R93,Table7[[#This Row],[Vo]])) -> 0 | AA92: =IF(AA$1=0,0,IF(Configuration!$F$15="D",$R93,Table7[[#This Row],[Vo]])) -> 0 | AB92: =IF(AB$1=0,0,IF(Configuration!$F$16="D",$R93,Table7[[#This Row],[Vo]])) -> 0 | AC92: =IF(AC$1=0,0,IF(Configuration!$F$17="D",$R93,Table7[[#This Row],[Vo]])) -> 0
A93: 10.2 | B93: NMS-240-12 | C93: 20 | D93: =Table2[[#This Row],[Output Voltage]]*Table2[[#This Row],[Module rated current]] -> 204 | E93: E | F93: =IF(1200/Table2[[#This Row],[Module rated power]]>6,6,ROUNDDOWN(1200/Table2[[#This Row],[Module rated power]],0)) -> 5 | G93: =Table2[[#This Row],[Module rated power]]*Table2[[#This Row],[Available No. of Slot]] -> 1020 | H93: =ROUNDDOWN(Table2[[#This Row],[Max power per output]]/Table2[[#This Row],[Output Voltage]],2) -> 100 | P93: Jersey | R93: 11.9 | S93: =IF(S$1=0,0,IF(Configuration!$F$7="D",$R94,Table7[[#This Row],[Vo]])) -> 0 | T93: =IF(T$1=0,0,IF(Configuration!$F$8="D",$R94,Table7[[#This Row],[Vo]])) -> 0 | U93: =IF(U$1=0,0,IF(Configuration!$F$9="D",$R94,Table7[[#This Row],[Vo]])) -> 0 | V93: =IF(V$1=0,0,IF(Configuration!$F$10="D",$R94,Table7[[#This Row],[Vo]])) -> 0 | W93: =IF(W$1=0,0,IF(Configuration!$F$11="D",$R94,Table7[[#This Row],[Vo]])) -> 0 | X93: =IF(X$1=0,0,IF(Configuration!$F$12="D",$R94,Table7[[#This Row],[Vo]])) -> 0 | Y93: =IF(Y$1=0,0,IF(Configuration!$F$13="D",$R94,Table7[[#This Row],[Vo]])) -> 0 | Z93: =IF(Z$1=0,0,IF(Configuration!$F$14="D",$R94,Table7[[#This Row],[Vo]])) -> 0 | AA93: =IF(AA$1=0,0,IF(Configuration!$F$15="D",$R94,Table7[[#This Row],[Vo]])) -> 0 | AB93: =IF(AB$1=0,0,IF(Configuration!$F$16="D",$R94,Table7[[#This Row],[Vo]])) -> 0 | AC93: =IF(AC$1=0,0,IF(Configuration!$F$17="D",$R94,Table7[[#This Row],[Vo]])) -> 0
A94: 10.3 | B94: NMS-240-12 | C94: 20 | D94: =Table2[[#This Row],[Output Voltage]]*Table2[[#This Row],[Module rated current]] -> 206 | E94: E | F94: =IF(1200/Table2[[#This Row],[Module rated power]]>6,6,ROUNDDOWN(1200/Table2[[#This Row],[Module rated power]],0)) -> 5 | G94: =Table2[[#This Row],[Module rated power]]*Table2[[#This Row],[Available No. of Slot]] -> 1030 | H94: =ROUNDDOWN(Table2[[#This Row],[Max power per output]]/Table2[[#This Row],[Output Voltage]],2) -> 100 | P94: Jordan | R94: 12 | S94: =IF(S$1=0,0,IF(Configuration!$F$7="D",$R95,Table7[[#This Row],[Vo]])) -> 0 | T94: =IF(T$1=0,0,IF(Configuration!$F$8="D",$R95,Table7[[#This Row],[Vo]])) -> 0 | U94: =IF(U$1=0,0,IF(Configuration!$F$9="D",$R95,Table7[[#This Row],[Vo]])) -> 0 | V94: =IF(V$1=0,0,IF(Configuration!$F$10="D",$R95,Table7[[#This Row],[Vo]])) -> 0 | W94: =IF(W$1=0,0,IF(Configuration!$F$11="D",$R95,Table7[[#This Row],[Vo]])) -> 0 | X94: =IF(X$1=0,0,IF(Configuration!$F$12="D",$R95,Table7[[#This Row],[Vo]])) -> 0 | Y94: =IF(Y$1=0,0,IF(Configuration!$F$13="D",$R95,Table7[[#This Row],[Vo]])) -> 0 | Z94: =IF(Z$1=0,0,IF(Configuration!$F$14="D",$R95,Table7[[#This Row],[Vo]])) -> 0 | AA94: =IF(AA$1=0,0,IF(Configuration!$F$15="D",$R95,Table7[[#This Row],[Vo]])) -> 0 | AB94: =IF(AB$1=0,0,IF(Configuration!$F$16="D",$R95,Table7[[#This Row],[Vo]])) -> 0 | AC94: =IF(AC$1=0,0,IF(Configuration!$F$17="D",$R95,Table7[[#This Row],[Vo]])) -> 0
A95: 10.4 | B95: NMS-240-12 | C95: 20 | D95: =Table2[[#This Row],[Output Voltage]]*Table2[[#This Row],[Module rated current]] -> 208 | E95: E | F95: =IF(1200/Table2[[#This Row],[Module rated power]]>6,6,ROUNDDOWN(1200/Table2[[#This Row],[Module rated power]],0)) -> 5 | G95: =Table2[[#This Row],[Module rated power]]*Table2[[#This Row],[Available No. of Slot]] -> 1040 | H95: =ROUNDDOWN(Table2[[#This Row],[Max power per output]]/Table2[[#This Row],[Output Voltage]],2) -> 100 | P95: Kiribati | R95: 12.1 | S95: =IF(S$1=0,0,IF(Configuration!$F$7="D",$R96,Table7[[#This Row],[Vo]])) -> 0 | T95: =IF(T$1=0,0,IF(Configuration!$F$8="D",$R96,Table7[[#This Row],[Vo]])) -> 0 | U95: =IF(U$1=0,0,IF(Configuration!$F$9="D",$R96,Table7[[#This Row],[Vo]])) -> 0 | V95: =IF(V$1=0,0,IF(Configuration!$F$10="D",$R96,Table7[[#This Row],[Vo]])) -> 0 | W95: =IF(W$1=0,0,IF(Configuration!$F$11="D",$R96,Table7[[#This Row],[Vo]])) -> 0 | X95: =IF(X$1=0,0,IF(Configuration!$F$12="D",$R96,Table7[[#This Row],[Vo]])) -> 0 | Y95: =IF(Y$1=0,0,IF(Configuration!$F$13="D",$R96,Table7[[#This Row],[Vo]])) -> 0 | Z95: =IF(Z$1=0,0,IF(Configuration!$F$14="D",$R96,Table7[[#This Row],[Vo]])) -> 0 | AA95: =IF(AA$1=0,0,IF(Configuration!$F$15="D",$R96,Table7[[#This Row],[Vo]])) -> 0 | AB95: =IF(AB$1=0,0,IF(Configuration!$F$16="D",$R96,Table7[[#This Row],[Vo]])) -> 0 | AC95: =IF(AC$1=0,0,IF(Configuration!$F$17="D",$R96,Table7[[#This Row],[Vo]])) -> 0
A96: 10.5 | B96: NMS-240-12 | C96: 20 | D96: =Table2[[#This Row],[Output Voltage]]*Table2[[#This Row],[Module rated current]] -> 210 | E96: E | F96: =IF(1200/Table2[[#This Row],[Module rated power]]>6,6,ROUNDDOWN(1200/Table2[[#This Row],[Module rated power]],0)) -> 5 | G96: =Table2[[#This Row],[Module rated power]]*Table2[[#This Row],[Available No. of Slot]] -> 1050 | H96: =ROUNDDOWN(Table2[[#This Row],[Max power per output]]/Table2[[#This Row],[Output Voltage]],2) -> 100 | P96: Korea, Democratic People's Republic of | R96: 12.2 | S96: =IF(S$1=0,0,IF(Configuration!$F$7="D",$R97,Table7[[#This Row],[Vo]])) -> 0 | T96: =IF(T$1=0,0,IF(Configuration!$F$8="D",$R97,Table7[[#This Row],[Vo]])) -> 0 | U96: =IF(U$1=0,0,IF(Configuration!$F$9="D",$R97,Table7[[#This Row],[Vo]])) -> 0 | V96: =IF(V$1=0,0,IF(Configuration!$F$10="D",$R97,Table7[[#This Row],[Vo]])) -> 0 | W96: =IF(W$1=0,0,IF(Configuration!$F$11="D",$R97,Table7[[#This Row],[Vo]])) -> 0 | X96: =IF(X$1=0,0,IF(Configuration!$F$12="D",$R97,Table7[[#This Row],[Vo]])) -> 0 | Y96: =IF(Y$1=0,0,IF(Configuration!$F$13="D",$R97,Table7[[#This Row],[Vo]])) -> 0 | Z96: =IF(Z$1=0,0,IF(Configuration!$F$14="D",$R97,Table7[[#This Row],[Vo]])) -> 0 | AA96: =IF(AA$1=0,0,IF(Configuration!$F$15="D",$R97,Table7[[#This Row],[Vo]])) -> 0 | AB96: =IF(AB$1=0,0,IF(Configuration!$F$16="D",$R97,Table7[[#This Row],[Vo]])) -> 0 | AC96: =IF(AC$1=0,0,IF(Configuration!$F$17="D",$R97,Table7[[#This Row],[Vo]])) -> 0
A97: 10.6 | B97: NMS-240-12 | C97: 20 | D97: =Table2[[#This Row],[Output Voltage]]*Table2[[#This Row],[Module rated current]] -> 212 | E97: E | F97: =IF(1200/Table2[[#This Row],[Module rated power]]>6,6,ROUNDDOWN(1200/Table2[[#This Row],[Module rated power]],0)) -> 5 | G97: =Table2[[#This Row],[Module rated power]]*Table2[[#This Row],[Available No. of Slot]] -> 1060 | H97: =ROUNDDOWN(Table2[[#This Row],[Max power per output]]/Table2[[#This Row],[Output Voltage]],2) -> 100 | P97: Kyrgyzstan | R97: 12.3 | S97: =IF(S$1=0,0,IF(Configuration!$F$7="D",$R98,Table7[[#This Row],[Vo]])) -> 0 | T97: =IF(T$1=0,0,IF(Configuration!$F$8="D",$R98,Table7[[#This Row],[Vo]])) -> 0 | U97: =IF(U$1=0,0,IF(Configuration!$F$9="D",$R98,Table7[[#This Row],[Vo]])) -> 0 | V97: =IF(V$1=0,0,IF(Configuration!$F$10="D",$R98,Table7[[#This Row],[Vo]])) -> 0 | W97: =IF(W$1=0,0,IF(Configuration!$F$11="D",$R98,Table7[[#This Row],[Vo]])) -> 0 | X97: =IF(X$1=0,0,IF(Configuration!$F$12="D",$R98,Table7[[#This Row],[Vo]])) -> 0 | Y97: =IF(Y$1=0,0,IF(Configuration!$F$13="D",$R98,Table7[[#This Row],[Vo]])) -> 0 | Z97: =IF(Z$1=0,0,IF(Configuration!$F$14="D",$R98,Table7[[#This Row],[Vo]])) -> 0 | AA97: =IF(AA$1=0,0,IF(Configuration!$F$15="D",$R98,Table7[[#This Row],[Vo]])) -> 0 | AB97: =IF(AB$1=0,0,IF(Configuration!$F$16="D",$R98,Table7[[#This Row],[Vo]])) -> 0 | AC97: =IF(AC$1=0,0,IF(Configuration!$F$17="D",$R98,Table7[[#This Row],[Vo]])) -> 0
A98: 10.7 | B98: NMS-240-12 | C98: 20 | D98: =Table2[[#This Row],[Output Voltage]]*Table2[[#This Row],[Module rated current]] -> 214 | E98: E | F98: =IF(1200/Table2[[#This Row],[Module rated power]]>6,6,ROUNDDOWN(1200/Table2[[#This Row],[Module rated power]],0)) -> 5 | G98: =Table2[[#This Row],[Module rated power]]*Table2[[#This Row],[Available No. of Slot]] -> 1070 | H98: =ROUNDDOWN(Table2[[#This Row],[Max power per output]]/Table2[[#This Row],[Output Voltage]],2) -> 100 | P98: Kazakhstan | R98: 12.4 | S98: =IF(S$1=0,0,IF(Configuration!$F$7="D",$R99,Table7[[#This Row],[Vo]])) -> 0 | T98: =IF(T$1=0,0,IF(Configuration!$F$8="D",$R99,Table7[[#This Row],[Vo]])) -> 0 | U98: =IF(U$1=0,0,IF(Configuration!$F$9="D",$R99,Table7[[#This Row],[Vo]])) -> 0 | V98: =IF(V$1=0,0,IF(Configuration!$F$10="D",$R99,Table7[[#This Row],[Vo]])) -> 0 | W98: =IF(W$1=0,0,IF(Configuration!$F$11="D",$R99,Table7[[#This Row],[Vo]])) -> 0 | X98: =IF(X$1=0,0,IF(Configuration!$F$12="D",$R99,Table7[[#This Row],[Vo]])) -> 0 | Y98: =IF(Y$1=0,0,IF(Configuration!$F$13="D",$R99,Table7[[#This Row],[Vo]])) -> 0 | Z98: =IF(Z$1=0,0,IF(Configuration!$F$14="D",$R99,Table7[[#This Row],[Vo]])) -> 0 | AA98: =IF(AA$1=0,0,IF(Configuration!$F$15="D",$R99,Table7[[#This Row],[Vo]])) -> 0 | AB98: =IF(AB$1=0,0,IF(Configuration!$F$16="D",$R99,Table7[[#This Row],[Vo]])) -> 0 | AC98: =IF(AC$1=0,0,IF(Configuration!$F$17="D",$R99,Table7[[#This Row],[Vo]])) -> 0
A99: 10.8 | B99: NMS-240-12 | C99: 20 | D99: =Table2[[#This Row],[Output Voltage]]*Table2[[#This Row],[Module rated current]] -> 216 | E99: E | F99: =IF(1200/Table2[[#This Row],[Module rated power]]>6,6,ROUNDDOWN(1200/Table2[[#This Row],[Module rated power]],0)) -> 5 | G99: =Table2[[#This Row],[Module rated power]]*Table2[[#This Row],[Available No. of Slot]] -> 1080 | H99: =ROUNDDOWN(Table2[[#This Row],[Max power per output]]/Table2[[#This Row],[Output Voltage]],2) -> 100 | P99: Kenya | R99: 12.5 | S99: =IF(S$1=0,0,IF(Configuration!$F$7="D",$R100,Table7[[#This Row],[Vo]])) -> 0 | T99: =IF(T$1=0,0,IF(Configuration!$F$8="D",$R100,Table7[[#This Row],[Vo]])) -> 0 | U99: =IF(U$1=0,0,IF(Configuration!$F$9="D",$R100,Table7[[#This Row],[Vo]])) -> 0 | V99: =IF(V$1=0,0,IF(Configuration!$F$10="D",$R100,Table7[[#This Row],[Vo]])) -> 0 | W99: =IF(W$1=0,0,IF(Configuration!$F$11="D",$R100,Table7[[#This Row],[Vo]])) -> 0 | X99: =IF(X$1=0,0,IF(Configuration!$F$12="D",$R100,Table7[[#This Row],[Vo]])) -> 0 | Y99: =IF(Y$1=0,0,IF(Configuration!$F$13="D",$R100,Table7[[#This Row],[Vo]])) -> 0 | Z99: =IF(Z$1=0,0,IF(Configuration!$F$14="D",$R100,Table7[[#This Row],[Vo]])) -> 0 | AA99: =IF(AA$1=0,0,IF(Configuration!$F$15="D",$R100,Table7[[#This Row],[Vo]])) -> 0 | AB99: =IF(AB$1=0,0,IF(Configuration!$F$16="D",$R100,Table7[[#This Row],[Vo]])) -> 0 | AC99: =IF(AC$1=0,0,IF(Configuration!$F$17="D",$R100,Table7[[#This Row],[Vo]])) -> 0
A100: 10.9 | B100: NMS-240-12 | C100: 20 | D100: =Table2[[#This Row],[Output Voltage]]*Table2[[#This Row],[Module rated current]] -> 218 | E100: E | F100: =IF(1200/Table2[[#This Row],[Module rated power]]>6,6,ROUNDDOWN(1200/Table2[[#This Row],[Module rated power]],0)) -> 5 | G100: =Table2[[#This Row],[Module rated power]]*Table2[[#This Row],[Available No. of Slot]] -> 1090 | H100: =ROUNDDOWN(Table2[[#This Row],[Max power per output]]/Table2[[#This Row],[Output Voltage]],2) -> 100 | P100: Kosovo | R100: 12.6 | S100: =IF(S$1=0,0,IF(Configuration!$F$7="D",$R101,Table7[[#This Row],[Vo]])) -> 0 | T100: =IF(T$1=0,0,IF(Configuration!$F$8="D",$R101,Table7[[#This Row],[Vo]])) -> 0 | U100: =IF(U$1=0,0,IF(Configuration!$F$9="D",$R101,Table7[[#This Row],[Vo]])) -> 0 | V100: =IF(V$1=0,0,IF(Configuration!$F$10="D",$R101,Table7[[#This Row],[Vo]])) -> 0 | W100: =IF(W$1=0,0,IF(Configuration!$F$11="D",$R101,Table7[[#This Row],[Vo]])) -> 0 | X100: =IF(X$1=0,0,IF(Configuration!$F$12="D",$R101,Table7[[#This Row],[Vo]])) -> 0 | Y100: =IF(Y$1=0,0,IF(Configuration!$F$13="D",$R101,Table7[[#This Row],[Vo]])) -> 0 | Z100: =IF(Z$1=0,0,IF(Configuration!$F$14="D",$R101,Table7[[#This Row],[Vo]])) -> 0 | AA100: =IF(AA$1=0,0,IF(Configuration!$F$15="D",$R101,Table7[[#This Row],[Vo]])) -> 0 | AB100: =IF(AB$1=0,0,IF(Configuration!$F$16="D",$R101,Table7[[#This Row],[Vo]])) -> 0 | AC100: =IF(AC$1=0,0,IF(Configuration!$F$17="D",$R101,Table7[[#This Row],[Vo]])) -> 0
A101: 11 | B101: NMS-240-12 | C101: 20 | D101: =Table2[[#This Row],[Output Voltage]]*Table2[[#This Row],[Module rated current]] -> 220 | E101: E | F101: =IF(1200/Table2[[#This Row],[Module rated power]]>6,6,ROUNDDOWN(1200/Table2[[#This Row],[Module rated power]],0)) -> 5 | G101: =Table2[[#This Row],[Module rated power]]*Table2[[#This Row],[Available No. of Slot]] -> 1100 | H101: =ROUNDDOWN(Table2[[#This Row],[Max power per output]]/Table2[[#This Row],[Output Voltage]],2) -> 100 | P101: Kuwait | R101: 12.7 | S101: =IF(S$1=0,0,IF(Configuration!$F$7="D",$R102,Table7[[#This Row],[Vo]])) -> 0 | T101: =IF(T$1=0,0,IF(Configuration!$F$8="D",$R102,Table7[[#This Row],[Vo]])) -> 0 | U101: =IF(U$1=0,0,IF(Configuration!$F$9="D",$R102,Table7[[#This Row],[Vo]])) -> 0 | V101: =IF(V$1=0,0,IF(Configuration!$F$10="D",$R102,Table7[[#This Row],[Vo]])) -> 0 | W101: =IF(W$1=0,0,IF(Configuration!$F$11="D",$R102,Table7[[#This Row],[Vo]])) -> 0 | X101: =IF(X$1=0,0,IF(Configuration!$F$12="D",$R102,Table7[[#This Row],[Vo]])) -> 0 | Y101: =IF(Y$1=0,0,IF(Configuration!$F$13="D",$R102,Table7[[#This Row],[Vo]])) -> 0 | Z101: =IF(Z$1=0,0,IF(Configuration!$F$14="D",$R102,Table7[[#This Row],[Vo]])) -> 0 | AA101: =IF(AA$1=0,0,IF(Configuration!$F$15="D",$R102,Table7[[#This Row],[Vo]])) -> 0 | AB101: =IF(AB$1=0,0,IF(Configuration!$F$16="D",$R102,Table7[[#This Row],[Vo]])) -> 0 | AC101: =IF(AC$1=0,0,IF(Configuration!$F$17="D",$R102,Table7[[#This Row],[Vo]])) -> 0
A102: 11.1 | B102: NMS-240-12 | C102: 20 | D102: =Table2[[#This Row],[Output Voltage]]*Table2[[#This Row],[Module rated current]] -> 222 | E102: E | F102: =IF(1200/Table2[[#This Row],[Module rated power]]>6,6,ROUNDDOWN(1200/Table2[[#This Row],[Module rated power]],0)) -> 5 | G102: =Table2[[#This Row],[Module rated power]]*Table2[[#This Row],[Available No. of Slot]] -> 1110 | H102: =ROUNDDOWN(Table2[[#This Row],[Max power per output]]/Table2[[#This Row],[Output Voltage]],2) -> 100 | P102: Lao People's Democratic Republic | R102: 12.8 | S102: =IF(S$1=0,0,IF(Configuration!$F$7="D",$R103,Table7[[#This Row],[Vo]])) -> 0 | T102: =IF(T$1=0,0,IF(Configuration!$F$8="D",$R103,Table7[[#This Row],[Vo]])) -> 0 | U102: =IF(U$1=0,0,IF(Configuration!$F$9="D",$R103,Table7[[#This Row],[Vo]])) -> 0 | V102: =IF(V$1=0,0,IF(Configuration!$F$10="D",$R103,Table7[[#This Row],[Vo]])) -> 0 | W102: =IF(W$1=0,0,IF(Configuration!$F$11="D",$R103,Table7[[#This Row],[Vo]])) -> 0 | X102: =IF(X$1=0,0,IF(Configuration!$F$12="D",$R103,Table7[[#This Row],[Vo]])) -> 0 | Y102: =IF(Y$1=0,0,IF(Configuration!$F$13="D",$R103,Table7[[#This Row],[Vo]])) -> 0 | Z102: =IF(Z$1=0,0,IF(Configuration!$F$14="D",$R103,Table7[[#This Row],[Vo]])) -> 0 | AA102: =IF(AA$1=0,0,IF(Configuration!$F$15="D",$R103,Table7[[#This Row],[Vo]])) -> 0 | AB102: =IF(AB$1=0,0,IF(Configuration!$F$16="D",$R103,Table7[[#This Row],[Vo]])) -> 0 | AC102: =IF(AC$1=0,0,IF(Configuration!$F$17="D",$R103,Table7[[#This Row],[Vo]])) -> 0
A103: 11.2 | B103: NMS-240-12 | C103: 20 | D103: =Table2[[#This Row],[Output Voltage]]*Table2[[#This Row],[Module rated current]] -> 224 | E103: E | F103: =IF(1200/Table2[[#This Row],[Module rated power]]>6,6,ROUNDDOWN(1200/Table2[[#This Row],[Module rated power]],0)) -> 5 | G103: =Table2[[#This Row],[Module rated power]]*Table2[[#This Row],[Available No. of Slot]] -> 1120 | H103: =ROUNDDOWN(Table2[[#This Row],[Max power per output]]/Table2[[#This Row],[Output Voltage]],2) -> 100 | P103: Liberia | R103: 12.9 | S103: =IF(S$1=0,0,IF(Configuration!$F$7="D",$R104,Table7[[#This Row],[Vo]])) -> 0 | T103: =IF(T$1=0,0,IF(Configuration!$F$8="D",$R104,Table7[[#This Row],[Vo]])) -> 0 | U103: =IF(U$1=0,0,IF(Configuration!$F$9="D",$R104,Table7[[#This Row],[Vo]])) -> 0 | V103: =IF(V$1=0,0,IF(Configuration!$F$10="D",$R104,Table7[[#This Row],[Vo]])) -> 0 | W103: =IF(W$1=0,0,IF(Configuration!$F$11="D",$R104,Table7[[#This Row],[Vo]])) -> 0 | X103: =IF(X$1=0,0,IF(Configuration!$F$12="D",$R104,Table7[[#This Row],[Vo]])) -> 0 | Y103: =IF(Y$1=0,0,IF(Configuration!$F$13="D",$R104,Table7[[#This Row],[Vo]])) -> 0 | Z103: =IF(Z$1=0,0,IF(Configuration!$F$14="D",$R104,Table7[[#This Row],[Vo]])) -> 0 | AA103: =IF(AA$1=0,0,IF(Configuration!$F$15="D",$R104,Table7[[#This Row],[Vo]])) -> 0 | AB103: =IF(AB$1=0,0,IF(Configuration!$F$16="D",$R104,Table7[[#This Row],[Vo]])) -> 0 | AC103: =IF(AC$1=0,0,IF(Configuration!$F$17="D",$R104,Table7[[#This Row],[Vo]])) -> 0
A104: 11.3 | B104: NMS-240-12 | C104: 20 | D104: =Table2[[#This Row],[Output Voltage]]*Table2[[#This Row],[Module rated current]] -> 226 | E104: E | F104: =IF(1200/Table2[[#This Row],[Module rated power]]>6,6,ROUNDDOWN(1200/Table2[[#This Row],[Module rated power]],0)) -> 5 | G104: =Table2[[#This Row],[Module rated power]]*Table2[[#This Row],[Available No. of Slot]] -> 1130 | H104: =ROUNDDOWN(Table2[[#This Row],[Max power per output]]/Table2[[#This Row],[Output Voltage]],2) -> 100 | P104: Libya | R104: 13 | S104: =IF(S$1=0,0,IF(Configuration!$F$7="D",$R105,Table7[[#This Row],[Vo]])) -> 0 | T104: =IF(T$1=0,0,IF(Configuration!$F$8="D",$R105,Table7[[#This Row],[Vo]])) -> 0 | U104: =IF(U$1=0,0,IF(Configuration!$F$9="D",$R105,Table7[[#This Row],[Vo]])) -> 0 | V104: =IF(V$1=0,0,IF(Configuration!$F$10="D",$R105,Table7[[#This Row],[Vo]])) -> 0 | W104: =IF(W$1=0,0,IF(Configuration!$F$11="D",$R105,Table7[[#This Row],[Vo]])) -> 0 | X104: =IF(X$1=0,0,IF(Configuration!$F$12="D",$R105,Table7[[#This Row],[Vo]])) -> 0 | Y104: =IF(Y$1=0,0,IF(Configuration!$F$13="D",$R105,Table7[[#This Row],[Vo]])) -> 0 | Z104: =IF(Z$1=0,0,IF(Configuration!$F$14="D",$R105,Table7[[#This Row],[Vo]])) -> 0 | AA104: =IF(AA$1=0,0,IF(Configuration!$F$15="D",$R105,Table7[[#This Row],[Vo]])) -> 0 | AB104: =IF(AB$1=0,0,IF(Configuration!$F$16="D",$R105,Table7[[#This Row],[Vo]])) -> 0 | AC104: =IF(AC$1=0,0,IF(Configuration!$F$17="D",$R105,Table7[[#This Row],[Vo]])) -> 0
A105: 11.4 | B105: NMS-240-12 | C105: 20 | D105: =Table2[[#This Row],[Output Voltage]]*Table2[[#This Row],[Module rated current]] -> 228 | E105: E | F105: =IF(1200/Table2[[#This Row],[Module rated power]]>6,6,ROUNDDOWN(1200/Table2[[#This Row],[Module rated power]],0)) -> 5 | G105: =Table2[[#This Row],[Module rated power]]*Table2[[#This Row],[Available No. of Slot]] -> 1140 | H105: =ROUNDDOWN(Table2[[#This Row],[Max power per output]]/Table2[[#This Row],[Output Voltage]],2) -> 100 | P105: Latvia | R105: 13.1 | S105: =IF(S$1=0,0,IF(Configuration!$F$7="D",$R106,Table7[[#This Row],[Vo]])) -> 0 | T105: =IF(T$1=0,0,IF(Configuration!$F$8="D",$R106,Table7[[#This Row],[Vo]])) -> 0 | U105: =IF(U$1=0,0,IF(Configuration!$F$9="D",$R106,Table7[[#This Row],[Vo]])) -> 0 | V105: =IF(V$1=0,0,IF(Configuration!$F$10="D",$R106,Table7[[#This Row],[Vo]])) -> 0 | W105: =IF(W$1=0,0,IF(Configuration!$F$11="D",$R106,Table7[[#This Row],[Vo]])) -> 0 | X105: =IF(X$1=0,0,IF(Configuration!$F$12="D",$R106,Table7[[#This Row],[Vo]])) -> 0 | Y105: =IF(Y$1=0,0,IF(Configuration!$F$13="D",$R106,Table7[[#This Row],[Vo]])) -> 0 | Z105: =IF(Z$1=0,0,IF(Configuration!$F$14="D",$R106,Table7[[#This Row],[Vo]])) -> 0 | AA105: =IF(AA$1=0,0,IF(Configuration!$F$15="D",$R106,Table7[[#This Row],[Vo]])) -> 0 | AB105: =IF(AB$1=0,0,IF(Configuration!$F$16="D",$R106,Table7[[#This Row],[Vo]])) -> 0 | AC105: =IF(AC$1=0,0,IF(Configuration!$F$17="D",$R106,Table7[[#This Row],[Vo]])) -> 0
A106: 11.5 | B106: NMS-240-12 | C106: 20 | D106: =Table2[[#This Row],[Output Voltage]]*Table2[[#This Row],[Module rated current]] -> 230 | E106: E | F106: =IF(1200/Table2[[#This Row],[Module rated power]]>6,6,ROUNDDOWN(1200/Table2[[#This Row],[Module rated power]],0)) -> 5 | G106: =Table2[[#This Row],[Module rated power]]*Table2[[#This Row],[Available No. of Slot]] -> 1150 | H106: =ROUNDDOWN(Table2[[#This Row],[Max power per output]]/Table2[[#This Row],[Output Voltage]],2) -> 100 | P106: Lebanon | R106: 13.2 | S106: =IF(S$1=0,0,IF(Configuration!$F$7="D",$R107,Table7[[#This Row],[Vo]])) -> 0 | T106: =IF(T$1=0,0,IF(Configuration!$F$8="D",$R107,Table7[[#This Row],[Vo]])) -> 0 | U106: =IF(U$1=0,0,IF(Configuration!$F$9="D",$R107,Table7[[#This Row],[Vo]])) -> 0 | V106: =IF(V$1=0,0,IF(Configuration!$F$10="D",$R107,Table7[[#This Row],[Vo]])) -> 0 | W106: =IF(W$1=0,0,IF(Configuration!$F$11="D",$R107,Table7[[#This Row],[Vo]])) -> 0 | X106: =IF(X$1=0,0,IF(Configuration!$F$12="D",$R107,Table7[[#This Row],[Vo]])) -> 0 | Y106: =IF(Y$1=0,0,IF(Configuration!$F$13="D",$R107,Table7[[#This Row],[Vo]])) -> 0 | Z106: =IF(Z$1=0,0,IF(Configuration!$F$14="D",$R107,Table7[[#This Row],[Vo]])) -> 0 | AA106: =IF(AA$1=0,0,IF(Configuration!$F$15="D",$R107,Table7[[#This Row],[Vo]])) -> 0 | AB106: =IF(AB$1=0,0,IF(Configuration!$F$16="D",$R107,Table7[[#This Row],[Vo]])) -> 0 | AC106: =IF(AC$1=0,0,IF(Configuration!$F$17="D",$R107,Table7[[#This Row],[Vo]])) -> 0
A107: 11.6 | B107: NMS-240-12 | C107: 20 | D107: =Table2[[#This Row],[Output Voltage]]*Table2[[#This Row],[Module rated current]] -> 232 | E107: E | F107: =IF(1200/Table2[[#This Row],[Module rated power]]>6,6,ROUNDDOWN(1200/Table2[[#This Row],[Module rated power]],0)) -> 5 | G107: =Table2[[#This Row],[Module rated power]]*Table2[[#This Row],[Available No. of Slot]] -> 1160 | H107: =ROUNDDOWN(Table2[[#This Row],[Max power per output]]/Table2[[#This Row],[Output Voltage]],2) -> 100 | P107: Lesotho | R107: 13.3 | S107: =IF(S$1=0,0,IF(Configuration!$F$7="D",$R108,Table7[[#This Row],[Vo]])) -> 0 | T107: =IF(T$1=0,0,IF(Configuration!$F$8="D",$R108,Table7[[#This Row],[Vo]])) -> 0 | U107: =IF(U$1=0,0,IF(Configuration!$F$9="D",$R108,Table7[[#This Row],[Vo]])) -> 0 | V107: =IF(V$1=0,0,IF(Configuration!$F$10="D",$R108,Table7[[#This Row],[Vo]])) -> 0 | W107: =IF(W$1=0,0,IF(Configuration!$F$11="D",$R108,Table7[[#This Row],[Vo]])) -> 0 | X107: =IF(X$1=0,0,IF(Configuration!$F$12="D",$R108,Table7[[#This Row],[Vo]])) -> 0 | Y107: =IF(Y$1=0,0,IF(Configuration!$F$13="D",$R108,Table7[[#This Row],[Vo]])) -> 0 | Z107: =IF(Z$1=0,0,IF(Configuration!$F$14="D",$R108,Table7[[#This Row],[Vo]])) -> 0 | AA107: =IF(AA$1=0,0,IF(Configuration!$F$15="D",$R108,Table7[[#This Row],[Vo]])) -> 0 | AB107: =IF(AB$1=0,0,IF(Configuration!$F$16="D",$R108,Table7[[#This Row],[Vo]])) -> 0 | AC107: =IF(AC$1=0,0,IF(Configuration!$F$17="D",$R108,Table7[[#This Row],[Vo]])) -> 0
A108: 11.7 | B108: NMS-240-12 | C108: 20 | D108: =Table2[[#This Row],[Output Voltage]]*Table2[[#This Row],[Module rated current]] -> 234 | E108: E | F108: =IF(1200/Table2[[#This Row],[Module rated power]]>6,6,ROUNDDOWN(1200/Table2[[#This Row],[Module rated power]],0)) -> 5 | G108: =Table2[[#This Row],[Module rated power]]*Table2[[#This Row],[Available No. of Slot]] -> 1170 | H108: =ROUNDDOWN(Table2[[#This Row],[Max power per output]]/Table2[[#This Row],[Output Voltage]],2) -> 100 | P108: Liechtenstein | R108: 13.4 | S108: =IF(S$1=0,0,IF(Configuration!$F$7="D",$R109,Table7[[#This Row],[Vo]])) -> 0 | T108: =IF(T$1=0,0,IF(Configuration!$F$8="D",$R109,Table7[[#This Row],[Vo]])) -> 0 | U108: =IF(U$1=0,0,IF(Configuration!$F$9="D",$R109,Table7[[#This Row],[Vo]])) -> 0 | V108: =IF(V$1=0,0,IF(Configuration!$F$10="D",$R109,Table7[[#This Row],[Vo]])) -> 0 | W108: =IF(W$1=0,0,IF(Configuration!$F$11="D",$R109,Table7[[#This Row],[Vo]])) -> 0 | X108: =IF(X$1=0,0,IF(Configuration!$F$12="D",$R109,Table7[[#This Row],[Vo]])) -> 0 | Y108: =IF(Y$1=0,0,IF(Configuration!$F$13="D",$R109,Table7[[#This Row],[Vo]])) -> 0 | Z108: =IF(Z$1=0,0,IF(Configuration!$F$14="D",$R109,Table7[[#This Row],[Vo]])) -> 0 | AA108: =IF(AA$1=0,0,IF(Configuration!$F$15="D",$R109,Table7[[#This Row],[Vo]])) -> 0 | AB108: =IF(AB$1=0,0,IF(Configuration!$F$16="D",$R109,Table7[[#This Row],[Vo]])) -> 0 | AC108: =IF(AC$1=0,0,IF(Configuration!$F$17="D",$R109,Table7[[#This Row],[Vo]])) -> 0
A109: 11.8 | B109: NMS-240-12 | C109: 20 | D109: =Table2[[#This Row],[Output Voltage]]*Table2[[#This Row],[Module rated current]] -> 236 | E109: E | F109: =IF(1200/Table2[[#This Row],[Module rated power]]>6,6,ROUNDDOWN(1200/Table2[[#This Row],[Module rated power]],0)) -> 5 | G109: =Table2[[#This Row],[Module rated power]]*Table2[[#This Row],[Available No. of Slot]] -> 1180 | H109: =ROUNDDOWN(Table2[[#This Row],[Max power per output]]/Table2[[#This Row],[Output Voltage]],2) -> 100 | P109: Lithuania | R109: 13.5 | S109: =IF(S$1=0,0,IF(Configuration!$F$7="D",$R110,Table7[[#This Row],[Vo]])) -> 0 | T109: =IF(T$1=0,0,IF(Configuration!$F$8="D",$R110,Table7[[#This Row],[Vo]])) -> 0 | U109: =IF(U$1=0,0,IF(Configuration!$F$9="D",$R110,Table7[[#This Row],[Vo]])) -> 0 | V109: =IF(V$1=0,0,IF(Configuration!$F$10="D",$R110,Table7[[#This Row],[Vo]])) -> 0 | W109: =IF(W$1=0,0,IF(Configuration!$F$11="D",$R110,Table7[[#This Row],[Vo]])) -> 0 | X109: =IF(X$1=0,0,IF(Configuration!$F$12="D",$R110,Table7[[#This Row],[Vo]])) -> 0 | Y109: =IF(Y$1=0,0,IF(Configuration!$F$13="D",$R110,Table7[[#This Row],[Vo]])) -> 0 | Z109: =IF(Z$1=0,0,IF(Configuration!$F$14="D",$R110,Table7[[#This Row],[Vo]])) -> 0 | AA109: =IF(AA$1=0,0,IF(Configuration!$F$15="D",$R110,Table7[[#This Row],[Vo]])) -> 0 | AB109: =IF(AB$1=0,0,IF(Configuration!$F$16="D",$R110,Table7[[#This Row],[Vo]])) -> 0 | AC109: =IF(AC$1=0,0,IF(Configuration!$F$17="D",$R110,Table7[[#This Row],[Vo]])) -> 0
A110: 11.9 | B110: NMS-240-12 | C110: 20 | D110: =Table2[[#This Row],[Output Voltage]]*Table2[[#This Row],[Module rated current]] -> 238 | E110: E | F110: =IF(1200/Table2[[#This Row],[Module rated power]]>6,6,ROUNDDOWN(1200/Table2[[#This Row],[Module rated power]],0)) -> 5 | G110: =Table2[[#This Row],[Module rated power]]*Table2[[#This Row],[Available No. of Slot]] -> 1190 | H110: =ROUNDDOWN(Table2[[#This Row],[Max power per output]]/Table2[[#This Row],[Output Voltage]],2) -> 100 | P110: Luxembourg | R110: 13.6 | S110: =IF(S$1=0,0,IF(Configuration!$F$7="D",$R111,Table7[[#This Row],[Vo]])) -> 0 | T110: =IF(T$1=0,0,IF(Configuration!$F$8="D",$R111,Table7[[#This Row],[Vo]])) -> 0 | U110: =IF(U$1=0,0,IF(Configuration!$F$9="D",$R111,Table7[[#This Row],[Vo]])) -> 0 | V110: =IF(V$1=0,0,IF(Configuration!$F$10="D",$R111,Table7[[#This Row],[Vo]])) -> 0 | W110: =IF(W$1=0,0,IF(Configuration!$F$11="D",$R111,Table7[[#This Row],[Vo]])) -> 0 | X110: =IF(X$1=0,0,IF(Configuration!$F$12="D",$R111,Table7[[#This Row],[Vo]])) -> 0 | Y110: =IF(Y$1=0,0,IF(Configuration!$F$13="D",$R111,Table7[[#This Row],[Vo]])) -> 0 | Z110: =IF(Z$1=0,0,IF(Configuration!$F$14="D",$R111,Table7[[#This Row],[Vo]])) -> 0 | AA110: =IF(AA$1=0,0,IF(Configuration!$F$15="D",$R111,Table7[[#This Row],[Vo]])) -> 0 | AB110: =IF(AB$1=0,0,IF(Configuration!$F$16="D",$R111,Table7[[#This Row],[Vo]])) -> 0 | AC110: =IF(AC$1=0,0,IF(Configuration!$F$17="D",$R111,Table7[[#This Row],[Vo]])) -> 0
A111: 12 | B111: NMS-240-12 | C111: 20 | D111: =Table2[[#This Row],[Output Voltage]]*Table2[[#This Row],[Module rated current]] -> 240 | E111: E | F111: =IF(1200/Table2[[#This Row],[Module rated power]]>6,6,ROUNDDOWN(1200/Table2[[#This Row],[Module rated power]],0)) -> 5 | G111: =Table2[[#This Row],[Module rated power]]*Table2[[#This Row],[Available No. of Slot]] -> 1200 | H111: =ROUNDDOWN(Table2[[#This Row],[Max power per output]]/Table2[[#This Row],[Output Voltage]],2) -> 100 | P111: Malawi | R111: 13.7 | S111: =IF(S$1=0,0,IF(Configuration!$F$7="D",$R112,Table7[[#This Row],[Vo]])) -> 0 | T111: =IF(T$1=0,0,IF(Configuration!$F$8="D",$R112,Table7[[#This Row],[Vo]])) -> 0 | U111: =IF(U$1=0,0,IF(Configuration!$F$9="D",$R112,Table7[[#This Row],[Vo]])) -> 0 | V111: =IF(V$1=0,0,IF(Configuration!$F$10="D",$R112,Table7[[#This Row],[Vo]])) -> 0 | W111: =IF(W$1=0,0,IF(Configuration!$F$11="D",$R112,Table7[[#This Row],[Vo]])) -> 0 | X111: =IF(X$1=0,0,IF(Configuration!$F$12="D",$R112,Table7[[#This Row],[Vo]])) -> 0 | Y111: =IF(Y$1=0,0,IF(Configuration!$F$13="D",$R112,Table7[[#This Row],[Vo]])) -> 0 | Z111: =IF(Z$1=0,0,IF(Configuration!$F$14="D",$R112,Table7[[#This Row],[Vo]])) -> 0 | AA111: =IF(AA$1=0,0,IF(Configuration!$F$15="D",$R112,Table7[[#This Row],[Vo]])) -> 0 | AB111: =IF(AB$1=0,0,IF(Configuration!$F$16="D",$R112,Table7[[#This Row],[Vo]])) -> 0 | AC111: =IF(AC$1=0,0,IF(Configuration!$F$17="D",$R112,Table7[[#This Row],[Vo]])) -> 0
A112: 12.1 | B112: NMS-240-12 | C112: =D112/A112 -> 19.83471074 | D112: 240 | E112: E | F112: =IF(1200/Table2[[#This Row],[Module rated power]]>6,6,ROUNDDOWN(1200/Table2[[#This Row],[Module rated power]],0)) -> 5 | G112: =Table2[[#This Row],[Module rated power]]*Table2[[#This Row],[Available No. of Slot]] -> 1200 | H112: =ROUNDDOWN(Table2[[#This Row],[Max power per output]]/Table2[[#This Row],[Output Voltage]],2) -> 99.17 | P112: Maldives | R112: 13.8 | S112: =IF(S$1=0,0,IF(Configuration!$F$7="D",$R113,Table7[[#This Row],[Vo]])) -> 0 | T112: =IF(T$1=0,0,IF(Configuration!$F$8="D",$R113,Table7[[#This Row],[Vo]])) -> 0 | U112: =IF(U$1=0,0,IF(Configuration!$F$9="D",$R113,Table7[[#This Row],[Vo]])) -> 0 | V112: =IF(V$1=0,0,IF(Configuration!$F$10="D",$R113,Table7[[#This Row],[Vo]])) -> 0 | W112: =IF(W$1=0,0,IF(Configuration!$F$11="D",$R113,Table7[[#This Row],[Vo]])) -> 0 | X112: =IF(X$1=0,0,IF(Configuration!$F$12="D",$R113,Table7[[#This Row],[Vo]])) -> 0 | Y112: =IF(Y$1=0,0,IF(Configuration!$F$13="D",$R113,Table7[[#This Row],[Vo]])) -> 0 | Z112: =IF(Z$1=0,0,IF(Configuration!$F$14="D",$R113,Table7[[#This Row],[Vo]])) -> 0 | AA112: =IF(AA$1=0,0,IF(Configuration!$F$15="D",$R113,Table7[[#This Row],[Vo]])) -> 0 | AB112: =IF(AB$1=0,0,IF(Configuration!$F$16="D",$R113,Table7[[#This Row],[Vo]])) -> 0 | AC112: =IF(AC$1=0,0,IF(Configuration!$F$17="D",$R113,Table7[[#This Row],[Vo]])) -> 0
A113: 12.2 | B113: NMS-240-12 | C113: 19.67213115 | D113: 240 | E113: E | F113: =IF(1200/Table2[[#This Row],[Module rated power]]>6,6,ROUNDDOWN(1200/Table2[[#This Row],[Module rated power]],0)) -> 5 | G113: =Table2[[#This Row],[Module rated power]]*Table2[[#This Row],[Available No. of Slot]] -> 1200 | H113: =ROUNDDOWN(Table2[[#This Row],[Max power per output]]/Table2[[#This Row],[Output Voltage]],2) -> 98.36 | P113: Marshall Islands | R113: 13.9 | S113: =IF(S$1=0,0,IF(Configuration!$F$7="D",$R114,Table7[[#This Row],[Vo]])) -> 0 | T113: =IF(T$1=0,0,IF(Configuration!$F$8="D",$R114,Table7[[#This Row],[Vo]])) -> 0 | U113: =IF(U$1=0,0,IF(Configuration!$F$9="D",$R114,Table7[[#This Row],[Vo]])) -> 0 | V113: =IF(V$1=0,0,IF(Configuration!$F$10="D",$R114,Table7[[#This Row],[Vo]])) -> 0 | W113: =IF(W$1=0,0,IF(Configuration!$F$11="D",$R114,Table7[[#This Row],[Vo]])) -> 0 | X113: =IF(X$1=0,0,IF(Configuration!$F$12="D",$R114,Table7[[#This Row],[Vo]])) -> 0 | Y113: =IF(Y$1=0,0,IF(Configuration!$F$13="D",$R114,Table7[[#This Row],[Vo]])) -> 0 | Z113: =IF(Z$1=0,0,IF(Configuration!$F$14="D",$R114,Table7[[#This Row],[Vo]])) -> 0 | AA113: =IF(AA$1=0,0,IF(Configuration!$F$15="D",$R114,Table7[[#This Row],[Vo]])) -> 0 | AB113: =IF(AB$1=0,0,IF(Configuration!$F$16="D",$R114,Table7[[#This Row],[Vo]])) -> 0 | AC113: =IF(AC$1=0,0,IF(Configuration!$F$17="D",$R114,Table7[[#This Row],[Vo]])) -> 0
A114: 12.3 | B114: NMS-240-12 | C114: 19.51219512 | D114: 240 | E114: E | F114: =IF(1200/Table2[[#This Row],[Module rated power]]>6,6,ROUNDDOWN(1200/Table2[[#This Row],[Module rated power]],0)) -> 5 | G114: =Table2[[#This Row],[Module rated power]]*Table2[[#This Row],[Available No. of Slot]] -> 1200 | H114: =ROUNDDOWN(Table2[[#This Row],[Max power per output]]/Table2[[#This Row],[Output Voltage]],2) -> 97.56 | P114: Mauritania | R114: 14 | S114: =IF(S$1=0,0,IF(Configuration!$F$7="D",$R115,Table7[[#This Row],[Vo]])) -> 0 | T114: =IF(T$1=0,0,IF(Configuration!$F$8="D",$R115,Table7[[#This Row],[Vo]])) -> 0 | U114: =IF(U$1=0,0,IF(Configuration!$F$9="D",$R115,Table7[[#This Row],[Vo]])) -> 0 | V114: =IF(V$1=0,0,IF(Configuration!$F$10="D",$R115,Table7[[#This Row],[Vo]])) -> 0 | W114: =IF(W$1=0,0,IF(Configuration!$F$11="D",$R115,Table7[[#This Row],[Vo]])) -> 0 | X114: =IF(X$1=0,0,IF(Configuration!$F$12="D",$R115,Table7[[#This Row],[Vo]])) -> 0 | Y114: =IF(Y$1=0,0,IF(Configuration!$F$13="D",$R115,Table7[[#This Row],[Vo]])) -> 0 | Z114: =IF(Z$1=0,0,IF(Configuration!$F$14="D",$R115,Table7[[#This Row],[Vo]])) -> 0 | AA114: =IF(AA$1=0,0,IF(Configuration!$F$15="D",$R115,Table7[[#This Row],[Vo]])) -> 0 | AB114: =IF(AB$1=0,0,IF(Configuration!$F$16="D",$R115,Table7[[#This Row],[Vo]])) -> 0 | AC114: =IF(AC$1=0,0,IF(Configuration!$F$17="D",$R115,Table7[[#This Row],[Vo]])) -> 0
A115: 12.4 | B115: NMS-240-12 | C115: 19.35483871 | D115: 240 | E115: E | F115: =IF(1200/Table2[[#This Row],[Module rated power]]>6,6,ROUNDDOWN(1200/Table2[[#This Row],[Module rated power]],0)) -> 5 | G115: =Table2[[#This Row],[Module rated power]]*Table2[[#This Row],[Available No. of Slot]] -> 1200 | H115: =ROUNDDOWN(Table2[[#This Row],[Max power per output]]/Table2[[#This Row],[Output Voltage]],2) -> 96.77 | P115: Micronesia, Federated States of | R115: 14.1 | S115: =IF(S$1=0,0,IF(Configuration!$F$7="D",$R116,Table7[[#This Row],[Vo]])) -> 0 | T115: =IF(T$1=0,0,IF(Configuration!$F$8="D",$R116,Table7[[#This Row],[Vo]])) -> 0 | U115: =IF(U$1=0,0,IF(Configuration!$F$9="D",$R116,Table7[[#This Row],[Vo]])) -> 0 | V115: =IF(V$1=0,0,IF(Configuration!$F$10="D",$R116,Table7[[#This Row],[Vo]])) -> 0 | W115: =IF(W$1=0,0,IF(Configuration!$F$11="D",$R116,Table7[[#This Row],[Vo]])) -> 0 | X115: =IF(X$1=0,0,IF(Configuration!$F$12="D",$R116,Table7[[#This Row],[Vo]])) -> 0 | Y115: =IF(Y$1=0,0,IF(Configuration!$F$13="D",$R116,Table7[[#This Row],[Vo]])) -> 0 | Z115: =IF(Z$1=0,0,IF(Configuration!$F$14="D",$R116,Table7[[#This Row],[Vo]])) -> 0 | AA115: =IF(AA$1=0,0,IF(Configuration!$F$15="D",$R116,Table7[[#This Row],[Vo]])) -> 0 | AB115: =IF(AB$1=0,0,IF(Configuration!$F$16="D",$R116,Table7[[#This Row],[Vo]])) -> 0 | AC115: =IF(AC$1=0,0,IF(Configuration!$F$17="D",$R116,Table7[[#This Row],[Vo]])) -> 0
A116: 12.5 | B116: NMS-240-12 | C116: 19.2 | D116: 240 | E116: E | F116: =IF(1200/Table2[[#This Row],[Module rated power]]>6,6,ROUNDDOWN(1200/Table2[[#This Row],[Module rated power]],0)) -> 5 | G116: =Table2[[#This Row],[Module rated power]]*Table2[[#This Row],[Available No. of Slot]] -> 1200 | H116: =ROUNDDOWN(Table2[[#This Row],[Max power per output]]/Table2[[#This Row],[Output Voltage]],2) -> 96 | P116: Mongolia | R116: 14.2 | S116: =IF(S$1=0,0,IF(Configuration!$F$7="D",$R117,Table7[[#This Row],[Vo]])) -> 0 | T116: =IF(T$1=0,0,IF(Configuration!$F$8="D",$R117,Table7[[#This Row],[Vo]])) -> 0 | U116: =IF(U$1=0,0,IF(Configuration!$F$9="D",$R117,Table7[[#This Row],[Vo]])) -> 0 | V116: =IF(V$1=0,0,IF(Configuration!$F$10="D",$R117,Table7[[#This Row],[Vo]])) -> 0 | W116: =IF(W$1=0,0,IF(Configuration!$F$11="D",$R117,Table7[[#This Row],[Vo]])) -> 0 | X116: =IF(X$1=0,0,IF(Configuration!$F$12="D",$R117,Table7[[#This Row],[Vo]])) -> 0 | Y116: =IF(Y$1=0,0,IF(Configuration!$F$13="D",$R117,Table7[[#This Row],[Vo]])) -> 0 | Z116: =IF(Z$1=0,0,IF(Configuration!$F$14="D",$R117,Table7[[#This Row],[Vo]])) -> 0 | AA116: =IF(AA$1=0,0,IF(Configuration!$F$15="D",$R117,Table7[[#This Row],[Vo]])) -> 0 | AB116: =IF(AB$1=0,0,IF(Configuration!$F$16="D",$R117,Table7[[#This Row],[Vo]])) -> 0 | AC116: =IF(AC$1=0,0,IF(Configuration!$F$17="D",$R117,Table7[[#This Row],[Vo]])) -> 0
A117: 12.6 | B117: NMS-240-12 | C117: 19.04761905 | D117: 240 | E117: E | F117: =IF(1200/Table2[[#This Row],[Module rated power]]>6,6,ROUNDDOWN(1200/Table2[[#This Row],[Module rated power]],0)) -> 5 | G117: =Table2[[#This Row],[Module rated power]]*Table2[[#This Row],[Available No. of Slot]] -> 1200 | H117: =ROUNDDOWN(Table2[[#This Row],[Max power per output]]/Table2[[#This Row],[Output Voltage]],2) -> 95.23 | P117: Mozambique | R117: 14.3 | S117: =IF(S$1=0,0,IF(Configuration!$F$7="D",$R118,Table7[[#This Row],[Vo]])) -> 0 | T117: =IF(T$1=0,0,IF(Configuration!$F$8="D",$R118,Table7[[#This Row],[Vo]])) -> 0 | U117: =IF(U$1=0,0,IF(Configuration!$F$9="D",$R118,Table7[[#This Row],[Vo]])) -> 0 | V117: =IF(V$1=0,0,IF(Configuration!$F$10="D",$R118,Table7[[#This Row],[Vo]])) -> 0 | W117: =IF(W$1=0,0,IF(Configuration!$F$11="D",$R118,Table7[[#This Row],[Vo]])) -> 0 | X117: =IF(X$1=0,0,IF(Configuration!$F$12="D",$R118,Table7[[#This Row],[Vo]])) -> 0 | Y117: =IF(Y$1=0,0,IF(Configuration!$F$13="D",$R118,Table7[[#This Row],[Vo]])) -> 0 | Z117: =IF(Z$1=0,0,IF(Configuration!$F$14="D",$R118,Table7[[#This Row],[Vo]])) -> 0 | AA117: =IF(AA$1=0,0,IF(Configuration!$F$15="D",$R118,Table7[[#This Row],[Vo]])) -> 0 | AB117: =IF(AB$1=0,0,IF(Configuration!$F$16="D",$R118,Table7[[#This Row],[Vo]])) -> 0 | AC117: =IF(AC$1=0,0,IF(Configuration!$F$17="D",$R118,Table7[[#This Row],[Vo]])) -> 0
A118: 12.7 | B118: NMS-240-12 | C118: 18.8976378 | D118: 240 | E118: E | F118: =IF(1200/Table2[[#This Row],[Module rated power]]>6,6,ROUNDDOWN(1200/Table2[[#This Row],[Module rated power]],0)) -> 5 | G118: =Table2[[#This Row],[Module rated power]]*Table2[[#This Row],[Available No. of Slot]] -> 1200 | H118: =ROUNDDOWN(Table2[[#This Row],[Max power per output]]/Table2[[#This Row],[Output Voltage]],2) -> 94.48 | P118: Myanmar/Burma | R118: 14.4 | S118: =IF(S$1=0,0,IF(Configuration!$F$7="D",$R119,Table7[[#This Row],[Vo]])) -> 0 | T118: =IF(T$1=0,0,IF(Configuration!$F$8="D",$R119,Table7[[#This Row],[Vo]])) -> 0 | U118: =IF(U$1=0,0,IF(Configuration!$F$9="D",$R119,Table7[[#This Row],[Vo]])) -> 0 | V118: =IF(V$1=0,0,IF(Configuration!$F$10="D",$R119,Table7[[#This Row],[Vo]])) -> 0 | W118: =IF(W$1=0,0,IF(Configuration!$F$11="D",$R119,Table7[[#This Row],[Vo]])) -> 0 | X118: =IF(X$1=0,0,IF(Configuration!$F$12="D",$R119,Table7[[#This Row],[Vo]])) -> 0 | Y118: =IF(Y$1=0,0,IF(Configuration!$F$13="D",$R119,Table7[[#This Row],[Vo]])) -> 0 | Z118: =IF(Z$1=0,0,IF(Configuration!$F$14="D",$R119,Table7[[#This Row],[Vo]])) -> 0 | AA118: =IF(AA$1=0,0,IF(Configuration!$F$15="D",$R119,Table7[[#This Row],[Vo]])) -> 0 | AB118: =IF(AB$1=0,0,IF(Configuration!$F$16="D",$R119,Table7[[#This Row],[Vo]])) -> 0 | AC118: =IF(AC$1=0,0,IF(Configuration!$F$17="D",$R119,Table7[[#This Row],[Vo]])) -> 0
A119: 12.8 | B119: NMS-240-12 | C119: 18.75 | D119: 240 | E119: E | F119: =IF(1200/Table2[[#This Row],[Module rated power]]>6,6,ROUNDDOWN(1200/Table2[[#This Row],[Module rated power]],0)) -> 5 | G119: =Table2[[#This Row],[Module rated power]]*Table2[[#This Row],[Available No. of Slot]] -> 1200 | H119: =ROUNDDOWN(Table2[[#This Row],[Max power per output]]/Table2[[#This Row],[Output Voltage]],2) -> 93.75 | P119: Macedonia | R119: 14.5 | S119: =IF(S$1=0,0,IF(Configuration!$F$7="D",$R120,Table7[[#This Row],[Vo]])) -> 0 | T119: =IF(T$1=0,0,IF(Configuration!$F$8="D",$R120,Table7[[#This Row],[Vo]])) -> 0 | U119: =IF(U$1=0,0,IF(Configuration!$F$9="D",$R120,Table7[[#This Row],[Vo]])) -> 0 | V119: =IF(V$1=0,0,IF(Configuration!$F$10="D",$R120,Table7[[#This Row],[Vo]])) -> 0 | W119: =IF(W$1=0,0,IF(Configuration!$F$11="D",$R120,Table7[[#This Row],[Vo]])) -> 0 | X119: =IF(X$1=0,0,IF(Configuration!$F$12="D",$R120,Table7[[#This Row],[Vo]])) -> 0 | Y119: =IF(Y$1=0,0,IF(Configuration!$F$13="D",$R120,Table7[[#This Row],[Vo]])) -> 0 | Z119: =IF(Z$1=0,0,IF(Configuration!$F$14="D",$R120,Table7[[#This Row],[Vo]])) -> 0 | AA119: =IF(AA$1=0,0,IF(Configuration!$F$15="D",$R120,Table7[[#This Row],[Vo]])) -> 0 | AB119: =IF(AB$1=0,0,IF(Configuration!$F$16="D",$R120,Table7[[#This Row],[Vo]])) -> 0 | AC119: =IF(AC$1=0,0,IF(Configuration!$F$17="D",$R120,Table7[[#This Row],[Vo]])) -> 0
A120: 12.9 | B120: NMS-240-12 | C120: 18.60465116 | D120: 240 | E120: E | F120: =IF(1200/Table2[[#This Row],[Module rated power]]>6,6,ROUNDDOWN(1200/Table2[[#This Row],[Module rated power]],0)) -> 5 | G120: =Table2[[#This Row],[Module rated power]]*Table2[[#This Row],[Available No. of Slot]] -> 1200 | H120: =ROUNDDOWN(Table2[[#This Row],[Max power per output]]/Table2[[#This Row],[Output Voltage]],2) -> 93.02 | P120: Macao | R120: 14.6 | S120: =IF(S$1=0,0,IF(Configuration!$F$7="D",$R121,Table7[[#This Row],[Vo]])) -> 0 | T120: =IF(T$1=0,0,IF(Configuration!$F$8="D",$R121,Table7[[#This Row],[Vo]])) -> 0 | U120: =IF(U$1=0,0,IF(Configuration!$F$9="D",$R121,Table7[[#This Row],[Vo]])) -> 0 | V120: =IF(V$1=0,0,IF(Configuration!$F$10="D",$R121,Table7[[#This Row],[Vo]])) -> 0 | W120: =IF(W$1=0,0,IF(Configuration!$F$11="D",$R121,Table7[[#This Row],[Vo]])) -> 0 | X120: =IF(X$1=0,0,IF(Configuration!$F$12="D",$R121,Table7[[#This Row],[Vo]])) -> 0 | Y120: =IF(Y$1=0,0,IF(Configuration!$F$13="D",$R121,Table7[[#This Row],[Vo]])) -> 0 | Z120: =IF(Z$1=0,0,IF(Configuration!$F$14="D",$R121,Table7[[#This Row],[Vo]])) -> 0 | AA120: =IF(AA$1=0,0,IF(Configuration!$F$15="D",$R121,Table7[[#This Row],[Vo]])) -> 0 | AB120: =IF(AB$1=0,0,IF(Configuration!$F$16="D",$R121,Table7[[#This Row],[Vo]])) -> 0 | AC120: =IF(AC$1=0,0,IF(Configuration!$F$17="D",$R121,Table7[[#This Row],[Vo]])) -> 0
A121: 13 | B121: NMS-240-12 | C121: 18.46153846 | D121: 240 | E121: E | F121: =IF(1200/Table2[[#This Row],[Module rated power]]>6,6,ROUNDDOWN(1200/Table2[[#This Row],[Module rated power]],0)) -> 5 | G121: =Table2[[#This Row],[Module rated power]]*Table2[[#This Row],[Available No. of Slot]] -> 1200 | H121: =ROUNDDOWN(Table2[[#This Row],[Max power per output]]/Table2[[#This Row],[Output Voltage]],2) -> 92.3 | P121: Madagascar | R121: 14.7 | S121: =IF(S$1=0,0,IF(Configuration!$F$7="D",$R122,Table7[[#This Row],[Vo]])) -> 0 | T121: =IF(T$1=0,0,IF(Configuration!$F$8="D",$R122,Table7[[#This Row],[Vo]])) -> 0 | U121: =IF(U$1=0,0,IF(Configuration!$F$9="D",$R122,Table7[[#This Row],[Vo]])) -> 0 | V121: =IF(V$1=0,0,IF(Configuration!$F$10="D",$R122,Table7[[#This Row],[Vo]])) -> 0 | W121: =IF(W$1=0,0,IF(Configuration!$F$11="D",$R122,Table7[[#This Row],[Vo]])) -> 0 | X121: =IF(X$1=0,0,IF(Configuration!$F$12="D",$R122,Table7[[#This Row],[Vo]])) -> 0 | Y121: =IF(Y$1=0,0,IF(Configuration!$F$13="D",$R122,Table7[[#This Row],[Vo]])) -> 0 | Z121: =IF(Z$1=0,0,IF(Configuration!$F$14="D",$R122,Table7[[#This Row],[Vo]])) -> 0 | AA121: =IF(AA$1=0,0,IF(Configuration!$F$15="D",$R122,Table7[[#This Row],[Vo]])) -> 0 | AB121: =IF(AB$1=0,0,IF(Configuration!$F$16="D",$R122,Table7[[#This Row],[Vo]])) -> 0 | AC121: =IF(AC$1=0,0,IF(Configuration!$F$17="D",$R122,Table7[[#This Row],[Vo]])) -> 0
A122: 13.1 | B122: NMS-240-12 | C122: 18.32061069 | D122: 240 | E122: E | F122: =IF(1200/Table2[[#This Row],[Module rated power]]>6,6,ROUNDDOWN(1200/Table2[[#This Row],[Module rated power]],0)) -> 5 | G122: =Table2[[#This Row],[Module rated power]]*Table2[[#This Row],[Available No. of Slot]] -> 1200 | H122: =ROUNDDOWN(Table2[[#This Row],[Max power per output]]/Table2[[#This Row],[Output Voltage]],2) -> 91.6 | P122: Malaysia | R122: 14.8 | S122: =IF(S$1=0,0,IF(Configuration!$F$7="D",$R123,Table7[[#This Row],[Vo]])) -> 0 | T122: =IF(T$1=0,0,IF(Configuration!$F$8="D",$R123,Table7[[#This Row],[Vo]])) -> 0 | U122: =IF(U$1=0,0,IF(Configuration!$F$9="D",$R123,Table7[[#This Row],[Vo]])) -> 0 | V122: =IF(V$1=0,0,IF(Configuration!$F$10="D",$R123,Table7[[#This Row],[Vo]])) -> 0 | W122: =IF(W$1=0,0,IF(Configuration!$F$11="D",$R123,Table7[[#This Row],[Vo]])) -> 0 | X122: =IF(X$1=0,0,IF(Configuration!$F$12="D",$R123,Table7[[#This Row],[Vo]])) -> 0 | Y122: =IF(Y$1=0,0,IF(Configuration!$F$13="D",$R123,Table7[[#This Row],[Vo]])) -> 0 | Z122: =IF(Z$1=0,0,IF(Configuration!$F$14="D",$R123,Table7[[#This Row],[Vo]])) -> 0 | AA122: =IF(AA$1=0,0,IF(Configuration!$F$15="D",$R123,Table7[[#This Row],[Vo]])) -> 0 | AB122: =IF(AB$1=0,0,IF(Configuration!$F$16="D",$R123,Table7[[#This Row],[Vo]])) -> 0 | AC122: =IF(AC$1=0,0,IF(Configuration!$F$17="D",$R123,Table7[[#This Row],[Vo]])) -> 0
A123: 13.2 | B123: NMS-240-12 | C123: 18.18181818 | D123: 240 | E123: E | F123: =IF(1200/Table2[[#This Row],[Module rated power]]>6,6,ROUNDDOWN(1200/Table2[[#This Row],[Module rated power]],0)) -> 5 | G123: =Table2[[#This Row],[Module rated power]]*Table2[[#This Row],[Available No. of Slot]] -> 1200 | H123: =ROUNDDOWN(Table2[[#This Row],[Max power per output]]/Table2[[#This Row],[Output Voltage]],2) -> 90.9 | P123: Mali | R123: 14.9 | S123: =IF(S$1=0,0,IF(Configuration!$F$7="D",$R124,Table7[[#This Row],[Vo]])) -> 0 | T123: =IF(T$1=0,0,IF(Configuration!$F$8="D",$R124,Table7[[#This Row],[Vo]])) -> 0 | U123: =IF(U$1=0,0,IF(Configuration!$F$9="D",$R124,Table7[[#This Row],[Vo]])) -> 0 | V123: =IF(V$1=0,0,IF(Configuration!$F$10="D",$R124,Table7[[#This Row],[Vo]])) -> 0 | W123: =IF(W$1=0,0,IF(Configuration!$F$11="D",$R124,Table7[[#This Row],[Vo]])) -> 0 | X123: =IF(X$1=0,0,IF(Configuration!$F$12="D",$R124,Table7[[#This Row],[Vo]])) -> 0 | Y123: =IF(Y$1=0,0,IF(Configuration!$F$13="D",$R124,Table7[[#This Row],[Vo]])) -> 0 | Z123: =IF(Z$1=0,0,IF(Configuration!$F$14="D",$R124,Table7[[#This Row],[Vo]])) -> 0 | AA123: =IF(AA$1=0,0,IF(Configuration!$F$15="D",$R124,Table7[[#This Row],[Vo]])) -> 0 | AB123: =IF(AB$1=0,0,IF(Configuration!$F$16="D",$R124,Table7[[#This Row],[Vo]])) -> 0 | AC123: =IF(AC$1=0,0,IF(Configuration!$F$17="D",$R124,Table7[[#This Row],[Vo]])) -> 0
A124: 13.3 | B124: NMS-240-12 | C124: 18.04511278 | D124: 240 | E124: E | F124: =IF(1200/Table2[[#This Row],[Module rated power]]>6,6,ROUNDDOWN(1200/Table2[[#This Row],[Module rated power]],0)) -> 5 | G124: =Table2[[#This Row],[Module rated power]]*Table2[[#This Row],[Available No. of Slot]] -> 1200 | H124: =ROUNDDOWN(Table2[[#This Row],[Max power per output]]/Table2[[#This Row],[Output Voltage]],2) -> 90.22 | P124: Malta | R124: 15 | S124: =IF(S$1=0,0,IF(Configuration!$F$7="D",$R125,Table7[[#This Row],[Vo]])) -> 0 | T124: =IF(T$1=0,0,IF(Configuration!$F$8="D",$R125,Table7[[#This Row],[Vo]])) -> 0 | U124: =IF(U$1=0,0,IF(Configuration!$F$9="D",$R125,Table7[[#This Row],[Vo]])) -> 0 | V124: =IF(V$1=0,0,IF(Configuration!$F$10="D",$R125,Table7[[#This Row],[Vo]])) -> 0 | W124: =IF(W$1=0,0,IF(Configuration!$F$11="D",$R125,Table7[[#This Row],[Vo]])) -> 0 | X124: =IF(X$1=0,0,IF(Configuration!$F$12="D",$R125,Table7[[#This Row],[Vo]])) -> 0 | Y124: =IF(Y$1=0,0,IF(Configuration!$F$13="D",$R125,Table7[[#This Row],[Vo]])) -> 0 | Z124: =IF(Z$1=0,0,IF(Configuration!$F$14="D",$R125,Table7[[#This Row],[Vo]])) -> 0 | AA124: =IF(AA$1=0,0,IF(Configuration!$F$15="D",$R125,Table7[[#This Row],[Vo]])) -> 0 | AB124: =IF(AB$1=0,0,IF(Configuration!$F$16="D",$R125,Table7[[#This Row],[Vo]])) -> 0 | AC124: =IF(AC$1=0,0,IF(Configuration!$F$17="D",$R125,Table7[[#This Row],[Vo]])) -> 0
A125: 13.4 | B125: NMS-240-12 | C125: 17.91044776 | D125: 240 | E125: E | F125: =IF(1200/Table2[[#This Row],[Module rated power]]>6,6,ROUNDDOWN(1200/Table2[[#This Row],[Module rated power]],0)) -> 5 | G125: =Table2[[#This Row],[Module rated power]]*Table2[[#This Row],[Available No. of Slot]] -> 1200 | H125: =ROUNDDOWN(Table2[[#This Row],[Max power per output]]/Table2[[#This Row],[Output Voltage]],2) -> 89.55 | P125: Mauritius | R125: 15.1 | S125: =IF(S$1=0,0,IF(Configuration!$F$7="D",$R126,Table7[[#This Row],[Vo]])) -> 0 | T125: =IF(T$1=0,0,IF(Configuration!$F$8="D",$R126,Table7[[#This Row],[Vo]])) -> 0 | U125: =IF(U$1=0,0,IF(Configuration!$F$9="D",$R126,Table7[[#This Row],[Vo]])) -> 0 | V125: =IF(V$1=0,0,IF(Configuration!$F$10="D",$R126,Table7[[#This Row],[Vo]])) -> 0 | W125: =IF(W$1=0,0,IF(Configuration!$F$11="D",$R126,Table7[[#This Row],[Vo]])) -> 0 | X125: =IF(X$1=0,0,IF(Configuration!$F$12="D",$R126,Table7[[#This Row],[Vo]])) -> 0 | Y125: =IF(Y$1=0,0,IF(Configuration!$F$13="D",$R126,Table7[[#This Row],[Vo]])) -> 0 | Z125: =IF(Z$1=0,0,IF(Configuration!$F$14="D",$R126,Table7[[#This Row],[Vo]])) -> 0 | AA125: =IF(AA$1=0,0,IF(Configuration!$F$15="D",$R126,Table7[[#This Row],[Vo]])) -> 0 | AB125: =IF(AB$1=0,0,IF(Configuration!$F$16="D",$R126,Table7[[#This Row],[Vo]])) -> 0 | AC125: =IF(AC$1=0,0,IF(Configuration!$F$17="D",$R126,Table7[[#This Row],[Vo]])) -> 0
A126: 13.5 | B126: NMS-240-12 | C126: 17.77777778 | D126: 240 | E126: E | F126: =IF(1200/Table2[[#This Row],[Module rated power]]>6,6,ROUNDDOWN(1200/Table2[[#This Row],[Module rated power]],0)) -> 5 | G126: =Table2[[#This Row],[Module rated power]]*Table2[[#This Row],[Available No. of Slot]] -> 1200 | H126: =ROUNDDOWN(Table2[[#This Row],[Max power per output]]/Table2[[#This Row],[Output Voltage]],2) -> 88.88 | P126: Mexico | R126: 15.2 | S126: =IF(S$1=0,0,IF(Configuration!$F$7="D",$R127,Table7[[#This Row],[Vo]])) -> 0 | T126: =IF(T$1=0,0,IF(Configuration!$F$8="D",$R127,Table7[[#This Row],[Vo]])) -> 0 | U126: =IF(U$1=0,0,IF(Configuration!$F$9="D",$R127,Table7[[#This Row],[Vo]])) -> 0 | V126: =IF(V$1=0,0,IF(Configuration!$F$10="D",$R127,Table7[[#This Row],[Vo]])) -> 0 | W126: =IF(W$1=0,0,IF(Configuration!$F$11="D",$R127,Table7[[#This Row],[Vo]])) -> 0 | X126: =IF(X$1=0,0,IF(Configuration!$F$12="D",$R127,Table7[[#This Row],[Vo]])) -> 0 | Y126: =IF(Y$1=0,0,IF(Configuration!$F$13="D",$R127,Table7[[#This Row],[Vo]])) -> 0 | Z126: =IF(Z$1=0,0,IF(Configuration!$F$14="D",$R127,Table7[[#This Row],[Vo]])) -> 0 | AA126: =IF(AA$1=0,0,IF(Configuration!$F$15="D",$R127,Table7[[#This Row],[Vo]])) -> 0 | AB126: =IF(AB$1=0,0,IF(Configuration!$F$16="D",$R127,Table7[[#This Row],[Vo]])) -> 0 | AC126: =IF(AC$1=0,0,IF(Configuration!$F$17="D",$R127,Table7[[#This Row],[Vo]])) -> 0
A127: 13.6 | B127: NMS-240-12 | C127: 17.64705882 | D127: 240 | E127: E | F127: =IF(1200/Table2[[#This Row],[Module rated power]]>6,6,ROUNDDOWN(1200/Table2[[#This Row],[Module rated power]],0)) -> 5 | G127: =Table2[[#This Row],[Module rated power]]*Table2[[#This Row],[Available No. of Slot]] -> 1200 | H127: =ROUNDDOWN(Table2[[#This Row],[Max power per output]]/Table2[[#This Row],[Output Voltage]],2) -> 88.23 | P127: Monaco | R127: 15.3 | S127: =IF(S$1=0,0,IF(Configuration!$F$7="D",$R128,Table7[[#This Row],[Vo]])) -> 0 | T127: =IF(T$1=0,0,IF(Configuration!$F$8="D",$R128,Table7[[#This Row],[Vo]])) -> 0 | U127: =IF(U$1=0,0,IF(Configuration!$F$9="D",$R128,Table7[[#This Row],[Vo]])) -> 0 | V127: =IF(V$1=0,0,IF(Configuration!$F$10="D",$R128,Table7[[#This Row],[Vo]])) -> 0 | W127: =IF(W$1=0,0,IF(Configuration!$F$11="D",$R128,Table7[[#This Row],[Vo]])) -> 0 | X127: =IF(X$1=0,0,IF(Configuration!$F$12="D",$R128,Table7[[#This Row],[Vo]])) -> 0 | Y127: =IF(Y$1=0,0,IF(Configuration!$F$13="D",$R128,Table7[[#This Row],[Vo]])) -> 0 | Z127: =IF(Z$1=0,0,IF(Configuration!$F$14="D",$R128,Table7[[#This Row],[Vo]])) -> 0 | AA127: =IF(AA$1=0,0,IF(Configuration!$F$15="D",$R128,Table7[[#This Row],[Vo]])) -> 0 | AB127: =IF(AB$1=0,0,IF(Configuration!$F$16="D",$R128,Table7[[#This Row],[Vo]])) -> 0 | AC127: =IF(AC$1=0,0,IF(Configuration!$F$17="D",$R128,Table7[[#This Row],[Vo]])) -> 0
A128: 13.7 | B128: NMS-240-12 | C128: 17.51824818 | D128: 240 | E128: E | F128: =IF(1200/Table2[[#This Row],[Module rated power]]>6,6,ROUNDDOWN(1200/Table2[[#This Row],[Module rated power]],0)) -> 5 | G128: =Table2[[#This Row],[Module rated power]]*Table2[[#This Row],[Available No. of Slot]] -> 1200 | H128: =ROUNDDOWN(Table2[[#This Row],[Max power per output]]/Table2[[#This Row],[Output Voltage]],2) -> 87.59 | P128: Montenegro | R128: 15.4 | S128: =IF(S$1=0,0,IF(Configuration!$F$7="D",$R129,Table7[[#This Row],[Vo]])) -> 0 | T128: =IF(T$1=0,0,IF(Configuration!$F$8="D",$R129,Table7[[#This Row],[Vo]])) -> 0 | U128: =IF(U$1=0,0,IF(Configuration!$F$9="D",$R129,Table7[[#This Row],[Vo]])) -> 0 | V128: =IF(V$1=0,0,IF(Configuration!$F$10="D",$R129,Table7[[#This Row],[Vo]])) -> 0 | W128: =IF(W$1=0,0,IF(Configuration!$F$11="D",$R129,Table7[[#This Row],[Vo]])) -> 0 | X128: =IF(X$1=0,0,IF(Configuration!$F$12="D",$R129,Table7[[#This Row],[Vo]])) -> 0 | Y128: =IF(Y$1=0,0,IF(Configuration!$F$13="D",$R129,Table7[[#This Row],[Vo]])) -> 0 | Z128: =IF(Z$1=0,0,IF(Configuration!$F$14="D",$R129,Table7[[#This Row],[Vo]])) -> 0 | AA128: =IF(AA$1=0,0,IF(Configuration!$F$15="D",$R129,Table7[[#This Row],[Vo]])) -> 0 | AB128: =IF(AB$1=0,0,IF(Configuration!$F$16="D",$R129,Table7[[#This Row],[Vo]])) -> 0 | AC128: =IF(AC$1=0,0,IF(Configuration!$F$17="D",$R129,Table7[[#This Row],[Vo]])) -> 0
A129: 13.8 | B129: NMS-240-12 | C129: 17.39130435 | D129: 240 | E129: E | F129: =IF(1200/Table2[[#This Row],[Module rated power]]>6,6,ROUNDDOWN(1200/Table2[[#This Row],[Module rated power]],0)) -> 5 | G129: =Table2[[#This Row],[Module rated power]]*Table2[[#This Row],[Available No. of Slot]] -> 1200 | H129: =ROUNDDOWN(Table2[[#This Row],[Max power per output]]/Table2[[#This Row],[Output Voltage]],2) -> 86.95 | P129: Morocco | R129: 15.5 | S129: =IF(S$1=0,0,IF(Configuration!$F$7="D",$R130,Table7[[#This Row],[Vo]])) -> 0 | T129: =IF(T$1=0,0,IF(Configuration!$F$8="D",$R130,Table7[[#This Row],[Vo]])) -> 0 | U129: =IF(U$1=0,0,IF(Configuration!$F$9="D",$R130,Table7[[#This Row],[Vo]])) -> 0 | V129: =IF(V$1=0,0,IF(Configuration!$F$10="D",$R130,Table7[[#This Row],[Vo]])) -> 0 | W129: =IF(W$1=0,0,IF(Configuration!$F$11="D",$R130,Table7[[#This Row],[Vo]])) -> 0 | X129: =IF(X$1=0,0,IF(Configuration!$F$12="D",$R130,Table7[[#This Row],[Vo]])) -> 0 | Y129: =IF(Y$1=0,0,IF(Configuration!$F$13="D",$R130,Table7[[#This Row],[Vo]])) -> 0 | Z129: =IF(Z$1=0,0,IF(Configuration!$F$14="D",$R130,Table7[[#This Row],[Vo]])) -> 0 | AA129: =IF(AA$1=0,0,IF(Configuration!$F$15="D",$R130,Table7[[#This Row],[Vo]])) -> 0 | AB129: =IF(AB$1=0,0,IF(Configuration!$F$16="D",$R130,Table7[[#This Row],[Vo]])) -> 0 | AC129: =IF(AC$1=0,0,IF(Configuration!$F$17="D",$R130,Table7[[#This Row],[Vo]])) -> 0
A130: 13.9 | B130: NMS-240-12 | C130: 17.26618705 | D130: 240 | E130: E | F130: =IF(1200/Table2[[#This Row],[Module rated power]]>6,6,ROUNDDOWN(1200/Table2[[#This Row],[Module rated power]],0)) -> 5 | G130: =Table2[[#This Row],[Module rated power]]*Table2[[#This Row],[Available No. of Slot]] -> 1200 | H130: =ROUNDDOWN(Table2[[#This Row],[Max power per output]]/Table2[[#This Row],[Output Voltage]],2) -> 86.33 | P130: Nauru | R130: 15.6 | S130: =IF(S$1=0,0,IF(Configuration!$F$7="D",$R131,Table7[[#This Row],[Vo]])) -> 0 | T130: =IF(T$1=0,0,IF(Configuration!$F$8="D",$R131,Table7[[#This Row],[Vo]])) -> 0 | U130: =IF(U$1=0,0,IF(Configuration!$F$9="D",$R131,Table7[[#This Row],[Vo]])) -> 0 | V130: =IF(V$1=0,0,IF(Configuration!$F$10="D",$R131,Table7[[#This Row],[Vo]])) -> 0 | W130: =IF(W$1=0,0,IF(Configuration!$F$11="D",$R131,Table7[[#This Row],[Vo]])) -> 0 | X130: =IF(X$1=0,0,IF(Configuration!$F$12="D",$R131,Table7[[#This Row],[Vo]])) -> 0 | Y130: =IF(Y$1=0,0,IF(Configuration!$F$13="D",$R131,Table7[[#This Row],[Vo]])) -> 0 | Z130: =IF(Z$1=0,0,IF(Configuration!$F$14="D",$R131,Table7[[#This Row],[Vo]])) -> 0 | AA130: =IF(AA$1=0,0,IF(Configuration!$F$15="D",$R131,Table7[[#This Row],[Vo]])) -> 0 | AB130: =IF(AB$1=0,0,IF(Configuration!$F$16="D",$R131,Table7[[#This Row],[Vo]])) -> 0 | AC130: =IF(AC$1=0,0,IF(Configuration!$F$17="D",$R131,Table7[[#This Row],[Vo]])) -> 0
A131: 14 | B131: NMS-240-12 | C131: 17.14285714 | D131: 240 | E131: E | F131: =IF(1200/Table2[[#This Row],[Module rated power]]>6,6,ROUNDDOWN(1200/Table2[[#This Row],[Module rated power]],0)) -> 5 | G131: =Table2[[#This Row],[Module rated power]]*Table2[[#This Row],[Available No. of Slot]] -> 1200 | H131: =ROUNDDOWN(Table2[[#This Row],[Max power per output]]/Table2[[#This Row],[Output Voltage]],2) -> 85.71 | P131: Nepal | R131: 15.7 | S131: =IF(S$1=0,0,IF(Configuration!$F$7="D",$R132,Table7[[#This Row],[Vo]])) -> 0 | T131: =IF(T$1=0,0,IF(Configuration!$F$8="D",$R132,Table7[[#This Row],[Vo]])) -> 0 | U131: =IF(U$1=0,0,IF(Configuration!$F$9="D",$R132,Table7[[#This Row],[Vo]])) -> 0 | V131: =IF(V$1=0,0,IF(Configuration!$F$10="D",$R132,Table7[[#This Row],[Vo]])) -> 0 | W131: =IF(W$1=0,0,IF(Configuration!$F$11="D",$R132,Table7[[#This Row],[Vo]])) -> 0 | X131: =IF(X$1=0,0,IF(Configuration!$F$12="D",$R132,Table7[[#This Row],[Vo]])) -> 0 | Y131: =IF(Y$1=0,0,IF(Configuration!$F$13="D",$R132,Table7[[#This Row],[Vo]])) -> 0 | Z131: =IF(Z$1=0,0,IF(Configuration!$F$14="D",$R132,Table7[[#This Row],[Vo]])) -> 0 | AA131: =IF(AA$1=0,0,IF(Configuration!$F$15="D",$R132,Table7[[#This Row],[Vo]])) -> 0 | AB131: =IF(AB$1=0,0,IF(Configuration!$F$16="D",$R132,Table7[[#This Row],[Vo]])) -> 0 | AC131: =IF(AC$1=0,0,IF(Configuration!$F$17="D",$R132,Table7[[#This Row],[Vo]])) -> 0
A132: 14.1 | B132: NMS-240-12 | C132: 17.0212766 | D132: 240 | E132: E | F132: =IF(1200/Table2[[#This Row],[Module rated power]]>6,6,ROUNDDOWN(1200/Table2[[#This Row],[Module rated power]],0)) -> 5 | G132: =Table2[[#This Row],[Module rated power]]*Table2[[#This Row],[Available No. of Slot]] -> 1200 | H132: =ROUNDDOWN(Table2[[#This Row],[Max power per output]]/Table2[[#This Row],[Output Voltage]],2) -> 85.1 | P132: Nicaragua | R132: 15.8 | S132: =IF(S$1=0,0,IF(Configuration!$F$7="D",$R133,Table7[[#This Row],[Vo]])) -> 0 | T132: =IF(T$1=0,0,IF(Configuration!$F$8="D",$R133,Table7[[#This Row],[Vo]])) -> 0 | U132: =IF(U$1=0,0,IF(Configuration!$F$9="D",$R133,Table7[[#This Row],[Vo]])) -> 0 | V132: =IF(V$1=0,0,IF(Configuration!$F$10="D",$R133,Table7[[#This Row],[Vo]])) -> 0 | W132: =IF(W$1=0,0,IF(Configuration!$F$11="D",$R133,Table7[[#This Row],[Vo]])) -> 0 | X132: =IF(X$1=0,0,IF(Configuration!$F$12="D",$R133,Table7[[#This Row],[Vo]])) -> 0 | Y132: =IF(Y$1=0,0,IF(Configuration!$F$13="D",$R133,Table7[[#This Row],[Vo]])) -> 0 | Z132: =IF(Z$1=0,0,IF(Configuration!$F$14="D",$R133,Table7[[#This Row],[Vo]])) -> 0 | AA132: =IF(AA$1=0,0,IF(Configuration!$F$15="D",$R133,Table7[[#This Row],[Vo]])) -> 0 | AB132: =IF(AB$1=0,0,IF(Configuration!$F$16="D",$R133,Table7[[#This Row],[Vo]])) -> 0 | AC132: =IF(AC$1=0,0,IF(Configuration!$F$17="D",$R133,Table7[[#This Row],[Vo]])) -> 0
A133: 14.2 | B133: NMS-240-12 | C133: 16.90140845 | D133: 240 | E133: E | F133: =IF(1200/Table2[[#This Row],[Module rated power]]>6,6,ROUNDDOWN(1200/Table2[[#This Row],[Module rated power]],0)) -> 5 | G133: =Table2[[#This Row],[Module rated power]]*Table2[[#This Row],[Available No. of Slot]] -> 1200 | H133: =ROUNDDOWN(Table2[[#This Row],[Max power per output]]/Table2[[#This Row],[Output Voltage]],2) -> 84.5 | P133: Niger | R133: 15.9 | S133: =IF(S$1=0,0,IF(Configuration!$F$7="D",$R134,Table7[[#This Row],[Vo]])) -> 0 | T133: =IF(T$1=0,0,IF(Configuration!$F$8="D",$R134,Table7[[#This Row],[Vo]])) -> 0 | U133: =IF(U$1=0,0,IF(Configuration!$F$9="D",$R134,Table7[[#This Row],[Vo]])) -> 0 | V133: =IF(V$1=0,0,IF(Configuration!$F$10="D",$R134,Table7[[#This Row],[Vo]])) -> 0 | W133: =IF(W$1=0,0,IF(Configuration!$F$11="D",$R134,Table7[[#This Row],[Vo]])) -> 0 | X133: =IF(X$1=0,0,IF(Configuration!$F$12="D",$R134,Table7[[#This Row],[Vo]])) -> 0 | Y133: =IF(Y$1=0,0,IF(Configuration!$F$13="D",$R134,Table7[[#This Row],[Vo]])) -> 0 | Z133: =IF(Z$1=0,0,IF(Configuration!$F$14="D",$R134,Table7[[#This Row],[Vo]])) -> 0 | AA133: =IF(AA$1=0,0,IF(Configuration!$F$15="D",$R134,Table7[[#This Row],[Vo]])) -> 0 | AB133: =IF(AB$1=0,0,IF(Configuration!$F$16="D",$R134,Table7[[#This Row],[Vo]])) -> 0 | AC133: =IF(AC$1=0,0,IF(Configuration!$F$17="D",$R134,Table7[[#This Row],[Vo]])) -> 0
A134: 14.3 | B134: NMS-240-12 | C134: 16.78321678 | D134: 240 | E134: E | F134: =IF(1200/Table2[[#This Row],[Module rated power]]>6,6,ROUNDDOWN(1200/Table2[[#This Row],[Module rated power]],0)) -> 5 | G134: =Table2[[#This Row],[Module rated power]]*Table2[[#This Row],[Available No. of Slot]] -> 1200 | H134: =ROUNDDOWN(Table2[[#This Row],[Max power per output]]/Table2[[#This Row],[Output Voltage]],2) -> 83.91 | P134: Namibia | R134: =ROUNDUP(R133+0.1,1) -> 16 | S134: =IF(S$1=0,0,IF(Configuration!$F$7="D",$R135,Table7[[#This Row],[Vo]])) -> 0 | T134: =IF(T$1=0,0,IF(Configuration!$F$8="D",$R135,Table7[[#This Row],[Vo]])) -> 0 | U134: =IF(U$1=0,0,IF(Configuration!$F$9="D",$R135,Table7[[#This Row],[Vo]])) -> 0 | V134: =IF(V$1=0,0,IF(Configuration!$F$10="D",$R135,Table7[[#This Row],[Vo]])) -> 0 | W134: =IF(W$1=0,0,IF(Configuration!$F$11="D",$R135,Table7[[#This Row],[Vo]])) -> 0 | X134: =IF(X$1=0,0,IF(Configuration!$F$12="D",$R135,Table7[[#This Row],[Vo]])) -> 0 | Y134: =IF(Y$1=0,0,IF(Configuration!$F$13="D",$R135,Table7[[#This Row],[Vo]])) -> 0 | Z134: =IF(Z$1=0,0,IF(Configuration!$F$14="D",$R135,Table7[[#This Row],[Vo]])) -> 0 | AA134: =IF(AA$1=0,0,IF(Configuration!$F$15="D",$R135,Table7[[#This Row],[Vo]])) -> 0 | AB134: =IF(AB$1=0,0,IF(Configuration!$F$16="D",$R135,Table7[[#This Row],[Vo]])) -> 0 | AC134: =IF(AC$1=0,0,IF(Configuration!$F$17="D",$R135,Table7[[#This Row],[Vo]])) -> 0
A135: 14.4 | B135: NMS-240-12 | C135: 16.66666667 | D135: 240 | E135: E | F135: =IF(1200/Table2[[#This Row],[Module rated power]]>6,6,ROUNDDOWN(1200/Table2[[#This Row],[Module rated power]],0)) -> 5 | G135: =Table2[[#This Row],[Module rated power]]*Table2[[#This Row],[Available No. of Slot]] -> 1200 | H135: =ROUNDDOWN(Table2[[#This Row],[Max power per output]]/Table2[[#This Row],[Output Voltage]],2) -> 83.33 | P135: Netherlands | R135: 16.1 | S135: =IF(S$1=0,0,IF(Configuration!$F$7="D",$R136,Table7[[#This Row],[Vo]])) -> 0 | T135: =IF(T$1=0,0,IF(Configuration!$F$8="D",$R136,Table7[[#This Row],[Vo]])) -> 0 | U135: =IF(U$1=0,0,IF(Configuration!$F$9="D",$R136,Table7[[#This Row],[Vo]])) -> 0 | V135: =IF(V$1=0,0,IF(Configuration!$F$10="D",$R136,Table7[[#This Row],[Vo]])) -> 0 | W135: =IF(W$1=0,0,IF(Configuration!$F$11="D",$R136,Table7[[#This Row],[Vo]])) -> 0 | X135: =IF(X$1=0,0,IF(Configuration!$F$12="D",$R136,Table7[[#This Row],[Vo]])) -> 0 | Y135: =IF(Y$1=0,0,IF(Configuration!$F$13="D",$R136,Table7[[#This Row],[Vo]])) -> 0 | Z135: =IF(Z$1=0,0,IF(Configuration!$F$14="D",$R136,Table7[[#This Row],[Vo]])) -> 0 | AA135: =IF(AA$1=0,0,IF(Configuration!$F$15="D",$R136,Table7[[#This Row],[Vo]])) -> 0 | AB135: =IF(AB$1=0,0,IF(Configuration!$F$16="D",$R136,Table7[[#This Row],[Vo]])) -> 0 | AC135: =IF(AC$1=0,0,IF(Configuration!$F$17="D",$R136,Table7[[#This Row],[Vo]])) -> 0
A136: 14.5 | B136: NMS-240-12 | C136: 16.55172414 | D136: 240 | E136: E | F136: =IF(1200/Table2[[#This Row],[Module rated power]]>6,6,ROUNDDOWN(1200/Table2[[#This Row],[Module rated power]],0)) -> 5 | G136: =Table2[[#This Row],[Module rated power]]*Table2[[#This Row],[Available No. of Slot]] -> 1200 | H136: =ROUNDDOWN(Table2[[#This Row],[Max power per output]]/Table2[[#This Row],[Output Voltage]],2) -> 82.75 | P136: New Zealand | R136: 16.2 | S136: =IF(S$1=0,0,IF(Configuration!$F$7="D",$R137,Table7[[#This Row],[Vo]])) -> 0 | T136: =IF(T$1=0,0,IF(Configuration!$F$8="D",$R137,Table7[[#This Row],[Vo]])) -> 0 | U136: =IF(U$1=0,0,IF(Configuration!$F$9="D",$R137,Table7[[#This Row],[Vo]])) -> 0 | V136: =IF(V$1=0,0,IF(Configuration!$F$10="D",$R137,Table7[[#This Row],[Vo]])) -> 0 | W136: =IF(W$1=0,0,IF(Configuration!$F$11="D",$R137,Table7[[#This Row],[Vo]])) -> 0 | X136: =IF(X$1=0,0,IF(Configuration!$F$12="D",$R137,Table7[[#This Row],[Vo]])) -> 0 | Y136: =IF(Y$1=0,0,IF(Configuration!$F$13="D",$R137,Table7[[#This Row],[Vo]])) -> 0 | Z136: =IF(Z$1=0,0,IF(Configuration!$F$14="D",$R137,Table7[[#This Row],[Vo]])) -> 0 | AA136: =IF(AA$1=0,0,IF(Configuration!$F$15="D",$R137,Table7[[#This Row],[Vo]])) -> 0 | AB136: =IF(AB$1=0,0,IF(Configuration!$F$16="D",$R137,Table7[[#This Row],[Vo]])) -> 0 | AC136: =IF(AC$1=0,0,IF(Configuration!$F$17="D",$R137,Table7[[#This Row],[Vo]])) -> 0
A137: 14.6 | B137: NMS-240-12 | C137: 16.43835616 | D137: 240 | E137: E | F137: =IF(1200/Table2[[#This Row],[Module rated power]]>6,6,ROUNDDOWN(1200/Table2[[#This Row],[Module rated power]],0)) -> 5 | G137: =Table2[[#This Row],[Module rated power]]*Table2[[#This Row],[Available No. of Slot]] -> 1200 | H137: =ROUNDDOWN(Table2[[#This Row],[Max power per output]]/Table2[[#This Row],[Output Voltage]],2) -> 82.19 | P137: Nigeria | R137: 16.3 | S137: =IF(S$1=0,0,IF(Configuration!$F$7="D",$R138,Table7[[#This Row],[Vo]])) -> 0 | T137: =IF(T$1=0,0,IF(Configuration!$F$8="D",$R138,Table7[[#This Row],[Vo]])) -> 0 | U137: =IF(U$1=0,0,IF(Configuration!$F$9="D",$R138,Table7[[#This Row],[Vo]])) -> 0 | V137: =IF(V$1=0,0,IF(Configuration!$F$10="D",$R138,Table7[[#This Row],[Vo]])) -> 0 | W137: =IF(W$1=0,0,IF(Configuration!$F$11="D",$R138,Table7[[#This Row],[Vo]])) -> 0 | X137: =IF(X$1=0,0,IF(Configuration!$F$12="D",$R138,Table7[[#This Row],[Vo]])) -> 0 | Y137: =IF(Y$1=0,0,IF(Configuration!$F$13="D",$R138,Table7[[#This Row],[Vo]])) -> 0 | Z137: =IF(Z$1=0,0,IF(Configuration!$F$14="D",$R138,Table7[[#This Row],[Vo]])) -> 0 | AA137: =IF(AA$1=0,0,IF(Configuration!$F$15="D",$R138,Table7[[#This Row],[Vo]])) -> 0 | AB137: =IF(AB$1=0,0,IF(Configuration!$F$16="D",$R138,Table7[[#This Row],[Vo]])) -> 0 | AC137: =IF(AC$1=0,0,IF(Configuration!$F$17="D",$R138,Table7[[#This Row],[Vo]])) -> 0
A138: 14.7 | B138: NMS-240-12 | C138: 16.32653061 | D138: 240 | E138: E | F138: =IF(1200/Table2[[#This Row],[Module rated power]]>6,6,ROUNDDOWN(1200/Table2[[#This Row],[Module rated power]],0)) -> 5 | G138: =Table2[[#This Row],[Module rated power]]*Table2[[#This Row],[Available No. of Slot]] -> 1200 | H138: =ROUNDDOWN(Table2[[#This Row],[Max power per output]]/Table2[[#This Row],[Output Voltage]],2) -> 81.63 | P138: Norway | R138: 16.4 | S138: =IF(S$1=0,0,IF(Configuration!$F$7="D",$R139,Table7[[#This Row],[Vo]])) -> 0 | T138: =IF(T$1=0,0,IF(Configuration!$F$8="D",$R139,Table7[[#This Row],[Vo]])) -> 0 | U138: =IF(U$1=0,0,IF(Configuration!$F$9="D",$R139,Table7[[#This Row],[Vo]])) -> 0 | V138: =IF(V$1=0,0,IF(Configuration!$F$10="D",$R139,Table7[[#This Row],[Vo]])) -> 0 | W138: =IF(W$1=0,0,IF(Configuration!$F$11="D",$R139,Table7[[#This Row],[Vo]])) -> 0 | X138: =IF(X$1=0,0,IF(Configuration!$F$12="D",$R139,Table7[[#This Row],[Vo]])) -> 0 | Y138: =IF(Y$1=0,0,IF(Configuration!$F$13="D",$R139,Table7[[#This Row],[Vo]])) -> 0 | Z138: =IF(Z$1=0,0,IF(Configuration!$F$14="D",$R139,Table7[[#This Row],[Vo]])) -> 0 | AA138: =IF(AA$1=0,0,IF(Configuration!$F$15="D",$R139,Table7[[#This Row],[Vo]])) -> 0 | AB138: =IF(AB$1=0,0,IF(Configuration!$F$16="D",$R139,Table7[[#This Row],[Vo]])) -> 0 | AC138: =IF(AC$1=0,0,IF(Configuration!$F$17="D",$R139,Table7[[#This Row],[Vo]])) -> 0
A139: 14.8 | B139: NMS-240-12 | C139: 16.21621622 | D139: 240 | E139: E | F139: =IF(1200/Table2[[#This Row],[Module rated power]]>6,6,ROUNDDOWN(1200/Table2[[#This Row],[Module rated power]],0)) -> 5 | G139: =Table2[[#This Row],[Module rated power]]*Table2[[#This Row],[Available No. of Slot]] -> 1200 | H139: =ROUNDDOWN(Table2[[#This Row],[Max power per output]]/Table2[[#This Row],[Output Voltage]],2) -> 81.08 | P139: Oman | R139: 16.5 | S139: =IF(S$1=0,0,IF(Configuration!$F$7="D",$R140,Table7[[#This Row],[Vo]])) -> 0 | T139: =IF(T$1=0,0,IF(Configuration!$F$8="D",$R140,Table7[[#This Row],[Vo]])) -> 0 | U139: =IF(U$1=0,0,IF(Configuration!$F$9="D",$R140,Table7[[#This Row],[Vo]])) -> 0 | V139: =IF(V$1=0,0,IF(Configuration!$F$10="D",$R140,Table7[[#This Row],[Vo]])) -> 0 | W139: =IF(W$1=0,0,IF(Configuration!$F$11="D",$R140,Table7[[#This Row],[Vo]])) -> 0 | X139: =IF(X$1=0,0,IF(Configuration!$F$12="D",$R140,Table7[[#This Row],[Vo]])) -> 0 | Y139: =IF(Y$1=0,0,IF(Configuration!$F$13="D",$R140,Table7[[#This Row],[Vo]])) -> 0 | Z139: =IF(Z$1=0,0,IF(Configuration!$F$14="D",$R140,Table7[[#This Row],[Vo]])) -> 0 | AA139: =IF(AA$1=0,0,IF(Configuration!$F$15="D",$R140,Table7[[#This Row],[Vo]])) -> 0 | AB139: =IF(AB$1=0,0,IF(Configuration!$F$16="D",$R140,Table7[[#This Row],[Vo]])) -> 0 | AC139: =IF(AC$1=0,0,IF(Configuration!$F$17="D",$R140,Table7[[#This Row],[Vo]])) -> 0
A140: 14.9 | B140: NMS-240-12 | C140: 16.10738255 | D140: 240 | E140: E | F140: =IF(1200/Table2[[#This Row],[Module rated power]]>6,6,ROUNDDOWN(1200/Table2[[#This Row],[Module rated power]],0)) -> 5 | G140: =Table2[[#This Row],[Module rated power]]*Table2[[#This Row],[Available No. of Slot]] -> 1200 | H140: =ROUNDDOWN(Table2[[#This Row],[Max power per output]]/Table2[[#This Row],[Output Voltage]],2) -> 80.53 | P140: Pakistan | R140: 16.6 | S140: =IF(S$1=0,0,IF(Configuration!$F$7="D",$R141,Table7[[#This Row],[Vo]])) -> 0 | T140: =IF(T$1=0,0,IF(Configuration!$F$8="D",$R141,Table7[[#This Row],[Vo]])) -> 0 | U140: =IF(U$1=0,0,IF(Configuration!$F$9="D",$R141,Table7[[#This Row],[Vo]])) -> 0 | V140: =IF(V$1=0,0,IF(Configuration!$F$10="D",$R141,Table7[[#This Row],[Vo]])) -> 0 | W140: =IF(W$1=0,0,IF(Configuration!$F$11="D",$R141,Table7[[#This Row],[Vo]])) -> 0 | X140: =IF(X$1=0,0,IF(Configuration!$F$12="D",$R141,Table7[[#This Row],[Vo]])) -> 0 | Y140: =IF(Y$1=0,0,IF(Configuration!$F$13="D",$R141,Table7[[#This Row],[Vo]])) -> 0 | Z140: =IF(Z$1=0,0,IF(Configuration!$F$14="D",$R141,Table7[[#This Row],[Vo]])) -> 0 | AA140: =IF(AA$1=0,0,IF(Configuration!$F$15="D",$R141,Table7[[#This Row],[Vo]])) -> 0 | AB140: =IF(AB$1=0,0,IF(Configuration!$F$16="D",$R141,Table7[[#This Row],[Vo]])) -> 0 | AC140: =IF(AC$1=0,0,IF(Configuration!$F$17="D",$R141,Table7[[#This Row],[Vo]])) -> 0
A141: 15 | B141: NMS-240-12 | C141: 16 | D141: 240 | E141: E | F141: =IF(1200/Table2[[#This Row],[Module rated power]]>6,6,ROUNDDOWN(1200/Table2[[#This Row],[Module rated power]],0)) -> 5 | G141: =Table2[[#This Row],[Module rated power]]*Table2[[#This Row],[Available No. of Slot]] -> 1200 | H141: =ROUNDDOWN(Table2[[#This Row],[Max power per output]]/Table2[[#This Row],[Output Voltage]],2) -> 80 | P141: Palestinian Territory | R141: 16.7 | S141: =IF(S$1=0,0,IF(Configuration!$F$7="D",$R142,Table7[[#This Row],[Vo]])) -> 0 | T141: =IF(T$1=0,0,IF(Configuration!$F$8="D",$R142,Table7[[#This Row],[Vo]])) -> 0 | U141: =IF(U$1=0,0,IF(Configuration!$F$9="D",$R142,Table7[[#This Row],[Vo]])) -> 0 | V141: =IF(V$1=0,0,IF(Configuration!$F$10="D",$R142,Table7[[#This Row],[Vo]])) -> 0 | W141: =IF(W$1=0,0,IF(Configuration!$F$11="D",$R142,Table7[[#This Row],[Vo]])) -> 0 | X141: =IF(X$1=0,0,IF(Configuration!$F$12="D",$R142,Table7[[#This Row],[Vo]])) -> 0 | Y141: =IF(Y$1=0,0,IF(Configuration!$F$13="D",$R142,Table7[[#This Row],[Vo]])) -> 0 | Z141: =IF(Z$1=0,0,IF(Configuration!$F$14="D",$R142,Table7[[#This Row],[Vo]])) -> 0 | AA141: =IF(AA$1=0,0,IF(Configuration!$F$15="D",$R142,Table7[[#This Row],[Vo]])) -> 0 | AB141: =IF(AB$1=0,0,IF(Configuration!$F$16="D",$R142,Table7[[#This Row],[Vo]])) -> 0 | AC141: =IF(AC$1=0,0,IF(Configuration!$F$17="D",$R142,Table7[[#This Row],[Vo]])) -> 0
A142: 15.1 | B142: NMS-240-24 | C142: 10 | D142: =Table2[[#This Row],[Output Voltage]]*Table2[[#This Row],[Module rated current]] -> 151 | E142: H | F142: =IF(1200/Table2[[#This Row],[Module rated power]]>6,6,ROUNDDOWN(1200/Table2[[#This Row],[Module rated power]],0)) -> 6 | G142: =Table2[[#This Row],[Module rated power]]*Table2[[#This Row],[Available No. of Slot]] -> 906 | H142: =ROUNDDOWN(Table2[[#This Row],[Max power per output]]/Table2[[#This Row],[Output Voltage]],2) -> 60 | P142: Panama | R142: 16.8 | S142: =IF(S$1=0,0,IF(Configuration!$F$7="D",$R143,Table7[[#This Row],[Vo]])) -> 0 | T142: =IF(T$1=0,0,IF(Configuration!$F$8="D",$R143,Table7[[#This Row],[Vo]])) -> 0 | U142: =IF(U$1=0,0,IF(Configuration!$F$9="D",$R143,Table7[[#This Row],[Vo]])) -> 0 | V142: =IF(V$1=0,0,IF(Configuration!$F$10="D",$R143,Table7[[#This Row],[Vo]])) -> 0 | W142: =IF(W$1=0,0,IF(Configuration!$F$11="D",$R143,Table7[[#This Row],[Vo]])) -> 0 | X142: =IF(X$1=0,0,IF(Configuration!$F$12="D",$R143,Table7[[#This Row],[Vo]])) -> 0 | Y142: =IF(Y$1=0,0,IF(Configuration!$F$13="D",$R143,Table7[[#This Row],[Vo]])) -> 0 | Z142: =IF(Z$1=0,0,IF(Configuration!$F$14="D",$R143,Table7[[#This Row],[Vo]])) -> 0 | AA142: =IF(AA$1=0,0,IF(Configuration!$F$15="D",$R143,Table7[[#This Row],[Vo]])) -> 0 | AB142: =IF(AB$1=0,0,IF(Configuration!$F$16="D",$R143,Table7[[#This Row],[Vo]])) -> 0 | AC142: =IF(AC$1=0,0,IF(Configuration!$F$17="D",$R143,Table7[[#This Row],[Vo]])) -> 0
A143: 15.2 | B143: NMS-240-24 | C143: 10 | D143: =Table2[[#This Row],[Output Voltage]]*Table2[[#This Row],[Module rated current]] -> 152 | E143: H | F143: =IF(1200/Table2[[#This Row],[Module rated power]]>6,6,ROUNDDOWN(1200/Table2[[#This Row],[Module rated power]],0)) -> 6 | G143: =Table2[[#This Row],[Module rated power]]*Table2[[#This Row],[Available No. of Slot]] -> 912 | H143: =ROUNDDOWN(Table2[[#This Row],[Max power per output]]/Table2[[#This Row],[Output Voltage]],2) -> 60 | P143: Papua New Guinea | R143: 16.9 | S143: =IF(S$1=0,0,IF(Configuration!$F$7="D",$R144,Table7[[#This Row],[Vo]])) -> 0 | T143: =IF(T$1=0,0,IF(Configuration!$F$8="D",$R144,Table7[[#This Row],[Vo]])) -> 0 | U143: =IF(U$1=0,0,IF(Configuration!$F$9="D",$R144,Table7[[#This Row],[Vo]])) -> 0 | V143: =IF(V$1=0,0,IF(Configuration!$F$10="D",$R144,Table7[[#This Row],[Vo]])) -> 0 | W143: =IF(W$1=0,0,IF(Configuration!$F$11="D",$R144,Table7[[#This Row],[Vo]])) -> 0 | X143: =IF(X$1=0,0,IF(Configuration!$F$12="D",$R144,Table7[[#This Row],[Vo]])) -> 0 | Y143: =IF(Y$1=0,0,IF(Configuration!$F$13="D",$R144,Table7[[#This Row],[Vo]])) -> 0 | Z143: =IF(Z$1=0,0,IF(Configuration!$F$14="D",$R144,Table7[[#This Row],[Vo]])) -> 0 | AA143: =IF(AA$1=0,0,IF(Configuration!$F$15="D",$R144,Table7[[#This Row],[Vo]])) -> 0 | AB143: =IF(AB$1=0,0,IF(Configuration!$F$16="D",$R144,Table7[[#This Row],[Vo]])) -> 0 | AC143: =IF(AC$1=0,0,IF(Configuration!$F$17="D",$R144,Table7[[#This Row],[Vo]])) -> 0
A144: 15.3 | B144: NMS-240-24 | C144: 10 | D144: =Table2[[#This Row],[Output Voltage]]*Table2[[#This Row],[Module rated current]] -> 153 | E144: H | F144: =IF(1200/Table2[[#This Row],[Module rated power]]>6,6,ROUNDDOWN(1200/Table2[[#This Row],[Module rated power]],0)) -> 6 | G144: =Table2[[#This Row],[Module rated power]]*Table2[[#This Row],[Available No. of Slot]] -> 918 | H144: =ROUNDDOWN(Table2[[#This Row],[Max power per output]]/Table2[[#This Row],[Output Voltage]],2) -> 60 | P144: Paraguay | R144: 17 | S144: =IF(S$1=0,0,IF(Configuration!$F$7="D",$R145,Table7[[#This Row],[Vo]])) -> 0 | T144: =IF(T$1=0,0,IF(Configuration!$F$8="D",$R145,Table7[[#This Row],[Vo]])) -> 0 | U144: =IF(U$1=0,0,IF(Configuration!$F$9="D",$R145,Table7[[#This Row],[Vo]])) -> 0 | V144: =IF(V$1=0,0,IF(Configuration!$F$10="D",$R145,Table7[[#This Row],[Vo]])) -> 0 | W144: =IF(W$1=0,0,IF(Configuration!$F$11="D",$R145,Table7[[#This Row],[Vo]])) -> 0 | X144: =IF(X$1=0,0,IF(Configuration!$F$12="D",$R145,Table7[[#This Row],[Vo]])) -> 0 | Y144: =IF(Y$1=0,0,IF(Configuration!$F$13="D",$R145,Table7[[#This Row],[Vo]])) -> 0 | Z144: =IF(Z$1=0,0,IF(Configuration!$F$14="D",$R145,Table7[[#This Row],[Vo]])) -> 0 | AA144: =IF(AA$1=0,0,IF(Configuration!$F$15="D",$R145,Table7[[#This Row],[Vo]])) -> 0 | AB144: =IF(AB$1=0,0,IF(Configuration!$F$16="D",$R145,Table7[[#This Row],[Vo]])) -> 0 | AC144: =IF(AC$1=0,0,IF(Configuration!$F$17="D",$R145,Table7[[#This Row],[Vo]])) -> 0
A145: 15.4 | B145: NMS-240-24 | C145: 10 | D145: =Table2[[#This Row],[Output Voltage]]*Table2[[#This Row],[Module rated current]] -> 154 | E145: H | F145: =IF(1200/Table2[[#This Row],[Module rated power]]>6,6,ROUNDDOWN(1200/Table2[[#This Row],[Module rated power]],0)) -> 6 | G145: =Table2[[#This Row],[Module rated power]]*Table2[[#This Row],[Available No. of Slot]] -> 924 | H145: =ROUNDDOWN(Table2[[#This Row],[Max power per output]]/Table2[[#This Row],[Output Voltage]],2) -> 60 | P145: Peru | R145: 17.1 | S145: =IF(S$1=0,0,IF(Configuration!$F$7="D",$R146,Table7[[#This Row],[Vo]])) -> 0 | T145: =IF(T$1=0,0,IF(Configuration!$F$8="D",$R146,Table7[[#This Row],[Vo]])) -> 0 | U145: =IF(U$1=0,0,IF(Configuration!$F$9="D",$R146,Table7[[#This Row],[Vo]])) -> 0 | V145: =IF(V$1=0,0,IF(Configuration!$F$10="D",$R146,Table7[[#This Row],[Vo]])) -> 0 | W145: =IF(W$1=0,0,IF(Configuration!$F$11="D",$R146,Table7[[#This Row],[Vo]])) -> 0 | X145: =IF(X$1=0,0,IF(Configuration!$F$12="D",$R146,Table7[[#This Row],[Vo]])) -> 0 | Y145: =IF(Y$1=0,0,IF(Configuration!$F$13="D",$R146,Table7[[#This Row],[Vo]])) -> 0 | Z145: =IF(Z$1=0,0,IF(Configuration!$F$14="D",$R146,Table7[[#This Row],[Vo]])) -> 0 | AA145: =IF(AA$1=0,0,IF(Configuration!$F$15="D",$R146,Table7[[#This Row],[Vo]])) -> 0 | AB145: =IF(AB$1=0,0,IF(Configuration!$F$16="D",$R146,Table7[[#This Row],[Vo]])) -> 0 | AC145: =IF(AC$1=0,0,IF(Configuration!$F$17="D",$R146,Table7[[#This Row],[Vo]])) -> 0
A146: 15.5 | B146: NMS-240-24 | C146: 10 | D146: =Table2[[#This Row],[Output Voltage]]*Table2[[#This Row],[Module rated current]] -> 155 | E146: H | F146: =IF(1200/Table2[[#This Row],[Module rated power]]>6,6,ROUNDDOWN(1200/Table2[[#This Row],[Module rated power]],0)) -> 6 | G146: =Table2[[#This Row],[Module rated power]]*Table2[[#This Row],[Available No. of Slot]] -> 930 | H146: =ROUNDDOWN(Table2[[#This Row],[Max power per output]]/Table2[[#This Row],[Output Voltage]],2) -> 60 | P146: Philippines | R146: 17.2 | S146: =IF(S$1=0,0,IF(Configuration!$F$7="D",$R147,Table7[[#This Row],[Vo]])) -> 0 | T146: =IF(T$1=0,0,IF(Configuration!$F$8="D",$R147,Table7[[#This Row],[Vo]])) -> 0 | U146: =IF(U$1=0,0,IF(Configuration!$F$9="D",$R147,Table7[[#This Row],[Vo]])) -> 0 | V146: =IF(V$1=0,0,IF(Configuration!$F$10="D",$R147,Table7[[#This Row],[Vo]])) -> 0 | W146: =IF(W$1=0,0,IF(Configuration!$F$11="D",$R147,Table7[[#This Row],[Vo]])) -> 0 | X146: =IF(X$1=0,0,IF(Configuration!$F$12="D",$R147,Table7[[#This Row],[Vo]])) -> 0 | Y146: =IF(Y$1=0,0,IF(Configuration!$F$13="D",$R147,Table7[[#This Row],[Vo]])) -> 0 | Z146: =IF(Z$1=0,0,IF(Configuration!$F$14="D",$R147,Table7[[#This Row],[Vo]])) -> 0 | AA146: =IF(AA$1=0,0,IF(Configuration!$F$15="D",$R147,Table7[[#This Row],[Vo]])) -> 0 | AB146: =IF(AB$1=0,0,IF(Configuration!$F$16="D",$R147,Table7[[#This Row],[Vo]])) -> 0 | AC146: =IF(AC$1=0,0,IF(Configuration!$F$17="D",$R147,Table7[[#This Row],[Vo]])) -> 0
A147: 15.6 | B147: NMS-240-24 | C147: 10 | D147: =Table2[[#This Row],[Output Voltage]]*Table2[[#This Row],[Module rated current]] -> 156 | E147: H | F147: =IF(1200/Table2[[#This Row],[Module rated power]]>6,6,ROUNDDOWN(1200/Table2[[#This Row],[Module rated power]],0)) -> 6 | G147: =Table2[[#This Row],[Module rated power]]*Table2[[#This Row],[Available No. of Slot]] -> 936 | H147: =ROUNDDOWN(Table2[[#This Row],[Max power per output]]/Table2[[#This Row],[Output Voltage]],2) -> 60 | P147: Poland | R147: 17.3 | S147: =IF(S$1=0,0,IF(Configuration!$F$7="D",$R148,Table7[[#This Row],[Vo]])) -> 0 | T147: =IF(T$1=0,0,IF(Configuration!$F$8="D",$R148,Table7[[#This Row],[Vo]])) -> 0 | U147: =IF(U$1=0,0,IF(Configuration!$F$9="D",$R148,Table7[[#This Row],[Vo]])) -> 0 | V147: =IF(V$1=0,0,IF(Configuration!$F$10="D",$R148,Table7[[#This Row],[Vo]])) -> 0 | W147: =IF(W$1=0,0,IF(Configuration!$F$11="D",$R148,Table7[[#This Row],[Vo]])) -> 0 | X147: =IF(X$1=0,0,IF(Configuration!$F$12="D",$R148,Table7[[#This Row],[Vo]])) -> 0 | Y147: =IF(Y$1=0,0,IF(Configuration!$F$13="D",$R148,Table7[[#This Row],[Vo]])) -> 0 | Z147: =IF(Z$1=0,0,IF(Configuration!$F$14="D",$R148,Table7[[#This Row],[Vo]])) -> 0 | AA147: =IF(AA$1=0,0,IF(Configuration!$F$15="D",$R148,Table7[[#This Row],[Vo]])) -> 0 | AB147: =IF(AB$1=0,0,IF(Configuration!$F$16="D",$R148,Table7[[#This Row],[Vo]])) -> 0 | AC147: =IF(AC$1=0,0,IF(Configuration!$F$17="D",$R148,Table7[[#This Row],[Vo]])) -> 0
A148: 15.7 | B148: NMS-240-24 | C148: 10 | D148: =Table2[[#This Row],[Output Voltage]]*Table2[[#This Row],[Module rated current]] -> 157 | E148: H | F148: =IF(1200/Table2[[#This Row],[Module rated power]]>6,6,ROUNDDOWN(1200/Table2[[#This Row],[Module rated power]],0)) -> 6 | G148: =Table2[[#This Row],[Module rated power]]*Table2[[#This Row],[Available No. of Slot]] -> 942 | H148: =ROUNDDOWN(Table2[[#This Row],[Max power per output]]/Table2[[#This Row],[Output Voltage]],2) -> 60 | P148: Portugal | R148: 17.4 | S148: =IF(S$1=0,0,IF(Configuration!$F$7="D",$R149,Table7[[#This Row],[Vo]])) -> 0 | T148: =IF(T$1=0,0,IF(Configuration!$F$8="D",$R149,Table7[[#This Row],[Vo]])) -> 0 | U148: =IF(U$1=0,0,IF(Configuration!$F$9="D",$R149,Table7[[#This Row],[Vo]])) -> 0 | V148: =IF(V$1=0,0,IF(Configuration!$F$10="D",$R149,Table7[[#This Row],[Vo]])) -> 0 | W148: =IF(W$1=0,0,IF(Configuration!$F$11="D",$R149,Table7[[#This Row],[Vo]])) -> 0 | X148: =IF(X$1=0,0,IF(Configuration!$F$12="D",$R149,Table7[[#This Row],[Vo]])) -> 0 | Y148: =IF(Y$1=0,0,IF(Configuration!$F$13="D",$R149,Table7[[#This Row],[Vo]])) -> 0 | Z148: =IF(Z$1=0,0,IF(Configuration!$F$14="D",$R149,Table7[[#This Row],[Vo]])) -> 0 | AA148: =IF(AA$1=0,0,IF(Configuration!$F$15="D",$R149,Table7[[#This Row],[Vo]])) -> 0 | AB148: =IF(AB$1=0,0,IF(Configuration!$F$16="D",$R149,Table7[[#This Row],[Vo]])) -> 0 | AC148: =IF(AC$1=0,0,IF(Configuration!$F$17="D",$R149,Table7[[#This Row],[Vo]])) -> 0
A149: 15.8 | B149: NMS-240-24 | C149: 10 | D149: =Table2[[#This Row],[Output Voltage]]*Table2[[#This Row],[Module rated current]] -> 158 | E149: H | F149: =IF(1200/Table2[[#This Row],[Module rated power]]>6,6,ROUNDDOWN(1200/Table2[[#This Row],[Module rated power]],0)) -> 6 | G149: =Table2[[#This Row],[Module rated power]]*Table2[[#This Row],[Available No. of Slot]] -> 948 | H149: =ROUNDDOWN(Table2[[#This Row],[Max power per output]]/Table2[[#This Row],[Output Voltage]],2) -> 60 | P149: Palau | R149: 17.5 | S149: =IF(S$1=0,0,IF(Configuration!$F$7="D",$R150,Table7[[#This Row],[Vo]])) -> 0 | T149: =IF(T$1=0,0,IF(Configuration!$F$8="D",$R150,Table7[[#This Row],[Vo]])) -> 0 | U149: =IF(U$1=0,0,IF(Configuration!$F$9="D",$R150,Table7[[#This Row],[Vo]])) -> 0 | V149: =IF(V$1=0,0,IF(Configuration!$F$10="D",$R150,Table7[[#This Row],[Vo]])) -> 0 | W149: =IF(W$1=0,0,IF(Configuration!$F$11="D",$R150,Table7[[#This Row],[Vo]])) -> 0 | X149: =IF(X$1=0,0,IF(Configuration!$F$12="D",$R150,Table7[[#This Row],[Vo]])) -> 0 | Y149: =IF(Y$1=0,0,IF(Configuration!$F$13="D",$R150,Table7[[#This Row],[Vo]])) -> 0 | Z149: =IF(Z$1=0,0,IF(Configuration!$F$14="D",$R150,Table7[[#This Row],[Vo]])) -> 0 | AA149: =IF(AA$1=0,0,IF(Configuration!$F$15="D",$R150,Table7[[#This Row],[Vo]])) -> 0 | AB149: =IF(AB$1=0,0,IF(Configuration!$F$16="D",$R150,Table7[[#This Row],[Vo]])) -> 0 | AC149: =IF(AC$1=0,0,IF(Configuration!$F$17="D",$R150,Table7[[#This Row],[Vo]])) -> 0
A150: 15.9 | B150: NMS-240-24 | C150: 10 | D150: =Table2[[#This Row],[Output Voltage]]*Table2[[#This Row],[Module rated current]] -> 159 | E150: H | F150: =IF(1200/Table2[[#This Row],[Module rated power]]>6,6,ROUNDDOWN(1200/Table2[[#This Row],[Module rated power]],0)) -> 6 | G150: =Table2[[#This Row],[Module rated power]]*Table2[[#This Row],[Available No. of Slot]] -> 954 | H150: =ROUNDDOWN(Table2[[#This Row],[Max power per output]]/Table2[[#This Row],[Output Voltage]],2) -> 60 | P150: Qatar | R150: 17.6 | S150: =IF(S$1=0,0,IF(Configuration!$F$7="D",$R151,Table7[[#This Row],[Vo]])) -> 0 | T150: =IF(T$1=0,0,IF(Configuration!$F$8="D",$R151,Table7[[#This Row],[Vo]])) -> 0 | U150: =IF(U$1=0,0,IF(Configuration!$F$9="D",$R151,Table7[[#This Row],[Vo]])) -> 0 | V150: =IF(V$1=0,0,IF(Configuration!$F$10="D",$R151,Table7[[#This Row],[Vo]])) -> 0 | W150: =IF(W$1=0,0,IF(Configuration!$F$11="D",$R151,Table7[[#This Row],[Vo]])) -> 0 | X150: =IF(X$1=0,0,IF(Configuration!$F$12="D",$R151,Table7[[#This Row],[Vo]])) -> 0 | Y150: =IF(Y$1=0,0,IF(Configuration!$F$13="D",$R151,Table7[[#This Row],[Vo]])) -> 0 | Z150: =IF(Z$1=0,0,IF(Configuration!$F$14="D",$R151,Table7[[#This Row],[Vo]])) -> 0 | AA150: =IF(AA$1=0,0,IF(Configuration!$F$15="D",$R151,Table7[[#This Row],[Vo]])) -> 0 | AB150: =IF(AB$1=0,0,IF(Configuration!$F$16="D",$R151,Table7[[#This Row],[Vo]])) -> 0 | AC150: =IF(AC$1=0,0,IF(Configuration!$F$17="D",$R151,Table7[[#This Row],[Vo]])) -> 0
A151: =ROUNDUP(A150+0.1,1) -> 16 | B151: NMS-240-24 | C151: 10 | D151: =Table2[[#This Row],[Output Voltage]]*Table2[[#This Row],[Module rated current]] -> 160 | E151: H | F151: =IF(1200/Table2[[#This Row],[Module rated power]]>6,6,ROUNDDOWN(1200/Table2[[#This Row],[Module rated power]],0)) -> 6 | G151: =Table2[[#This Row],[Module rated power]]*Table2[[#This Row],[Available No. of Slot]] -> 960 | H151: =ROUNDDOWN(Table2[[#This Row],[Max power per output]]/Table2[[#This Row],[Output Voltage]],2) -> 60 | P151: Republic of Korea | R151: 17.7 | S151: =IF(S$1=0,0,IF(Configuration!$F$7="D",$R152,Table7[[#This Row],[Vo]])) -> 0 | T151: =IF(T$1=0,0,IF(Configuration!$F$8="D",$R152,Table7[[#This Row],[Vo]])) -> 0 | U151: =IF(U$1=0,0,IF(Configuration!$F$9="D",$R152,Table7[[#This Row],[Vo]])) -> 0 | V151: =IF(V$1=0,0,IF(Configuration!$F$10="D",$R152,Table7[[#This Row],[Vo]])) -> 0 | W151: =IF(W$1=0,0,IF(Configuration!$F$11="D",$R152,Table7[[#This Row],[Vo]])) -> 0 | X151: =IF(X$1=0,0,IF(Configuration!$F$12="D",$R152,Table7[[#This Row],[Vo]])) -> 0 | Y151: =IF(Y$1=0,0,IF(Configuration!$F$13="D",$R152,Table7[[#This Row],[Vo]])) -> 0 | Z151: =IF(Z$1=0,0,IF(Configuration!$F$14="D",$R152,Table7[[#This Row],[Vo]])) -> 0 | AA151: =IF(AA$1=0,0,IF(Configuration!$F$15="D",$R152,Table7[[#This Row],[Vo]])) -> 0 | AB151: =IF(AB$1=0,0,IF(Configuration!$F$16="D",$R152,Table7[[#This Row],[Vo]])) -> 0 | AC151: =IF(AC$1=0,0,IF(Configuration!$F$17="D",$R152,Table7[[#This Row],[Vo]])) -> 0
A152: 16.1 | B152: NMS-240-24 | C152: 10 | D152: =Table2[[#This Row],[Output Voltage]]*Table2[[#This Row],[Module rated current]] -> 161 | E152: H | F152: =IF(1200/Table2[[#This Row],[Module rated power]]>6,6,ROUNDDOWN(1200/Table2[[#This Row],[Module rated power]],0)) -> 6 | G152: =Table2[[#This Row],[Module rated power]]*Table2[[#This Row],[Available No. of Slot]] -> 966 | H152: =ROUNDDOWN(Table2[[#This Row],[Max power per output]]/Table2[[#This Row],[Output Voltage]],2) -> 60 | P152: Republic of Moldova | R152: 17.8 | S152: =IF(S$1=0,0,IF(Configuration!$F$7="D",$R153,Table7[[#This Row],[Vo]])) -> 0 | T152: =IF(T$1=0,0,IF(Configuration!$F$8="D",$R153,Table7[[#This Row],[Vo]])) -> 0 | U152: =IF(U$1=0,0,IF(Configuration!$F$9="D",$R153,Table7[[#This Row],[Vo]])) -> 0 | V152: =IF(V$1=0,0,IF(Configuration!$F$10="D",$R153,Table7[[#This Row],[Vo]])) -> 0 | W152: =IF(W$1=0,0,IF(Configuration!$F$11="D",$R153,Table7[[#This Row],[Vo]])) -> 0 | X152: =IF(X$1=0,0,IF(Configuration!$F$12="D",$R153,Table7[[#This Row],[Vo]])) -> 0 | Y152: =IF(Y$1=0,0,IF(Configuration!$F$13="D",$R153,Table7[[#This Row],[Vo]])) -> 0 | Z152: =IF(Z$1=0,0,IF(Configuration!$F$14="D",$R153,Table7[[#This Row],[Vo]])) -> 0 | AA152: =IF(AA$1=0,0,IF(Configuration!$F$15="D",$R153,Table7[[#This Row],[Vo]])) -> 0 | AB152: =IF(AB$1=0,0,IF(Configuration!$F$16="D",$R153,Table7[[#This Row],[Vo]])) -> 0 | AC152: =IF(AC$1=0,0,IF(Configuration!$F$17="D",$R153,Table7[[#This Row],[Vo]])) -> 0
A153: 16.2 | B153: NMS-240-24 | C153: 10 | D153: =Table2[[#This Row],[Output Voltage]]*Table2[[#This Row],[Module rated current]] -> 162 | E153: H | F153: =IF(1200/Table2[[#This Row],[Module rated power]]>6,6,ROUNDDOWN(1200/Table2[[#This Row],[Module rated power]],0)) -> 6 | G153: =Table2[[#This Row],[Module rated power]]*Table2[[#This Row],[Available No. of Slot]] -> 972 | H153: =ROUNDDOWN(Table2[[#This Row],[Max power per output]]/Table2[[#This Row],[Output Voltage]],2) -> 60 | P153: Romania | R153: 17.9 | S153: =IF(S$1=0,0,IF(Configuration!$F$7="D",$R154,Table7[[#This Row],[Vo]])) -> 0 | T153: =IF(T$1=0,0,IF(Configuration!$F$8="D",$R154,Table7[[#This Row],[Vo]])) -> 0 | U153: =IF(U$1=0,0,IF(Configuration!$F$9="D",$R154,Table7[[#This Row],[Vo]])) -> 0 | V153: =IF(V$1=0,0,IF(Configuration!$F$10="D",$R154,Table7[[#This Row],[Vo]])) -> 0 | W153: =IF(W$1=0,0,IF(Configuration!$F$11="D",$R154,Table7[[#This Row],[Vo]])) -> 0 | X153: =IF(X$1=0,0,IF(Configuration!$F$12="D",$R154,Table7[[#This Row],[Vo]])) -> 0 | Y153: =IF(Y$1=0,0,IF(Configuration!$F$13="D",$R154,Table7[[#This Row],[Vo]])) -> 0 | Z153: =IF(Z$1=0,0,IF(Configuration!$F$14="D",$R154,Table7[[#This Row],[Vo]])) -> 0 | AA153: =IF(AA$1=0,0,IF(Configuration!$F$15="D",$R154,Table7[[#This Row],[Vo]])) -> 0 | AB153: =IF(AB$1=0,0,IF(Configuration!$F$16="D",$R154,Table7[[#This Row],[Vo]])) -> 0 | AC153: =IF(AC$1=0,0,IF(Configuration!$F$17="D",$R154,Table7[[#This Row],[Vo]])) -> 0
A154: 16.3 | B154: NMS-240-24 | C154: 10 | D154: =Table2[[#This Row],[Output Voltage]]*Table2[[#This Row],[Module rated current]] -> 163 | E154: H | F154: =IF(1200/Table2[[#This Row],[Module rated power]]>6,6,ROUNDDOWN(1200/Table2[[#This Row],[Module rated power]],0)) -> 6 | G154: =Table2[[#This Row],[Module rated power]]*Table2[[#This Row],[Available No. of Slot]] -> 978 | H154: =ROUNDDOWN(Table2[[#This Row],[Max power per output]]/Table2[[#This Row],[Output Voltage]],2) -> 60 | P154: Russian Federation | R154: 18 | S154: =IF(S$1=0,0,IF(Configuration!$F$7="D",$R155,Table7[[#This Row],[Vo]])) -> 0 | T154: =IF(T$1=0,0,IF(Configuration!$F$8="D",$R155,Table7[[#This Row],[Vo]])) -> 0 | U154: =IF(U$1=0,0,IF(Configuration!$F$9="D",$R155,Table7[[#This Row],[Vo]])) -> 0 | V154: =IF(V$1=0,0,IF(Configuration!$F$10="D",$R155,Table7[[#This Row],[Vo]])) -> 0 | W154: =IF(W$1=0,0,IF(Configuration!$F$11="D",$R155,Table7[[#This Row],[Vo]])) -> 0 | X154: =IF(X$1=0,0,IF(Configuration!$F$12="D",$R155,Table7[[#This Row],[Vo]])) -> 0 | Y154: =IF(Y$1=0,0,IF(Configuration!$F$13="D",$R155,Table7[[#This Row],[Vo]])) -> 0 | Z154: =IF(Z$1=0,0,IF(Configuration!$F$14="D",$R155,Table7[[#This Row],[Vo]])) -> 0 | AA154: =IF(AA$1=0,0,IF(Configuration!$F$15="D",$R155,Table7[[#This Row],[Vo]])) -> 0 | AB154: =IF(AB$1=0,0,IF(Configuration!$F$16="D",$R155,Table7[[#This Row],[Vo]])) -> 0 | AC154: =IF(AC$1=0,0,IF(Configuration!$F$17="D",$R155,Table7[[#This Row],[Vo]])) -> 0
A155: 16.4 | B155: NMS-240-24 | C155: 10 | D155: =Table2[[#This Row],[Output Voltage]]*Table2[[#This Row],[Module rated current]] -> 164 | E155: H | F155: =IF(1200/Table2[[#This Row],[Module rated power]]>6,6,ROUNDDOWN(1200/Table2[[#This Row],[Module rated power]],0)) -> 6 | G155: =Table2[[#This Row],[Module rated power]]*Table2[[#This Row],[Available No. of Slot]] -> 984 | H155: =ROUNDDOWN(Table2[[#This Row],[Max power per output]]/Table2[[#This Row],[Output Voltage]],2) -> 60 | P155: Rwanda | R155: 18.1 | S155: =IF(S$1=0,0,IF(Configuration!$F$7="D",$R156,Table7[[#This Row],[Vo]])) -> 0 | T155: =IF(T$1=0,0,IF(Configuration!$F$8="D",$R156,Table7[[#This Row],[Vo]])) -> 0 | U155: =IF(U$1=0,0,IF(Configuration!$F$9="D",$R156,Table7[[#This Row],[Vo]])) -> 0 | V155: =IF(V$1=0,0,IF(Configuration!$F$10="D",$R156,Table7[[#This Row],[Vo]])) -> 0 | W155: =IF(W$1=0,0,IF(Configuration!$F$11="D",$R156,Table7[[#This Row],[Vo]])) -> 0 | X155: =IF(X$1=0,0,IF(Configuration!$F$12="D",$R156,Table7[[#This Row],[Vo]])) -> 0 | Y155: =IF(Y$1=0,0,IF(Configuration!$F$13="D",$R156,Table7[[#This Row],[Vo]])) -> 0 | Z155: =IF(Z$1=0,0,IF(Configuration!$F$14="D",$R156,Table7[[#This Row],[Vo]])) -> 0 | AA155: =IF(AA$1=0,0,IF(Configuration!$F$15="D",$R156,Table7[[#This Row],[Vo]])) -> 0 | AB155: =IF(AB$1=0,0,IF(Configuration!$F$16="D",$R156,Table7[[#This Row],[Vo]])) -> 0 | AC155: =IF(AC$1=0,0,IF(Configuration!$F$17="D",$R156,Table7[[#This Row],[Vo]])) -> 0
A156: 16.5 | B156: NMS-240-24 | C156: 10 | D156: =Table2[[#This Row],[Output Voltage]]*Table2[[#This Row],[Module rated current]] -> 165 | E156: H | F156: =IF(1200/Table2[[#This Row],[Module rated power]]>6,6,ROUNDDOWN(1200/Table2[[#This Row],[Module rated power]],0)) -> 6 | G156: =Table2[[#This Row],[Module rated power]]*Table2[[#This Row],[Available No. of Slot]] -> 990 | H156: =ROUNDDOWN(Table2[[#This Row],[Max power per output]]/Table2[[#This Row],[Output Voltage]],2) -> 60 | P156: Saint Kitts and Nevis | R156: 18.2 | S156: =IF(S$1=0,0,IF(Configuration!$F$7="D",$R157,Table7[[#This Row],[Vo]])) -> 0 | T156: =IF(T$1=0,0,IF(Configuration!$F$8="D",$R157,Table7[[#This Row],[Vo]])) -> 0 | U156: =IF(U$1=0,0,IF(Configuration!$F$9="D",$R157,Table7[[#This Row],[Vo]])) -> 0 | V156: =IF(V$1=0,0,IF(Configuration!$F$10="D",$R157,Table7[[#This Row],[Vo]])) -> 0 | W156: =IF(W$1=0,0,IF(Configuration!$F$11="D",$R157,Table7[[#This Row],[Vo]])) -> 0 | X156: =IF(X$1=0,0,IF(Configuration!$F$12="D",$R157,Table7[[#This Row],[Vo]])) -> 0 | Y156: =IF(Y$1=0,0,IF(Configuration!$F$13="D",$R157,Table7[[#This Row],[Vo]])) -> 0 | Z156: =IF(Z$1=0,0,IF(Configuration!$F$14="D",$R157,Table7[[#This Row],[Vo]])) -> 0 | AA156: =IF(AA$1=0,0,IF(Configuration!$F$15="D",$R157,Table7[[#This Row],[Vo]])) -> 0 | AB156: =IF(AB$1=0,0,IF(Configuration!$F$16="D",$R157,Table7[[#This Row],[Vo]])) -> 0 | AC156: =IF(AC$1=0,0,IF(Configuration!$F$17="D",$R157,Table7[[#This Row],[Vo]])) -> 0
A157: 16.6 | B157: NMS-240-24 | C157: 10 | D157: =Table2[[#This Row],[Output Voltage]]*Table2[[#This Row],[Module rated current]] -> 166 | E157: H | F157: =IF(1200/Table2[[#This Row],[Module rated power]]>6,6,ROUNDDOWN(1200/Table2[[#This Row],[Module rated power]],0)) -> 6 | G157: =Table2[[#This Row],[Module rated power]]*Table2[[#This Row],[Available No. of Slot]] -> 996 | H157: =ROUNDDOWN(Table2[[#This Row],[Max power per output]]/Table2[[#This Row],[Output Voltage]],2) -> 60 | P157: Saint Lucia | R157: 18.3 | S157: =IF(S$1=0,0,IF(Configuration!$F$7="D",$R158,Table7[[#This Row],[Vo]])) -> 0 | T157: =IF(T$1=0,0,IF(Configuration!$F$8="D",$R158,Table7[[#This Row],[Vo]])) -> 0 | U157: =IF(U$1=0,0,IF(Configuration!$F$9="D",$R158,Table7[[#This Row],[Vo]])) -> 0 | V157: =IF(V$1=0,0,IF(Configuration!$F$10="D",$R158,Table7[[#This Row],[Vo]])) -> 0 | W157: =IF(W$1=0,0,IF(Configuration!$F$11="D",$R158,Table7[[#This Row],[Vo]])) -> 0 | X157: =IF(X$1=0,0,IF(Configuration!$F$12="D",$R158,Table7[[#This Row],[Vo]])) -> 0 | Y157: =IF(Y$1=0,0,IF(Configuration!$F$13="D",$R158,Table7[[#This Row],[Vo]])) -> 0 | Z157: =IF(Z$1=0,0,IF(Configuration!$F$14="D",$R158,Table7[[#This Row],[Vo]])) -> 0 | AA157: =IF(AA$1=0,0,IF(Configuration!$F$15="D",$R158,Table7[[#This Row],[Vo]])) -> 0 | AB157: =IF(AB$1=0,0,IF(Configuration!$F$16="D",$R158,Table7[[#This Row],[Vo]])) -> 0 | AC157: =IF(AC$1=0,0,IF(Configuration!$F$17="D",$R158,Table7[[#This Row],[Vo]])) -> 0
A158: 16.7 | B158: NMS-240-24 | C158: 10 | D158: =Table2[[#This Row],[Output Voltage]]*Table2[[#This Row],[Module rated current]] -> 167 | E158: H | F158: =IF(1200/Table2[[#This Row],[Module rated power]]>6,6,ROUNDDOWN(1200/Table2[[#This Row],[Module rated power]],0)) -> 6 | G158: =Table2[[#This Row],[Module rated power]]*Table2[[#This Row],[Available No. of Slot]] -> 1002 | H158: =ROUNDDOWN(Table2[[#This Row],[Max power per output]]/Table2[[#This Row],[Output Voltage]],2) -> 60 | P158: Saint Vincent and the Grenadines | R158: 18.4 | S158: =IF(S$1=0,0,IF(Configuration!$F$7="D",$R159,Table7[[#This Row],[Vo]])) -> 0 | T158: =IF(T$1=0,0,IF(Configuration!$F$8="D",$R159,Table7[[#This Row],[Vo]])) -> 0 | U158: =IF(U$1=0,0,IF(Configuration!$F$9="D",$R159,Table7[[#This Row],[Vo]])) -> 0 | V158: =IF(V$1=0,0,IF(Configuration!$F$10="D",$R159,Table7[[#This Row],[Vo]])) -> 0 | W158: =IF(W$1=0,0,IF(Configuration!$F$11="D",$R159,Table7[[#This Row],[Vo]])) -> 0 | X158: =IF(X$1=0,0,IF(Configuration!$F$12="D",$R159,Table7[[#This Row],[Vo]])) -> 0 | Y158: =IF(Y$1=0,0,IF(Configuration!$F$13="D",$R159,Table7[[#This Row],[Vo]])) -> 0 | Z158: =IF(Z$1=0,0,IF(Configuration!$F$14="D",$R159,Table7[[#This Row],[Vo]])) -> 0 | AA158: =IF(AA$1=0,0,IF(Configuration!$F$15="D",$R159,Table7[[#This Row],[Vo]])) -> 0 | AB158: =IF(AB$1=0,0,IF(Configuration!$F$16="D",$R159,Table7[[#This Row],[Vo]])) -> 0 | AC158: =IF(AC$1=0,0,IF(Configuration!$F$17="D",$R159,Table7[[#This Row],[Vo]])) -> 0
A159: 16.8 | B159: NMS-240-24 | C159: 10 | D159: =Table2[[#This Row],[Output Voltage]]*Table2[[#This Row],[Module rated current]] -> 168 | E159: H | F159: =IF(1200/Table2[[#This Row],[Module rated power]]>6,6,ROUNDDOWN(1200/Table2[[#This Row],[Module rated power]],0)) -> 6 | G159: =Table2[[#This Row],[Module rated power]]*Table2[[#This Row],[Available No. of Slot]] -> 1008 | H159: =ROUNDDOWN(Table2[[#This Row],[Max power per output]]/Table2[[#This Row],[Output Voltage]],2) -> 60 | P159: Samoa | R159: 18.5 | S159: =IF(S$1=0,0,IF(Configuration!$F$7="D",$R160,Table7[[#This Row],[Vo]])) -> 0 | T159: =IF(T$1=0,0,IF(Configuration!$F$8="D",$R160,Table7[[#This Row],[Vo]])) -> 0 | U159: =IF(U$1=0,0,IF(Configuration!$F$9="D",$R160,Table7[[#This Row],[Vo]])) -> 0 | V159: =IF(V$1=0,0,IF(Configuration!$F$10="D",$R160,Table7[[#This Row],[Vo]])) -> 0 | W159: =IF(W$1=0,0,IF(Configuration!$F$11="D",$R160,Table7[[#This Row],[Vo]])) -> 0 | X159: =IF(X$1=0,0,IF(Configuration!$F$12="D",$R160,Table7[[#This Row],[Vo]])) -> 0 | Y159: =IF(Y$1=0,0,IF(Configuration!$F$13="D",$R160,Table7[[#This Row],[Vo]])) -> 0 | Z159: =IF(Z$1=0,0,IF(Configuration!$F$14="D",$R160,Table7[[#This Row],[Vo]])) -> 0 | AA159: =IF(AA$1=0,0,IF(Configuration!$F$15="D",$R160,Table7[[#This Row],[Vo]])) -> 0 | AB159: =IF(AB$1=0,0,IF(Configuration!$F$16="D",$R160,Table7[[#This Row],[Vo]])) -> 0 | AC159: =IF(AC$1=0,0,IF(Configuration!$F$17="D",$R160,Table7[[#This Row],[Vo]])) -> 0
A160: 16.9 | B160: NMS-240-24 | C160: 10 | D160: =Table2[[#This Row],[Output Voltage]]*Table2[[#This Row],[Module rated current]] -> 169 | E160: H | F160: =IF(1200/Table2[[#This Row],[Module rated power]]>6,6,ROUNDDOWN(1200/Table2[[#This Row],[Module rated power]],0)) -> 6 | G160: =Table2[[#This Row],[Module rated power]]*Table2[[#This Row],[Available No. of Slot]] -> 1014 | H160: =ROUNDDOWN(Table2[[#This Row],[Max power per output]]/Table2[[#This Row],[Output Voltage]],2) -> 60 | P160: San Marino | R160: 18.6 | S160: =IF(S$1=0,0,IF(Configuration!$F$7="D",$R161,Table7[[#This Row],[Vo]])) -> 0 | T160: =IF(T$1=0,0,IF(Configuration!$F$8="D",$R161,Table7[[#This Row],[Vo]])) -> 0 | U160: =IF(U$1=0,0,IF(Configuration!$F$9="D",$R161,Table7[[#This Row],[Vo]])) -> 0 | V160: =IF(V$1=0,0,IF(Configuration!$F$10="D",$R161,Table7[[#This Row],[Vo]])) -> 0 | W160: =IF(W$1=0,0,IF(Configuration!$F$11="D",$R161,Table7[[#This Row],[Vo]])) -> 0 | X160: =IF(X$1=0,0,IF(Configuration!$F$12="D",$R161,Table7[[#This Row],[Vo]])) -> 0 | Y160: =IF(Y$1=0,0,IF(Configuration!$F$13="D",$R161,Table7[[#This Row],[Vo]])) -> 0 | Z160: =IF(Z$1=0,0,IF(Configuration!$F$14="D",$R161,Table7[[#This Row],[Vo]])) -> 0 | AA160: =IF(AA$1=0,0,IF(Configuration!$F$15="D",$R161,Table7[[#This Row],[Vo]])) -> 0 | AB160: =IF(AB$1=0,0,IF(Configuration!$F$16="D",$R161,Table7[[#This Row],[Vo]])) -> 0 | AC160: =IF(AC$1=0,0,IF(Configuration!$F$17="D",$R161,Table7[[#This Row],[Vo]])) -> 0
A161: 17 | B161: NMS-240-24 | C161: 10 | D161: =Table2[[#This Row],[Output Voltage]]*Table2[[#This Row],[Module rated current]] -> 170 | E161: H | F161: =IF(1200/Table2[[#This Row],[Module rated power]]>6,6,ROUNDDOWN(1200/Table2[[#This Row],[Module rated power]],0)) -> 6 | G161: =Table2[[#This Row],[Module rated power]]*Table2[[#This Row],[Available No. of Slot]] -> 1020 | H161: =ROUNDDOWN(Table2[[#This Row],[Max power per output]]/Table2[[#This Row],[Output Voltage]],2) -> 60 | P161: Sao Tome and Principe | R161: 18.7 | S161: =IF(S$1=0,0,IF(Configuration!$F$7="D",$R162,Table7[[#This Row],[Vo]])) -> 0 | T161: =IF(T$1=0,0,IF(Configuration!$F$8="D",$R162,Table7[[#This Row],[Vo]])) -> 0 | U161: =IF(U$1=0,0,IF(Configuration!$F$9="D",$R162,Table7[[#This Row],[Vo]])) -> 0 | V161: =IF(V$1=0,0,IF(Configuration!$F$10="D",$R162,Table7[[#This Row],[Vo]])) -> 0 | W161: =IF(W$1=0,0,IF(Configuration!$F$11="D",$R162,Table7[[#This Row],[Vo]])) -> 0 | X161: =IF(X$1=0,0,IF(Configuration!$F$12="D",$R162,Table7[[#This Row],[Vo]])) -> 0 | Y161: =IF(Y$1=0,0,IF(Configuration!$F$13="D",$R162,Table7[[#This Row],[Vo]])) -> 0 | Z161: =IF(Z$1=0,0,IF(Configuration!$F$14="D",$R162,Table7[[#This Row],[Vo]])) -> 0 | AA161: =IF(AA$1=0,0,IF(Configuration!$F$15="D",$R162,Table7[[#This Row],[Vo]])) -> 0 | AB161: =IF(AB$1=0,0,IF(Configuration!$F$16="D",$R162,Table7[[#This Row],[Vo]])) -> 0 | AC161: =IF(AC$1=0,0,IF(Configuration!$F$17="D",$R162,Table7[[#This Row],[Vo]])) -> 0
A162: 17.1 | B162: NMS-240-24 | C162: 10 | D162: =Table2[[#This Row],[Output Voltage]]*Table2[[#This Row],[Module rated current]] -> 171 | E162: H | F162: =IF(1200/Table2[[#This Row],[Module rated power]]>6,6,ROUNDDOWN(1200/Table2[[#This Row],[Module rated power]],0)) -> 6 | G162: =Table2[[#This Row],[Module rated power]]*Table2[[#This Row],[Available No. of Slot]] -> 1026 | H162: =ROUNDDOWN(Table2[[#This Row],[Max power per output]]/Table2[[#This Row],[Output Voltage]],2) -> 60 | P162: Seychelles | R162: 18.8 | S162: =IF(S$1=0,0,IF(Configuration!$F$7="D",$R163,Table7[[#This Row],[Vo]])) -> 0 | T162: =IF(T$1=0,0,IF(Configuration!$F$8="D",$R163,Table7[[#This Row],[Vo]])) -> 0 | U162: =IF(U$1=0,0,IF(Configuration!$F$9="D",$R163,Table7[[#This Row],[Vo]])) -> 0 | V162: =IF(V$1=0,0,IF(Configuration!$F$10="D",$R163,Table7[[#This Row],[Vo]])) -> 0 | W162: =IF(W$1=0,0,IF(Configuration!$F$11="D",$R163,Table7[[#This Row],[Vo]])) -> 0 | X162: =IF(X$1=0,0,IF(Configuration!$F$12="D",$R163,Table7[[#This Row],[Vo]])) -> 0 | Y162: =IF(Y$1=0,0,IF(Configuration!$F$13="D",$R163,Table7[[#This Row],[Vo]])) -> 0 | Z162: =IF(Z$1=0,0,IF(Configuration!$F$14="D",$R163,Table7[[#This Row],[Vo]])) -> 0 | AA162: =IF(AA$1=0,0,IF(Configuration!$F$15="D",$R163,Table7[[#This Row],[Vo]])) -> 0 | AB162: =IF(AB$1=0,0,IF(Configuration!$F$16="D",$R163,Table7[[#This Row],[Vo]])) -> 0 | AC162: =IF(AC$1=0,0,IF(Configuration!$F$17="D",$R163,Table7[[#This Row],[Vo]])) -> 0
A163: 17.2 | B163: NMS-240-24 | C163: 10 | D163: =Table2[[#This Row],[Output Voltage]]*Table2[[#This Row],[Module rated current]] -> 172 | E163: H | F163: =IF(1200/Table2[[#This Row],[Module rated power]]>6,6,ROUNDDOWN(1200/Table2[[#This Row],[Module rated power]],0)) -> 6 | G163: =Table2[[#This Row],[Module rated power]]*Table2[[#This Row],[Available No. of Slot]] -> 1032 | H163: =ROUNDDOWN(Table2[[#This Row],[Max power per output]]/Table2[[#This Row],[Output Voltage]],2) -> 60 | P163: Sierra Leone | R163: 18.9 | S163: =IF(S$1=0,0,IF(Configuration!$F$7="D",$R164,Table7[[#This Row],[Vo]])) -> 0 | T163: =IF(T$1=0,0,IF(Configuration!$F$8="D",$R164,Table7[[#This Row],[Vo]])) -> 0 | U163: =IF(U$1=0,0,IF(Configuration!$F$9="D",$R164,Table7[[#This Row],[Vo]])) -> 0 | V163: =IF(V$1=0,0,IF(Configuration!$F$10="D",$R164,Table7[[#This Row],[Vo]])) -> 0 | W163: =IF(W$1=0,0,IF(Configuration!$F$11="D",$R164,Table7[[#This Row],[Vo]])) -> 0 | X163: =IF(X$1=0,0,IF(Configuration!$F$12="D",$R164,Table7[[#This Row],[Vo]])) -> 0 | Y163: =IF(Y$1=0,0,IF(Configuration!$F$13="D",$R164,Table7[[#This Row],[Vo]])) -> 0 | Z163: =IF(Z$1=0,0,IF(Configuration!$F$14="D",$R164,Table7[[#This Row],[Vo]])) -> 0 | AA163: =IF(AA$1=0,0,IF(Configuration!$F$15="D",$R164,Table7[[#This Row],[Vo]])) -> 0 | AB163: =IF(AB$1=0,0,IF(Configuration!$F$16="D",$R164,Table7[[#This Row],[Vo]])) -> 0 | AC163: =IF(AC$1=0,0,IF(Configuration!$F$17="D",$R164,Table7[[#This Row],[Vo]])) -> 0
A164: 17.3 | B164: NMS-240-24 | C164: 10 | D164: =Table2[[#This Row],[Output Voltage]]*Table2[[#This Row],[Module rated current]] -> 173 | E164: H | F164: =IF(1200/Table2[[#This Row],[Module rated power]]>6,6,ROUNDDOWN(1200/Table2[[#This Row],[Module rated power]],0)) -> 6 | G164: =Table2[[#This Row],[Module rated power]]*Table2[[#This Row],[Available No. of Slot]] -> 1038 | H164: =ROUNDDOWN(Table2[[#This Row],[Max power per output]]/Table2[[#This Row],[Output Voltage]],2) -> 60 | P164: Sint Maarten | R164: 19 | S164: =IF(S$1=0,0,IF(Configuration!$F$7="D",$R165,Table7[[#This Row],[Vo]])) -> 0 | T164: =IF(T$1=0,0,IF(Configuration!$F$8="D",$R165,Table7[[#This Row],[Vo]])) -> 0 | U164: =IF(U$1=0,0,IF(Configuration!$F$9="D",$R165,Table7[[#This Row],[Vo]])) -> 0 | V164: =IF(V$1=0,0,IF(Configuration!$F$10="D",$R165,Table7[[#This Row],[Vo]])) -> 0 | W164: =IF(W$1=0,0,IF(Configuration!$F$11="D",$R165,Table7[[#This Row],[Vo]])) -> 0 | X164: =IF(X$1=0,0,IF(Configuration!$F$12="D",$R165,Table7[[#This Row],[Vo]])) -> 0 | Y164: =IF(Y$1=0,0,IF(Configuration!$F$13="D",$R165,Table7[[#This Row],[Vo]])) -> 0 | Z164: =IF(Z$1=0,0,IF(Configuration!$F$14="D",$R165,Table7[[#This Row],[Vo]])) -> 0 | AA164: =IF(AA$1=0,0,IF(Configuration!$F$15="D",$R165,Table7[[#This Row],[Vo]])) -> 0 | AB164: =IF(AB$1=0,0,IF(Configuration!$F$16="D",$R165,Table7[[#This Row],[Vo]])) -> 0 | AC164: =IF(AC$1=0,0,IF(Configuration!$F$17="D",$R165,Table7[[#This Row],[Vo]])) -> 0
A165: 17.4 | B165: NMS-240-24 | C165: 10 | D165: =Table2[[#This Row],[Output Voltage]]*Table2[[#This Row],[Module rated current]] -> 174 | E165: H | F165: =IF(1200/Table2[[#This Row],[Module rated power]]>6,6,ROUNDDOWN(1200/Table2[[#This Row],[Module rated power]],0)) -> 6 | G165: =Table2[[#This Row],[Module rated power]]*Table2[[#This Row],[Available No. of Slot]] -> 1044 | H165: =ROUNDDOWN(Table2[[#This Row],[Max power per output]]/Table2[[#This Row],[Output Voltage]],2) -> 60 | P165: Solomon Islands | R165: 19.1 | S165: =IF(S$1=0,0,IF(Configuration!$F$7="D",$R166,Table7[[#This Row],[Vo]])) -> 0 | T165: =IF(T$1=0,0,IF(Configuration!$F$8="D",$R166,Table7[[#This Row],[Vo]])) -> 0 | U165: =IF(U$1=0,0,IF(Configuration!$F$9="D",$R166,Table7[[#This Row],[Vo]])) -> 0 | V165: =IF(V$1=0,0,IF(Configuration!$F$10="D",$R166,Table7[[#This Row],[Vo]])) -> 0 | W165: =IF(W$1=0,0,IF(Configuration!$F$11="D",$R166,Table7[[#This Row],[Vo]])) -> 0 | X165: =IF(X$1=0,0,IF(Configuration!$F$12="D",$R166,Table7[[#This Row],[Vo]])) -> 0 | Y165: =IF(Y$1=0,0,IF(Configuration!$F$13="D",$R166,Table7[[#This Row],[Vo]])) -> 0 | Z165: =IF(Z$1=0,0,IF(Configuration!$F$14="D",$R166,Table7[[#This Row],[Vo]])) -> 0 | AA165: =IF(AA$1=0,0,IF(Configuration!$F$15="D",$R166,Table7[[#This Row],[Vo]])) -> 0 | AB165: =IF(AB$1=0,0,IF(Configuration!$F$16="D",$R166,Table7[[#This Row],[Vo]])) -> 0 | AC165: =IF(AC$1=0,0,IF(Configuration!$F$17="D",$R166,Table7[[#This Row],[Vo]])) -> 0
A166: 17.5 | B166: NMS-240-24 | C166: 10 | D166: =Table2[[#This Row],[Output Voltage]]*Table2[[#This Row],[Module rated current]] -> 175 | E166: H | F166: =IF(1200/Table2[[#This Row],[Module rated power]]>6,6,ROUNDDOWN(1200/Table2[[#This Row],[Module rated power]],0)) -> 6 | G166: =Table2[[#This Row],[Module rated power]]*Table2[[#This Row],[Available No. of Slot]] -> 1050 | H166: =ROUNDDOWN(Table2[[#This Row],[Max power per output]]/Table2[[#This Row],[Output Voltage]],2) -> 60 | P166: Somalia | R166: 19.2 | S166: =IF(S$1=0,0,IF(Configuration!$F$7="D",$R167,Table7[[#This Row],[Vo]])) -> 0 | T166: =IF(T$1=0,0,IF(Configuration!$F$8="D",$R167,Table7[[#This Row],[Vo]])) -> 0 | U166: =IF(U$1=0,0,IF(Configuration!$F$9="D",$R167,Table7[[#This Row],[Vo]])) -> 0 | V166: =IF(V$1=0,0,IF(Configuration!$F$10="D",$R167,Table7[[#This Row],[Vo]])) -> 0 | W166: =IF(W$1=0,0,IF(Configuration!$F$11="D",$R167,Table7[[#This Row],[Vo]])) -> 0 | X166: =IF(X$1=0,0,IF(Configuration!$F$12="D",$R167,Table7[[#This Row],[Vo]])) -> 0 | Y166: =IF(Y$1=0,0,IF(Configuration!$F$13="D",$R167,Table7[[#This Row],[Vo]])) -> 0 | Z166: =IF(Z$1=0,0,IF(Configuration!$F$14="D",$R167,Table7[[#This Row],[Vo]])) -> 0 | AA166: =IF(AA$1=0,0,IF(Configuration!$F$15="D",$R167,Table7[[#This Row],[Vo]])) -> 0 | AB166: =IF(AB$1=0,0,IF(Configuration!$F$16="D",$R167,Table7[[#This Row],[Vo]])) -> 0 | AC166: =IF(AC$1=0,0,IF(Configuration!$F$17="D",$R167,Table7[[#This Row],[Vo]])) -> 0
A167: 17.6 | B167: NMS-240-24 | C167: 10 | D167: =Table2[[#This Row],[Output Voltage]]*Table2[[#This Row],[Module rated current]] -> 176 | E167: H | F167: =IF(1200/Table2[[#This Row],[Module rated power]]>6,6,ROUNDDOWN(1200/Table2[[#This Row],[Module rated power]],0)) -> 6 | G167: =Table2[[#This Row],[Module rated power]]*Table2[[#This Row],[Available No. of Slot]] -> 1056 | H167: =ROUNDDOWN(Table2[[#This Row],[Max power per output]]/Table2[[#This Row],[Output Voltage]],2) -> 60 | P167: South Sudan | R167: 19.3 | S167: =IF(S$1=0,0,IF(Configuration!$F$7="D",$R168,Table7[[#This Row],[Vo]])) -> 0 | T167: =IF(T$1=0,0,IF(Configuration!$F$8="D",$R168,Table7[[#This Row],[Vo]])) -> 0 | U167: =IF(U$1=0,0,IF(Configuration!$F$9="D",$R168,Table7[[#This Row],[Vo]])) -> 0 | V167: =IF(V$1=0,0,IF(Configuration!$F$10="D",$R168,Table7[[#This Row],[Vo]])) -> 0 | W167: =IF(W$1=0,0,IF(Configuration!$F$11="D",$R168,Table7[[#This Row],[Vo]])) -> 0 | X167: =IF(X$1=0,0,IF(Configuration!$F$12="D",$R168,Table7[[#This Row],[Vo]])) -> 0 | Y167: =IF(Y$1=0,0,IF(Configuration!$F$13="D",$R168,Table7[[#This Row],[Vo]])) -> 0 | Z167: =IF(Z$1=0,0,IF(Configuration!$F$14="D",$R168,Table7[[#This Row],[Vo]])) -> 0 | AA167: =IF(AA$1=0,0,IF(Configuration!$F$15="D",$R168,Table7[[#This Row],[Vo]])) -> 0 | AB167: =IF(AB$1=0,0,IF(Configuration!$F$16="D",$R168,Table7[[#This Row],[Vo]])) -> 0 | AC167: =IF(AC$1=0,0,IF(Configuration!$F$17="D",$R168,Table7[[#This Row],[Vo]])) -> 0
A168: 17.7 | B168: NMS-240-24 | C168: 10 | D168: =Table2[[#This Row],[Output Voltage]]*Table2[[#This Row],[Module rated current]] -> 177 | E168: H | F168: =IF(1200/Table2[[#This Row],[Module rated power]]>6,6,ROUNDDOWN(1200/Table2[[#This Row],[Module rated power]],0)) -> 6 | G168: =Table2[[#This Row],[Module rated power]]*Table2[[#This Row],[Available No. of Slot]] -> 1062 | H168: =ROUNDDOWN(Table2[[#This Row],[Max power per output]]/Table2[[#This Row],[Output Voltage]],2) -> 60 | P168: Sudan | R168: 19.4 | S168: =IF(S$1=0,0,IF(Configuration!$F$7="D",$R169,Table7[[#This Row],[Vo]])) -> 0 | T168: =IF(T$1=0,0,IF(Configuration!$F$8="D",$R169,Table7[[#This Row],[Vo]])) -> 0 | U168: =IF(U$1=0,0,IF(Configuration!$F$9="D",$R169,Table7[[#This Row],[Vo]])) -> 0 | V168: =IF(V$1=0,0,IF(Configuration!$F$10="D",$R169,Table7[[#This Row],[Vo]])) -> 0 | W168: =IF(W$1=0,0,IF(Configuration!$F$11="D",$R169,Table7[[#This Row],[Vo]])) -> 0 | X168: =IF(X$1=0,0,IF(Configuration!$F$12="D",$R169,Table7[[#This Row],[Vo]])) -> 0 | Y168: =IF(Y$1=0,0,IF(Configuration!$F$13="D",$R169,Table7[[#This Row],[Vo]])) -> 0 | Z168: =IF(Z$1=0,0,IF(Configuration!$F$14="D",$R169,Table7[[#This Row],[Vo]])) -> 0 | AA168: =IF(AA$1=0,0,IF(Configuration!$F$15="D",$R169,Table7[[#This Row],[Vo]])) -> 0 | AB168: =IF(AB$1=0,0,IF(Configuration!$F$16="D",$R169,Table7[[#This Row],[Vo]])) -> 0 | AC168: =IF(AC$1=0,0,IF(Configuration!$F$17="D",$R169,Table7[[#This Row],[Vo]])) -> 0
A169: 17.8 | B169: NMS-240-24 | C169: 10 | D169: =Table2[[#This Row],[Output Voltage]]*Table2[[#This Row],[Module rated current]] -> 178 | E169: H | F169: =IF(1200/Table2[[#This Row],[Module rated power]]>6,6,ROUNDDOWN(1200/Table2[[#This Row],[Module rated power]],0)) -> 6 | G169: =Table2[[#This Row],[Module rated power]]*Table2[[#This Row],[Available No. of Slot]] -> 1068 | H169: =ROUNDDOWN(Table2[[#This Row],[Max power per output]]/Table2[[#This Row],[Output Voltage]],2) -> 60 | P169: Suriname | R169: 19.5 | S169: =IF(S$1=0,0,IF(Configuration!$F$7="D",$R170,Table7[[#This Row],[Vo]])) -> 0 | T169: =IF(T$1=0,0,IF(Configuration!$F$8="D",$R170,Table7[[#This Row],[Vo]])) -> 0 | U169: =IF(U$1=0,0,IF(Configuration!$F$9="D",$R170,Table7[[#This Row],[Vo]])) -> 0 | V169: =IF(V$1=0,0,IF(Configuration!$F$10="D",$R170,Table7[[#This Row],[Vo]])) -> 0 | W169: =IF(W$1=0,0,IF(Configuration!$F$11="D",$R170,Table7[[#This Row],[Vo]])) -> 0 | X169: =IF(X$1=0,0,IF(Configuration!$F$12="D",$R170,Table7[[#This Row],[Vo]])) -> 0 | Y169: =IF(Y$1=0,0,IF(Configuration!$F$13="D",$R170,Table7[[#This Row],[Vo]])) -> 0 | Z169: =IF(Z$1=0,0,IF(Configuration!$F$14="D",$R170,Table7[[#This Row],[Vo]])) -> 0 | AA169: =IF(AA$1=0,0,IF(Configuration!$F$15="D",$R170,Table7[[#This Row],[Vo]])) -> 0 | AB169: =IF(AB$1=0,0,IF(Configuration!$F$16="D",$R170,Table7[[#This Row],[Vo]])) -> 0 | AC169: =IF(AC$1=0,0,IF(Configuration!$F$17="D",$R170,Table7[[#This Row],[Vo]])) -> 0
A170: 17.9 | B170: NMS-240-24 | C170: 10 | D170: =Table2[[#This Row],[Output Voltage]]*Table2[[#This Row],[Module rated current]] -> 179 | E170: H | F170: =IF(1200/Table2[[#This Row],[Module rated power]]>6,6,ROUNDDOWN(1200/Table2[[#This Row],[Module rated power]],0)) -> 6 | G170: =Table2[[#This Row],[Module rated power]]*Table2[[#This Row],[Available No. of Slot]] -> 1074 | H170: =ROUNDDOWN(Table2[[#This Row],[Max power per output]]/Table2[[#This Row],[Output Voltage]],2) -> 60 | P170: Swaziland | R170: 19.6 | S170: =IF(S$1=0,0,IF(Configuration!$F$7="D",$R171,Table7[[#This Row],[Vo]])) -> 0 | T170: =IF(T$1=0,0,IF(Configuration!$F$8="D",$R171,Table7[[#This Row],[Vo]])) -> 0 | U170: =IF(U$1=0,0,IF(Configuration!$F$9="D",$R171,Table7[[#This Row],[Vo]])) -> 0 | V170: =IF(V$1=0,0,IF(Configuration!$F$10="D",$R171,Table7[[#This Row],[Vo]])) -> 0 | W170: =IF(W$1=0,0,IF(Configuration!$F$11="D",$R171,Table7[[#This Row],[Vo]])) -> 0 | X170: =IF(X$1=0,0,IF(Configuration!$F$12="D",$R171,Table7[[#This Row],[Vo]])) -> 0 | Y170: =IF(Y$1=0,0,IF(Configuration!$F$13="D",$R171,Table7[[#This Row],[Vo]])) -> 0 | Z170: =IF(Z$1=0,0,IF(Configuration!$F$14="D",$R171,Table7[[#This Row],[Vo]])) -> 0 | AA170: =IF(AA$1=0,0,IF(Configuration!$F$15="D",$R171,Table7[[#This Row],[Vo]])) -> 0 | AB170: =IF(AB$1=0,0,IF(Configuration!$F$16="D",$R171,Table7[[#This Row],[Vo]])) -> 0 | AC170: =IF(AC$1=0,0,IF(Configuration!$F$17="D",$R171,Table7[[#This Row],[Vo]])) -> 0
A171: 18 | B171: NMS-240-24 | C171: 10 | D171: =Table2[[#This Row],[Output Voltage]]*Table2[[#This Row],[Module rated current]] -> 180 | E171: H | F171: =IF(1200/Table2[[#This Row],[Module rated power]]>6,6,ROUNDDOWN(1200/Table2[[#This Row],[Module rated power]],0)) -> 6 | G171: =Table2[[#This Row],[Module rated power]]*Table2[[#This Row],[Available No. of Slot]] -> 1080 | H171: =ROUNDDOWN(Table2[[#This Row],[Max power per output]]/Table2[[#This Row],[Output Voltage]],2) -> 60 | P171: Saudi Arabia | R171: 19.7 | S171: =IF(S$1=0,0,IF(Configuration!$F$7="D",$R172,Table7[[#This Row],[Vo]])) -> 0 | T171: =IF(T$1=0,0,IF(Configuration!$F$8="D",$R172,Table7[[#This Row],[Vo]])) -> 0 | U171: =IF(U$1=0,0,IF(Configuration!$F$9="D",$R172,Table7[[#This Row],[Vo]])) -> 0 | V171: =IF(V$1=0,0,IF(Configuration!$F$10="D",$R172,Table7[[#This Row],[Vo]])) -> 0 | W171: =IF(W$1=0,0,IF(Configuration!$F$11="D",$R172,Table7[[#This Row],[Vo]])) -> 0 | X171: =IF(X$1=0,0,IF(Configuration!$F$12="D",$R172,Table7[[#This Row],[Vo]])) -> 0 | Y171: =IF(Y$1=0,0,IF(Configuration!$F$13="D",$R172,Table7[[#This Row],[Vo]])) -> 0 | Z171: =IF(Z$1=0,0,IF(Configuration!$F$14="D",$R172,Table7[[#This Row],[Vo]])) -> 0 | AA171: =IF(AA$1=0,0,IF(Configuration!$F$15="D",$R172,Table7[[#This Row],[Vo]])) -> 0 | AB171: =IF(AB$1=0,0,IF(Configuration!$F$16="D",$R172,Table7[[#This Row],[Vo]])) -> 0 | AC171: =IF(AC$1=0,0,IF(Configuration!$F$17="D",$R172,Table7[[#This Row],[Vo]])) -> 0
A172: 18.1 | B172: NMS-240-24 | C172: 10 | D172: =Table2[[#This Row],[Output Voltage]]*Table2[[#This Row],[Module rated current]] -> 181 | E172: H | F172: =IF(1200/Table2[[#This Row],[Module rated power]]>6,6,ROUNDDOWN(1200/Table2[[#This Row],[Module rated power]],0)) -> 6 | G172: =Table2[[#This Row],[Module rated power]]*Table2[[#This Row],[Available No. of Slot]] -> 1086 | H172: =ROUNDDOWN(Table2[[#This Row],[Max power per output]]/Table2[[#This Row],[Output Voltage]],2) -> 60 | P172: Senegal | R172: 19.8 | S172: =IF(S$1=0,0,IF(Configuration!$F$7="D",$R173,Table7[[#This Row],[Vo]])) -> 0 | T172: =IF(T$1=0,0,IF(Configuration!$F$8="D",$R173,Table7[[#This Row],[Vo]])) -> 0 | U172: =IF(U$1=0,0,IF(Configuration!$F$9="D",$R173,Table7[[#This Row],[Vo]])) -> 0 | V172: =IF(V$1=0,0,IF(Configuration!$F$10="D",$R173,Table7[[#This Row],[Vo]])) -> 0 | W172: =IF(W$1=0,0,IF(Configuration!$F$11="D",$R173,Table7[[#This Row],[Vo]])) -> 0 | X172: =IF(X$1=0,0,IF(Configuration!$F$12="D",$R173,Table7[[#This Row],[Vo]])) -> 0 | Y172: =IF(Y$1=0,0,IF(Configuration!$F$13="D",$R173,Table7[[#This Row],[Vo]])) -> 0 | Z172: =IF(Z$1=0,0,IF(Configuration!$F$14="D",$R173,Table7[[#This Row],[Vo]])) -> 0 | AA172: =IF(AA$1=0,0,IF(Configuration!$F$15="D",$R173,Table7[[#This Row],[Vo]])) -> 0 | AB172: =IF(AB$1=0,0,IF(Configuration!$F$16="D",$R173,Table7[[#This Row],[Vo]])) -> 0 | AC172: =IF(AC$1=0,0,IF(Configuration!$F$17="D",$R173,Table7[[#This Row],[Vo]])) -> 0
A173: 18.2 | B173: NMS-240-24 | C173: 10 | D173: =Table2[[#This Row],[Output Voltage]]*Table2[[#This Row],[Module rated current]] -> 182 | E173: H | F173: =IF(1200/Table2[[#This Row],[Module rated power]]>6,6,ROUNDDOWN(1200/Table2[[#This Row],[Module rated power]],0)) -> 6 | G173: =Table2[[#This Row],[Module rated power]]*Table2[[#This Row],[Available No. of Slot]] -> 1092 | H173: =ROUNDDOWN(Table2[[#This Row],[Max power per output]]/Table2[[#This Row],[Output Voltage]],2) -> 60 | P173: Serbia | R173: 19.9 | S173: =IF(S$1=0,0,IF(Configuration!$F$7="D",$R174,Table7[[#This Row],[Vo]])) -> 0 | T173: =IF(T$1=0,0,IF(Configuration!$F$8="D",$R174,Table7[[#This Row],[Vo]])) -> 0 | U173: =IF(U$1=0,0,IF(Configuration!$F$9="D",$R174,Table7[[#This Row],[Vo]])) -> 0 | V173: =IF(V$1=0,0,IF(Configuration!$F$10="D",$R174,Table7[[#This Row],[Vo]])) -> 0 | W173: =IF(W$1=0,0,IF(Configuration!$F$11="D",$R174,Table7[[#This Row],[Vo]])) -> 0 | X173: =IF(X$1=0,0,IF(Configuration!$F$12="D",$R174,Table7[[#This Row],[Vo]])) -> 0 | Y173: =IF(Y$1=0,0,IF(Configuration!$F$13="D",$R174,Table7[[#This Row],[Vo]])) -> 0 | Z173: =IF(Z$1=0,0,IF(Configuration!$F$14="D",$R174,Table7[[#This Row],[Vo]])) -> 0 | AA173: =IF(AA$1=0,0,IF(Configuration!$F$15="D",$R174,Table7[[#This Row],[Vo]])) -> 0 | AB173: =IF(AB$1=0,0,IF(Configuration!$F$16="D",$R174,Table7[[#This Row],[Vo]])) -> 0 | AC173: =IF(AC$1=0,0,IF(Configuration!$F$17="D",$R174,Table7[[#This Row],[Vo]])) -> 0
A174: 18.3 | B174: NMS-240-24 | C174: 10 | D174: =Table2[[#This Row],[Output Voltage]]*Table2[[#This Row],[Module rated current]] -> 183 | E174: H | F174: =IF(1200/Table2[[#This Row],[Module rated power]]>6,6,ROUNDDOWN(1200/Table2[[#This Row],[Module rated power]],0)) -> 6 | G174: =Table2[[#This Row],[Module rated power]]*Table2[[#This Row],[Available No. of Slot]] -> 1098 | H174: =ROUNDDOWN(Table2[[#This Row],[Max power per output]]/Table2[[#This Row],[Output Voltage]],2) -> 60 | P174: Singapore | R174: 20 | S174: =IF(S$1=0,0,IF(Configuration!$F$7="D",$R175,Table7[[#This Row],[Vo]])) -> 0 | T174: =IF(T$1=0,0,IF(Configuration!$F$8="D",$R175,Table7[[#This Row],[Vo]])) -> 0 | U174: =IF(U$1=0,0,IF(Configuration!$F$9="D",$R175,Table7[[#This Row],[Vo]])) -> 0 | V174: =IF(V$1=0,0,IF(Configuration!$F$10="D",$R175,Table7[[#This Row],[Vo]])) -> 0 | W174: =IF(W$1=0,0,IF(Configuration!$F$11="D",$R175,Table7[[#This Row],[Vo]])) -> 0 | X174: =IF(X$1=0,0,IF(Configuration!$F$12="D",$R175,Table7[[#This Row],[Vo]])) -> 0 | Y174: =IF(Y$1=0,0,IF(Configuration!$F$13="D",$R175,Table7[[#This Row],[Vo]])) -> 0 | Z174: =IF(Z$1=0,0,IF(Configuration!$F$14="D",$R175,Table7[[#This Row],[Vo]])) -> 0 | AA174: =IF(AA$1=0,0,IF(Configuration!$F$15="D",$R175,Table7[[#This Row],[Vo]])) -> 0 | AB174: =IF(AB$1=0,0,IF(Configuration!$F$16="D",$R175,Table7[[#This Row],[Vo]])) -> 0 | AC174: =IF(AC$1=0,0,IF(Configuration!$F$17="D",$R175,Table7[[#This Row],[Vo]])) -> 0
A175: 18.4 | B175: NMS-240-24 | C175: 10 | D175: =Table2[[#This Row],[Output Voltage]]*Table2[[#This Row],[Module rated current]] -> 184 | E175: H | F175: =IF(1200/Table2[[#This Row],[Module rated power]]>6,6,ROUNDDOWN(1200/Table2[[#This Row],[Module rated power]],0)) -> 6 | G175: =Table2[[#This Row],[Module rated power]]*Table2[[#This Row],[Available No. of Slot]] -> 1104 | H175: =ROUNDDOWN(Table2[[#This Row],[Max power per output]]/Table2[[#This Row],[Output Voltage]],2) -> 60 | P175: Slovakia | R175: 20.1 | S175: =IF(S$1=0,0,IF(Configuration!$F$7="D",$R176,Table7[[#This Row],[Vo]])) -> 0 | T175: =IF(T$1=0,0,IF(Configuration!$F$8="D",$R176,Table7[[#This Row],[Vo]])) -> 0 | U175: =IF(U$1=0,0,IF(Configuration!$F$9="D",$R176,Table7[[#This Row],[Vo]])) -> 0 | V175: =IF(V$1=0,0,IF(Configuration!$F$10="D",$R176,Table7[[#This Row],[Vo]])) -> 0 | W175: =IF(W$1=0,0,IF(Configuration!$F$11="D",$R176,Table7[[#This Row],[Vo]])) -> 0 | X175: =IF(X$1=0,0,IF(Configuration!$F$12="D",$R176,Table7[[#This Row],[Vo]])) -> 0 | Y175: =IF(Y$1=0,0,IF(Configuration!$F$13="D",$R176,Table7[[#This Row],[Vo]])) -> 0 | Z175: =IF(Z$1=0,0,IF(Configuration!$F$14="D",$R176,Table7[[#This Row],[Vo]])) -> 0 | AA175: =IF(AA$1=0,0,IF(Configuration!$F$15="D",$R176,Table7[[#This Row],[Vo]])) -> 0 | AB175: =IF(AB$1=0,0,IF(Configuration!$F$16="D",$R176,Table7[[#This Row],[Vo]])) -> 0 | AC175: =IF(AC$1=0,0,IF(Configuration!$F$17="D",$R176,Table7[[#This Row],[Vo]])) -> 0
A176: 18.5 | B176: NMS-240-24 | C176: 10 | D176: =Table2[[#This Row],[Output Voltage]]*Table2[[#This Row],[Module rated current]] -> 185 | E176: H | F176: =IF(1200/Table2[[#This Row],[Module rated power]]>6,6,ROUNDDOWN(1200/Table2[[#This Row],[Module rated power]],0)) -> 6 | G176: =Table2[[#This Row],[Module rated power]]*Table2[[#This Row],[Available No. of Slot]] -> 1110 | H176: =ROUNDDOWN(Table2[[#This Row],[Max power per output]]/Table2[[#This Row],[Output Voltage]],2) -> 60 | P176: Slovenia | R176: 20.2 | S176: =IF(S$1=0,0,IF(Configuration!$F$7="D",$R177,Table7[[#This Row],[Vo]])) -> 0 | T176: =IF(T$1=0,0,IF(Configuration!$F$8="D",$R177,Table7[[#This Row],[Vo]])) -> 0 | U176: =IF(U$1=0,0,IF(Configuration!$F$9="D",$R177,Table7[[#This Row],[Vo]])) -> 0 | V176: =IF(V$1=0,0,IF(Configuration!$F$10="D",$R177,Table7[[#This Row],[Vo]])) -> 0 | W176: =IF(W$1=0,0,IF(Configuration!$F$11="D",$R177,Table7[[#This Row],[Vo]])) -> 0 | X176: =IF(X$1=0,0,IF(Configuration!$F$12="D",$R177,Table7[[#This Row],[Vo]])) -> 0 | Y176: =IF(Y$1=0,0,IF(Configuration!$F$13="D",$R177,Table7[[#This Row],[Vo]])) -> 0 | Z176: =IF(Z$1=0,0,IF(Configuration!$F$14="D",$R177,Table7[[#This Row],[Vo]])) -> 0 | AA176: =IF(AA$1=0,0,IF(Configuration!$F$15="D",$R177,Table7[[#This Row],[Vo]])) -> 0 | AB176: =IF(AB$1=0,0,IF(Configuration!$F$16="D",$R177,Table7[[#This Row],[Vo]])) -> 0 | AC176: =IF(AC$1=0,0,IF(Configuration!$F$17="D",$R177,Table7[[#This Row],[Vo]])) -> 0
A177: 18.6 | B177: NMS-240-24 | C177: 10 | D177: =Table2[[#This Row],[Output Voltage]]*Table2[[#This Row],[Module rated current]] -> 186 | E177: H | F177: =IF(1200/Table2[[#This Row],[Module rated power]]>6,6,ROUNDDOWN(1200/Table2[[#This Row],[Module rated power]],0)) -> 6 | G177: =Table2[[#This Row],[Module rated power]]*Table2[[#This Row],[Available No. of Slot]] -> 1116 | H177: =ROUNDDOWN(Table2[[#This Row],[Max power per output]]/Table2[[#This Row],[Output Voltage]],2) -> 60 | P177: South Africa | R177: 20.3 | S177: =IF(S$1=0,0,IF(Configuration!$F$7="D",$R178,Table7[[#This Row],[Vo]])) -> 0 | T177: =IF(T$1=0,0,IF(Configuration!$F$8="D",$R178,Table7[[#This Row],[Vo]])) -> 0 | U177: =IF(U$1=0,0,IF(Configuration!$F$9="D",$R178,Table7[[#This Row],[Vo]])) -> 0 | V177: =IF(V$1=0,0,IF(Configuration!$F$10="D",$R178,Table7[[#This Row],[Vo]])) -> 0 | W177: =IF(W$1=0,0,IF(Configuration!$F$11="D",$R178,Table7[[#This Row],[Vo]])) -> 0 | X177: =IF(X$1=0,0,IF(Configuration!$F$12="D",$R178,Table7[[#This Row],[Vo]])) -> 0 | Y177: =IF(Y$1=0,0,IF(Configuration!$F$13="D",$R178,Table7[[#This Row],[Vo]])) -> 0 | Z177: =IF(Z$1=0,0,IF(Configuration!$F$14="D",$R178,Table7[[#This Row],[Vo]])) -> 0 | AA177: =IF(AA$1=0,0,IF(Configuration!$F$15="D",$R178,Table7[[#This Row],[Vo]])) -> 0 | AB177: =IF(AB$1=0,0,IF(Configuration!$F$16="D",$R178,Table7[[#This Row],[Vo]])) -> 0 | AC177: =IF(AC$1=0,0,IF(Configuration!$F$17="D",$R178,Table7[[#This Row],[Vo]])) -> 0
A178: 18.7 | B178: NMS-240-24 | C178: 10 | D178: =Table2[[#This Row],[Output Voltage]]*Table2[[#This Row],[Module rated current]] -> 187 | E178: H | F178: =IF(1200/Table2[[#This Row],[Module rated power]]>6,6,ROUNDDOWN(1200/Table2[[#This Row],[Module rated power]],0)) -> 6 | G178: =Table2[[#This Row],[Module rated power]]*Table2[[#This Row],[Available No. of Slot]] -> 1122 | H178: =ROUNDDOWN(Table2[[#This Row],[Max power per output]]/Table2[[#This Row],[Output Voltage]],2) -> 60 | P178: Spain | R178: 20.4 | S178: =IF(S$1=0,0,IF(Configuration!$F$7="D",$R179,Table7[[#This Row],[Vo]])) -> 0 | T178: =IF(T$1=0,0,IF(Configuration!$F$8="D",$R179,Table7[[#This Row],[Vo]])) -> 0 | U178: =IF(U$1=0,0,IF(Configuration!$F$9="D",$R179,Table7[[#This Row],[Vo]])) -> 0 | V178: =IF(V$1=0,0,IF(Configuration!$F$10="D",$R179,Table7[[#This Row],[Vo]])) -> 0 | W178: =IF(W$1=0,0,IF(Configuration!$F$11="D",$R179,Table7[[#This Row],[Vo]])) -> 0 | X178: =IF(X$1=0,0,IF(Configuration!$F$12="D",$R179,Table7[[#This Row],[Vo]])) -> 0 | Y178: =IF(Y$1=0,0,IF(Configuration!$F$13="D",$R179,Table7[[#This Row],[Vo]])) -> 0 | Z178: =IF(Z$1=0,0,IF(Configuration!$F$14="D",$R179,Table7[[#This Row],[Vo]])) -> 0 | AA178: =IF(AA$1=0,0,IF(Configuration!$F$15="D",$R179,Table7[[#This Row],[Vo]])) -> 0 | AB178: =IF(AB$1=0,0,IF(Configuration!$F$16="D",$R179,Table7[[#This Row],[Vo]])) -> 0 | AC178: =IF(AC$1=0,0,IF(Configuration!$F$17="D",$R179,Table7[[#This Row],[Vo]])) -> 0
A179: 18.8 | B179: NMS-240-24 | C179: 10 | D179: =Table2[[#This Row],[Output Voltage]]*Table2[[#This Row],[Module rated current]] -> 188 | E179: H | F179: =IF(1200/Table2[[#This Row],[Module rated power]]>6,6,ROUNDDOWN(1200/Table2[[#This Row],[Module rated power]],0)) -> 6 | G179: =Table2[[#This Row],[Module rated power]]*Table2[[#This Row],[Available No. of Slot]] -> 1128 | H179: =ROUNDDOWN(Table2[[#This Row],[Max power per output]]/Table2[[#This Row],[Output Voltage]],2) -> 60 | P179: Sri Lanka | R179: 20.5 | S179: =IF(S$1=0,0,IF(Configuration!$F$7="D",$R180,Table7[[#This Row],[Vo]])) -> 0 | T179: =IF(T$1=0,0,IF(Configuration!$F$8="D",$R180,Table7[[#This Row],[Vo]])) -> 0 | U179: =IF(U$1=0,0,IF(Configuration!$F$9="D",$R180,Table7[[#This Row],[Vo]])) -> 0 | V179: =IF(V$1=0,0,IF(Configuration!$F$10="D",$R180,Table7[[#This Row],[Vo]])) -> 0 | W179: =IF(W$1=0,0,IF(Configuration!$F$11="D",$R180,Table7[[#This Row],[Vo]])) -> 0 | X179: =IF(X$1=0,0,IF(Configuration!$F$12="D",$R180,Table7[[#This Row],[Vo]])) -> 0 | Y179: =IF(Y$1=0,0,IF(Configuration!$F$13="D",$R180,Table7[[#This Row],[Vo]])) -> 0 | Z179: =IF(Z$1=0,0,IF(Configuration!$F$14="D",$R180,Table7[[#This Row],[Vo]])) -> 0 | AA179: =IF(AA$1=0,0,IF(Configuration!$F$15="D",$R180,Table7[[#This Row],[Vo]])) -> 0 | AB179: =IF(AB$1=0,0,IF(Configuration!$F$16="D",$R180,Table7[[#This Row],[Vo]])) -> 0 | AC179: =IF(AC$1=0,0,IF(Configuration!$F$17="D",$R180,Table7[[#This Row],[Vo]])) -> 0
A180: 18.9 | B180: NMS-240-24 | C180: 10 | D180: =Table2[[#This Row],[Output Voltage]]*Table2[[#This Row],[Module rated current]] -> 189 | E180: H | F180: =IF(1200/Table2[[#This Row],[Module rated power]]>6,6,ROUNDDOWN(1200/Table2[[#This Row],[Module rated power]],0)) -> 6 | G180: =Table2[[#This Row],[Module rated power]]*Table2[[#This Row],[Available No. of Slot]] -> 1134 | H180: =ROUNDDOWN(Table2[[#This Row],[Max power per output]]/Table2[[#This Row],[Output Voltage]],2) -> 60 | P180: Sweden | R180: 20.6 | S180: =IF(S$1=0,0,IF(Configuration!$F$7="D",$R181,Table7[[#This Row],[Vo]])) -> 0 | T180: =IF(T$1=0,0,IF(Configuration!$F$8="D",$R181,Table7[[#This Row],[Vo]])) -> 0 | U180: =IF(U$1=0,0,IF(Configuration!$F$9="D",$R181,Table7[[#This Row],[Vo]])) -> 0 | V180: =IF(V$1=0,0,IF(Configuration!$F$10="D",$R181,Table7[[#This Row],[Vo]])) -> 0 | W180: =IF(W$1=0,0,IF(Configuration!$F$11="D",$R181,Table7[[#This Row],[Vo]])) -> 0 | X180: =IF(X$1=0,0,IF(Configuration!$F$12="D",$R181,Table7[[#This Row],[Vo]])) -> 0 | Y180: =IF(Y$1=0,0,IF(Configuration!$F$13="D",$R181,Table7[[#This Row],[Vo]])) -> 0 | Z180: =IF(Z$1=0,0,IF(Configuration!$F$14="D",$R181,Table7[[#This Row],[Vo]])) -> 0 | AA180: =IF(AA$1=0,0,IF(Configuration!$F$15="D",$R181,Table7[[#This Row],[Vo]])) -> 0 | AB180: =IF(AB$1=0,0,IF(Configuration!$F$16="D",$R181,Table7[[#This Row],[Vo]])) -> 0 | AC180: =IF(AC$1=0,0,IF(Configuration!$F$17="D",$R181,Table7[[#This Row],[Vo]])) -> 0
A181: 19 | B181: NMS-240-24 | C181: 10 | D181: =Table2[[#This Row],[Output Voltage]]*Table2[[#This Row],[Module rated current]] -> 190 | E181: H | F181: =IF(1200/Table2[[#This Row],[Module rated power]]>6,6,ROUNDDOWN(1200/Table2[[#This Row],[Module rated power]],0)) -> 6 | G181: =Table2[[#This Row],[Module rated power]]*Table2[[#This Row],[Available No. of Slot]] -> 1140 | H181: =ROUNDDOWN(Table2[[#This Row],[Max power per output]]/Table2[[#This Row],[Output Voltage]],2) -> 60 | P181: Switzerland | R181: 20.7 | S181: =IF(S$1=0,0,IF(Configuration!$F$7="D",$R182,Table7[[#This Row],[Vo]])) -> 0 | T181: =IF(T$1=0,0,IF(Configuration!$F$8="D",$R182,Table7[[#This Row],[Vo]])) -> 0 | U181: =IF(U$1=0,0,IF(Configuration!$F$9="D",$R182,Table7[[#This Row],[Vo]])) -> 0 | V181: =IF(V$1=0,0,IF(Configuration!$F$10="D",$R182,Table7[[#This Row],[Vo]])) -> 0 | W181: =IF(W$1=0,0,IF(Configuration!$F$11="D",$R182,Table7[[#This Row],[Vo]])) -> 0 | X181: =IF(X$1=0,0,IF(Configuration!$F$12="D",$R182,Table7[[#This Row],[Vo]])) -> 0 | Y181: =IF(Y$1=0,0,IF(Configuration!$F$13="D",$R182,Table7[[#This Row],[Vo]])) -> 0 | Z181: =IF(Z$1=0,0,IF(Configuration!$F$14="D",$R182,Table7[[#This Row],[Vo]])) -> 0 | AA181: =IF(AA$1=0,0,IF(Configuration!$F$15="D",$R182,Table7[[#This Row],[Vo]])) -> 0 | AB181: =IF(AB$1=0,0,IF(Configuration!$F$16="D",$R182,Table7[[#This Row],[Vo]])) -> 0 | AC181: =IF(AC$1=0,0,IF(Configuration!$F$17="D",$R182,Table7[[#This Row],[Vo]])) -> 0
